Workbook

Sheet Capa

Sheet Memorial
A1: =UPPER(Resumo!$B$2) -> PREFEITURA MUNICIPAL DE JOÃO MONLEVADE-MG
A2: ORÇAMENTO E CRONOGRAMA DE OBRA
A4: =Resumo!$B$3 -> CONSÓRCIO PITÁGORAS
A5: RESUMO:
A6: Este arquivo contém a Memória descritiva, Memória de Cálculo e Anexos do Orçamento do projeto supramencionado.
A14: 0 | B14: 2023-04-20 | C14: DKA | D14: KVS | F14: SHN | H14: MCFN | J14: A
A15: REV | B15: DATA | C15: POR | D15: VERIFICADO | F15: AUTORIZADO | H15: APROVADO | J15: TIPO
A16: EMISSÕES
A17: TIPOS | D17: A – PARA APROVAÇÃO | F17: C – ORIGINAL | H17: C – ORIGINAL
D18: B – REVISÃO | F18: D - CÓPIA | H18: D - CÓPIA
A19: EMPRESA CONTRATADA:
A20: =Resumo!B3 -> CONSÓRCIO PITÁGORAS
A21: Alameda Oscar Niemeyer, nº 500, Salas 503/507 – Vale do Sereno
A22: 34000-000 – Nova Lima – MG
A23: Tel.: (31) 3347-4405 // (31) 3347-7079
A24: RESPONSÁVEIS TÉCNICOS:
A26: · Matheus Comanduci Fernandes Neto - Engenheiro Civil – CREA 94.896/D
A27: · Juliana Gonçalves Oliveira - Engenheira Civil – CREA 239.787/D
A34: VOLUME:
A35: ORÇAMENTO E CRONOGRAMA DE OBRA
J36: REFERÊNCIA:
J37: =Resumo!D4 -> 2023-04-20
A40: =Resumo!$B$3 -> CONSÓRCIO PITÁGORAS
A41: =MID(CELL("filename",$A$6),SEARCH("[",CELL("filename",$A$6))+1,SEARCH("]",CELL("filename",$A$6))-SEARCH("[",CELL("filename",$A$6))-1) -> PLN-EXE-ORC-JMV-CRAS-0101-REV00.xlsm
A42: =UPPER(Resumo!$B$2) -> PREFEITURA MUNICIPAL DE JOÃO MONLEVADE-MG
A43: ORÇAMENTO E CRONOGRAMA DE OBRA
A45: ÍNDICE
A48: =$A$97 -> 1. APRESENTAÇÃO | I48: 4
B49: =$A$99 -> 1.1. EQUIPE TÉCNICA | I49: 4
A50: =$A$149 -> 2. LISTA DE ANEXOS | I50: 5
A51: =A179 -> 3. ESTRUTURA ORÇAMENTÁRIA | I51: 6
B52: =$A$181 -> 3.1. BASES APLICADAS | I52: 6
B53: =$A$187 -> 3.2. CONDIÇÕES TÉCNICAS | I53: 6
B54: =$A$191 -> 3.3. PLANILHA RESUMO | I54: 6
B55: =$A$195 -> 3.4. PLANILHA ORÇAMENTÁRIA | I55: 6
B56: =$A$199 -> 3.5. PLANILHA DE CRONOGRAMA FÍSICO-FINANCEIRO | I56: 6
B57: =$A$210 -> 3.6. BENEFÍCIOS E DESPESAS INDIRETAS (BDI) | I57: 7
B58: =$A$214 -> 3.7. PLANILHA DE COMPOSIÇÃO DE PREÇOS | I58: 7
B59: =$A$218 -> 3.8. MEMORIAL DE CÁLCULO | I59: 7
A60: 4. ANEXOS | I60: 8
A92: =Resumo!$B$3 -> CONSÓRCIO PITÁGORAS
A93: =MID(CELL("filename",$A$6),SEARCH("[",CELL("filename",$A$6))+1,SEARCH("]",CELL("filename",$A$6))-SEARCH("[",CELL("filename",$A$6))-1) -> PLN-EXE-ORC-JMV-CRAS-0101-REV00.xlsm
A94: =UPPER(Resumo!$B$2) -> PREFEITURA MUNICIPAL DE JOÃO MONLEVADE-MG
A95: ORÇAMENTO E CRONOGRAMA DE OBRA
A97: 1. APRESENTAÇÃO
A99: 1.1. EQUIPE TÉCNICA
A101: ="A "&A40&" apresenta a seguir a equipe técnica envolvida no presente trabalho:" -> A CONSÓRCIO PITÁGORAS apresenta a seguir a equipe técnica envolvida no presente trabalho:
A104: Quadro 1.1 – Equipe Técnica
A105: EQUIPE TÉCNICA: | C105: 1-Responsável Técnica Geral -Juliana Gonçalves Oliveira (Engenheira Civil) 2-Gerência -Matheus Comanduci Fernandes Neto (Engenheiro Civil) 3-Responsáveis pelo Setor de Orçamentos -Kênia Vanessa de Souza (Coordenadora de Orçamentos) -Tayna Michaele Campos Diniz (Supervisor de Orçamentos) -Victor Belloni de Melo Alves (Supervisor de Orçamentos) 4-Orçamentista(s) Responsável(is) -Débora Karine Alves (Engenheira Civil)
A144: =Resumo!$B$3 -> CONSÓRCIO PITÁGORAS
A145: =MID(CELL("filename",$A$6),SEARCH("[",CELL("filename",$A$6))+1,SEARCH("]",CELL("filename",$A$6))-SEARCH("[",CELL("filename",$A$6))-1) -> PLN-EXE-ORC-JMV-CRAS-0101-REV00.xlsm
A146: =UPPER(Resumo!$B$2) -> PREFEITURA MUNICIPAL DE JOÃO MONLEVADE-MG
A147: ORÇAMENTO E CRONOGRAMA DE OBRA
A149: 2. LISTA DE ANEXOS
A152: Quadro 2.1 – Lista de Anexos
A153: Nº | E153: TÍTULO
A154: ANEXO I | E154: PLANILHA DE ANOTAÇÕES, REGISTROS E REVISÕES
A155: ANEXO II | E155: =Resumo!A1 -> PLANILHA RESUMO
A156: ANEXO III | E156: =Orçamento!A2 -> PLANILHA ORÇAMENTÁRIA
A157: ANEXO IV | E157: ='Curva ABC'!A1 -> PLANILHA DE CURVA ABC
A158: ANEXO V | E158: =Cronograma!A1 -> CRONOGRAMA FÍSICO-FINANCEIRO
A159: ANEXO VI | E159: =BDI!A1 -> BDI
A160: ANEXO VII | E160: =Composições!A2 -> COMPOSIÇÃO DE PREÇOS
A161: ANEXO VIII | E161: =Cotação!A2 -> COTAÇÃO DE PREÇOS
A174: =Resumo!$B$3 -> CONSÓRCIO PITÁGORAS
A175: =MID(CELL("filename",$A$6),SEARCH("[",CELL("filename",$A$6))+1,SEARCH("]",CELL("filename",$A$6))-SEARCH("[",CELL("filename",$A$6))-1) -> PLN-EXE-ORC-JMV-CRAS-0101-REV00.xlsm
A176: =UPPER(Resumo!$B$2) -> PREFEITURA MUNICIPAL DE JOÃO MONLEVADE-MG
A177: ORÇAMENTO E CRONOGRAMA DE OBRA
A179: 3. ESTRUTURA ORÇAMENTÁRIA
A181: 3.1. BASES APLICADAS
A183: • | B183: =Resumo!B5 -> SINAPI MG 02/2023 / SICRO MG (DNIT) 10/2022 / SETOP CENTRAL 10/2022 / SUDECAP 12/2022
A187: 3.2. CONDIÇÕES TÉCNICAS
A189: O presente Memorial Descritivo tem por finalidade definir as condições técnicas ideais/específicas a serem obedecidas na execução dos levantamentos e orçamento dos serviços orçados, fixando os parâmetros mínimos a serem atendidos e constituirá parte integrante do contrato destes serviços. Todas as obras e serviços deverão ser executados rigorosamente de acordo com as normas técnicas pertinentes. As prescrições contidas no presente memorial e demais memoriais específicos de projetos, serão executadas em conformidade com as normas técnicas da ABNT e legislações Federais, Estaduais e Municipais vigentes.
A191: 3.3. PLANILHA RESUMO
A193: A “Planilha – Resumo”, apresenta os valores orçados de cada grupo de serviços e materiais, não levando em consideração os serviços e materiais unitários. A divisão é feita por grupos de serviços, englobando todos os serviços necessários para a execução dos projetos apresentados pela contratada. Esta divisão também é ferramenta para a análise do Cronograma Físico-Financeiro conforme detalhado adiante.
A195: 3.4. PLANILHA ORÇAMENTÁRIA
A197: A “Planilha Orçamentária”, apresenta detalhadamente os serviços unitários que compõem a planilha orçamentária. Esta planilha define as bases de preços utilizadas, resumo dos serviços, unidades, quantitativos, custo unitário e custos totais. A planilha é dividida em grupos, conforme descrito anteriormente, que são subdivididas em etapas, que por sua vez são divididas em áreas de atuação e por fim serviços unitários. Estas divisões facilitam as análises dos projetos, conferências de quantitativos, organização da estrutura orçamentária dos serviços e na execução da obra.
A199: 3.5. PLANILHA DE CRONOGRAMA FÍSICO-FINANCEIRO
A201: A “Planilha de Cronograma Físico-Financeiro”, define o cronograma físico-financeiro da Planilha Orçamentária, levando em consideração apenas os grupos de serviços, e não suas subdivisões. Esta planilha é um orientador da evolução e valores a serem seguidos por período, devendo ser respeitada, salvo em situações justificáveis, para que não haja aumento de custos para os envolvidos.
A205: =Resumo!$B$3 -> CONSÓRCIO PITÁGORAS
A206: =MID(CELL("filename",$A$6),SEARCH("[",CELL("filename",$A$6))+1,SEARCH("]",CELL("filename",$A$6))-SEARCH("[",CELL("filename",$A$6))-1) -> PLN-EXE-ORC-JMV-CRAS-0101-REV00.xlsm
A207: =UPPER(Resumo!$B$2) -> PREFEITURA MUNICIPAL DE JOÃO MONLEVADE-MG
A208: ORÇAMENTO E CRONOGRAMA DE OBRA
A210: 3.6. BENEFÍCIOS E DESPESAS INDIRETAS (BDI)
A212: O índice BDI, ou Benefícios e Despesas Indiretas é um elemento orçamentário que compõem o preço de venda adequado levando em conta os custos indiretos da obra, ou seja, custos que não incidem nas composições de preço unitária. Os valores foram calculados conforme acordão nº 2622/2013 TCU – PLENÁRIO.
A214: 3.7. PLANILHA DE COMPOSIÇÃO DE PREÇOS
A216: A “Planilha de Composição de Preços”, apresenta as composições de serviços que não se encontram disponíveis nas bases de preços oficiais. Os índices utilizados nas composições são de serviços equivalentes, e que passam por análise técnica pela equipe responsável da contratada e aos de bancos oficiais conforme descritos no item 3.1 deste memorial.
A218: 3.8. MEMORIAL DE CÁLCULO
A220: As “Memórias de Cálculos” definem os parâmetros e ações tomadas para o levantamento dos quantitativos de todos os serviços e materiais envolvidos nos projetos apresentados.
A224: _______________________________________
A225: JULIANA GONÇALVES OLIVEIRA
A226: ENGENHEIRA CIVIL
A227: =PROCURA_ART -> CREA MG: 239.787/D
A246: =Resumo!$B$3 -> CONSÓRCIO PITÁGORAS
A247: =MID(CELL("filename",$A$6),SEARCH("[",CELL("filename",$A$6))+1,SEARCH("]",CELL("filename",$A$6))-SEARCH("[",CELL("filename",$A$6))-1) -> PLN-EXE-ORC-JMV-CRAS-0101-REV00.xlsm

Sheet Anotações (hidden)
A1: =UPPER(Resumo!$B$2) -> PREFEITURA MUNICIPAL DE JOÃO MONLEVADE-MG
A2: ORÇAMENTO E CRONOGRAMA DE OBRA
A4: =Resumo!$B$3 -> CONSÓRCIO PITÁGORAS
A5: VOLUME:
A6: ANOTAÇÕES / REGISTROS / REVISÕES:
J7: REFERÊNCIA:
J8: =Resumo!D4 -> 2023-04-20
A9: Considerações realizadas para elaboração deste orçamento, de acordo com orientação do setor de arquitetura: - Na demolição 07 e 10 foi adotada uma espessura de 12cm e 10cm respectivamente. - A tag de teto 04 na varanda do pavimento superior esta equivocada. Foi considerado teto 02. - Para o piso 05 foi adotada uma espessura de 10cm. - Embora presente nas especificações, o piso 03 não é aplicado em nenhum dos cômodos. - Para o piso 04 foi considerado reaterro de aproximadamente 20cm de espessura e aplicação de areia. O quantitativo desse serviço será alterado de acordo com avaliação mais precisa do local. - Para o piso 06 foi adotada uma espessura de 10cm. - Embora presente nas especificações, a soleira em granito (SO) não é aplicada em nenhum dos cômodos. Aterro sanitário utilizado para cálculo de DMT de bota fora (15KM): Aterro Sanitário, Unnamed Road, João Monlevade - MG Pedreira utilizada para cálculo de DMT de material granular (5KM): Pedreira Um Valemix, Av. Cabo Frio, S/N - Sion, João Monlevade - MG, 35931-210
A37: _______________________________________
A38: JULIANA GONÇALVES OLIVEIRA
A39: =IF(A38="JULIANA GONÇALVES OLIVEIRA","ENGENHEIRA CIVIL","ENGENHEIRO CIVIL") -> ENGENHEIRA CIVIL
A40: =PROCURA_ART -> CREA MG: 239.787/D
A41: =Resumo!$B$3 -> CONSÓRCIO PITÁGORAS
A42: =MID(CELL("filename",$A$48),SEARCH("[",CELL("filename",$A$48))+1,SEARCH("]",CELL("filename",$A$48))-SEARCH("[",CELL("filename",$A$48))-1) -> PLN-EXE-ORC-JMV-CRAS-0101-REV00.xlsm
A43: =UPPER(Resumo!$B$2) -> PREFEITURA MUNICIPAL DE JOÃO MONLEVADE-MG
A44: ORÇAMENTO E CRONOGRAMA DE OBRA
A46: =Resumo!$B$3 -> CONSÓRCIO PITÁGORAS
A47: VOLUME:
A48: ANOTAÇÕES / REGISTROS / REVISÕES:
J49: REFERÊNCIA:
J50: =Resumo!D4 -> 2023-04-20
A79: _______________________________________
A80: JULIANA GONÇALVES OLIVEIRA
A81: ENGENHEIRA CIVIL
A82: =PROCURA_ART -> CREA MG: 239.787/D
A83: =Resumo!$B$3 -> CONSÓRCIO PITÁGORAS
A84: =MID(CELL("filename",$A$48),SEARCH("[",CELL("filename",$A$48))+1,SEARCH("]",CELL("filename",$A$48))-SEARCH("[",CELL("filename",$A$48))-1) -> PLN-EXE-ORC-JMV-CRAS-0101-REV00.xlsm

Sheet Resumo
A1: PLANILHA RESUMO | N1: NÃO DESONERADA
A2: CONTRATANTE: | B2: PREFEITURA MUNICIPAL DE JOÃO MONLEVADE-MG | C2: PLANILHA MODELO: | D2: =BDI!$Z$21 -> 0.2624 | N2: DESONERADA
A3: CONTRATADA: | B3: CONSÓRCIO PITÁGORAS | C3: NÃO DESONERADA | D3: REV_00
A4: PROJETO: | B4: CRAS III BEM VIVER | C4: PRAZO DA OBRA: | D4: 2023-04-20
A5: BASES: | B5: SINAPI MG 02/2023 / SICRO MG (DNIT) 10/2022 / SETOP CENTRAL 10/2022 / SUDECAP 12/2022 | C5: 6
A6: ITEM | B6: DESCRIÇÃO | D6: PREÇO | E6: %
A8: =Orçamento!$AD$8 -> 1 | B8: =Orçamento!$AG$8 -> MOBILIZAÇÃO E DESMOBILIZAÇÃO | C8: ="TOTAL DO ITEM - "&A8&" :" -> TOTAL DO ITEM - 1 : | D8: =Orçamento!$AH$8 -> 28816.45 | E8: =D8/D86 -> 0.01477832063
A11: =Orçamento!$AD$22 -> 2 | B11: =Orçamento!$AG$22 -> ADMINISTRAÇÃO LOCAL | C11: ="TOTAL DO ITEM - "&A11&" :" -> TOTAL DO ITEM - 2 : | D11: =Orçamento!$AH$22 -> 132257 | E11: =D11/D86 -> 0.067827104
A14: =Orçamento!$AD$50 -> 3 | B14: =Orçamento!$AG$50 -> SERVIÇOS PRELIMINARES | C14: ="TOTAL DO ITEM - "&A14&" :" -> TOTAL DO ITEM - 3 : | D14: =Orçamento!$AH$50 -> 52283.19 | E14: =D14/D86 -> 0.02681307882
A17: =Orçamento!$AD$111 -> 4 | B17: =Orçamento!$AG$111 -> DEMOLIÇÕES E REMOÇÕES | C17: ="TOTAL DO ITEM - "&A17&" :" -> TOTAL DO ITEM - 4 : | D17: =Orçamento!$AH$111 -> 101744.26 | E17: =D17/D86 -> 0.05217885257
A20: =Orçamento!$AD$208 -> 5 | B20: =Orçamento!$AG$208 -> INFRAESTRUTURA (FUNDAÇÕES) | C20: ="TOTAL DO ITEM - "&A20&" :" -> TOTAL DO ITEM - 5 : | D20: =Orçamento!$AH$208 -> 47959.45 | E20: =D20/D86 -> 0.02459567813
A23: =Orçamento!$AD$328 -> 6 | B23: =Orçamento!$AG$328 -> SUPERESTRUTURAS EM CONCRETO ARMADO (VIGAS / PILARES / LAJES) | C23: ="TOTAL DO ITEM - "&A23&" :" -> TOTAL DO ITEM - 6 : | D23: =Orçamento!$AH$328 -> 90132.45 | E23: =D23/D86 -> 0.04622381469
A26: =Orçamento!$AD$449 -> 7 | B26: =Orçamento!$AG$449 -> ALVENARIAS | C26: ="TOTAL DO ITEM - "&A26&" :" -> TOTAL DO ITEM - 7 : | D26: =Orçamento!$AH$449 -> 36874.68 | E26: =D26/D86 -> 0.01891092914
A29: =Orçamento!$AD$485 -> 8 | B29: =Orçamento!$AG$485 -> ACABAMENTO GROSSO (CHAPISCO, EMBOÇO, REBOCO E CONTRAPISO) | C29: ="TOTAL DO ITEM - "&A29&" :" -> TOTAL DO ITEM - 8 : | D29: =Orçamento!$AH$485 -> 96945.5 | E29: =D29/D86 -> 0.0497178411
A32: =Orçamento!$AD$516 -> 9 | B32: =Orçamento!$AG$516 -> REVESTIMENTOS E ACABAMENTOS | C32: ="TOTAL DO ITEM - "&A32&" :" -> TOTAL DO ITEM - 9 : | D32: =Orçamento!$AH$516 -> 166793.59 | E32: =D32/D86 -> 0.08553895957
A35: =Orçamento!$AD$554 -> 10 | B35: =Orçamento!$AG$554 -> PINTURA (SELADOR, EMASSAMENTO, TINTA E GESSO) | C35: ="TOTAL DO ITEM - "&A35&" :" -> TOTAL DO ITEM - 10 : | D35: =Orçamento!$AH$554 -> 95070.04 | E35: =D35/D86 -> 0.04875602418
A38: =Orçamento!$AD$583 -> 11 | B38: =Orçamento!$AG$583 -> FORROS | C38: ="TOTAL DO ITEM - "&A38&" :" -> TOTAL DO ITEM - 11 : | D38: =Orçamento!$AH$583 -> 10150.3 | E38: =D38/D86 -> 0.005205512402
A41: =Orçamento!$AD$597 -> 12 | B41: =Orçamento!$AG$597 -> ESQUADRIAS | C41: ="TOTAL DO ITEM - "&A41&" :" -> TOTAL DO ITEM - 12 : | D41: =Orçamento!$AH$597 -> 120306.98 | E41: =D41/D86 -> 0.06169861742
A44: =Orçamento!$AD$641 -> 13 | B44: =Orçamento!$AG$641 -> INSTALAÇÕES DE CABEAMENTO ESTRUTURADO | C44: ="TOTAL DO ITEM - "&A44&" :" -> TOTAL DO ITEM - 13 : | D44: =Orçamento!$AH$641 -> 35999.13 | E44: =D44/D86 -> 0.01846190927
A47: =Orçamento!$AD$710 -> 14 | B47: =Orçamento!$AG$710 -> INSTALAÇÕES ELÉTRICAS | C47: ="TOTAL DO ITEM - "&A47&" :" -> TOTAL DO ITEM - 14 : | D47: =Orçamento!$AH$710 -> 210359.76 | E47: =D47/D86 -> 0.1078815739
A50: =Orçamento!$AD$820 -> 15 | B50: =Orçamento!$AG$820 -> INSTALAÇÕES HIDROSSANITÁRIAS | C50: ="TOTAL DO ITEM - "&A50&" :" -> TOTAL DO ITEM - 15 : | D50: =Orçamento!$AH$820 -> 60434.06 | E50: =D50/D86 -> 0.03099319713
A53: =Orçamento!$AD$1079 -> 16 | B53: =Orçamento!$AG$1079 -> INSTALAÇÕES DE SPDA (SISTEMA DE PROTEÇÃO CONTRA DESCARGAS ATMOSFÉRICAS) | C53: ="TOTAL DO ITEM - "&A53&" :" -> TOTAL DO ITEM - 16 : | D53: =Orçamento!$AH$1079 -> 54327.05 | E53: =D53/D86 -> 0.02786125854
A56: =Orçamento!$AD$1136 -> 17 | B56: =Orçamento!$AG$1136 -> DRENAGEM | C56: ="TOTAL DO ITEM - "&A56&" :" -> TOTAL DO ITEM - 17 : | D56: =Orçamento!$AH$1136 -> 95829.84 | E56: =D56/D86 -> 0.04914568245
A59: =Orçamento!$AD$1191 -> 18 | B59: =Orçamento!$AG$1191 -> ACESSÓRIOS , LOUÇAS, METAIS E VIDROS | C59: ="TOTAL DO ITEM - "&A59&" :" -> TOTAL DO ITEM - 18 : | D59: =Orçamento!$AH$1191 -> 18153.34 | E59: =D59/D86 -> 0.0093098171
A62: =Orçamento!$AD$1246 -> 19 | B62: =Orçamento!$AG$1246 -> PEDRAS ( BANCADAS, PEITORIS, SOLEIRAS E DIVERSOS) | C62: ="TOTAL DO ITEM - "&A62&" :" -> TOTAL DO ITEM - 19 : | D62: =Orçamento!$AH$1246 -> 19349.58 | E62: =D62/D86 -> 0.009923300657
A65: =Orçamento!$AD$1274 -> 20 | B65: =Orçamento!$AG$1274 -> ESTRUTURA METALICA | C65: ="TOTAL DO ITEM - "&A65&" :" -> TOTAL DO ITEM - 20 : | D65: =Orçamento!$AH$1274 -> 66056.01 | E65: =D65/D86 -> 0.033876376
A68: =Orçamento!$AD$1294 -> 21 | B68: =Orçamento!$AG$1294 -> TELHAMENTO E COBERTURA | C68: ="TOTAL DO ITEM - "&A68&" :" -> TOTAL DO ITEM - 21 : | D68: =Orçamento!$AH$1294 -> 264189.89 | E68: =D68/D86 -> 0.1354879904
A71: =Orçamento!$AD$1319 -> 22 | B71: =Orçamento!$AG$1319 -> PAISAGISMO , EQUIPAMENTOS, MOBILIÁRIOS E DIVERSOS | C71: ="TOTAL DO ITEM - "&A71&" :" -> TOTAL DO ITEM - 22 : | D71: =Orçamento!$AH$1319 -> 110934.63 | E71: =D71/D86 -> 0.05689207139
A74: =Orçamento!$AD$1346 -> 23 | B74: =Orçamento!$AG$1346 -> IMPERMEABILIZAÇÃO | C74: ="TOTAL DO ITEM - "&A74&" :" -> TOTAL DO ITEM - 23 : | D74: =Orçamento!$AH$1346 -> 28735.13 | E74: =D74/D86 -> 0.01473661622
A77: =Orçamento!$AD$1360 -> 24 | B77: =Orçamento!$AG$1360 -> LIMPEZA FINAL DE OBRA | C77: ="TOTAL DO ITEM - "&A77&" :" -> TOTAL DO ITEM - 24 : | D77: =Orçamento!$AH$1360 -> 6211.4 | E77: =D77/D86 -> 0.003185474295
C86: TOTAL DO ORÇAMENTO: | D86: =SUBTOTAL(9,OFFSET(D6,1,0):OFFSET(D86,-1,0)) -> 1949913.71 | E86: =SUBTOTAL(9,OFFSET(E6,1,0):OFFSET(E86,-1,0)) -> 1

Sheet Orçamento
A2: PLANILHA ORÇAMENTÁRIA | R2: NUMERAÇÃO AUTOMÁTICA
A3: =Resumo!$A$2 -> CONTRATANTE: | B3: =Resumo!B2 -> PREFEITURA MUNICIPAL DE JOÃO MONLEVADE-MG | I3: =Resumo!$D$2 -> 0.2624
A4: =Resumo!$A$3 -> CONTRATADA: | B4: =Resumo!B3 -> CONSÓRCIO PITÁGORAS | I4: =Resumo!$D$3 -> REV_00
A5: =Resumo!$A$4 -> PROJETO: | B5: =Resumo!B4 -> CRAS III BEM VIVER | I5: =Resumo!$D$4 -> 2023-04-20
A6: ITEM | B6: BASE | C6: CÓDIGO | D6: RESUMO DOS SERVIÇOS | E6: UNID. | F6: QUANT. | G6: PREÇO UNITÁRIO | H6: CUSTO UNITÁRIO | I6: CUSTO TOTAL
H7: =TRUNC(G7*(1+$I$3),2) -> 0 | BC7: =PROCURA_PRECO_SERVICO -> 0
A8: =V8 -> 1 | D8: MOBILIZAÇÃO E DESMOBILIZAÇÃO | N8: ITEM_INICIO | R8: NIVEL 1 | V8: =COUNTIF($R$2:$R8,"NIVEL 1") -> 1 | W8: =IFERROR(COUNTIF(INDIRECT(Z8):S8,"NIVEL 2"),0) -> 0 | X8: =COUNTIF(INDIRECT(AB8):T8,"NIVEL 3") -> 0 | Y8: =IF(U8="NIVEL 4",OFFSET(Y8,-1,0)+1,0) -> 0 | Z8: =ADDRESS(MATCH(COUNTIF($R$2:$R8,"NIVEL 1"),V:V,0),COLUMN(S8)) -> $S$8 | AA8: =ADDRESS(MATCH(COUNTIF($R$2:$R8,"NIVEL 1"),V:V,0),COLUMN(W8)) -> $W$8 | AB8: =ADDRESS((MATCH(COUNTIF(INDIRECT(Z8):$S8,"NIVEL 2"),INDIRECT(AA8):W8,0)+(MATCH(COUNTIF($R$2:$R8,"NIVEL 1"),V:V,0)-1)),COLUMN(T8)) -> $T$8 | AD8: =A8 -> 1 | AG8: =D8 -> MOBILIZAÇÃO E DESMOBILIZAÇÃO | AH8: =I20 -> 28816.45 | AI8: =AH8/$I$1374 -> 0.01477832063 | BC8: =PROCURA_PRECO_SERVICO -> 0
V9: =COUNTIF($R$2:$R9,"NIVEL 1") -> 1 | W9: 0 | X9: 0 | Y9: 0 | Z9: =ADDRESS(MATCH(COUNTIF($R$2:$R9,"NIVEL 1"),V:V,0),COLUMN(S9)) -> $S$8 | AA9: =ADDRESS(MATCH(COUNTIF($R$2:$R9,"NIVEL 1"),V:V,0),COLUMN(W9)) -> $W$8 | AB9: =ADDRESS((MATCH(COUNTIF(INDIRECT(Z9):$S9,"NIVEL 2"),INDIRECT(AA9):W9,0)+(MATCH(COUNTIF($R$2:$R9,"NIVEL 1"),V:V,0)-1)),COLUMN(T9)) -> $T$8 | BC9: =PROCURA_PRECO_SERVICO -> 0
A10: =V10&"."&W10 -> 1.1 | D10: MOBILIZAÇÃO E DESMOBILIZAÇÃO | N10: SUBITEM_INICIO | R10: NIVEL 2 | S10: NIVEL 2 | V10: =COUNTIF($R$2:$R10,"NIVEL 1") -> 1 | W10: 1 | X10: 0 | Y10: 0 | Z10: =ADDRESS(MATCH(COUNTIF($R$2:$R10,"NIVEL 1"),V:V,0),COLUMN(S10)) -> $S$8 | AA10: =ADDRESS(MATCH(COUNTIF($R$2:$R10,"NIVEL 1"),V:V,0),COLUMN(W10)) -> $W$8 | AB10: =ADDRESS((MATCH(COUNTIF(INDIRECT(Z10):$S10,"NIVEL 2"),INDIRECT(AA10):W10,0)+(MATCH(COUNTIF($R$2:$R10,"NIVEL 1"),V:V,0)-1)),COLUMN(T10)) -> $T$10 | BC10: =PROCURA_PRECO_SERVICO -> 0
V11: =COUNTIF($R$2:$R11,"NIVEL 1") -> 1 | W11: 1 | X11: 0 | Y11: =IF(U11="NIVEL 4",OFFSET(Y11,-1,0)+1,0) -> 0 | Z11: =ADDRESS(MATCH(COUNTIF($R$2:$R11,"NIVEL 1"),V:V,0),COLUMN(S11)) -> $S$8 | AA11: =ADDRESS(MATCH(COUNTIF($R$2:$R11,"NIVEL 1"),V:V,0),COLUMN(W11)) -> $W$8 | AB11: =ADDRESS((MATCH(COUNTIF(INDIRECT(Z11):$S11,"NIVEL 2"),INDIRECT(AA11):W11,0)+(MATCH(COUNTIF($R$2:$R11,"NIVEL 1"),V:V,0)-1)),COLUMN(T11)) -> $T$10 | BC11: =PROCURA_PRECO_SERVICO -> 0
A12: =V12&"."&W12&"."&X12 -> 1.1.1 | D12: MOBILIZAÇÃO E DESMOBILIZAÇÃO | N12: SUBSUBITEM_INICIO | R12: NIVEL 3 | S12: NIVEL 3 | T12: NIVEL 3 | V12: =COUNTIF($R$2:$R12,"NIVEL 1") -> 1 | W12: 1 | X12: 1 | Y12: 0 | Z12: =ADDRESS(MATCH(COUNTIF($R$2:$R12,"NIVEL 1"),V:V,0),COLUMN(S12)) -> $S$8 | AA12: =ADDRESS(MATCH(COUNTIF($R$2:$R12,"NIVEL 1"),V:V,0),COLUMN(W12)) -> $W$8 | AB12: =ADDRESS((MATCH(COUNTIF(INDIRECT(Z12):$S12,"NIVEL 2"),INDIRECT(AA12):W12,0)+(MATCH(COUNTIF($R$2:$R12,"NIVEL 1"),V:V,0)-1)),COLUMN(T12)) -> $T$10 | BC12: =PROCURA_PRECO_SERVICO -> 0
V13: =COUNTIF($R$2:$R13,"NIVEL 1") -> 1 | W13: 1 | X13: 1 | Y13: 0 | Z13: =ADDRESS(MATCH(COUNTIF($R$2:$R13,"NIVEL 1"),V:V,0),COLUMN(S13)) -> $S$8 | AA13: =ADDRESS(MATCH(COUNTIF($R$2:$R13,"NIVEL 1"),V:V,0),COLUMN(W13)) -> $W$8 | AB13: =ADDRESS((MATCH(COUNTIF(INDIRECT(Z13):$S13,"NIVEL 2"),INDIRECT(AA13):W13,0)+(MATCH(COUNTIF($R$2:$R13,"NIVEL 1"),V:V,0)-1)),COLUMN(T13)) -> $T$10 | BC13: =PROCURA_PRECO_SERVICO -> 0
A14: =V14&"."&W14&"."&X14&"."&Y14 -> 1.1.1.1 | B14: SETOP | C14: ED-50390 | D14: =PROCURA_DESCRICAO_SERVICO -> MOBILIZAÇÃO E DESMOBILIZAÇÃO OBRA DISTANTE DE CENTRO URBANO COM ENTRE 1.000.000,01 E 3.000.000,00 | E14: =PROCURA_UNIDADE_SERVICO -> % | F14: 0.015 | G14: =H14/(1+$I$3) -> 1521781.733 | H14: =SUBTOTAL(9,OFFSET(I20,1,0):OFFSET(I1374,-1,0)) -> 1921097.26 | I14: =CUSTO_TOTAL_SERVICO -> 28816.45 | N14: SERVIÇO | R14: NIVEL 4 | S14: NIVEL 4 | T14: NIVEL 4 | U14: NIVEL 4 | V14: =COUNTIF($R$1:$R14,"NIVEL 1") -> 1 | W14: 1 | X14: 1 | Y14: 1 | Z14: =ADDRESS(MATCH(COUNTIF($R$1:$R14,"NIVEL 1"),V:V,0),COLUMN(S14)) -> $S$8 | AA14: =ADDRESS(MATCH(COUNTIF($R$1:$R14,"NIVEL 1"),V:V,0),COLUMN(W14)) -> $W$8 | AB14: =ADDRESS((MATCH(COUNTIF(INDIRECT(Z14):$S14,"NIVEL 2"),INDIRECT(AA14):W14,0)+(MATCH(COUNTIF($R$1:$R14,"NIVEL 1"),V:V,0)-1)),COLUMN(T14)) -> $T$10 | BC14: =PROCURA_PRECO_SERVICO -> 1.5
V15: =COUNTIF($R$2:$R15,"NIVEL 1") -> 1 | W15: 1 | X15: 1 | Y15: 0 | Z15: =ADDRESS(MATCH(COUNTIF($R$2:$R15,"NIVEL 1"),V:V,0),COLUMN(S15)) -> $S$8 | AA15: =ADDRESS(MATCH(COUNTIF($R$2:$R15,"NIVEL 1"),V:V,0),COLUMN(W15)) -> $W$8 | AB15: =ADDRESS((MATCH(COUNTIF(INDIRECT(Z15):$S15,"NIVEL 2"),INDIRECT(AA15):W15,0)+(MATCH(COUNTIF($R$2:$R15,"NIVEL 1"),V:V,0)-1)),COLUMN(T15)) -> $T$10 | BC15: =PROCURA_PRECO_SERVICO -> 0
D16: ="SUBTOTAL DO ITEM - "&A12 -> SUBTOTAL DO ITEM - 1.1.1 | I16: =SUBTOTAL(9,OFFSET(I12,1,0):OFFSET(I16,-1,0)) -> 28816.45 | N16: SUBSUBITEM_FIM | V16: =COUNTIF($R$2:$R16,"NIVEL 1") -> 1 | W16: 1 | X16: 1 | Y16: 0 | Z16: =ADDRESS(MATCH(COUNTIF($R$2:$R16,"NIVEL 1"),V:V,0),COLUMN(S16)) -> $S$8 | AA16: =ADDRESS(MATCH(COUNTIF($R$2:$R16,"NIVEL 1"),V:V,0),COLUMN(W16)) -> $W$8 | AB16: =ADDRESS((MATCH(COUNTIF(INDIRECT(Z16):$S16,"NIVEL 2"),INDIRECT(AA16):W16,0)+(MATCH(COUNTIF($R$2:$R16,"NIVEL 1"),V:V,0)-1)),COLUMN(T16)) -> $T$10 | BC16: =PROCURA_PRECO_SERVICO -> 0
V17: =COUNTIF($R$2:$R17,"NIVEL 1") -> 1 | W17: 1 | X17: 1 | Y17: 0 | Z17: =ADDRESS(MATCH(COUNTIF($R$2:$R17,"NIVEL 1"),V:V,0),COLUMN(S17)) -> $S$8 | AA17: =ADDRESS(MATCH(COUNTIF($R$2:$R17,"NIVEL 1"),V:V,0),COLUMN(W17)) -> $W$8 | AB17: =ADDRESS((MATCH(COUNTIF(INDIRECT(Z17):$S17,"NIVEL 2"),INDIRECT(AA17):W17,0)+(MATCH(COUNTIF($R$2:$R17,"NIVEL 1"),V:V,0)-1)),COLUMN(T17)) -> $T$10 | BC17: =PROCURA_PRECO_SERVICO -> 0
D18: ="SUBTOTAL DO ITEM - "&A10 -> SUBTOTAL DO ITEM - 1.1 | I18: =SUBTOTAL(9,OFFSET(I10,1,0):OFFSET(I18,-1,0)) -> 28816.45 | N18: SUBITEM_FIM | V18: =COUNTIF($R$2:$R18,"NIVEL 1") -> 1 | W18: 1 | X18: 1 | Y18: 0 | Z18: =ADDRESS(MATCH(COUNTIF($R$2:$R18,"NIVEL 1"),V:V,0),COLUMN(S18)) -> $S$8 | AA18: =ADDRESS(MATCH(COUNTIF($R$2:$R18,"NIVEL 1"),V:V,0),COLUMN(W18)) -> $W$8 | AB18: =ADDRESS((MATCH(COUNTIF(INDIRECT(Z18):$S18,"NIVEL 2"),INDIRECT(AA18):W18,0)+(MATCH(COUNTIF($R$2:$R18,"NIVEL 1"),V:V,0)-1)),COLUMN(T18)) -> $T$10 | BC18: =PROCURA_PRECO_SERVICO -> 0
V19: =COUNTIF($R$2:$R19,"NIVEL 1") -> 1 | W19: 1 | X19: 1 | Y19: 0 | Z19: =ADDRESS(MATCH(COUNTIF($R$2:$R19,"NIVEL 1"),V:V,0),COLUMN(S19)) -> $S$8 | AA19: =ADDRESS(MATCH(COUNTIF($R$2:$R19,"NIVEL 1"),V:V,0),COLUMN(W19)) -> $W$8 | AB19: =ADDRESS((MATCH(COUNTIF(INDIRECT(Z19):$S19,"NIVEL 2"),INDIRECT(AA19):W19,0)+(MATCH(COUNTIF($R$2:$R19,"NIVEL 1"),V:V,0)-1)),COLUMN(T19)) -> $T$10 | BC19: =PROCURA_PRECO_SERVICO -> 0
D20: ="TOTAL DO ITEM - "&A8 -> TOTAL DO ITEM - 1 | I20: =SUBTOTAL(9,OFFSET(I8,1,0):OFFSET(I20,-1,0)) -> 28816.45 | N20: ITEM_FIM | V20: =COUNTIF($R$2:$R20,"NIVEL 1") -> 1 | W20: 1 | X20: 1 | Y20: 0 | Z20: =ADDRESS(MATCH(COUNTIF($R$2:$R20,"NIVEL 1"),V:V,0),COLUMN(S20)) -> $S$8 | AA20: =ADDRESS(MATCH(COUNTIF($R$2:$R20,"NIVEL 1"),V:V,0),COLUMN(W20)) -> $W$8 | AB20: =ADDRESS((MATCH(COUNTIF(INDIRECT(Z20):$S20,"NIVEL 2"),INDIRECT(AA20):W20,0)+(MATCH(COUNTIF($R$2:$R20,"NIVEL 1"),V:V,0)-1)),COLUMN(T20)) -> $T$10 | BC20: =PROCURA_PRECO_SERVICO -> 0
H21: =TRUNC(G21*(1+$I$3),2) -> 0 | V21: =COUNTIF($R$2:$R21,"NIVEL 1") -> 1 | W21: 1 | X21: 1 | Y21: 0 | Z21: =ADDRESS(MATCH(COUNTIF($R$2:$R21,"NIVEL 1"),V:V,0),COLUMN(S21)) -> $S$8 | AA21: =ADDRESS(MATCH(COUNTIF($R$2:$R21,"NIVEL 1"),V:V,0),COLUMN(W21)) -> $W$8 | AB21: =ADDRESS((MATCH(COUNTIF(INDIRECT(Z21):$S21,"NIVEL 2"),INDIRECT(AA21):W21,0)+(MATCH(COUNTIF($R$2:$R21,"NIVEL 1"),V:V,0)-1)),COLUMN(T21)) -> $T$10 | BC21: =PROCURA_PRECO_SERVICO -> 0
A22: =V22 -> 2 | D22: ADMINISTRAÇÃO LOCAL | N22: ITEM_INICIO | R22: NIVEL 1 | V22: =COUNTIF($R$2:$R22,"NIVEL 1") -> 2 | W22: 0 | X22: 0 | Y22: =IF(U22="NIVEL 4",OFFSET(Y22,-1,0)+1,0) -> 0 | Z22: =ADDRESS(MATCH(COUNTIF($R$2:$R22,"NIVEL 1"),V:V,0),COLUMN(S22)) -> $S$22 | AA22: =ADDRESS(MATCH(COUNTIF($R$2:$R22,"NIVEL 1"),V:V,0),COLUMN(W22)) -> $W$22 | AB22: =ADDRESS((MATCH(COUNTIF(INDIRECT(Z22):$S22,"NIVEL 2"),INDIRECT(AA22):W22,0)+(MATCH(COUNTIF($R$2:$R22,"NIVEL 1"),V:V,0)-1)),COLUMN(T22)) -> $T$22 | AD22: =A22 -> 2 | AG22: =D22 -> ADMINISTRAÇÃO LOCAL | AH22: =I48 -> 132257 | AI22: =AH22/$I$1374 -> 0.067827104 | BC22: =PROCURA_PRECO_SERVICO -> 0
V23: =COUNTIF($R$2:$R23,"NIVEL 1") -> 2 | W23: 0 | X23: 0 | Y23: =IF(U23="NIVEL 4",OFFSET(Y23,-1,0)+1,0) -> 0 | Z23: =ADDRESS(MATCH(COUNTIF($R$2:$R23,"NIVEL 1"),V:V,0),COLUMN(S23)) -> $S$22 | AA23: =ADDRESS(MATCH(COUNTIF($R$2:$R23,"NIVEL 1"),V:V,0),COLUMN(W23)) -> $W$22 | AB23: =ADDRESS((MATCH(COUNTIF(INDIRECT(Z23):$S23,"NIVEL 2"),INDIRECT(AA23):W23,0)+(MATCH(COUNTIF($R$2:$R23,"NIVEL 1"),V:V,0)-1)),COLUMN(T23)) -> $T$22 | BC23: =PROCURA_PRECO_SERVICO -> 0
A24: =V24&"."&W24 -> 2.1 | D24: DOCUMENTAÇÃO | N24: SUBITEM_INICIO | R24: NIVEL 2 | S24: NIVEL 2 | V24: =COUNTIF($R$2:$R24,"NIVEL 1") -> 2 | W24: 1 | X24: 0 | Y24: 0 | Z24: =ADDRESS(MATCH(COUNTIF($R$2:$R24,"NIVEL 1"),V:V,0),COLUMN(S24)) -> $S$22 | AA24: =ADDRESS(MATCH(COUNTIF($R$2:$R24,"NIVEL 1"),V:V,0),COLUMN(W24)) -> $W$22 | AB24: =ADDRESS((MATCH(COUNTIF(INDIRECT(Z24):$S24,"NIVEL 2"),INDIRECT(AA24):W24,0)+(MATCH(COUNTIF($R$2:$R24,"NIVEL 1"),V:V,0)-1)),COLUMN(T24)) -> $T$24 | BC24: =PROCURA_PRECO_SERVICO -> 0
V25: =COUNTIF($R$2:$R25,"NIVEL 1") -> 2 | W25: 1 | X25: 0 | Y25: 0 | Z25: =ADDRESS(MATCH(COUNTIF($R$2:$R25,"NIVEL 1"),V:V,0),COLUMN(S25)) -> $S$22 | AA25: =ADDRESS(MATCH(COUNTIF($R$2:$R25,"NIVEL 1"),V:V,0),COLUMN(W25)) -> $W$22 | AB25: =ADDRESS((MATCH(COUNTIF(INDIRECT(Z25):$S25,"NIVEL 2"),INDIRECT(AA25):W25,0)+(MATCH(COUNTIF($R$2:$R25,"NIVEL 1"),V:V,0)-1)),COLUMN(T25)) -> $T$24 | BC25: =PROCURA_PRECO_SERVICO -> 0
A26: =V26&"."&W26&"."&X26 -> 2.1.1 | D26: ART, AS BUILT E VISTORIA | N26: SUBSUBITEM_INICIO | R26: NIVEL 3 | S26: NIVEL 3 | T26: NIVEL 3 | V26: =COUNTIF($R$2:$R26,"NIVEL 1") -> 2 | W26: 1 | X26: 1 | Y26: 0 | Z26: =ADDRESS(MATCH(COUNTIF($R$2:$R26,"NIVEL 1"),V:V,0),COLUMN(S26)) -> $S$22 | AA26: =ADDRESS(MATCH(COUNTIF($R$2:$R26,"NIVEL 1"),V:V,0),COLUMN(W26)) -> $W$22 | AB26: =ADDRESS((MATCH(COUNTIF(INDIRECT(Z26):$S26,"NIVEL 2"),INDIRECT(AA26):W26,0)+(MATCH(COUNTIF($R$2:$R26,"NIVEL 1"),V:V,0)-1)),COLUMN(T26)) -> $T$24 | BC26: =PROCURA_PRECO_SERVICO -> 0
V27: =COUNTIF($R$2:$R27,"NIVEL 1") -> 2 | W27: 1 | X27: 1 | Y27: 0 | Z27: =ADDRESS(MATCH(COUNTIF($R$2:$R27,"NIVEL 1"),V:V,0),COLUMN(S27)) -> $S$22 | AA27: =ADDRESS(MATCH(COUNTIF($R$2:$R27,"NIVEL 1"),V:V,0),COLUMN(W27)) -> $W$22 | AB27: =ADDRESS((MATCH(COUNTIF(INDIRECT(Z27):$S27,"NIVEL 2"),INDIRECT(AA27):W27,0)+(MATCH(COUNTIF($R$2:$R27,"NIVEL 1"),V:V,0)-1)),COLUMN(T27)) -> $T$24 | BC27: =PROCURA_PRECO_SERVICO -> 0
A28: =V28&"."&W28&"."&X28&"."&Y28 -> 2.1.1.1 | B28: SUDECAP | C28: 01.12.02 | D28: =PROCURA_DESCRICAO_SERVICO -> VISTORIA CAUTELAR - VISTORIA CAUTELAR - 101M2 < ÁREA CONSTRUÍDA <= 200M2 | E28: =PROCURA_UNIDADE_SERVICO -> UN | F28: 5 | G28: =PROCURA_PRECO_SERVICO -> 410.62 | H28: =CUSTO_BDI_SERVICO -> 518.36 | I28: =CUSTO_TOTAL_SERVICO -> 2591.8 | N28: SERVIÇO | R28: NIVEL 4 | S28: NIVEL 4 | T28: NIVEL 4 | U28: NIVEL 4 | V28: =COUNTIF($R$2:$R28,"NIVEL 1") -> 2 | W28: 1 | X28: 1 | Y28: =IF(U28="NIVEL 4",OFFSET(Y28,-1,0)+1,0) -> 1 | Z28: =ADDRESS(MATCH(COUNTIF($R$2:$R28,"NIVEL 1"),V:V,0),COLUMN(S28)) -> $S$22 | AA28: =ADDRESS(MATCH(COUNTIF($R$2:$R28,"NIVEL 1"),V:V,0),COLUMN(W28)) -> $W$22 | AB28: =ADDRESS((MATCH(COUNTIF(INDIRECT(Z28):$S28,"NIVEL 2"),INDIRECT(AA28):W28,0)+(MATCH(COUNTIF($R$2:$R28,"NIVEL 1"),V:V,0)-1)),COLUMN(T28)) -> $T$24 | BC28: =PROCURA_PRECO_SERVICO -> 410.62
A29: 2.1.1.2 | B29: SETOP | C29: CO-27389 | D29: =PROCURA_DESCRICAO_SERVICO -> COMO CONSTRUÍDO ("AS BUILT") DE PROJETOS COM ÁREA ATÉ 10.000 M2 | E29: =PROCURA_UNIDADE_SERVICO -> M2 | F29: 759.34 | G29: =PROCURA_PRECO_SERVICO -> 0.67 | H29: 0.84 | I29: 637.84 | N29: SERVIÇO | R29: NIVEL 4 | S29: NIVEL 4 | T29: NIVEL 4 | U29: NIVEL 4 | V29: =COUNTIF($R$2:$R29,"NIVEL 1") -> 2 | W29: 1 | X29: 1 | Y29: 2 | Z29: =ADDRESS(MATCH(COUNTIF($R$2:$R29,"NIVEL 1"),V:V,0),COLUMN(S29)) -> $S$22 | AA29: =ADDRESS(MATCH(COUNTIF($R$2:$R29,"NIVEL 1"),V:V,0),COLUMN(W29)) -> $W$22 | AB29: =ADDRESS((MATCH(COUNTIF(INDIRECT(Z29):$S29,"NIVEL 2"),INDIRECT(AA29):W29,0)+(MATCH(COUNTIF($R$2:$R29,"NIVEL 1"),V:V,0)-1)),COLUMN(T29)) -> $T$24 | BC29: =PROCURA_PRECO_SERVICO -> 0.67
A30: =V30&"."&W30&"."&X30&"."&Y30 -> 2.1.1.3 | B30: COMPOSIÇÃO | C30: ART-OBRA-002 | D30: =PROCURA_DESCRICAO_SERVICO -> ART DE OBRAS PARA CONTRATOS ACIMA DE R$15.000,00 | E30: =PROCURA_UNIDADE_SERVICO -> UN | F30: 1 | G30: =PROCURA_PRECO_SERVICO -> 254.59 | H30: 321.39 | I30: 321.39 | N30: SERVIÇO | R30: NIVEL 4 | S30: NIVEL 4 | T30: NIVEL 4 | U30: NIVEL 4 | V30: =COUNTIF($R$2:$R30,"NIVEL 1") -> 2 | W30: 1 | X30: 1 | Y30: 3 | Z30: =ADDRESS(MATCH(COUNTIF($R$2:$R30,"NIVEL 1"),V:V,0),COLUMN(S30)) -> $S$22 | AA30: =ADDRESS(MATCH(COUNTIF($R$2:$R30,"NIVEL 1"),V:V,0),COLUMN(W30)) -> $W$22 | AB30: =ADDRESS((MATCH(COUNTIF(INDIRECT(Z30):$S30,"NIVEL 2"),INDIRECT(AA30):W30,0)+(MATCH(COUNTIF($R$2:$R30,"NIVEL 1"),V:V,0)-1)),COLUMN(T30)) -> $T$24 | BC30: =PROCURA_PRECO_SERVICO -> 254.59
A31: 2.1.1.4 | B31: COMPOSIÇÃO | C31: ART-OBRA-003 | D31: =PROCURA_DESCRICAO_SERVICO -> ART DE OBRAS REFERENTE À AS BUILT | E31: =PROCURA_UNIDADE_SERVICO -> UN | F31: 1 | G31: =PROCURA_PRECO_SERVICO -> 254.59 | H31: 321.39 | I31: 321.39 | N31: SERVIÇO | R31: NIVEL 4 | S31: NIVEL 4 | T31: NIVEL 4 | U31: NIVEL 4 | V31: =COUNTIF($R$2:$R31,"NIVEL 1") -> 2 | W31: 1 | X31: 1 | Y31: 4 | Z31: =ADDRESS(MATCH(COUNTIF($R$2:$R31,"NIVEL 1"),V:V,0),COLUMN(S31)) -> $S$22 | AA31: =ADDRESS(MATCH(COUNTIF($R$2:$R31,"NIVEL 1"),V:V,0),COLUMN(W31)) -> $W$22 | AB31: =ADDRESS((MATCH(COUNTIF(INDIRECT(Z31):$S31,"NIVEL 2"),INDIRECT(AA31):W31,0)+(MATCH(COUNTIF($R$2:$R31,"NIVEL 1"),V:V,0)-1)),COLUMN(T31)) -> $T$24 | BC31: =PROCURA_PRECO_SERVICO -> 254.59
V32: =COUNTIF($R$2:$R32,"NIVEL 1") -> 2 | W32: 1 | X32: 1 | Y32: 0 | Z32: =ADDRESS(MATCH(COUNTIF($R$2:$R32,"NIVEL 1"),V:V,0),COLUMN(S32)) -> $S$22 | AA32: =ADDRESS(MATCH(COUNTIF($R$2:$R32,"NIVEL 1"),V:V,0),COLUMN(W32)) -> $W$22 | AB32: =ADDRESS((MATCH(COUNTIF(INDIRECT(Z32):$S32,"NIVEL 2"),INDIRECT(AA32):W32,0)+(MATCH(COUNTIF($R$2:$R32,"NIVEL 1"),V:V,0)-1)),COLUMN(T32)) -> $T$24 | BC32: =PROCURA_PRECO_SERVICO -> 0
D33: ="SUBTOTAL DO ITEM - "&A26 -> SUBTOTAL DO ITEM - 2.1.1 | I33: =SUBTOTAL(9,OFFSET(I26,1,0):OFFSET(I33,-1,0)) -> 3872.42 | N33: SUBSUBITEM_FIM | V33: =COUNTIF($R$2:$R33,"NIVEL 1") -> 2 | W33: 1 | X33: 1 | Y33: 0 | Z33: =ADDRESS(MATCH(COUNTIF($R$2:$R33,"NIVEL 1"),V:V,0),COLUMN(S33)) -> $S$22 | AA33: =ADDRESS(MATCH(COUNTIF($R$2:$R33,"NIVEL 1"),V:V,0),COLUMN(W33)) -> $W$22 | AB33: =ADDRESS((MATCH(COUNTIF(INDIRECT(Z33):$S33,"NIVEL 2"),INDIRECT(AA33):W33,0)+(MATCH(COUNTIF($R$2:$R33,"NIVEL 1"),V:V,0)-1)),COLUMN(T33)) -> $T$24 | BC33: =PROCURA_PRECO_SERVICO -> 0
V34: =COUNTIF($R$2:$R34,"NIVEL 1") -> 2 | W34: 1 | X34: 1 | Y34: 0 | Z34: =ADDRESS(MATCH(COUNTIF($R$2:$R34,"NIVEL 1"),V:V,0),COLUMN(S34)) -> $S$22 | AA34: =ADDRESS(MATCH(COUNTIF($R$2:$R34,"NIVEL 1"),V:V,0),COLUMN(W34)) -> $W$22 | AB34: =ADDRESS((MATCH(COUNTIF(INDIRECT(Z34):$S34,"NIVEL 2"),INDIRECT(AA34):W34,0)+(MATCH(COUNTIF($R$2:$R34,"NIVEL 1"),V:V,0)-1)),COLUMN(T34)) -> $T$24 | BC34: =PROCURA_PRECO_SERVICO -> 0
D35: ="SUBTOTAL DO ITEM - "&A24 -> SUBTOTAL DO ITEM - 2.1 | I35: =SUBTOTAL(9,OFFSET(I24,1,0):OFFSET(I35,-1,0)) -> 3872.42 | N35: SUBITEM_FIM | V35: =COUNTIF($R$2:$R35,"NIVEL 1") -> 2 | W35: 1 | X35: 1 | Y35: 0 | Z35: =ADDRESS(MATCH(COUNTIF($R$2:$R35,"NIVEL 1"),V:V,0),COLUMN(S35)) -> $S$22 | AA35: =ADDRESS(MATCH(COUNTIF($R$2:$R35,"NIVEL 1"),V:V,0),COLUMN(W35)) -> $W$22 | AB35: =ADDRESS((MATCH(COUNTIF(INDIRECT(Z35):$S35,"NIVEL 2"),INDIRECT(AA35):W35,0)+(MATCH(COUNTIF($R$2:$R35,"NIVEL 1"),V:V,0)-1)),COLUMN(T35)) -> $T$24 | BC35: =PROCURA_PRECO_SERVICO -> 0
V36: =COUNTIF($R$2:$R36,"NIVEL 1") -> 2 | W36: 1 | X36: 1 | Y36: 0 | Z36: =ADDRESS(MATCH(COUNTIF($R$2:$R36,"NIVEL 1"),V:V,0),COLUMN(S36)) -> $S$22 | AA36: =ADDRESS(MATCH(COUNTIF($R$2:$R36,"NIVEL 1"),V:V,0),COLUMN(W36)) -> $W$22 | AB36: =ADDRESS((MATCH(COUNTIF(INDIRECT(Z36):$S36,"NIVEL 2"),INDIRECT(AA36):W36,0)+(MATCH(COUNTIF($R$2:$R36,"NIVEL 1"),V:V,0)-1)),COLUMN(T36)) -> $T$24 | BC36: =PROCURA_PRECO_SERVICO -> 0
A37: =V37&"."&W37 -> 2.2 | D37: ADMINISTRAÇÃO DA OBRA | N37: SUBITEM_INICIO | R37: NIVEL 2 | S37: NIVEL 2 | V37: =COUNTIF($R$2:$R37,"NIVEL 1") -> 2 | W37: 2 | X37: 0 | Y37: 0 | Z37: =ADDRESS(MATCH(COUNTIF($R$2:$R37,"NIVEL 1"),V:V,0),COLUMN(S37)) -> $S$22 | AA37: =ADDRESS(MATCH(COUNTIF($R$2:$R37,"NIVEL 1"),V:V,0),COLUMN(W37)) -> $W$22 | AB37: =ADDRESS((MATCH(COUNTIF(INDIRECT(Z37):$S37,"NIVEL 2"),INDIRECT(AA37):W37,0)+(MATCH(COUNTIF($R$2:$R37,"NIVEL 1"),V:V,0)-1)),COLUMN(T37)) -> $T$37 | BC37: =PROCURA_PRECO_SERVICO -> 0
V38: =COUNTIF($R$2:$R38,"NIVEL 1") -> 2 | W38: 2 | X38: 0 | Y38: 0 | Z38: =ADDRESS(MATCH(COUNTIF($R$2:$R38,"NIVEL 1"),V:V,0),COLUMN(S38)) -> $S$22 | AA38: =ADDRESS(MATCH(COUNTIF($R$2:$R38,"NIVEL 1"),V:V,0),COLUMN(W38)) -> $W$22 | AB38: =ADDRESS((MATCH(COUNTIF(INDIRECT(Z38):$S38,"NIVEL 2"),INDIRECT(AA38):W38,0)+(MATCH(COUNTIF($R$2:$R38,"NIVEL 1"),V:V,0)-1)),COLUMN(T38)) -> $T$37 | BC38: =PROCURA_PRECO_SERVICO -> 0
A39: =V39&"."&W39&"."&X39 -> 2.2.1 | D39: ADMINISTRAÇÃO DA OBRA | N39: SUBSUBITEM_INICIO | R39: NIVEL 3 | S39: NIVEL 3 | T39: NIVEL 3 | V39: =COUNTIF($R$2:$R39,"NIVEL 1") -> 2 | W39: 2 | X39: 1 | Y39: 0 | Z39: =ADDRESS(MATCH(COUNTIF($R$2:$R39,"NIVEL 1"),V:V,0),COLUMN(S39)) -> $S$22 | AA39: =ADDRESS(MATCH(COUNTIF($R$2:$R39,"NIVEL 1"),V:V,0),COLUMN(W39)) -> $W$22 | AB39: =ADDRESS((MATCH(COUNTIF(INDIRECT(Z39):$S39,"NIVEL 2"),INDIRECT(AA39):W39,0)+(MATCH(COUNTIF($R$2:$R39,"NIVEL 1"),V:V,0)-1)),COLUMN(T39)) -> $T$37 | BC39: =PROCURA_PRECO_SERVICO -> 0
V40: =COUNTIF($R$2:$R40,"NIVEL 1") -> 2 | W40: 2 | X40: 1 | Y40: 0 | Z40: =ADDRESS(MATCH(COUNTIF($R$2:$R40,"NIVEL 1"),V:V,0),COLUMN(S40)) -> $S$22 | AA40: =ADDRESS(MATCH(COUNTIF($R$2:$R40,"NIVEL 1"),V:V,0),COLUMN(W40)) -> $W$22 | AB40: =ADDRESS((MATCH(COUNTIF(INDIRECT(Z40):$S40,"NIVEL 2"),INDIRECT(AA40):W40,0)+(MATCH(COUNTIF($R$2:$R40,"NIVEL 1"),V:V,0)-1)),COLUMN(T40)) -> $T$37 | BC40: =PROCURA_PRECO_SERVICO -> 0
A41: =V41&"."&W41&"."&X41&"."&Y41 -> 2.2.1.1 | B41: SINAPI | C41: 90777 | D41: =PROCURA_DESCRICAO_SERVICO -> ENGENHEIRO CIVIL DE OBRA JUNIOR COM ENCARGOS COMPLEMENTARES | E41: =PROCURA_UNIDADE_SERVICO -> H | F41: =Resumo!C5*8*9 -> 432 | G41: =PROCURA_PRECO_SERVICO -> 112,59 | H41: =CUSTO_BDI_SERVICO -> 142.13 | I41: =CUSTO_TOTAL_SERVICO -> 61400.16 | N41: SERVIÇO | R41: NIVEL 4 | S41: NIVEL 4 | T41: NIVEL 4 | U41: NIVEL 4 | V41: =COUNTIF($R$2:$R41,"NIVEL 1") -> 2 | W41: 2 | X41: 1 | Y41: =IF(U41="NIVEL 4",OFFSET(Y41,-1,0)+1,0) -> 1 | Z41: =ADDRESS(MATCH(COUNTIF($R$2:$R41,"NIVEL 1"),V:V,0),COLUMN(S41)) -> $S$22 | AA41: =ADDRESS(MATCH(COUNTIF($R$2:$R41,"NIVEL 1"),V:V,0),COLUMN(W41)) -> $W$22 | AB41: =ADDRESS((MATCH(COUNTIF(INDIRECT(Z41):$S41,"NIVEL 2"),INDIRECT(AA41):W41,0)+(MATCH(COUNTIF($R$2:$R41,"NIVEL 1"),V:V,0)-1)),COLUMN(T41)) -> $T$37 | BC41: =PROCURA_PRECO_SERVICO -> 112,59
A42: 2.2.1.2 | B42: SINAPI | C42: 93572 | D42: =PROCURA_DESCRICAO_SERVICO -> ENCARREGADO GERAL DE OBRAS COM ENCARGOS COMPLEMENTARES | E42: =PROCURA_UNIDADE_SERVICO -> MES | F42: =Resumo!C5 -> 6 | G42: =PROCURA_PRECO_SERVICO -> 8.843,53 | H42: 11164.07 | I42: 66984.42 | N42: SERVIÇO | R42: NIVEL 4 | S42: NIVEL 4 | T42: NIVEL 4 | U42: NIVEL 4 | V42: =COUNTIF($R$2:$R42,"NIVEL 1") -> 2 | W42: 2 | X42: 1 | Y42: 2 | Z42: =ADDRESS(MATCH(COUNTIF($R$2:$R42,"NIVEL 1"),V:V,0),COLUMN(S42)) -> $S$22 | AA42: =ADDRESS(MATCH(COUNTIF($R$2:$R42,"NIVEL 1"),V:V,0),COLUMN(W42)) -> $W$22 | AB42: =ADDRESS((MATCH(COUNTIF(INDIRECT(Z42):$S42,"NIVEL 2"),INDIRECT(AA42):W42,0)+(MATCH(COUNTIF($R$2:$R42,"NIVEL 1"),V:V,0)-1)),COLUMN(T42)) -> $T$37 | BC42: =PROCURA_PRECO_SERVICO -> 8.843,53
V43: =COUNTIF($R$2:$R43,"NIVEL 1") -> 2 | W43: 2 | X43: 1 | Y43: 0 | Z43: =ADDRESS(MATCH(COUNTIF($R$2:$R43,"NIVEL 1"),V:V,0),COLUMN(S43)) -> $S$22 | AA43: =ADDRESS(MATCH(COUNTIF($R$2:$R43,"NIVEL 1"),V:V,0),COLUMN(W43)) -> $W$22 | AB43: =ADDRESS((MATCH(COUNTIF(INDIRECT(Z43):$S43,"NIVEL 2"),INDIRECT(AA43):W43,0)+(MATCH(COUNTIF($R$2:$R43,"NIVEL 1"),V:V,0)-1)),COLUMN(T43)) -> $T$37 | BC43: =PROCURA_PRECO_SERVICO -> 0
D44: ="SUBTOTAL DO ITEM - "&A39 -> SUBTOTAL DO ITEM - 2.2.1 | I44: =SUBTOTAL(9,OFFSET(I39,1,0):OFFSET(I44,-1,0)) -> 128384.58 | N44: SUBSUBITEM_FIM | V44: =COUNTIF($R$2:$R44,"NIVEL 1") -> 2 | W44: 2 | X44: 1 | Y44: 0 | Z44: =ADDRESS(MATCH(COUNTIF($R$2:$R44,"NIVEL 1"),V:V,0),COLUMN(S44)) -> $S$22 | AA44: =ADDRESS(MATCH(COUNTIF($R$2:$R44,"NIVEL 1"),V:V,0),COLUMN(W44)) -> $W$22 | AB44: =ADDRESS((MATCH(COUNTIF(INDIRECT(Z44):$S44,"NIVEL 2"),INDIRECT(AA44):W44,0)+(MATCH(COUNTIF($R$2:$R44,"NIVEL 1"),V:V,0)-1)),COLUMN(T44)) -> $T$37 | BC44: =PROCURA_PRECO_SERVICO -> 0
V45: =COUNTIF($R$2:$R45,"NIVEL 1") -> 2 | W45: 2 | X45: 1 | Y45: 0 | Z45: =ADDRESS(MATCH(COUNTIF($R$2:$R45,"NIVEL 1"),V:V,0),COLUMN(S45)) -> $S$22 | AA45: =ADDRESS(MATCH(COUNTIF($R$2:$R45,"NIVEL 1"),V:V,0),COLUMN(W45)) -> $W$22 | AB45: =ADDRESS((MATCH(COUNTIF(INDIRECT(Z45):$S45,"NIVEL 2"),INDIRECT(AA45):W45,0)+(MATCH(COUNTIF($R$2:$R45,"NIVEL 1"),V:V,0)-1)),COLUMN(T45)) -> $T$37 | BC45: =PROCURA_PRECO_SERVICO -> 0
D46: ="SUBTOTAL DO ITEM - "&A37 -> SUBTOTAL DO ITEM - 2.2 | I46: =SUBTOTAL(9,OFFSET(I37,1,0):OFFSET(I46,-1,0)) -> 128384.58 | J46: =I46/I1374 -> 0.06584115971 | N46: SUBITEM_FIM | V46: =COUNTIF($R$2:$R46,"NIVEL 1") -> 2 | W46: 2 | X46: 1 | Y46: 0 | Z46: =ADDRESS(MATCH(COUNTIF($R$2:$R46,"NIVEL 1"),V:V,0),COLUMN(S46)) -> $S$22 | AA46: =ADDRESS(MATCH(COUNTIF($R$2:$R46,"NIVEL 1"),V:V,0),COLUMN(W46)) -> $W$22 | AB46: =ADDRESS((MATCH(COUNTIF(INDIRECT(Z46):$S46,"NIVEL 2"),INDIRECT(AA46):W46,0)+(MATCH(COUNTIF($R$2:$R46,"NIVEL 1"),V:V,0)-1)),COLUMN(T46)) -> $T$37 | BC46: =PROCURA_PRECO_SERVICO -> 0
V47: =COUNTIF($R$2:$R47,"NIVEL 1") -> 2 | W47: 2 | X47: 1 | Y47: 0 | Z47: =ADDRESS(MATCH(COUNTIF($R$2:$R47,"NIVEL 1"),V:V,0),COLUMN(S47)) -> $S$22 | AA47: =ADDRESS(MATCH(COUNTIF($R$2:$R47,"NIVEL 1"),V:V,0),COLUMN(W47)) -> $W$22 | AB47: =ADDRESS((MATCH(COUNTIF(INDIRECT(Z47):$S47,"NIVEL 2"),INDIRECT(AA47):W47,0)+(MATCH(COUNTIF($R$2:$R47,"NIVEL 1"),V:V,0)-1)),COLUMN(T47)) -> $T$37 | BC47: =PROCURA_PRECO_SERVICO -> 0
D48: ="TOTAL DO ITEM - "&A22 -> TOTAL DO ITEM - 2 | I48: =SUBTOTAL(9,OFFSET(I22,1,0):OFFSET(I48,-1,0)) -> 132257 | N48: ITEM_FIM | V48: =COUNTIF($R$2:$R48,"NIVEL 1") -> 2 | W48: 2 | X48: 1 | Y48: 0 | Z48: =ADDRESS(MATCH(COUNTIF($R$2:$R48,"NIVEL 1"),V:V,0),COLUMN(S48)) -> $S$22 | AA48: =ADDRESS(MATCH(COUNTIF($R$2:$R48,"NIVEL 1"),V:V,0),COLUMN(W48)) -> $W$22 | AB48: =ADDRESS((MATCH(COUNTIF(INDIRECT(Z48):$S48,"NIVEL 2"),INDIRECT(AA48):W48,0)+(MATCH(COUNTIF($R$2:$R48,"NIVEL 1"),V:V,0)-1)),COLUMN(T48)) -> $T$37 | BC48: =PROCURA_PRECO_SERVICO -> 0
H49: =TRUNC(G49*(1+$I$3),2) -> 0 | V49: =COUNTIF($R$2:$R49,"NIVEL 1") -> 2 | W49: 2 | X49: 1 | Y49: =IF(U49="NIVEL 4",OFFSET(Y49,-1,0)+1,0) -> 0 | Z49: =ADDRESS(MATCH(COUNTIF($R$2:$R49,"NIVEL 1"),V:V,0),COLUMN(S49)) -> $S$22 | AA49: =ADDRESS(MATCH(COUNTIF($R$2:$R49,"NIVEL 1"),V:V,0),COLUMN(W49)) -> $W$22 | AB49: =ADDRESS((MATCH(COUNTIF(INDIRECT(Z49):$S49,"NIVEL 2"),INDIRECT(AA49):W49,0)+(MATCH(COUNTIF($R$2:$R49,"NIVEL 1"),V:V,0)-1)),COLUMN(T49)) -> $T$37 | BC49: =PROCURA_PRECO_SERVICO -> 0
A50: =V50 -> 3 | D50: SERVIÇOS PRELIMINARES | N50: ITEM_INICIO | R50: NIVEL 1 | V50: =COUNTIF($R$2:$R50,"NIVEL 1") -> 3 | W50: 0 | X50: 0 | Y50: 0 | Z50: =ADDRESS(MATCH(COUNTIF($R$2:$R50,"NIVEL 1"),V:V,0),COLUMN(S50)) -> $S$50 | AA50: =ADDRESS(MATCH(COUNTIF($R$2:$R50,"NIVEL 1"),V:V,0),COLUMN(W50)) -> $W$50 | AB50: =ADDRESS((MATCH(COUNTIF(INDIRECT(Z50):$S50,"NIVEL 2"),INDIRECT(AA50):W50,0)+(MATCH(COUNTIF($R$2:$R50,"NIVEL 1"),V:V,0)-1)),COLUMN(T50)) -> $T$50 | AD50: =A50 -> 3 | AG50: =D50 -> SERVIÇOS PRELIMINARES | AH50: =I109 -> 52283.19 | AI50: =AH50/$I$1374 -> 0.02681307882 | BC50: =PROCURA_PRECO_SERVICO -> 0
V51: =COUNTIF($R$2:$R51,"NIVEL 1") -> 3 | W51: 0 | X51: 0 | Y51: 0 | Z51: =ADDRESS(MATCH(COUNTIF($R$2:$R51,"NIVEL 1"),V:V,0),COLUMN(S51)) -> $S$50 | AA51: =ADDRESS(MATCH(COUNTIF($R$2:$R51,"NIVEL 1"),V:V,0),COLUMN(W51)) -> $W$50 | AB51: =ADDRESS((MATCH(COUNTIF(INDIRECT(Z51):$S51,"NIVEL 2"),INDIRECT(AA51):W51,0)+(MATCH(COUNTIF($R$2:$R51,"NIVEL 1"),V:V,0)-1)),COLUMN(T51)) -> $T$50 | BC51: =PROCURA_PRECO_SERVICO -> 0
A52: =V52&"."&W52 -> 3.1 | D52: IDENTIFICAÇÃO DA OBRA | N52: SUBITEM_INICIO | R52: NIVEL 2 | S52: NIVEL 2 | V52: =COUNTIF($R$2:$R52,"NIVEL 1") -> 3 | W52: 1 | X52: 0 | Y52: 0 | Z52: =ADDRESS(MATCH(COUNTIF($R$2:$R52,"NIVEL 1"),V:V,0),COLUMN(S52)) -> $S$50 | AA52: =ADDRESS(MATCH(COUNTIF($R$2:$R52,"NIVEL 1"),V:V,0),COLUMN(W52)) -> $W$50 | AB52: =ADDRESS((MATCH(COUNTIF(INDIRECT(Z52):$S52,"NIVEL 2"),INDIRECT(AA52):W52,0)+(MATCH(COUNTIF($R$2:$R52,"NIVEL 1"),V:V,0)-1)),COLUMN(T52)) -> $T$52 | BC52: =PROCURA_PRECO_SERVICO -> 0
V53: =COUNTIF($R$2:$R53,"NIVEL 1") -> 3 | W53: 1 | X53: 0 | Y53: 0 | Z53: =ADDRESS(MATCH(COUNTIF($R$2:$R53,"NIVEL 1"),V:V,0),COLUMN(S53)) -> $S$50 | AA53: =ADDRESS(MATCH(COUNTIF($R$2:$R53,"NIVEL 1"),V:V,0),COLUMN(W53)) -> $W$50 | AB53: =ADDRESS((MATCH(COUNTIF(INDIRECT(Z53):$S53,"NIVEL 2"),INDIRECT(AA53):W53,0)+(MATCH(COUNTIF($R$2:$R53,"NIVEL 1"),V:V,0)-1)),COLUMN(T53)) -> $T$52 | BC53: =PROCURA_PRECO_SERVICO -> 0
A54: =V54&"."&W54&"."&X54 -> 3.1.1 | D54: IDENTIFICAÇÃO DA OBRA | N54: SUBSUBITEM_INICIO | R54: NIVEL 3 | S54: NIVEL 3 | T54: NIVEL 3 | V54: =COUNTIF($R$2:$R54,"NIVEL 1") -> 3 | W54: 1 | X54: 1 | Y54: 0 | Z54: =ADDRESS(MATCH(COUNTIF($R$2:$R54,"NIVEL 1"),V:V,0),COLUMN(S54)) -> $S$50 | AA54: =ADDRESS(MATCH(COUNTIF($R$2:$R54,"NIVEL 1"),V:V,0),COLUMN(W54)) -> $W$50 | AB54: =ADDRESS((MATCH(COUNTIF(INDIRECT(Z54):$S54,"NIVEL 2"),INDIRECT(AA54):W54,0)+(MATCH(COUNTIF($R$2:$R54,"NIVEL 1"),V:V,0)-1)),COLUMN(T54)) -> $T$52 | BC54: =PROCURA_PRECO_SERVICO -> 0
V55: =COUNTIF($R$2:$R55,"NIVEL 1") -> 3 | W55: 1 | X55: 1 | Y55: 0 | Z55: =ADDRESS(MATCH(COUNTIF($R$2:$R55,"NIVEL 1"),V:V,0),COLUMN(S55)) -> $S$50 | AA55: =ADDRESS(MATCH(COUNTIF($R$2:$R55,"NIVEL 1"),V:V,0),COLUMN(W55)) -> $W$50 | AB55: =ADDRESS((MATCH(COUNTIF(INDIRECT(Z55):$S55,"NIVEL 2"),INDIRECT(AA55):W55,0)+(MATCH(COUNTIF($R$2:$R55,"NIVEL 1"),V:V,0)-1)),COLUMN(T55)) -> $T$52 | BC55: =PROCURA_PRECO_SERVICO -> 0
A56: =V56&"."&W56&"."&X56&"."&Y56 -> 3.1.1.1 | B56: SETOP | C56: ED-28427 | D56: =PROCURA_DESCRICAO_SERVICO -> FORNECIMENTO E COLOCAÇÃO DE PLACA DE OBRA EM CHAPA GALVANIZADA #26, ESP. 0,45MM, DIMENSÃO (3X1,5)M, PLOTADA COM ADESIVO VINÍLICO, AFIXADA COM REBITES 4,8X40MM, EM ESTRUTURA METÁLICA DE METALON 20X20MM, ESP. 1,25MM, INCLUSIVE SUPORTE EM EUCALIPTO AUTOCLAVADO PINTADO COM TINTA PVA DUAS (2) DEMÃOS | E56: =PROCURA_UNIDADE_SERVICO -> UN | F56: 1 | G56: =PROCURA_PRECO_SERVICO -> 1340.46 | H56: =CUSTO_BDI_SERVICO -> 1692.19 | I56: =CUSTO_TOTAL_SERVICO -> 1692.19 | N56: SERVIÇO | R56: NIVEL 4 | S56: NIVEL 4 | T56: NIVEL 4 | U56: NIVEL 4 | V56: =COUNTIF($R$2:$R56,"NIVEL 1") -> 3 | W56: 1 | X56: 1 | Y56: 1 | Z56: =ADDRESS(MATCH(COUNTIF($R$2:$R56,"NIVEL 1"),V:V,0),COLUMN(S56)) -> $S$50 | AA56: =ADDRESS(MATCH(COUNTIF($R$2:$R56,"NIVEL 1"),V:V,0),COLUMN(W56)) -> $W$50 | AB56: =ADDRESS((MATCH(COUNTIF(INDIRECT(Z56):$S56,"NIVEL 2"),INDIRECT(AA56):W56,0)+(MATCH(COUNTIF($R$2:$R56,"NIVEL 1"),V:V,0)-1)),COLUMN(T56)) -> $T$52 | BC56: =PROCURA_PRECO_SERVICO -> 1340.46
V57: =COUNTIF($R$2:$R57,"NIVEL 1") -> 3 | W57: 1 | X57: 1 | Y57: 0 | Z57: =ADDRESS(MATCH(COUNTIF($R$2:$R57,"NIVEL 1"),V:V,0),COLUMN(S57)) -> $S$50 | AA57: =ADDRESS(MATCH(COUNTIF($R$2:$R57,"NIVEL 1"),V:V,0),COLUMN(W57)) -> $W$50 | AB57: =ADDRESS((MATCH(COUNTIF(INDIRECT(Z57):$S57,"NIVEL 2"),INDIRECT(AA57):W57,0)+(MATCH(COUNTIF($R$2:$R57,"NIVEL 1"),V:V,0)-1)),COLUMN(T57)) -> $T$52 | BC57: =PROCURA_PRECO_SERVICO -> 0
D58: ="SUBTOTAL DO ITEM - "&A54 -> SUBTOTAL DO ITEM - 3.1.1 | I58: =SUBTOTAL(9,OFFSET(I54,1,0):OFFSET(I58,-1,0)) -> 1692.19 | N58: SUBSUBITEM_FIM | V58: =COUNTIF($R$2:$R58,"NIVEL 1") -> 3 | W58: 1 | X58: 1 | Y58: 0 | Z58: =ADDRESS(MATCH(COUNTIF($R$2:$R58,"NIVEL 1"),V:V,0),COLUMN(S58)) -> $S$50 | AA58: =ADDRESS(MATCH(COUNTIF($R$2:$R58,"NIVEL 1"),V:V,0),COLUMN(W58)) -> $W$50 | AB58: =ADDRESS((MATCH(COUNTIF(INDIRECT(Z58):$S58,"NIVEL 2"),INDIRECT(AA58):W58,0)+(MATCH(COUNTIF($R$2:$R58,"NIVEL 1"),V:V,0)-1)),COLUMN(T58)) -> $T$52 | BC58: =PROCURA_PRECO_SERVICO -> 0
V59: =COUNTIF($R$2:$R59,"NIVEL 1") -> 3 | W59: 1 | X59: 1 | Y59: 0 | Z59: =ADDRESS(MATCH(COUNTIF($R$2:$R59,"NIVEL 1"),V:V,0),COLUMN(S59)) -> $S$50 | AA59: =ADDRESS(MATCH(COUNTIF($R$2:$R59,"NIVEL 1"),V:V,0),COLUMN(W59)) -> $W$50 | AB59: =ADDRESS((MATCH(COUNTIF(INDIRECT(Z59):$S59,"NIVEL 2"),INDIRECT(AA59):W59,0)+(MATCH(COUNTIF($R$2:$R59,"NIVEL 1"),V:V,0)-1)),COLUMN(T59)) -> $T$52 | BC59: =PROCURA_PRECO_SERVICO -> 0
D60: ="SUBTOTAL DO ITEM - "&A52 -> SUBTOTAL DO ITEM - 3.1 | I60: =SUBTOTAL(9,OFFSET(I52,1,0):OFFSET(I60,-1,0)) -> 1692.19 | N60: SUBITEM_FIM | V60: =COUNTIF($R$2:$R60,"NIVEL 1") -> 3 | W60: 1 | X60: 1 | Y60: 0 | Z60: =ADDRESS(MATCH(COUNTIF($R$2:$R60,"NIVEL 1"),V:V,0),COLUMN(S60)) -> $S$50 | AA60: =ADDRESS(MATCH(COUNTIF($R$2:$R60,"NIVEL 1"),V:V,0),COLUMN(W60)) -> $W$50 | AB60: =ADDRESS((MATCH(COUNTIF(INDIRECT(Z60):$S60,"NIVEL 2"),INDIRECT(AA60):W60,0)+(MATCH(COUNTIF($R$2:$R60,"NIVEL 1"),V:V,0)-1)),COLUMN(T60)) -> $T$52 | BC60: =PROCURA_PRECO_SERVICO -> 0
V61: =COUNTIF($R$2:$R61,"NIVEL 1") -> 3 | W61: 1 | X61: 1 | Y61: 0 | Z61: =ADDRESS(MATCH(COUNTIF($R$2:$R61,"NIVEL 1"),V:V,0),COLUMN(S61)) -> $S$50 | AA61: =ADDRESS(MATCH(COUNTIF($R$2:$R61,"NIVEL 1"),V:V,0),COLUMN(W61)) -> $W$50 | AB61: =ADDRESS((MATCH(COUNTIF(INDIRECT(Z61):$S61,"NIVEL 2"),INDIRECT(AA61):W61,0)+(MATCH(COUNTIF($R$2:$R61,"NIVEL 1"),V:V,0)-1)),COLUMN(T61)) -> $T$52 | BC61: =PROCURA_PRECO_SERVICO -> 0
A62: =V62&"."&W62 -> 3.2 | D62: LOCAÇÃO DE OBRA | N62: SUBITEM_INICIO | R62: NIVEL 2 | S62: NIVEL 2 | V62: =COUNTIF($R$2:$R62,"NIVEL 1") -> 3 | W62: 2 | X62: 0 | Y62: 0 | Z62: =ADDRESS(MATCH(COUNTIF($R$2:$R62,"NIVEL 1"),V:V,0),COLUMN(S62)) -> $S$50 | AA62: =ADDRESS(MATCH(COUNTIF($R$2:$R62,"NIVEL 1"),V:V,0),COLUMN(W62)) -> $W$50 | AB62: =ADDRESS((MATCH(COUNTIF(INDIRECT(Z62):$S62,"NIVEL 2"),INDIRECT(AA62):W62,0)+(MATCH(COUNTIF($R$2:$R62,"NIVEL 1"),V:V,0)-1)),COLUMN(T62)) -> $T$62 | BC62: =PROCURA_PRECO_SERVICO -> 0
V63: =COUNTIF($R$2:$R63,"NIVEL 1") -> 3 | W63: 2 | X63: 0 | Y63: 0 | Z63: =ADDRESS(MATCH(COUNTIF($R$2:$R63,"NIVEL 1"),V:V,0),COLUMN(S63)) -> $S$50 | AA63: =ADDRESS(MATCH(COUNTIF($R$2:$R63,"NIVEL 1"),V:V,0),COLUMN(W63)) -> $W$50 | AB63: =ADDRESS((MATCH(COUNTIF(INDIRECT(Z63):$S63,"NIVEL 2"),INDIRECT(AA63):W63,0)+(MATCH(COUNTIF($R$2:$R63,"NIVEL 1"),V:V,0)-1)),COLUMN(T63)) -> $T$62 | BC63: =PROCURA_PRECO_SERVICO -> 0
A64: =V64&"."&W64&"."&X64 -> 3.2.1 | D64: LOCAÇÃO DE OBRA | N64: SUBSUBITEM_INICIO | R64: NIVEL 3 | S64: NIVEL 3 | T64: NIVEL 3 | V64: =COUNTIF($R$2:$R64,"NIVEL 1") -> 3 | W64: 2 | X64: 1 | Y64: 0 | Z64: =ADDRESS(MATCH(COUNTIF($R$2:$R64,"NIVEL 1"),V:V,0),COLUMN(S64)) -> $S$50 | AA64: =ADDRESS(MATCH(COUNTIF($R$2:$R64,"NIVEL 1"),V:V,0),COLUMN(W64)) -> $W$50 | AB64: =ADDRESS((MATCH(COUNTIF(INDIRECT(Z64):$S64,"NIVEL 2"),INDIRECT(AA64):W64,0)+(MATCH(COUNTIF($R$2:$R64,"NIVEL 1"),V:V,0)-1)),COLUMN(T64)) -> $T$62 | BC64: =PROCURA_PRECO_SERVICO -> 0
V65: =COUNTIF($R$2:$R65,"NIVEL 1") -> 3 | W65: 2 | X65: 1 | Y65: 0 | Z65: =ADDRESS(MATCH(COUNTIF($R$2:$R65,"NIVEL 1"),V:V,0),COLUMN(S65)) -> $S$50 | AA65: =ADDRESS(MATCH(COUNTIF($R$2:$R65,"NIVEL 1"),V:V,0),COLUMN(W65)) -> $W$50 | AB65: =ADDRESS((MATCH(COUNTIF(INDIRECT(Z65):$S65,"NIVEL 2"),INDIRECT(AA65):W65,0)+(MATCH(COUNTIF($R$2:$R65,"NIVEL 1"),V:V,0)-1)),COLUMN(T65)) -> $T$62 | BC65: =PROCURA_PRECO_SERVICO -> 0
A66: =V66&"."&W66&"."&X66&"."&Y66 -> 3.2.1.1 | B66: SETOP | C66: ED-17989 | D66: =PROCURA_DESCRICAO_SERVICO -> LOCAÇÃO DE OBRA COM GABARITO DE TÁBUAS CORRIDAS PONTALETADAS A CADA 2,00M, REAPROVEITAMENTO (2X), INCLUSIVE ACOMPANHAMENTO DE EQUIPE TOPOGRÁFICA PARA MARCAÇÃO DE PONTO TOPOGRÁFICO | E66: =PROCURA_UNIDADE_SERVICO -> M | F66: 109.32 | G66: =PROCURA_PRECO_SERVICO -> 58.85 | H66: =CUSTO_BDI_SERVICO -> 74.29 | I66: =CUSTO_TOTAL_SERVICO -> 8121.38 | N66: SERVIÇO | R66: NIVEL 4 | S66: NIVEL 4 | T66: NIVEL 4 | U66: NIVEL 4 | V66: =COUNTIF($R$2:$R66,"NIVEL 1") -> 3 | W66: 2 | X66: 1 | Y66: 1 | Z66: =ADDRESS(MATCH(COUNTIF($R$2:$R66,"NIVEL 1"),V:V,0),COLUMN(S66)) -> $S$50 | AA66: =ADDRESS(MATCH(COUNTIF($R$2:$R66,"NIVEL 1"),V:V,0),COLUMN(W66)) -> $W$50 | AB66: =ADDRESS((MATCH(COUNTIF(INDIRECT(Z66):$S66,"NIVEL 2"),INDIRECT(AA66):W66,0)+(MATCH(COUNTIF($R$2:$R66,"NIVEL 1"),V:V,0)-1)),COLUMN(T66)) -> $T$62 | BC66: =PROCURA_PRECO_SERVICO -> 58.85
V67: =COUNTIF($R$2:$R67,"NIVEL 1") -> 3 | W67: 2 | X67: 1 | Y67: 0 | Z67: =ADDRESS(MATCH(COUNTIF($R$2:$R67,"NIVEL 1"),V:V,0),COLUMN(S67)) -> $S$50 | AA67: =ADDRESS(MATCH(COUNTIF($R$2:$R67,"NIVEL 1"),V:V,0),COLUMN(W67)) -> $W$50 | AB67: =ADDRESS((MATCH(COUNTIF(INDIRECT(Z67):$S67,"NIVEL 2"),INDIRECT(AA67):W67,0)+(MATCH(COUNTIF($R$2:$R67,"NIVEL 1"),V:V,0)-1)),COLUMN(T67)) -> $T$62 | BC67: =PROCURA_PRECO_SERVICO -> 0
D68: ="SUBTOTAL DO ITEM - "&A64 -> SUBTOTAL DO ITEM - 3.2.1 | I68: =SUBTOTAL(9,OFFSET(I64,1,0):OFFSET(I68,-1,0)) -> 8121.38 | N68: SUBSUBITEM_FIM | V68: =COUNTIF($R$2:$R68,"NIVEL 1") -> 3 | W68: 2 | X68: 1 | Y68: 0 | Z68: =ADDRESS(MATCH(COUNTIF($R$2:$R68,"NIVEL 1"),V:V,0),COLUMN(S68)) -> $S$50 | AA68: =ADDRESS(MATCH(COUNTIF($R$2:$R68,"NIVEL 1"),V:V,0),COLUMN(W68)) -> $W$50 | AB68: =ADDRESS((MATCH(COUNTIF(INDIRECT(Z68):$S68,"NIVEL 2"),INDIRECT(AA68):W68,0)+(MATCH(COUNTIF($R$2:$R68,"NIVEL 1"),V:V,0)-1)),COLUMN(T68)) -> $T$62 | BC68: =PROCURA_PRECO_SERVICO -> 0
V69: =COUNTIF($R$2:$R69,"NIVEL 1") -> 3 | W69: 2 | X69: 1 | Y69: 0 | Z69: =ADDRESS(MATCH(COUNTIF($R$2:$R69,"NIVEL 1"),V:V,0),COLUMN(S69)) -> $S$50 | AA69: =ADDRESS(MATCH(COUNTIF($R$2:$R69,"NIVEL 1"),V:V,0),COLUMN(W69)) -> $W$50 | AB69: =ADDRESS((MATCH(COUNTIF(INDIRECT(Z69):$S69,"NIVEL 2"),INDIRECT(AA69):W69,0)+(MATCH(COUNTIF($R$2:$R69,"NIVEL 1"),V:V,0)-1)),COLUMN(T69)) -> $T$62 | BC69: =PROCURA_PRECO_SERVICO -> 0
D70: ="SUBTOTAL DO ITEM - "&A62 -> SUBTOTAL DO ITEM - 3.2 | I70: =SUBTOTAL(9,OFFSET(I62,1,0):OFFSET(I70,-1,0)) -> 8121.38 | N70: SUBITEM_FIM | V70: =COUNTIF($R$2:$R70,"NIVEL 1") -> 3 | W70: 2 | X70: 1 | Y70: 0 | Z70: =ADDRESS(MATCH(COUNTIF($R$2:$R70,"NIVEL 1"),V:V,0),COLUMN(S70)) -> $S$50 | AA70: =ADDRESS(MATCH(COUNTIF($R$2:$R70,"NIVEL 1"),V:V,0),COLUMN(W70)) -> $W$50 | AB70: =ADDRESS((MATCH(COUNTIF(INDIRECT(Z70):$S70,"NIVEL 2"),INDIRECT(AA70):W70,0)+(MATCH(COUNTIF($R$2:$R70,"NIVEL 1"),V:V,0)-1)),COLUMN(T70)) -> $T$62 | BC70: =PROCURA_PRECO_SERVICO -> 0
V71: =COUNTIF($R$2:$R71,"NIVEL 1") -> 3 | W71: 2 | X71: 1 | Y71: 0 | Z71: =ADDRESS(MATCH(COUNTIF($R$2:$R71,"NIVEL 1"),V:V,0),COLUMN(S71)) -> $S$50 | AA71: =ADDRESS(MATCH(COUNTIF($R$2:$R71,"NIVEL 1"),V:V,0),COLUMN(W71)) -> $W$50 | AB71: =ADDRESS((MATCH(COUNTIF(INDIRECT(Z71):$S71,"NIVEL 2"),INDIRECT(AA71):W71,0)+(MATCH(COUNTIF($R$2:$R71,"NIVEL 1"),V:V,0)-1)),COLUMN(T71)) -> $T$62 | BC71: =PROCURA_PRECO_SERVICO -> 0
A72: =V72&"."&W72 -> 3.3 | D72: CANTEIRO DE OBRAS | N72: SUBITEM_INICIO | R72: NIVEL 2 | S72: NIVEL 2 | V72: =COUNTIF($R$2:$R72,"NIVEL 1") -> 3 | W72: =IFERROR(COUNTIF(INDIRECT(Z72):S72,"NIVEL 2"),0) -> 3 | X72: =COUNTIF(INDIRECT(AB72):T72,"NIVEL 3") -> 0 | Y72: 0 | Z72: =ADDRESS(MATCH(COUNTIF($R$2:$R72,"NIVEL 1"),V:V,0),COLUMN(S72)) -> $S$50 | AA72: =ADDRESS(MATCH(COUNTIF($R$2:$R72,"NIVEL 1"),V:V,0),COLUMN(W72)) -> $W$50 | AB72: =ADDRESS((MATCH(COUNTIF(INDIRECT(Z72):$S72,"NIVEL 2"),INDIRECT(AA72):W72,0)+(MATCH(COUNTIF($R$2:$R72,"NIVEL 1"),V:V,0)-1)),COLUMN(T72)) -> $T$72 | BC72: =PROCURA_PRECO_SERVICO -> 0
V73: =COUNTIF($R$2:$R73,"NIVEL 1") -> 3 | W73: 3 | X73: 0 | Y73: 0 | Z73: =ADDRESS(MATCH(COUNTIF($R$2:$R73,"NIVEL 1"),V:V,0),COLUMN(S73)) -> $S$50 | AA73: =ADDRESS(MATCH(COUNTIF($R$2:$R73,"NIVEL 1"),V:V,0),COLUMN(W73)) -> $W$50 | AB73: =ADDRESS((MATCH(COUNTIF(INDIRECT(Z73):$S73,"NIVEL 2"),INDIRECT(AA73):W73,0)+(MATCH(COUNTIF($R$2:$R73,"NIVEL 1"),V:V,0)-1)),COLUMN(T73)) -> $T$72 | BC73: =PROCURA_PRECO_SERVICO -> 0
A74: =V74&"."&W74&"."&X74 -> 3.3.1 | D74: CANTEIRO DE OBRAS | N74: SUBSUBITEM_INICIO | R74: NIVEL 3 | S74: NIVEL 3 | T74: NIVEL 3 | V74: =COUNTIF($R$2:$R74,"NIVEL 1") -> 3 | W74: 3 | X74: 1 | Y74: 0 | Z74: =ADDRESS(MATCH(COUNTIF($R$2:$R74,"NIVEL 1"),V:V,0),COLUMN(S74)) -> $S$50 | AA74: =ADDRESS(MATCH(COUNTIF($R$2:$R74,"NIVEL 1"),V:V,0),COLUMN(W74)) -> $W$50 | AB74: =ADDRESS((MATCH(COUNTIF(INDIRECT(Z74):$S74,"NIVEL 2"),INDIRECT(AA74):W74,0)+(MATCH(COUNTIF($R$2:$R74,"NIVEL 1"),V:V,0)-1)),COLUMN(T74)) -> $T$72 | BC74: =PROCURA_PRECO_SERVICO -> 0
V75: =COUNTIF($R$2:$R75,"NIVEL 1") -> 3 | W75: 3 | X75: 1 | Y75: 0 | Z75: =ADDRESS(MATCH(COUNTIF($R$2:$R75,"NIVEL 1"),V:V,0),COLUMN(S75)) -> $S$50 | AA75: =ADDRESS(MATCH(COUNTIF($R$2:$R75,"NIVEL 1"),V:V,0),COLUMN(W75)) -> $W$50 | AB75: =ADDRESS((MATCH(COUNTIF(INDIRECT(Z75):$S75,"NIVEL 2"),INDIRECT(AA75):W75,0)+(MATCH(COUNTIF($R$2:$R75,"NIVEL 1"),V:V,0)-1)),COLUMN(T75)) -> $T$72 | BC75: =PROCURA_PRECO_SERVICO -> 0
A76: =V76&"."&W76&"."&X76&"."&Y76 -> 3.3.1.1 | B76: SETOP | C76: ED-50137 | D76: =PROCURA_DESCRICAO_SERVICO -> MOBILIZAÇÃO E DESMOBILIZAÇÃO DE CONTAINER, INCLUSIVE CARGA, DESCARGA E TRANSPORTE EM CAMINHÃO CARROCERIA COM GUINDAUTO (MUNCK), EXCLUSIVE LOCAÇÃO DO CONTAINER | E76: =PROCURA_UNIDADE_SERVICO -> UN | F76: 4 | G76: =PROCURA_PRECO_SERVICO -> 686.28 | H76: =CUSTO_BDI_SERVICO -> 866.35 | I76: =CUSTO_TOTAL_SERVICO -> 3465.4 | N76: SERVIÇO | R76: NIVEL 4 | S76: NIVEL 4 | T76: NIVEL 4 | U76: NIVEL 4 | V76: =COUNTIF($R$1:$R76,"NIVEL 1") -> 3 | W76: 3 | X76: 1 | Y76: 1 | Z76: =ADDRESS(MATCH(COUNTIF($R$1:$R76,"NIVEL 1"),V:V,0),COLUMN(S76)) -> $S$50 | AA76: =ADDRESS(MATCH(COUNTIF($R$1:$R76,"NIVEL 1"),V:V,0),COLUMN(W76)) -> $W$50 | AB76: =ADDRESS((MATCH(COUNTIF(INDIRECT(Z76):$S76,"NIVEL 2"),INDIRECT(AA76):W76,0)+(MATCH(COUNTIF($R$1:$R76,"NIVEL 1"),V:V,0)-1)),COLUMN(T76)) -> $T$72 | BC76: =PROCURA_PRECO_SERVICO -> 686.28
A77: 3.3.1.2 | B77: SETOP | C77: ED-16348 | D77: =PROCURA_DESCRICAO_SERVICO -> LOCAÇÃO DE CONTAINER COM ISOLAMENTO TÉRMICO, TIPO 1, PARA ESCRITÓRIO DE OBRA, COM MEDIDAS REFERENCIAIS DE (6) METROS COMPRIMENTO, (2,3) METROS LARGURA E (2,5) METROS ALTURA ÚTIL INTERNA, INCLUSIVE AR CONDICIONADO E LIGAÇÕES ELÉTRICAS INTERNAS, EXCLUSIVE MOBILIZAÇÃO/DESMOBILIZAÇÃO E LIGAÇÕES PROVISÓRIAS EXTERNAS | E77: =PROCURA_UNIDADE_SERVICO -> MÊS | F77: =Resumo!C5 -> 6 | G77: =PROCURA_PRECO_SERVICO -> 784.6 | H77: 990.47 | I77: 5942.82 | N77: SERVIÇO | R77: NIVEL 4 | S77: NIVEL 4 | T77: NIVEL 4 | U77: NIVEL 4 | V77: =COUNTIF($R$1:$R77,"NIVEL 1") -> 3 | W77: 3 | X77: 1 | Y77: 2 | Z77: =ADDRESS(MATCH(COUNTIF($R$1:$R77,"NIVEL 1"),V:V,0),COLUMN(S77)) -> $S$50 | AA77: =ADDRESS(MATCH(COUNTIF($R$1:$R77,"NIVEL 1"),V:V,0),COLUMN(W77)) -> $W$50 | AB77: =ADDRESS((MATCH(COUNTIF(INDIRECT(Z77):$S77,"NIVEL 2"),INDIRECT(AA77):W77,0)+(MATCH(COUNTIF($R$1:$R77,"NIVEL 1"),V:V,0)-1)),COLUMN(T77)) -> $T$72 | BC77: =PROCURA_PRECO_SERVICO -> 784.6
A78: 3.3.1.3 | B78: SETOP | C78: ED-16350 | D78: =PROCURA_DESCRICAO_SERVICO -> LOCAÇÃO DE CONTAINER COM ISOLAMENTO TÉRMICO, TIPO 3, PARA DEPÓSITO/FERRAMENTARIA DE OBRA, COM MEDIDAS REFERENCIAIS DE (6) METROS COMPRIMENTO, (2,3) METROS LARGURA E (2,5) METROS ALTURA ÚTIL INTERNA, INCLUSIVE LIGAÇÕES ELÉTRICAS INTERNAS, EXCLUSIVE MOBILIZAÇÃO/DESMOBILIZAÇÃO E LIGAÇÕES PROVISÓRIAS EXTERNAS | E78: =PROCURA_UNIDADE_SERVICO -> MÊS | F78: =Resumo!C5 -> 6 | G78: =PROCURA_PRECO_SERVICO -> 676.39 | H78: 853.87 | I78: 5123.22 | N78: SERVIÇO | R78: NIVEL 4 | S78: NIVEL 4 | T78: NIVEL 4 | U78: NIVEL 4 | V78: =COUNTIF($R$1:$R78,"NIVEL 1") -> 3 | W78: 3 | X78: 1 | Y78: 3 | Z78: =ADDRESS(MATCH(COUNTIF($R$1:$R78,"NIVEL 1"),V:V,0),COLUMN(S78)) -> $S$50 | AA78: =ADDRESS(MATCH(COUNTIF($R$1:$R78,"NIVEL 1"),V:V,0),COLUMN(W78)) -> $W$50 | AB78: =ADDRESS((MATCH(COUNTIF(INDIRECT(Z78):$S78,"NIVEL 2"),INDIRECT(AA78):W78,0)+(MATCH(COUNTIF($R$1:$R78,"NIVEL 1"),V:V,0)-1)),COLUMN(T78)) -> $T$72 | BC78: =PROCURA_PRECO_SERVICO -> 676.39
A79: 3.3.1.4 | B79: SETOP | C79: ED-16351 | D79: =PROCURA_DESCRICAO_SERVICO -> LOCAÇÃO DE CONTAINER COM ISOLAMENTO TÉRMICO, TIPO 4, PARA REFEITÓRIO DE OBRA, COM MEDIDAS REFERENCIAIS DE (6) METROS COMPRIMENTO, (2,3) METROS LARGURA E (2,5) METROS ALTURA ÚTIL INTERNA, INCLUSIVE LIGAÇÕES ELÉTRICAS INTERNAS, EXCLUSIVE MOBILIZAÇÃO/DESMOBILIZAÇÃO E LIGAÇÕES PROVISÓRIAS EXTERNAS | E79: =PROCURA_UNIDADE_SERVICO -> MÊS | F79: =Resumo!C5 -> 6 | G79: =PROCURA_PRECO_SERVICO -> 601.9 | H79: 759.83 | I79: 4558.98 | N79: SERVIÇO | R79: NIVEL 4 | S79: NIVEL 4 | T79: NIVEL 4 | U79: NIVEL 4 | V79: =COUNTIF($R$1:$R79,"NIVEL 1") -> 3 | W79: 3 | X79: 1 | Y79: 4 | Z79: =ADDRESS(MATCH(COUNTIF($R$1:$R79,"NIVEL 1"),V:V,0),COLUMN(S79)) -> $S$50 | AA79: =ADDRESS(MATCH(COUNTIF($R$1:$R79,"NIVEL 1"),V:V,0),COLUMN(W79)) -> $W$50 | AB79: =ADDRESS((MATCH(COUNTIF(INDIRECT(Z79):$S79,"NIVEL 2"),INDIRECT(AA79):W79,0)+(MATCH(COUNTIF($R$1:$R79,"NIVEL 1"),V:V,0)-1)),COLUMN(T79)) -> $T$72 | BC79: =PROCURA_PRECO_SERVICO -> 601.9
A80: 3.3.1.5 | B80: SETOP | C80: ED-16354 | D80: =PROCURA_DESCRICAO_SERVICO -> LOCAÇÃO DE CONTAINER COM ISOLAMENTO TÉRMICO, TIPO 7, PARA VESTIÁRIO DE OBRA COM QUATRO (4) CHUVEIROS, TRÊS (3) VASOS SANITÁRIOS, UM (1) MICTÓRIO E UM (1) LAVATÓRIO, COM MEDIDAS REFERENCIAIS DE (6) METROS COMPRIMENTO, (2,3) METROS LARGURA E (2,5) METROS ALTURA ÚTIL INTERNA, INCLUSIVE LIGAÇÕES ELÉTRICAS E HIDROSSANITÁRIAS INTERNAS, EXCLUSIVE MOBILIZAÇÃO/DESMOBILIZAÇÃO E LIGAÇÕES PROVISÓRIAS EXTERNAS | E80: =PROCURA_UNIDADE_SERVICO -> MÊS | F80: =Resumo!C5 -> 6 | G80: =PROCURA_PRECO_SERVICO -> 787.91 | H80: =CUSTO_BDI_SERVICO -> 994.65 | I80: =CUSTO_TOTAL_SERVICO -> 5967.9 | N80: SERVIÇO | R80: NIVEL 4 | S80: NIVEL 4 | T80: NIVEL 4 | U80: NIVEL 4 | V80: =COUNTIF($R$2:$R80,"NIVEL 1") -> 3 | W80: 3 | X80: 1 | Y80: 5 | Z80: =ADDRESS(MATCH(COUNTIF($R$2:$R80,"NIVEL 1"),V:V,0),COLUMN(S80)) -> $S$50 | AA80: =ADDRESS(MATCH(COUNTIF($R$2:$R80,"NIVEL 1"),V:V,0),COLUMN(W80)) -> $W$50 | AB80: =ADDRESS((MATCH(COUNTIF(INDIRECT(Z80):$S80,"NIVEL 2"),INDIRECT(AA80):W80,0)+(MATCH(COUNTIF($R$2:$R80,"NIVEL 1"),V:V,0)-1)),COLUMN(T80)) -> $T$72 | BC80: =PROCURA_PRECO_SERVICO -> 787.91
A81: =V81&"."&W81&"."&X81&"."&Y81 -> 3.3.1.6 | B81: SETOP | C81: ED-16341 | D81: =PROCURA_DESCRICAO_SERVICO -> LIGAÇÃO PROVISÓRIA DE ÁGUA E ESGOTO PARA CONTAINER (ESCRITÓRIO DE OBRA) | E81: =PROCURA_UNIDADE_SERVICO -> UN | F81: 1 | G81: =PROCURA_PRECO_SERVICO -> 295.77 | H81: =CUSTO_BDI_SERVICO -> 373.38 | I81: =CUSTO_TOTAL_SERVICO -> 373.38 | N81: SERVIÇO | R81: NIVEL 4 | S81: NIVEL 4 | T81: NIVEL 4 | U81: NIVEL 4 | V81: =COUNTIF($R$1:$R81,"NIVEL 1") -> 3 | W81: 3 | X81: 1 | Y81: =IF(U81="NIVEL 4",OFFSET(Y81,-1,0)+1,0) -> 6 | Z81: =ADDRESS(MATCH(COUNTIF($R$1:$R81,"NIVEL 1"),V:V,0),COLUMN(S81)) -> $S$50 | AA81: =ADDRESS(MATCH(COUNTIF($R$1:$R81,"NIVEL 1"),V:V,0),COLUMN(W81)) -> $W$50 | AB81: =ADDRESS((MATCH(COUNTIF(INDIRECT(Z81):$S81,"NIVEL 2"),INDIRECT(AA81):W81,0)+(MATCH(COUNTIF($R$1:$R81,"NIVEL 1"),V:V,0)-1)),COLUMN(T81)) -> $T$72 | BC81: =PROCURA_PRECO_SERVICO -> 295.77
A82: 3.3.1.7 | B82: SETOP | C82: ED-16342 | D82: =PROCURA_DESCRICAO_SERVICO -> LIGAÇÃO PROVISÓRIA DE ENERGIA ELÉTRICA PARA CONTAINER | E82: =PROCURA_UNIDADE_SERVICO -> UN | F82: 4 | G82: =PROCURA_PRECO_SERVICO -> 327.92 | H82: 413.96 | I82: 1655.84 | N82: SERVIÇO | R82: NIVEL 4 | S82: NIVEL 4 | T82: NIVEL 4 | U82: NIVEL 4 | V82: =COUNTIF($R$1:$R82,"NIVEL 1") -> 3 | W82: 3 | X82: 1 | Y82: 7 | Z82: =ADDRESS(MATCH(COUNTIF($R$1:$R82,"NIVEL 1"),V:V,0),COLUMN(S82)) -> $S$50 | AA82: =ADDRESS(MATCH(COUNTIF($R$1:$R82,"NIVEL 1"),V:V,0),COLUMN(W82)) -> $W$50 | AB82: =ADDRESS((MATCH(COUNTIF(INDIRECT(Z82):$S82,"NIVEL 2"),INDIRECT(AA82):W82,0)+(MATCH(COUNTIF($R$1:$R82,"NIVEL 1"),V:V,0)-1)),COLUMN(T82)) -> $T$72 | BC82: =PROCURA_PRECO_SERVICO -> 327.92
A83: =V83&"."&W83&"."&X83&"."&Y83 -> 3.3.1.8 | B83: SETOP | C83: ED-16343 | D83: =PROCURA_DESCRICAO_SERVICO -> LIGAÇÃO PROVISÓRIA DE ÁGUA E ESGOTO PARA CONTAINER (VESTIÁRIO DE OBRA), EXCLUSIVE CHUVEIRO ELÉTRICO | E83: =PROCURA_UNIDADE_SERVICO -> UN | F83: 1 | G83: =PROCURA_PRECO_SERVICO -> 348.87 | H83: =CUSTO_BDI_SERVICO -> 440.41 | I83: =CUSTO_TOTAL_SERVICO -> 440.41 | N83: SERVIÇO | R83: NIVEL 4 | S83: NIVEL 4 | T83: NIVEL 4 | U83: NIVEL 4 | V83: =COUNTIF($R$1:$R83,"NIVEL 1") -> 3 | W83: 3 | X83: 1 | Y83: 8 | Z83: =ADDRESS(MATCH(COUNTIF($R$1:$R83,"NIVEL 1"),V:V,0),COLUMN(S83)) -> $S$50 | AA83: =ADDRESS(MATCH(COUNTIF($R$1:$R83,"NIVEL 1"),V:V,0),COLUMN(W83)) -> $W$50 | AB83: =ADDRESS((MATCH(COUNTIF(INDIRECT(Z83):$S83,"NIVEL 2"),INDIRECT(AA83):W83,0)+(MATCH(COUNTIF($R$1:$R83,"NIVEL 1"),V:V,0)-1)),COLUMN(T83)) -> $T$72 | BC83: =PROCURA_PRECO_SERVICO -> 348.87
A84: 3.3.1.9 | B84: SETOP | C84: ED-50150 | D84: =PROCURA_DESCRICAO_SERVICO -> LIGAÇÃO DE ÁGUA PROVISÓRIA PARA CANTEIRO, INCLUSIVE HIDRÔMETRO E CAVALETE PARA MEDIÇÃO DE ÁGUA - ENTRADA PRINCIPAL, EM AÇO GALVANIZADO DN 20MM (1/2") - PADRÃO CONCESSIONÁRIA | E84: =PROCURA_UNIDADE_SERVICO -> UN | F84: 1 | G84: =PROCURA_PRECO_SERVICO -> 376.36 | H84: 475.11 | I84: 475.11 | N84: SERVIÇO | R84: NIVEL 4 | S84: NIVEL 4 | T84: NIVEL 4 | U84: NIVEL 4 | V84: =COUNTIF($R$1:$R84,"NIVEL 1") -> 3 | W84: 3 | X84: 1 | Y84: 9 | Z84: =ADDRESS(MATCH(COUNTIF($R$1:$R84,"NIVEL 1"),V:V,0),COLUMN(S84)) -> $S$50 | AA84: =ADDRESS(MATCH(COUNTIF($R$1:$R84,"NIVEL 1"),V:V,0),COLUMN(W84)) -> $W$50 | AB84: =ADDRESS((MATCH(COUNTIF(INDIRECT(Z84):$S84,"NIVEL 2"),INDIRECT(AA84):W84,0)+(MATCH(COUNTIF($R$1:$R84,"NIVEL 1"),V:V,0)-1)),COLUMN(T84)) -> $T$72 | BC84: =PROCURA_PRECO_SERVICO -> 376.36
A85: 3.3.1.10 | B85: SETOP | C85: ED-50151 | D85: =PROCURA_DESCRICAO_SERVICO -> LIGAÇÃO PROVISÓRIA COM ENTRADA DE ENERGIA AÉREA, PADRÃO CEMIG, CARGA INSTALADA DE 15,1KVA ATÉ 30KVA, TRIFÁSICO, COM SAÍDA SUBTERRÂNEA, INCLUSIVE POSTE, CAIXA PARA MEDIDOR, DISJUNTOR, BARRAMENTO, ATERRAMENTO E ACESSÓRIOS | E85: =PROCURA_UNIDADE_SERVICO -> UN | F85: 1 | G85: =PROCURA_PRECO_SERVICO -> 1148.59 | H85: 1449.98 | I85: 1449.98 | N85: SERVIÇO | R85: NIVEL 4 | S85: NIVEL 4 | T85: NIVEL 4 | U85: NIVEL 4 | V85: =COUNTIF($R$1:$R85,"NIVEL 1") -> 3 | W85: 3 | X85: 1 | Y85: 10 | Z85: =ADDRESS(MATCH(COUNTIF($R$1:$R85,"NIVEL 1"),V:V,0),COLUMN(S85)) -> $S$50 | AA85: =ADDRESS(MATCH(COUNTIF($R$1:$R85,"NIVEL 1"),V:V,0),COLUMN(W85)) -> $W$50 | AB85: =ADDRESS((MATCH(COUNTIF(INDIRECT(Z85):$S85,"NIVEL 2"),INDIRECT(AA85):W85,0)+(MATCH(COUNTIF($R$1:$R85,"NIVEL 1"),V:V,0)-1)),COLUMN(T85)) -> $T$72 | BC85: =PROCURA_PRECO_SERVICO -> 1148.59
V86: =COUNTIF($R$2:$R86,"NIVEL 1") -> 3 | W86: 3 | X86: 1 | Y86: 0 | Z86: =ADDRESS(MATCH(COUNTIF($R$2:$R86,"NIVEL 1"),V:V,0),COLUMN(S86)) -> $S$50 | AA86: =ADDRESS(MATCH(COUNTIF($R$2:$R86,"NIVEL 1"),V:V,0),COLUMN(W86)) -> $W$50 | AB86: =ADDRESS((MATCH(COUNTIF(INDIRECT(Z86):$S86,"NIVEL 2"),INDIRECT(AA86):W86,0)+(MATCH(COUNTIF($R$2:$R86,"NIVEL 1"),V:V,0)-1)),COLUMN(T86)) -> $T$72 | BC86: =PROCURA_PRECO_SERVICO -> 0
D87: ="SUBTOTAL DO ITEM - "&A74 -> SUBTOTAL DO ITEM - 3.3.1 | I87: =SUBTOTAL(9,OFFSET(I74,1,0):OFFSET(I87,-1,0)) -> 29453.04 | N87: SUBSUBITEM_FIM | V87: =COUNTIF($R$2:$R87,"NIVEL 1") -> 3 | W87: 3 | X87: 1 | Y87: 0 | Z87: =ADDRESS(MATCH(COUNTIF($R$2:$R87,"NIVEL 1"),V:V,0),COLUMN(S87)) -> $S$50 | AA87: =ADDRESS(MATCH(COUNTIF($R$2:$R87,"NIVEL 1"),V:V,0),COLUMN(W87)) -> $W$50 | AB87: =ADDRESS((MATCH(COUNTIF(INDIRECT(Z87):$S87,"NIVEL 2"),INDIRECT(AA87):W87,0)+(MATCH(COUNTIF($R$2:$R87,"NIVEL 1"),V:V,0)-1)),COLUMN(T87)) -> $T$72 | BC87: =PROCURA_PRECO_SERVICO -> 0
V88: =COUNTIF($R$2:$R88,"NIVEL 1") -> 3 | W88: 3 | X88: 1 | Y88: 0 | Z88: =ADDRESS(MATCH(COUNTIF($R$2:$R88,"NIVEL 1"),V:V,0),COLUMN(S88)) -> $S$50 | AA88: =ADDRESS(MATCH(COUNTIF($R$2:$R88,"NIVEL 1"),V:V,0),COLUMN(W88)) -> $W$50 | AB88: =ADDRESS((MATCH(COUNTIF(INDIRECT(Z88):$S88,"NIVEL 2"),INDIRECT(AA88):W88,0)+(MATCH(COUNTIF($R$2:$R88,"NIVEL 1"),V:V,0)-1)),COLUMN(T88)) -> $T$72 | BC88: =PROCURA_PRECO_SERVICO -> 0
D89: ="SUBTOTAL DO ITEM - "&A72 -> SUBTOTAL DO ITEM - 3.3 | I89: =SUBTOTAL(9,OFFSET(I72,1,0):OFFSET(I89,-1,0)) -> 29453.04 | N89: SUBITEM_FIM | V89: =COUNTIF($R$2:$R89,"NIVEL 1") -> 3 | W89: 3 | X89: 1 | Y89: 0 | Z89: =ADDRESS(MATCH(COUNTIF($R$2:$R89,"NIVEL 1"),V:V,0),COLUMN(S89)) -> $S$50 | AA89: =ADDRESS(MATCH(COUNTIF($R$2:$R89,"NIVEL 1"),V:V,0),COLUMN(W89)) -> $W$50 | AB89: =ADDRESS((MATCH(COUNTIF(INDIRECT(Z89):$S89,"NIVEL 2"),INDIRECT(AA89):W89,0)+(MATCH(COUNTIF($R$2:$R89,"NIVEL 1"),V:V,0)-1)),COLUMN(T89)) -> $T$72 | BC89: =PROCURA_PRECO_SERVICO -> 0
V90: =COUNTIF($R$2:$R90,"NIVEL 1") -> 3 | W90: 3 | X90: 1 | Y90: 0 | Z90: =ADDRESS(MATCH(COUNTIF($R$2:$R90,"NIVEL 1"),V:V,0),COLUMN(S90)) -> $S$50 | AA90: =ADDRESS(MATCH(COUNTIF($R$2:$R90,"NIVEL 1"),V:V,0),COLUMN(W90)) -> $W$50 | AB90: =ADDRESS((MATCH(COUNTIF(INDIRECT(Z90):$S90,"NIVEL 2"),INDIRECT(AA90):W90,0)+(MATCH(COUNTIF($R$2:$R90,"NIVEL 1"),V:V,0)-1)),COLUMN(T90)) -> $T$72 | BC90: =PROCURA_PRECO_SERVICO -> 0
A91: =V91&"."&W91 -> 3.4 | D91: ANDAIMES | N91: SUBITEM_INICIO | R91: NIVEL 2 | S91: NIVEL 2 | V91: =COUNTIF($R$2:$R91,"NIVEL 1") -> 3 | W91: 4 | X91: 0 | Y91: 0 | Z91: =ADDRESS(MATCH(COUNTIF($R$2:$R91,"NIVEL 1"),V:V,0),COLUMN(S91)) -> $S$50 | AA91: =ADDRESS(MATCH(COUNTIF($R$2:$R91,"NIVEL 1"),V:V,0),COLUMN(W91)) -> $W$50 | AB91: =ADDRESS((MATCH(COUNTIF(INDIRECT(Z91):$S91,"NIVEL 2"),INDIRECT(AA91):W91,0)+(MATCH(COUNTIF($R$2:$R91,"NIVEL 1"),V:V,0)-1)),COLUMN(T91)) -> $T$91 | BC91: =PROCURA_PRECO_SERVICO -> 0
V92: =COUNTIF($R$2:$R92,"NIVEL 1") -> 3 | W92: 4 | X92: 0 | Y92: 0 | Z92: =ADDRESS(MATCH(COUNTIF($R$2:$R92,"NIVEL 1"),V:V,0),COLUMN(S92)) -> $S$50 | AA92: =ADDRESS(MATCH(COUNTIF($R$2:$R92,"NIVEL 1"),V:V,0),COLUMN(W92)) -> $W$50 | AB92: =ADDRESS((MATCH(COUNTIF(INDIRECT(Z92):$S92,"NIVEL 2"),INDIRECT(AA92):W92,0)+(MATCH(COUNTIF($R$2:$R92,"NIVEL 1"),V:V,0)-1)),COLUMN(T92)) -> $T$91 | BC92: =PROCURA_PRECO_SERVICO -> 0
A93: =V93&"."&W93&"."&X93 -> 3.4.1 | D93: ANDAIMES INTERNOS | N93: SUBSUBITEM_INICIO | R93: NIVEL 3 | S93: NIVEL 3 | T93: NIVEL 3 | V93: =COUNTIF($R$2:$R93,"NIVEL 1") -> 3 | W93: 4 | X93: 1 | Y93: 0 | Z93: =ADDRESS(MATCH(COUNTIF($R$2:$R93,"NIVEL 1"),V:V,0),COLUMN(S93)) -> $S$50 | AA93: =ADDRESS(MATCH(COUNTIF($R$2:$R93,"NIVEL 1"),V:V,0),COLUMN(W93)) -> $W$50 | AB93: =ADDRESS((MATCH(COUNTIF(INDIRECT(Z93):$S93,"NIVEL 2"),INDIRECT(AA93):W93,0)+(MATCH(COUNTIF($R$2:$R93,"NIVEL 1"),V:V,0)-1)),COLUMN(T93)) -> $T$91 | BC93: =PROCURA_PRECO_SERVICO -> 0
V94: =COUNTIF($R$2:$R94,"NIVEL 1") -> 3 | W94: 4 | X94: 1 | Y94: 0 | Z94: =ADDRESS(MATCH(COUNTIF($R$2:$R94,"NIVEL 1"),V:V,0),COLUMN(S94)) -> $S$50 | AA94: =ADDRESS(MATCH(COUNTIF($R$2:$R94,"NIVEL 1"),V:V,0),COLUMN(W94)) -> $W$50 | AB94: =ADDRESS((MATCH(COUNTIF(INDIRECT(Z94):$S94,"NIVEL 2"),INDIRECT(AA94):W94,0)+(MATCH(COUNTIF($R$2:$R94,"NIVEL 1"),V:V,0)-1)),COLUMN(T94)) -> $T$91 | BC94: =PROCURA_PRECO_SERVICO -> 0
A95: =V95&"."&W95&"."&X95&"."&Y95 -> 3.4.1.1 | B95: SETOP | C95: ED-28533 | D95: =PROCURA_DESCRICAO_SERVICO -> ANDAIME EM CAVALETE METÁLICO PARA FORRO DE GESSO, COM CHAPA DE COMPENSADO E TÁBUA, COM REAPROVEITAMENTO, INCLUSIVE MONTAGEM/DESMONTAGEM E REMANEJAMENTO | E95: =PROCURA_UNIDADE_SERVICO -> M2 | F95: 443.21 | G95: =PROCURA_PRECO_SERVICO -> 1.37 | H95: =CUSTO_BDI_SERVICO -> 1.72 | I95: =CUSTO_TOTAL_SERVICO -> 762.32 | N95: SERVIÇO | R95: NIVEL 4 | S95: NIVEL 4 | T95: NIVEL 4 | U95: NIVEL 4 | V95: =COUNTIF($R$1:$R95,"NIVEL 1") -> 3 | W95: 4 | X95: 1 | Y95: 1 | Z95: =ADDRESS(MATCH(COUNTIF($R$1:$R95,"NIVEL 1"),V:V,0),COLUMN(S95)) -> $S$50 | AA95: =ADDRESS(MATCH(COUNTIF($R$1:$R95,"NIVEL 1"),V:V,0),COLUMN(W95)) -> $W$50 | AB95: =ADDRESS((MATCH(COUNTIF(INDIRECT(Z95):$S95,"NIVEL 2"),INDIRECT(AA95):W95,0)+(MATCH(COUNTIF($R$1:$R95,"NIVEL 1"),V:V,0)-1)),COLUMN(T95)) -> $T$91 | BC95: =PROCURA_PRECO_SERVICO -> 1.37
V96: =COUNTIF($R$2:$R96,"NIVEL 1") -> 3 | W96: 4 | X96: 1 | Y96: 0 | Z96: =ADDRESS(MATCH(COUNTIF($R$2:$R96,"NIVEL 1"),V:V,0),COLUMN(S96)) -> $S$50 | AA96: =ADDRESS(MATCH(COUNTIF($R$2:$R96,"NIVEL 1"),V:V,0),COLUMN(W96)) -> $W$50 | AB96: =ADDRESS((MATCH(COUNTIF(INDIRECT(Z96):$S96,"NIVEL 2"),INDIRECT(AA96):W96,0)+(MATCH(COUNTIF($R$2:$R96,"NIVEL 1"),V:V,0)-1)),COLUMN(T96)) -> $T$91 | BC96: =PROCURA_PRECO_SERVICO -> 0
D97: ="SUBTOTAL DO ITEM - "&A93 -> SUBTOTAL DO ITEM - 3.4.1 | I97: =SUBTOTAL(9,OFFSET(I93,1,0):OFFSET(I97,-1,0)) -> 762.32 | N97: SUBSUBITEM_FIM | V97: =COUNTIF($R$2:$R97,"NIVEL 1") -> 3 | W97: 4 | X97: 1 | Y97: 0 | Z97: =ADDRESS(MATCH(COUNTIF($R$2:$R97,"NIVEL 1"),V:V,0),COLUMN(S97)) -> $S$50 | AA97: =ADDRESS(MATCH(COUNTIF($R$2:$R97,"NIVEL 1"),V:V,0),COLUMN(W97)) -> $W$50 | AB97: =ADDRESS((MATCH(COUNTIF(INDIRECT(Z97):$S97,"NIVEL 2"),INDIRECT(AA97):W97,0)+(MATCH(COUNTIF($R$2:$R97,"NIVEL 1"),V:V,0)-1)),COLUMN(T97)) -> $T$91 | BC97: =PROCURA_PRECO_SERVICO -> 0
V98: =COUNTIF($R$2:$R98,"NIVEL 1") -> 3 | W98: 4 | X98: 1 | Y98: 0 | Z98: =ADDRESS(MATCH(COUNTIF($R$2:$R98,"NIVEL 1"),V:V,0),COLUMN(S98)) -> $S$50 | AA98: =ADDRESS(MATCH(COUNTIF($R$2:$R98,"NIVEL 1"),V:V,0),COLUMN(W98)) -> $W$50 | AB98: =ADDRESS((MATCH(COUNTIF(INDIRECT(Z98):$S98,"NIVEL 2"),INDIRECT(AA98):W98,0)+(MATCH(COUNTIF($R$2:$R98,"NIVEL 1"),V:V,0)-1)),COLUMN(T98)) -> $T$91 | BC98: =PROCURA_PRECO_SERVICO -> 0
A99: =V99&"."&W99&"."&X99 -> 3.4.2 | D99: ANDAIMES EXTERNOS | N99: SUBSUBITEM_INICIO | R99: NIVEL 3 | S99: NIVEL 3 | T99: NIVEL 3 | V99: =COUNTIF($R$2:$R99,"NIVEL 1") -> 3 | W99: 4 | X99: 2 | Y99: 0 | Z99: =ADDRESS(MATCH(COUNTIF($R$2:$R99,"NIVEL 1"),V:V,0),COLUMN(S99)) -> $S$50 | AA99: =ADDRESS(MATCH(COUNTIF($R$2:$R99,"NIVEL 1"),V:V,0),COLUMN(W99)) -> $W$50 | AB99: =ADDRESS((MATCH(COUNTIF(INDIRECT(Z99):$S99,"NIVEL 2"),INDIRECT(AA99):W99,0)+(MATCH(COUNTIF($R$2:$R99,"NIVEL 1"),V:V,0)-1)),COLUMN(T99)) -> $T$91 | BC99: =PROCURA_PRECO_SERVICO -> 0
V100: =COUNTIF($R$2:$R100,"NIVEL 1") -> 3 | W100: 4 | X100: 2 | Y100: 0 | Z100: =ADDRESS(MATCH(COUNTIF($R$2:$R100,"NIVEL 1"),V:V,0),COLUMN(S100)) -> $S$50 | AA100: =ADDRESS(MATCH(COUNTIF($R$2:$R100,"NIVEL 1"),V:V,0),COLUMN(W100)) -> $W$50 | AB100: =ADDRESS((MATCH(COUNTIF(INDIRECT(Z100):$S100,"NIVEL 2"),INDIRECT(AA100):W100,0)+(MATCH(COUNTIF($R$2:$R100,"NIVEL 1"),V:V,0)-1)),COLUMN(T100)) -> $T$91 | BC100: =PROCURA_PRECO_SERVICO -> 0
A101: =V101&"."&W101&"."&X101&"."&Y101 -> 3.4.2.1 | B101: SETOP | C101: ED-48245 | D101: =PROCURA_DESCRICAO_SERVICO -> MONTAGEM E DESMONTAGEM DE ANDAIME METÁLICO PARA FACHADA COM PISO METÁLICO, INCLUSIVE RODAPÉ/GUARDA-CORPO EM MADEIRA, EXCLUSIVE FORNECIMENTO DO ANDAIME | E101: =PROCURA_UNIDADE_SERVICO -> M2 | F101: 151.59 | G101: =PROCURA_PRECO_SERVICO -> 15.61 | H101: =CUSTO_BDI_SERVICO -> 19.7 | I101: =CUSTO_TOTAL_SERVICO -> 2986.32 | N101: SERVIÇO | R101: NIVEL 4 | S101: NIVEL 4 | T101: NIVEL 4 | U101: NIVEL 4 | V101: =COUNTIF($R$1:$R101,"NIVEL 1") -> 3 | W101: 4 | X101: 2 | Y101: 1 | Z101: =ADDRESS(MATCH(COUNTIF($R$1:$R101,"NIVEL 1"),V:V,0),COLUMN(S101)) -> $S$50 | AA101: =ADDRESS(MATCH(COUNTIF($R$1:$R101,"NIVEL 1"),V:V,0),COLUMN(W101)) -> $W$50 | AB101: =ADDRESS((MATCH(COUNTIF(INDIRECT(Z101):$S101,"NIVEL 2"),INDIRECT(AA101):W101,0)+(MATCH(COUNTIF($R$1:$R101,"NIVEL 1"),V:V,0)-1)),COLUMN(T101)) -> $T$91 | BC101: =PROCURA_PRECO_SERVICO -> 15.61
A102: =V102&"."&W102&"."&X102&"."&Y102 -> 3.4.2.2 | B102: SETOP | C102: ED-9075 | D102: =PROCURA_DESCRICAO_SERVICO -> FORNECIMENTO DE ANDAIME METÁLICO PARA FACHADA (LOCAÇÃO), INCLUSIVE PISO METÁLICO E SAPATAS, EXCLUSIVE MONTAGEM E DESMONTAGEM | E102: =PROCURA_UNIDADE_SERVICO -> M2XMÊS | F102: =151.59*Resumo!C5 -> 909.54 | G102: =PROCURA_PRECO_SERVICO -> 6.66 | H102: 8.4 | I102: 7640.13 | N102: SERVIÇO | R102: NIVEL 4 | S102: NIVEL 4 | T102: NIVEL 4 | U102: NIVEL 4 | V102: =COUNTIF($R$1:$R102,"NIVEL 1") -> 3 | W102: 4 | X102: 2 | Y102: =IF(U102="NIVEL 4",OFFSET(Y102,-1,0)+1,0) -> 2 | Z102: =ADDRESS(MATCH(COUNTIF($R$1:$R102,"NIVEL 1"),V:V,0),COLUMN(S102)) -> $S$50 | AA102: =ADDRESS(MATCH(COUNTIF($R$1:$R102,"NIVEL 1"),V:V,0),COLUMN(W102)) -> $W$50 | AB102: =ADDRESS((MATCH(COUNTIF(INDIRECT(Z102):$S102,"NIVEL 2"),INDIRECT(AA102):W102,0)+(MATCH(COUNTIF($R$1:$R102,"NIVEL 1"),V:V,0)-1)),COLUMN(T102)) -> $T$91 | BC102: =PROCURA_PRECO_SERVICO -> 6.66
A103: 3.4.2.3 | B103: SETOP | C103: ED-48249 | D103: =PROCURA_DESCRICAO_SERVICO -> TELA DE PROTEÇÃO, TIPO FACHADEIRA, INSTALADA EM ANDAIME METÁLICO PARA FACHADA, EXCLUSIVE ANDAIME METÁLICO, INCLUSIVE ACESSÓRIOS DE FIXAÇÃO | E103: =PROCURA_UNIDADE_SERVICO -> M2 | F103: 209.5 | G103: =PROCURA_PRECO_SERVICO -> 6.16 | H103: 7.77 | I103: 1627.81 | N103: SERVIÇO | R103: NIVEL 4 | S103: NIVEL 4 | T103: NIVEL 4 | U103: NIVEL 4 | V103: =COUNTIF($R$1:$R103,"NIVEL 1") -> 3 | W103: 4 | X103: 2 | Y103: 3 | Z103: =ADDRESS(MATCH(COUNTIF($R$1:$R103,"NIVEL 1"),V:V,0),COLUMN(S103)) -> $S$50 | AA103: =ADDRESS(MATCH(COUNTIF($R$1:$R103,"NIVEL 1"),V:V,0),COLUMN(W103)) -> $W$50 | AB103: =ADDRESS((MATCH(COUNTIF(INDIRECT(Z103):$S103,"NIVEL 2"),INDIRECT(AA103):W103,0)+(MATCH(COUNTIF($R$1:$R103,"NIVEL 1"),V:V,0)-1)),COLUMN(T103)) -> $T$91 | BC103: =PROCURA_PRECO_SERVICO -> 6.16
V104: =COUNTIF($R$2:$R104,"NIVEL 1") -> 3 | W104: 4 | X104: 2 | Y104: 0 | Z104: =ADDRESS(MATCH(COUNTIF($R$2:$R104,"NIVEL 1"),V:V,0),COLUMN(S104)) -> $S$50 | AA104: =ADDRESS(MATCH(COUNTIF($R$2:$R104,"NIVEL 1"),V:V,0),COLUMN(W104)) -> $W$50 | AB104: =ADDRESS((MATCH(COUNTIF(INDIRECT(Z104):$S104,"NIVEL 2"),INDIRECT(AA104):W104,0)+(MATCH(COUNTIF($R$2:$R104,"NIVEL 1"),V:V,0)-1)),COLUMN(T104)) -> $T$91 | BC104: =PROCURA_PRECO_SERVICO -> 0
D105: ="SUBTOTAL DO ITEM - "&A99 -> SUBTOTAL DO ITEM - 3.4.2 | I105: =SUBTOTAL(9,OFFSET(I99,1,0):OFFSET(I105,-1,0)) -> 12254.26 | N105: SUBSUBITEM_FIM | V105: =COUNTIF($R$2:$R105,"NIVEL 1") -> 3 | W105: 4 | X105: 2 | Y105: 0 | Z105: =ADDRESS(MATCH(COUNTIF($R$2:$R105,"NIVEL 1"),V:V,0),COLUMN(S105)) -> $S$50 | AA105: =ADDRESS(MATCH(COUNTIF($R$2:$R105,"NIVEL 1"),V:V,0),COLUMN(W105)) -> $W$50 | AB105: =ADDRESS((MATCH(COUNTIF(INDIRECT(Z105):$S105,"NIVEL 2"),INDIRECT(AA105):W105,0)+(MATCH(COUNTIF($R$2:$R105,"NIVEL 1"),V:V,0)-1)),COLUMN(T105)) -> $T$91 | BC105: =PROCURA_PRECO_SERVICO -> 0
V106: =COUNTIF($R$2:$R106,"NIVEL 1") -> 3 | W106: 4 | X106: 2 | Y106: 0 | Z106: =ADDRESS(MATCH(COUNTIF($R$2:$R106,"NIVEL 1"),V:V,0),COLUMN(S106)) -> $S$50 | AA106: =ADDRESS(MATCH(COUNTIF($R$2:$R106,"NIVEL 1"),V:V,0),COLUMN(W106)) -> $W$50 | AB106: =ADDRESS((MATCH(COUNTIF(INDIRECT(Z106):$S106,"NIVEL 2"),INDIRECT(AA106):W106,0)+(MATCH(COUNTIF($R$2:$R106,"NIVEL 1"),V:V,0)-1)),COLUMN(T106)) -> $T$91 | BC106: =PROCURA_PRECO_SERVICO -> 0
D107: ="SUBTOTAL DO ITEM - "&A91 -> SUBTOTAL DO ITEM - 3.4 | I107: =SUBTOTAL(9,OFFSET(I91,1,0):OFFSET(I107,-1,0)) -> 13016.58 | N107: SUBITEM_FIM | V107: =COUNTIF($R$2:$R107,"NIVEL 1") -> 3 | W107: 4 | X107: 2 | Y107: 0 | Z107: =ADDRESS(MATCH(COUNTIF($R$2:$R107,"NIVEL 1"),V:V,0),COLUMN(S107)) -> $S$50 | AA107: =ADDRESS(MATCH(COUNTIF($R$2:$R107,"NIVEL 1"),V:V,0),COLUMN(W107)) -> $W$50 | AB107: =ADDRESS((MATCH(COUNTIF(INDIRECT(Z107):$S107,"NIVEL 2"),INDIRECT(AA107):W107,0)+(MATCH(COUNTIF($R$2:$R107,"NIVEL 1"),V:V,0)-1)),COLUMN(T107)) -> $T$91 | BC107: =PROCURA_PRECO_SERVICO -> 0
V108: =COUNTIF($R$2:$R108,"NIVEL 1") -> 3 | W108: 4 | X108: 2 | Y108: 0 | Z108: =ADDRESS(MATCH(COUNTIF($R$2:$R108,"NIVEL 1"),V:V,0),COLUMN(S108)) -> $S$50 | AA108: =ADDRESS(MATCH(COUNTIF($R$2:$R108,"NIVEL 1"),V:V,0),COLUMN(W108)) -> $W$50 | AB108: =ADDRESS((MATCH(COUNTIF(INDIRECT(Z108):$S108,"NIVEL 2"),INDIRECT(AA108):W108,0)+(MATCH(COUNTIF($R$2:$R108,"NIVEL 1"),V:V,0)-1)),COLUMN(T108)) -> $T$91 | BC108: =PROCURA_PRECO_SERVICO -> 0
D109: ="TOTAL DO ITEM - "&A50 -> TOTAL DO ITEM - 3 | I109: =SUBTOTAL(9,OFFSET(I50,1,0):OFFSET(I109,-1,0)) -> 52283.19 | N109: ITEM_FIM | V109: =COUNTIF($R$2:$R109,"NIVEL 1") -> 3 | W109: 4 | X109: 2 | Y109: 0 | Z109: =ADDRESS(MATCH(COUNTIF($R$2:$R109,"NIVEL 1"),V:V,0),COLUMN(S109)) -> $S$50 | AA109: =ADDRESS(MATCH(COUNTIF($R$2:$R109,"NIVEL 1"),V:V,0),COLUMN(W109)) -> $W$50 | AB109: =ADDRESS((MATCH(COUNTIF(INDIRECT(Z109):$S109,"NIVEL 2"),INDIRECT(AA109):W109,0)+(MATCH(COUNTIF($R$2:$R109,"NIVEL 1"),V:V,0)-1)),COLUMN(T109)) -> $T$91 | BC109: =PROCURA_PRECO_SERVICO -> 0
H110: =TRUNC(G110*(1+$I$3),2) -> 0 | V110: =COUNTIF($R$2:$R110,"NIVEL 1") -> 3 | W110: 4 | X110: 2 | Y110: =IF(U110="NIVEL 4",OFFSET(Y110,-1,0)+1,0) -> 0 | Z110: =ADDRESS(MATCH(COUNTIF($R$2:$R110,"NIVEL 1"),V:V,0),COLUMN(S110)) -> $S$50 | AA110: =ADDRESS(MATCH(COUNTIF($R$2:$R110,"NIVEL 1"),V:V,0),COLUMN(W110)) -> $W$50 | AB110: =ADDRESS((MATCH(COUNTIF(INDIRECT(Z110):$S110,"NIVEL 2"),INDIRECT(AA110):W110,0)+(MATCH(COUNTIF($R$2:$R110,"NIVEL 1"),V:V,0)-1)),COLUMN(T110)) -> $T$91 | BC110: =PROCURA_PRECO_SERVICO -> 0
A111: =V111 -> 4 | D111: DEMOLIÇÕES E REMOÇÕES | N111: ITEM_INICIO | R111: NIVEL 1 | V111: =COUNTIF($R$2:$R111,"NIVEL 1") -> 4 | W111: 0 | X111: 0 | Y111: 0 | Z111: =ADDRESS(MATCH(COUNTIF($R$2:$R111,"NIVEL 1"),V:V,0),COLUMN(S111)) -> $S$111 | AA111: =ADDRESS(MATCH(COUNTIF($R$2:$R111,"NIVEL 1"),V:V,0),COLUMN(W111)) -> $W$111 | AB111: =ADDRESS((MATCH(COUNTIF(INDIRECT(Z111):$S111,"NIVEL 2"),INDIRECT(AA111):W111,0)+(MATCH(COUNTIF($R$2:$R111,"NIVEL 1"),V:V,0)-1)),COLUMN(T111)) -> $T$111 | AD111: =A111 -> 4 | AG111: =D111 -> DEMOLIÇÕES E REMOÇÕES | AH111: =I206 -> 101744.26 | AI111: =AH111/$I$1374 -> 0.05217885257 | BC111: =PROCURA_PRECO_SERVICO -> 0
V112: =COUNTIF($R$2:$R112,"NIVEL 1") -> 4 | W112: 0 | X112: 0 | Y112: 0 | Z112: =ADDRESS(MATCH(COUNTIF($R$2:$R112,"NIVEL 1"),V:V,0),COLUMN(S112)) -> $S$111 | AA112: =ADDRESS(MATCH(COUNTIF($R$2:$R112,"NIVEL 1"),V:V,0),COLUMN(W112)) -> $W$111 | AB112: =ADDRESS((MATCH(COUNTIF(INDIRECT(Z112):$S112,"NIVEL 2"),INDIRECT(AA112):W112,0)+(MATCH(COUNTIF($R$2:$R112,"NIVEL 1"),V:V,0)-1)),COLUMN(T112)) -> $T$111 | BC112: =PROCURA_PRECO_SERVICO -> 0
A113: =V113&"."&W113 -> 4.1 | D113: DEMOLIÇÕES/REMOÇÕES | N113: SUBITEM_INICIO | R113: NIVEL 2 | S113: NIVEL 2 | V113: =COUNTIF($R$2:$R113,"NIVEL 1") -> 4 | W113: 1 | X113: 0 | Y113: 0 | Z113: =ADDRESS(MATCH(COUNTIF($R$2:$R113,"NIVEL 1"),V:V,0),COLUMN(S113)) -> $S$111 | AA113: =ADDRESS(MATCH(COUNTIF($R$2:$R113,"NIVEL 1"),V:V,0),COLUMN(W113)) -> $W$111 | AB113: =ADDRESS((MATCH(COUNTIF(INDIRECT(Z113):$S113,"NIVEL 2"),INDIRECT(AA113):W113,0)+(MATCH(COUNTIF($R$2:$R113,"NIVEL 1"),V:V,0)-1)),COLUMN(T113)) -> $T$113 | BC113: =PROCURA_PRECO_SERVICO -> 0
V114: =COUNTIF($R$2:$R114,"NIVEL 1") -> 4 | W114: 1 | X114: 0 | Y114: 0 | Z114: =ADDRESS(MATCH(COUNTIF($R$2:$R114,"NIVEL 1"),V:V,0),COLUMN(S114)) -> $S$111 | AA114: =ADDRESS(MATCH(COUNTIF($R$2:$R114,"NIVEL 1"),V:V,0),COLUMN(W114)) -> $W$111 | AB114: =ADDRESS((MATCH(COUNTIF(INDIRECT(Z114):$S114,"NIVEL 2"),INDIRECT(AA114):W114,0)+(MATCH(COUNTIF($R$2:$R114,"NIVEL 1"),V:V,0)-1)),COLUMN(T114)) -> $T$113 | BC114: =PROCURA_PRECO_SERVICO -> 0
A115: =V115&"."&W115&"."&X115 -> 4.1.1 | D115: ALVENARIA | N115: SUBSUBITEM_INICIO | R115: NIVEL 3 | S115: NIVEL 3 | T115: NIVEL 3 | V115: =COUNTIF($R$2:$R115,"NIVEL 1") -> 4 | W115: 1 | X115: 1 | Y115: 0 | Z115: =ADDRESS(MATCH(COUNTIF($R$2:$R115,"NIVEL 1"),V:V,0),COLUMN(S115)) -> $S$111 | AA115: =ADDRESS(MATCH(COUNTIF($R$2:$R115,"NIVEL 1"),V:V,0),COLUMN(W115)) -> $W$111 | AB115: =ADDRESS((MATCH(COUNTIF(INDIRECT(Z115):$S115,"NIVEL 2"),INDIRECT(AA115):W115,0)+(MATCH(COUNTIF($R$2:$R115,"NIVEL 1"),V:V,0)-1)),COLUMN(T115)) -> $T$113 | BC115: =PROCURA_PRECO_SERVICO -> 0
V116: =COUNTIF($R$2:$R116,"NIVEL 1") -> 4 | W116: 1 | X116: 1 | Y116: 0 | Z116: =ADDRESS(MATCH(COUNTIF($R$2:$R116,"NIVEL 1"),V:V,0),COLUMN(S116)) -> $S$111 | AA116: =ADDRESS(MATCH(COUNTIF($R$2:$R116,"NIVEL 1"),V:V,0),COLUMN(W116)) -> $W$111 | AB116: =ADDRESS((MATCH(COUNTIF(INDIRECT(Z116):$S116,"NIVEL 2"),INDIRECT(AA116):W116,0)+(MATCH(COUNTIF($R$2:$R116,"NIVEL 1"),V:V,0)-1)),COLUMN(T116)) -> $T$113 | BC116: =PROCURA_PRECO_SERVICO -> 0
A117: =V117&"."&W117&"."&X117&"."&Y117 -> 4.1.1.1 | B117: SINAPI | C117: 97622 | D117: =PROCURA_DESCRICAO_SERVICO -> DEMOLIÇÃO DE ALVENARIA DE BLOCO FURADO, DE FORMA MANUAL, SEM REAPROVEITAMENTO. AF_12/2017 | E117: =PROCURA_UNIDADE_SERVICO -> M3 | F117: 30.65842 | G117: =PROCURA_PRECO_SERVICO -> 52,10 | H117: =CUSTO_BDI_SERVICO -> 65.77 | I117: =CUSTO_TOTAL_SERVICO -> 2016.4 | N117: SERVIÇO | R117: NIVEL 4 | S117: NIVEL 4 | T117: NIVEL 4 | U117: NIVEL 4 | V117: =COUNTIF($R$2:$R117,"NIVEL 1") -> 4 | W117: 1 | X117: 1 | Y117: 1 | Z117: =ADDRESS(MATCH(COUNTIF($R$2:$R117,"NIVEL 1"),V:V,0),COLUMN(S117)) -> $S$111 | AA117: =ADDRESS(MATCH(COUNTIF($R$2:$R117,"NIVEL 1"),V:V,0),COLUMN(W117)) -> $W$111 | AB117: =ADDRESS((MATCH(COUNTIF(INDIRECT(Z117):$S117,"NIVEL 2"),INDIRECT(AA117):W117,0)+(MATCH(COUNTIF($R$2:$R117,"NIVEL 1"),V:V,0)-1)),COLUMN(T117)) -> $T$113 | BC117: =PROCURA_PRECO_SERVICO -> 52,10
V118: =COUNTIF($R$2:$R118,"NIVEL 1") -> 4 | W118: 1 | X118: 1 | Y118: 0 | Z118: =ADDRESS(MATCH(COUNTIF($R$2:$R118,"NIVEL 1"),V:V,0),COLUMN(S118)) -> $S$111 | AA118: =ADDRESS(MATCH(COUNTIF($R$2:$R118,"NIVEL 1"),V:V,0),COLUMN(W118)) -> $W$111 | AB118: =ADDRESS((MATCH(COUNTIF(INDIRECT(Z118):$S118,"NIVEL 2"),INDIRECT(AA118):W118,0)+(MATCH(COUNTIF($R$2:$R118,"NIVEL 1"),V:V,0)-1)),COLUMN(T118)) -> $T$113 | BC118: =PROCURA_PRECO_SERVICO -> 0
D119: ="SUBTOTAL DO ITEM - "&A115 -> SUBTOTAL DO ITEM - 4.1.1 | I119: =SUBTOTAL(9,OFFSET(I115,1,0):OFFSET(I119,-1,0)) -> 2016.4 | N119: SUBSUBITEM_FIM | V119: =COUNTIF($R$2:$R119,"NIVEL 1") -> 4 | W119: 1 | X119: 1 | Y119: 0 | Z119: =ADDRESS(MATCH(COUNTIF($R$2:$R119,"NIVEL 1"),V:V,0),COLUMN(S119)) -> $S$111 | AA119: =ADDRESS(MATCH(COUNTIF($R$2:$R119,"NIVEL 1"),V:V,0),COLUMN(W119)) -> $W$111 | AB119: =ADDRESS((MATCH(COUNTIF(INDIRECT(Z119):$S119,"NIVEL 2"),INDIRECT(AA119):W119,0)+(MATCH(COUNTIF($R$2:$R119,"NIVEL 1"),V:V,0)-1)),COLUMN(T119)) -> $T$113 | BC119: =PROCURA_PRECO_SERVICO -> 0
V120: =COUNTIF($R$2:$R120,"NIVEL 1") -> 4 | W120: 1 | X120: 1 | Y120: =IF(U120="NIVEL 4",OFFSET(Y120,-1,0)+1,0) -> 0 | Z120: =ADDRESS(MATCH(COUNTIF($R$2:$R120,"NIVEL 1"),V:V,0),COLUMN(S120)) -> $S$111 | AA120: =ADDRESS(MATCH(COUNTIF($R$2:$R120,"NIVEL 1"),V:V,0),COLUMN(W120)) -> $W$111 | AB120: =ADDRESS((MATCH(COUNTIF(INDIRECT(Z120):$S120,"NIVEL 2"),INDIRECT(AA120):W120,0)+(MATCH(COUNTIF($R$2:$R120,"NIVEL 1"),V:V,0)-1)),COLUMN(T120)) -> $T$113 | BC120: =PROCURA_PRECO_SERVICO -> 0
A121: =V121&"."&W121&"."&X121 -> 4.1.2 | D121: ESQUADRIAS | N121: SUBSUBITEM_INICIO | R121: NIVEL 3 | S121: NIVEL 3 | T121: NIVEL 3 | V121: =COUNTIF($R$2:$R121,"NIVEL 1") -> 4 | W121: 1 | X121: 2 | Y121: 0 | Z121: =ADDRESS(MATCH(COUNTIF($R$2:$R121,"NIVEL 1"),V:V,0),COLUMN(S121)) -> $S$111 | AA121: =ADDRESS(MATCH(COUNTIF($R$2:$R121,"NIVEL 1"),V:V,0),COLUMN(W121)) -> $W$111 | AB121: =ADDRESS((MATCH(COUNTIF(INDIRECT(Z121):$S121,"NIVEL 2"),INDIRECT(AA121):W121,0)+(MATCH(COUNTIF($R$2:$R121,"NIVEL 1"),V:V,0)-1)),COLUMN(T121)) -> $T$113 | BC121: =PROCURA_PRECO_SERVICO -> 0
V122: =COUNTIF($R$2:$R122,"NIVEL 1") -> 4 | W122: 1 | X122: 2 | Y122: 0 | Z122: =ADDRESS(MATCH(COUNTIF($R$2:$R122,"NIVEL 1"),V:V,0),COLUMN(S122)) -> $S$111 | AA122: =ADDRESS(MATCH(COUNTIF($R$2:$R122,"NIVEL 1"),V:V,0),COLUMN(W122)) -> $W$111 | AB122: =ADDRESS((MATCH(COUNTIF(INDIRECT(Z122):$S122,"NIVEL 2"),INDIRECT(AA122):W122,0)+(MATCH(COUNTIF($R$2:$R122,"NIVEL 1"),V:V,0)-1)),COLUMN(T122)) -> $T$113 | BC122: =PROCURA_PRECO_SERVICO -> 0
A123: =V123&"."&W123&"."&X123&"."&Y123 -> 4.1.2.1 | B123: SINAPI | C123: 97644 | D123: =PROCURA_DESCRICAO_SERVICO -> REMOÇÃO DE PORTAS, DE FORMA MANUAL, SEM REAPROVEITAMENTO. AF_12/2017 | E123: =PROCURA_UNIDADE_SERVICO -> M2 | F123: 45.57 | G123: =PROCURA_PRECO_SERVICO -> 8,70 | H123: =CUSTO_BDI_SERVICO -> 10.98 | I123: =CUSTO_TOTAL_SERVICO -> 500.35 | N123: SERVIÇO | R123: NIVEL 4 | S123: NIVEL 4 | T123: NIVEL 4 | U123: NIVEL 4 | V123: =COUNTIF($R$2:$R123,"NIVEL 1") -> 4 | W123: 1 | X123: 2 | Y123: 1 | Z123: =ADDRESS(MATCH(COUNTIF($R$2:$R123,"NIVEL 1"),V:V,0),COLUMN(S123)) -> $S$111 | AA123: =ADDRESS(MATCH(COUNTIF($R$2:$R123,"NIVEL 1"),V:V,0),COLUMN(W123)) -> $W$111 | AB123: =ADDRESS((MATCH(COUNTIF(INDIRECT(Z123):$S123,"NIVEL 2"),INDIRECT(AA123):W123,0)+(MATCH(COUNTIF($R$2:$R123,"NIVEL 1"),V:V,0)-1)),COLUMN(T123)) -> $T$113 | BC123: =PROCURA_PRECO_SERVICO -> 8,70
A124: =V124&"."&W124&"."&X124&"."&Y124 -> 4.1.2.2 | B124: SINAPI | C124: 97645 | D124: =PROCURA_DESCRICAO_SERVICO -> REMOÇÃO DE JANELAS, DE FORMA MANUAL, SEM REAPROVEITAMENTO. AF_12/2017 | E124: =PROCURA_UNIDADE_SERVICO -> M2 | F124: 22.08 | G124: =PROCURA_PRECO_SERVICO -> 32,20 | H124: =CUSTO_BDI_SERVICO -> 40.64 | I124: =CUSTO_TOTAL_SERVICO -> 897.33 | N124: SERVIÇO | R124: NIVEL 4 | S124: NIVEL 4 | T124: NIVEL 4 | U124: NIVEL 4 | V124: =COUNTIF($R$2:$R124,"NIVEL 1") -> 4 | W124: 1 | X124: 2 | Y124: =IF(U124="NIVEL 4",OFFSET(Y124,-1,0)+1,0) -> 2 | Z124: =ADDRESS(MATCH(COUNTIF($R$2:$R124,"NIVEL 1"),V:V,0),COLUMN(S124)) -> $S$111 | AA124: =ADDRESS(MATCH(COUNTIF($R$2:$R124,"NIVEL 1"),V:V,0),COLUMN(W124)) -> $W$111 | AB124: =ADDRESS((MATCH(COUNTIF(INDIRECT(Z124):$S124,"NIVEL 2"),INDIRECT(AA124):W124,0)+(MATCH(COUNTIF($R$2:$R124,"NIVEL 1"),V:V,0)-1)),COLUMN(T124)) -> $T$113 | BC124: =PROCURA_PRECO_SERVICO -> 32,20
A125: =V125&"."&W125&"."&X125&"."&Y125 -> 4.1.2.3 | B125: SINAPI | C125: 102191 | D125: =PROCURA_DESCRICAO_SERVICO -> REMOÇÃO DE VIDRO LISO COMUM DE ESQUADRIA COM BAGUETE DE ALUMÍNIO OU PVC. AF_01/2021 | E125: =PROCURA_UNIDADE_SERVICO -> M2 | F125: 2.8 | G125: =PROCURA_PRECO_SERVICO -> 20,06 | H125: =CUSTO_BDI_SERVICO -> 25.32 | I125: =CUSTO_TOTAL_SERVICO -> 70.89 | N125: SERVIÇO | R125: NIVEL 4 | S125: NIVEL 4 | T125: NIVEL 4 | U125: NIVEL 4 | V125: =COUNTIF($R$2:$R125,"NIVEL 1") -> 4 | W125: 1 | X125: 2 | Y125: 3 | Z125: =ADDRESS(MATCH(COUNTIF($R$2:$R125,"NIVEL 1"),V:V,0),COLUMN(S125)) -> $S$111 | AA125: =ADDRESS(MATCH(COUNTIF($R$2:$R125,"NIVEL 1"),V:V,0),COLUMN(W125)) -> $W$111 | AB125: =ADDRESS((MATCH(COUNTIF(INDIRECT(Z125):$S125,"NIVEL 2"),INDIRECT(AA125):W125,0)+(MATCH(COUNTIF($R$2:$R125,"NIVEL 1"),V:V,0)-1)),COLUMN(T125)) -> $T$113 | BC125: =PROCURA_PRECO_SERVICO -> 20,06
V126: =COUNTIF($R$2:$R126,"NIVEL 1") -> 4 | W126: 1 | X126: 2 | Y126: 0 | Z126: =ADDRESS(MATCH(COUNTIF($R$2:$R126,"NIVEL 1"),V:V,0),COLUMN(S126)) -> $S$111 | AA126: =ADDRESS(MATCH(COUNTIF($R$2:$R126,"NIVEL 1"),V:V,0),COLUMN(W126)) -> $W$111 | AB126: =ADDRESS((MATCH(COUNTIF(INDIRECT(Z126):$S126,"NIVEL 2"),INDIRECT(AA126):W126,0)+(MATCH(COUNTIF($R$2:$R126,"NIVEL 1"),V:V,0)-1)),COLUMN(T126)) -> $T$113 | BC126: =PROCURA_PRECO_SERVICO -> 0
D127: ="SUBTOTAL DO ITEM - "&A121 -> SUBTOTAL DO ITEM - 4.1.2 | I127: =SUBTOTAL(9,OFFSET(I121,1,0):OFFSET(I127,-1,0)) -> 1468.57 | N127: SUBSUBITEM_FIM | V127: =COUNTIF($R$2:$R127,"NIVEL 1") -> 4 | W127: 1 | X127: 2 | Y127: 0 | Z127: =ADDRESS(MATCH(COUNTIF($R$2:$R127,"NIVEL 1"),V:V,0),COLUMN(S127)) -> $S$111 | AA127: =ADDRESS(MATCH(COUNTIF($R$2:$R127,"NIVEL 1"),V:V,0),COLUMN(W127)) -> $W$111 | AB127: =ADDRESS((MATCH(COUNTIF(INDIRECT(Z127):$S127,"NIVEL 2"),INDIRECT(AA127):W127,0)+(MATCH(COUNTIF($R$2:$R127,"NIVEL 1"),V:V,0)-1)),COLUMN(T127)) -> $T$113 | BC127: =PROCURA_PRECO_SERVICO -> 0
V128: =COUNTIF($R$2:$R128,"NIVEL 1") -> 4 | W128: 1 | X128: 2 | Y128: 0 | Z128: =ADDRESS(MATCH(COUNTIF($R$2:$R128,"NIVEL 1"),V:V,0),COLUMN(S128)) -> $S$111 | AA128: =ADDRESS(MATCH(COUNTIF($R$2:$R128,"NIVEL 1"),V:V,0),COLUMN(W128)) -> $W$111 | AB128: =ADDRESS((MATCH(COUNTIF(INDIRECT(Z128):$S128,"NIVEL 2"),INDIRECT(AA128):W128,0)+(MATCH(COUNTIF($R$2:$R128,"NIVEL 1"),V:V,0)-1)),COLUMN(T128)) -> $T$113 | BC128: =PROCURA_PRECO_SERVICO -> 0
A129: =V129&"."&W129&"."&X129 -> 4.1.3 | D129: PISOS/RODAPÉ | N129: SUBSUBITEM_INICIO | R129: NIVEL 3 | S129: NIVEL 3 | T129: NIVEL 3 | V129: =COUNTIF($R$2:$R129,"NIVEL 1") -> 4 | W129: 1 | X129: 3 | Y129: 0 | Z129: =ADDRESS(MATCH(COUNTIF($R$2:$R129,"NIVEL 1"),V:V,0),COLUMN(S129)) -> $S$111 | AA129: =ADDRESS(MATCH(COUNTIF($R$2:$R129,"NIVEL 1"),V:V,0),COLUMN(W129)) -> $W$111 | AB129: =ADDRESS((MATCH(COUNTIF(INDIRECT(Z129):$S129,"NIVEL 2"),INDIRECT(AA129):W129,0)+(MATCH(COUNTIF($R$2:$R129,"NIVEL 1"),V:V,0)-1)),COLUMN(T129)) -> $T$113 | BC129: =PROCURA_PRECO_SERVICO -> 0
V130: =COUNTIF($R$2:$R130,"NIVEL 1") -> 4 | W130: 1 | X130: 3 | Y130: 0 | Z130: =ADDRESS(MATCH(COUNTIF($R$2:$R130,"NIVEL 1"),V:V,0),COLUMN(S130)) -> $S$111 | AA130: =ADDRESS(MATCH(COUNTIF($R$2:$R130,"NIVEL 1"),V:V,0),COLUMN(W130)) -> $W$111 | AB130: =ADDRESS((MATCH(COUNTIF(INDIRECT(Z130):$S130,"NIVEL 2"),INDIRECT(AA130):W130,0)+(MATCH(COUNTIF($R$2:$R130,"NIVEL 1"),V:V,0)-1)),COLUMN(T130)) -> $T$113 | BC130: =PROCURA_PRECO_SERVICO -> 0
A131: =V131&"."&W131&"."&X131&"."&Y131 -> 4.1.3.1 | B131: SETOP | C131: ED-48479 | D131: =PROCURA_DESCRICAO_SERVICO -> DEMOLIÇÃO MANUAL DE PISO CIMENTADO OU CONTRAPISO DE ARGAMASSA, COM ESPESSURA MÁXIMA DE 10CM, INCLUSIVE AFASTAMENTO E EMPILHAMENTO, EXCLUSIVE TRANSPORTE E RETIRADA DO MATERIAL DEMOLIDO | E131: =PROCURA_UNIDADE_SERVICO -> M2 | F131: 587.9 | G131: =PROCURA_PRECO_SERVICO -> 16.01 | H131: =CUSTO_BDI_SERVICO -> 20.21 | I131: =CUSTO_TOTAL_SERVICO -> 11881.45 | N131: SERVIÇO | R131: NIVEL 4 | S131: NIVEL 4 | T131: NIVEL 4 | U131: NIVEL 4 | V131: =COUNTIF($R$2:$R131,"NIVEL 1") -> 4 | W131: 1 | X131: 3 | Y131: =IF(U131="NIVEL 4",OFFSET(Y131,-1,0)+1,0) -> 1 | Z131: =ADDRESS(MATCH(COUNTIF($R$2:$R131,"NIVEL 1"),V:V,0),COLUMN(S131)) -> $S$111 | AA131: =ADDRESS(MATCH(COUNTIF($R$2:$R131,"NIVEL 1"),V:V,0),COLUMN(W131)) -> $W$111 | AB131: =ADDRESS((MATCH(COUNTIF(INDIRECT(Z131):$S131,"NIVEL 2"),INDIRECT(AA131):W131,0)+(MATCH(COUNTIF($R$2:$R131,"NIVEL 1"),V:V,0)-1)),COLUMN(T131)) -> $T$113 | BC131: =PROCURA_PRECO_SERVICO -> 16.01
A132: =V132&"."&W132&"."&X132&"."&Y132 -> 4.1.3.2 | B132: SINAPI | C132: 97633 | D132: =PROCURA_DESCRICAO_SERVICO -> DEMOLIÇÃO DE REVESTIMENTO CERÂMICO, DE FORMA MANUAL, SEM REAPROVEITAMENTO. AF_12/2017 | E132: =PROCURA_UNIDADE_SERVICO -> M2 | F132: 587.9 | G132: =PROCURA_PRECO_SERVICO -> 21,64 | H132: =CUSTO_BDI_SERVICO -> 27.31 | I132: =CUSTO_TOTAL_SERVICO -> 16055.54 | N132: SERVIÇO | R132: NIVEL 4 | S132: NIVEL 4 | T132: NIVEL 4 | U132: NIVEL 4 | V132: =COUNTIF($R$2:$R132,"NIVEL 1") -> 4 | W132: 1 | X132: 3 | Y132: 2 | Z132: =ADDRESS(MATCH(COUNTIF($R$2:$R132,"NIVEL 1"),V:V,0),COLUMN(S132)) -> $S$111 | AA132: =ADDRESS(MATCH(COUNTIF($R$2:$R132,"NIVEL 1"),V:V,0),COLUMN(W132)) -> $W$111 | AB132: =ADDRESS((MATCH(COUNTIF(INDIRECT(Z132):$S132,"NIVEL 2"),INDIRECT(AA132):W132,0)+(MATCH(COUNTIF($R$2:$R132,"NIVEL 1"),V:V,0)-1)),COLUMN(T132)) -> $T$113 | BC132: =PROCURA_PRECO_SERVICO -> 21,64
A133: =V133&"."&W133&"."&X133&"."&Y133 -> 4.1.3.3 | B133: SINAPI | C133: 97632 | D133: =PROCURA_DESCRICAO_SERVICO -> DEMOLIÇÃO DE RODAPÉ CERÂMICO, DE FORMA MANUAL, SEM REAPROVEITAMENTO. AF_12/2017 | E133: =PROCURA_UNIDADE_SERVICO -> M | F133: 603.23 | G133: =PROCURA_PRECO_SERVICO -> 2,48 | H133: =CUSTO_BDI_SERVICO -> 3.13 | I133: =CUSTO_TOTAL_SERVICO -> 1888.1 | N133: SERVIÇO | R133: NIVEL 4 | S133: NIVEL 4 | T133: NIVEL 4 | U133: NIVEL 4 | V133: =COUNTIF($R$2:$R133,"NIVEL 1") -> 4 | W133: 1 | X133: 3 | Y133: =IF(U133="NIVEL 4",OFFSET(Y133,-1,0)+1,0) -> 3 | Z133: =ADDRESS(MATCH(COUNTIF($R$2:$R133,"NIVEL 1"),V:V,0),COLUMN(S133)) -> $S$111 | AA133: =ADDRESS(MATCH(COUNTIF($R$2:$R133,"NIVEL 1"),V:V,0),COLUMN(W133)) -> $W$111 | AB133: =ADDRESS((MATCH(COUNTIF(INDIRECT(Z133):$S133,"NIVEL 2"),INDIRECT(AA133):W133,0)+(MATCH(COUNTIF($R$2:$R133,"NIVEL 1"),V:V,0)-1)),COLUMN(T133)) -> $T$113 | BC133: =PROCURA_PRECO_SERVICO -> 2,48
A134: =V134&"."&W134&"."&X134&"."&Y134 -> 4.1.3.4 | B134: SINAPI | C134: 97635 | D134: =PROCURA_DESCRICAO_SERVICO -> DEMOLIÇÃO DE PAVIMENTO INTERTRAVADO, DE FORMA MANUAL, COM REAPROVEITAMENTO. AF_12/2017 | E134: =PROCURA_UNIDADE_SERVICO -> M2 | F134: 312.9 | G134: =PROCURA_PRECO_SERVICO -> 12,78 | H134: =CUSTO_BDI_SERVICO -> 16.13 | I134: =CUSTO_TOTAL_SERVICO -> 5047.07 | N134: SERVIÇO | R134: NIVEL 4 | S134: NIVEL 4 | T134: NIVEL 4 | U134: NIVEL 4 | V134: =COUNTIF($R$2:$R134,"NIVEL 1") -> 4 | W134: 1 | X134: 3 | Y134: 4 | Z134: =ADDRESS(MATCH(COUNTIF($R$2:$R134,"NIVEL 1"),V:V,0),COLUMN(S134)) -> $S$111 | AA134: =ADDRESS(MATCH(COUNTIF($R$2:$R134,"NIVEL 1"),V:V,0),COLUMN(W134)) -> $W$111 | AB134: =ADDRESS((MATCH(COUNTIF(INDIRECT(Z134):$S134,"NIVEL 2"),INDIRECT(AA134):W134,0)+(MATCH(COUNTIF($R$2:$R134,"NIVEL 1"),V:V,0)-1)),COLUMN(T134)) -> $T$113 | BC134: =PROCURA_PRECO_SERVICO -> 12,78
V135: =COUNTIF($R$2:$R135,"NIVEL 1") -> 4 | W135: 1 | X135: 3 | Y135: 0 | Z135: =ADDRESS(MATCH(COUNTIF($R$2:$R135,"NIVEL 1"),V:V,0),COLUMN(S135)) -> $S$111 | AA135: =ADDRESS(MATCH(COUNTIF($R$2:$R135,"NIVEL 1"),V:V,0),COLUMN(W135)) -> $W$111 | AB135: =ADDRESS((MATCH(COUNTIF(INDIRECT(Z135):$S135,"NIVEL 2"),INDIRECT(AA135):W135,0)+(MATCH(COUNTIF($R$2:$R135,"NIVEL 1"),V:V,0)-1)),COLUMN(T135)) -> $T$113 | BC135: =PROCURA_PRECO_SERVICO -> 0
D136: ="SUBTOTAL DO ITEM - "&A129 -> SUBTOTAL DO ITEM - 4.1.3 | I136: =SUBTOTAL(9,OFFSET(I129,1,0):OFFSET(I136,-1,0)) -> 34872.16 | N136: SUBSUBITEM_FIM | V136: =COUNTIF($R$2:$R136,"NIVEL 1") -> 4 | W136: =IFERROR(COUNTIF(INDIRECT(Z136):S136,"NIVEL 2"),0) -> 1 | X136: =COUNTIF(INDIRECT(AB136):T136,"NIVEL 3") -> 3 | Y136: 0 | Z136: =ADDRESS(MATCH(COUNTIF($R$2:$R136,"NIVEL 1"),V:V,0),COLUMN(S136)) -> $S$111 | AA136: =ADDRESS(MATCH(COUNTIF($R$2:$R136,"NIVEL 1"),V:V,0),COLUMN(W136)) -> $W$111 | AB136: =ADDRESS((MATCH(COUNTIF(INDIRECT(Z136):$S136,"NIVEL 2"),INDIRECT(AA136):W136,0)+(MATCH(COUNTIF($R$2:$R136,"NIVEL 1"),V:V,0)-1)),COLUMN(T136)) -> $T$113 | BC136: =PROCURA_PRECO_SERVICO -> 0
V137: =COUNTIF($R$2:$R137,"NIVEL 1") -> 4 | W137: 1 | X137: 3 | Y137: =IF(U137="NIVEL 4",OFFSET(Y137,-1,0)+1,0) -> 0 | Z137: =ADDRESS(MATCH(COUNTIF($R$2:$R137,"NIVEL 1"),V:V,0),COLUMN(S137)) -> $S$111 | AA137: =ADDRESS(MATCH(COUNTIF($R$2:$R137,"NIVEL 1"),V:V,0),COLUMN(W137)) -> $W$111 | AB137: =ADDRESS((MATCH(COUNTIF(INDIRECT(Z137):$S137,"NIVEL 2"),INDIRECT(AA137):W137,0)+(MATCH(COUNTIF($R$2:$R137,"NIVEL 1"),V:V,0)-1)),COLUMN(T137)) -> $T$113 | BC137: =PROCURA_PRECO_SERVICO -> 0
A138: =V138&"."&W138&"."&X138 -> 4.1.4 | D138: REVESTIMENTO DE PAREDE | N138: SUBSUBITEM_INICIO | R138: NIVEL 3 | S138: NIVEL 3 | T138: NIVEL 3 | V138: =COUNTIF($R$2:$R138,"NIVEL 1") -> 4 | W138: 1 | X138: 4 | Y138: 0 | Z138: =ADDRESS(MATCH(COUNTIF($R$2:$R138,"NIVEL 1"),V:V,0),COLUMN(S138)) -> $S$111 | AA138: =ADDRESS(MATCH(COUNTIF($R$2:$R138,"NIVEL 1"),V:V,0),COLUMN(W138)) -> $W$111 | AB138: =ADDRESS((MATCH(COUNTIF(INDIRECT(Z138):$S138,"NIVEL 2"),INDIRECT(AA138):W138,0)+(MATCH(COUNTIF($R$2:$R138,"NIVEL 1"),V:V,0)-1)),COLUMN(T138)) -> $T$113 | BC138: =PROCURA_PRECO_SERVICO -> 0
V139: =COUNTIF($R$2:$R139,"NIVEL 1") -> 4 | W139: 1 | X139: 4 | Y139: 0 | Z139: =ADDRESS(MATCH(COUNTIF($R$2:$R139,"NIVEL 1"),V:V,0),COLUMN(S139)) -> $S$111 | AA139: =ADDRESS(MATCH(COUNTIF($R$2:$R139,"NIVEL 1"),V:V,0),COLUMN(W139)) -> $W$111 | AB139: =ADDRESS((MATCH(COUNTIF(INDIRECT(Z139):$S139,"NIVEL 2"),INDIRECT(AA139):W139,0)+(MATCH(COUNTIF($R$2:$R139,"NIVEL 1"),V:V,0)-1)),COLUMN(T139)) -> $T$113 | BC139: =PROCURA_PRECO_SERVICO -> 0
A140: =V140&"."&W140&"."&X140&"."&Y140 -> 4.1.4.1 | B140: SINAPI | C140: 97633 | D140: =PROCURA_DESCRICAO_SERVICO -> DEMOLIÇÃO DE REVESTIMENTO CERÂMICO, DE FORMA MANUAL, SEM REAPROVEITAMENTO. AF_12/2017 | E140: =PROCURA_UNIDADE_SERVICO -> M2 | F140: 451.3234 | G140: =PROCURA_PRECO_SERVICO -> 21,64 | H140: =CUSTO_BDI_SERVICO -> 27.31 | I140: =CUSTO_TOTAL_SERVICO -> 12325.64 | N140: SERVIÇO | R140: NIVEL 4 | S140: NIVEL 4 | T140: NIVEL 4 | U140: NIVEL 4 | V140: =COUNTIF($R$2:$R140,"NIVEL 1") -> 4 | W140: 1 | X140: 4 | Y140: 1 | Z140: =ADDRESS(MATCH(COUNTIF($R$2:$R140,"NIVEL 1"),V:V,0),COLUMN(S140)) -> $S$111 | AA140: =ADDRESS(MATCH(COUNTIF($R$2:$R140,"NIVEL 1"),V:V,0),COLUMN(W140)) -> $W$111 | AB140: =ADDRESS((MATCH(COUNTIF(INDIRECT(Z140):$S140,"NIVEL 2"),INDIRECT(AA140):W140,0)+(MATCH(COUNTIF($R$2:$R140,"NIVEL 1"),V:V,0)-1)),COLUMN(T140)) -> $T$113 | BC140: =PROCURA_PRECO_SERVICO -> 21,64
V141: =COUNTIF($R$2:$R141,"NIVEL 1") -> 4 | W141: 1 | X141: 4 | Y141: 0 | Z141: =ADDRESS(MATCH(COUNTIF($R$2:$R141,"NIVEL 1"),V:V,0),COLUMN(S141)) -> $S$111 | AA141: =ADDRESS(MATCH(COUNTIF($R$2:$R141,"NIVEL 1"),V:V,0),COLUMN(W141)) -> $W$111 | AB141: =ADDRESS((MATCH(COUNTIF(INDIRECT(Z141):$S141,"NIVEL 2"),INDIRECT(AA141):W141,0)+(MATCH(COUNTIF($R$2:$R141,"NIVEL 1"),V:V,0)-1)),COLUMN(T141)) -> $T$113 | BC141: =PROCURA_PRECO_SERVICO -> 0
D142: ="SUBTOTAL DO ITEM - "&A138 -> SUBTOTAL DO ITEM - 4.1.4 | I142: =SUBTOTAL(9,OFFSET(I138,1,0):OFFSET(I142,-1,0)) -> 12325.64 | N142: SUBSUBITEM_FIM | V142: =COUNTIF($R$2:$R142,"NIVEL 1") -> 4 | W142: 1 | X142: 4 | Y142: 0 | Z142: =ADDRESS(MATCH(COUNTIF($R$2:$R142,"NIVEL 1"),V:V,0),COLUMN(S142)) -> $S$111 | AA142: =ADDRESS(MATCH(COUNTIF($R$2:$R142,"NIVEL 1"),V:V,0),COLUMN(W142)) -> $W$111 | AB142: =ADDRESS((MATCH(COUNTIF(INDIRECT(Z142):$S142,"NIVEL 2"),INDIRECT(AA142):W142,0)+(MATCH(COUNTIF($R$2:$R142,"NIVEL 1"),V:V,0)-1)),COLUMN(T142)) -> $T$113 | BC142: =PROCURA_PRECO_SERVICO -> 0
V143: =COUNTIF($R$2:$R143,"NIVEL 1") -> 4 | W143: 1 | X143: 4 | Y143: =IF(U143="NIVEL 4",OFFSET(Y143,-1,0)+1,0) -> 0 | Z143: =ADDRESS(MATCH(COUNTIF($R$2:$R143,"NIVEL 1"),V:V,0),COLUMN(S143)) -> $S$111 | AA143: =ADDRESS(MATCH(COUNTIF($R$2:$R143,"NIVEL 1"),V:V,0),COLUMN(W143)) -> $W$111 | AB143: =ADDRESS((MATCH(COUNTIF(INDIRECT(Z143):$S143,"NIVEL 2"),INDIRECT(AA143):W143,0)+(MATCH(COUNTIF($R$2:$R143,"NIVEL 1"),V:V,0)-1)),COLUMN(T143)) -> $T$113 | BC143: =PROCURA_PRECO_SERVICO -> 0
A144: =V144&"."&W144&"."&X144 -> 4.1.5 | D144: ARMÁRIO | N144: SUBSUBITEM_INICIO | R144: NIVEL 3 | S144: NIVEL 3 | T144: NIVEL 3 | V144: =COUNTIF($R$2:$R144,"NIVEL 1") -> 4 | W144: 1 | X144: 5 | Y144: 0 | Z144: =ADDRESS(MATCH(COUNTIF($R$2:$R144,"NIVEL 1"),V:V,0),COLUMN(S144)) -> $S$111 | AA144: =ADDRESS(MATCH(COUNTIF($R$2:$R144,"NIVEL 1"),V:V,0),COLUMN(W144)) -> $W$111 | AB144: =ADDRESS((MATCH(COUNTIF(INDIRECT(Z144):$S144,"NIVEL 2"),INDIRECT(AA144):W144,0)+(MATCH(COUNTIF($R$2:$R144,"NIVEL 1"),V:V,0)-1)),COLUMN(T144)) -> $T$113 | BC144: =PROCURA_PRECO_SERVICO -> 0
V145: =COUNTIF($R$2:$R145,"NIVEL 1") -> 4 | W145: 1 | X145: 5 | Y145: 0 | Z145: =ADDRESS(MATCH(COUNTIF($R$2:$R145,"NIVEL 1"),V:V,0),COLUMN(S145)) -> $S$111 | AA145: =ADDRESS(MATCH(COUNTIF($R$2:$R145,"NIVEL 1"),V:V,0),COLUMN(W145)) -> $W$111 | AB145: =ADDRESS((MATCH(COUNTIF(INDIRECT(Z145):$S145,"NIVEL 2"),INDIRECT(AA145):W145,0)+(MATCH(COUNTIF($R$2:$R145,"NIVEL 1"),V:V,0)-1)),COLUMN(T145)) -> $T$113 | BC145: =PROCURA_PRECO_SERVICO -> 0
A146: =V146&"."&W146&"."&X146&"."&Y146 -> 4.1.5.1 | B146: COMPOSIÇÃO | C146: JMV-CRAS-066 | D146: =PROCURA_DESCRICAO_SERVICO -> RETIRADA ARMARIOS EMBUTIDOS - BASEADA DA SBC (022904) | E146: =PROCURA_UNIDADE_SERVICO -> M² | F146: 63 | G146: =PROCURA_PRECO_SERVICO -> 81.03 | H146: =CUSTO_BDI_SERVICO -> 102.29 | I146: =CUSTO_TOTAL_SERVICO -> 6444.27 | N146: SERVIÇO | R146: NIVEL 4 | S146: NIVEL 4 | T146: NIVEL 4 | U146: NIVEL 4 | V146: =COUNTIF($R$2:$R146,"NIVEL 1") -> 4 | W146: 1 | X146: 5 | Y146: 1 | Z146: =ADDRESS(MATCH(COUNTIF($R$2:$R146,"NIVEL 1"),V:V,0),COLUMN(S146)) -> $S$111 | AA146: =ADDRESS(MATCH(COUNTIF($R$2:$R146,"NIVEL 1"),V:V,0),COLUMN(W146)) -> $W$111 | AB146: =ADDRESS((MATCH(COUNTIF(INDIRECT(Z146):$S146,"NIVEL 2"),INDIRECT(AA146):W146,0)+(MATCH(COUNTIF($R$2:$R146,"NIVEL 1"),V:V,0)-1)),COLUMN(T146)) -> $T$113 | BC146: =PROCURA_PRECO_SERVICO -> 81.03
V147: =COUNTIF($R$2:$R147,"NIVEL 1") -> 4 | W147: 1 | X147: 5 | Y147: 0 | Z147: =ADDRESS(MATCH(COUNTIF($R$2:$R147,"NIVEL 1"),V:V,0),COLUMN(S147)) -> $S$111 | AA147: =ADDRESS(MATCH(COUNTIF($R$2:$R147,"NIVEL 1"),V:V,0),COLUMN(W147)) -> $W$111 | AB147: =ADDRESS((MATCH(COUNTIF(INDIRECT(Z147):$S147,"NIVEL 2"),INDIRECT(AA147):W147,0)+(MATCH(COUNTIF($R$2:$R147,"NIVEL 1"),V:V,0)-1)),COLUMN(T147)) -> $T$113 | BC147: =PROCURA_PRECO_SERVICO -> 0
D148: ="SUBTOTAL DO ITEM - "&A144 -> SUBTOTAL DO ITEM - 4.1.5 | I148: =SUBTOTAL(9,OFFSET(I144,1,0):OFFSET(I148,-1,0)) -> 6444.27 | N148: SUBSUBITEM_FIM | V148: =COUNTIF($R$2:$R148,"NIVEL 1") -> 4 | W148: 1 | X148: 5 | Y148: 0 | Z148: =ADDRESS(MATCH(COUNTIF($R$2:$R148,"NIVEL 1"),V:V,0),COLUMN(S148)) -> $S$111 | AA148: =ADDRESS(MATCH(COUNTIF($R$2:$R148,"NIVEL 1"),V:V,0),COLUMN(W148)) -> $W$111 | AB148: =ADDRESS((MATCH(COUNTIF(INDIRECT(Z148):$S148,"NIVEL 2"),INDIRECT(AA148):W148,0)+(MATCH(COUNTIF($R$2:$R148,"NIVEL 1"),V:V,0)-1)),COLUMN(T148)) -> $T$113 | BC148: =PROCURA_PRECO_SERVICO -> 0
V149: =COUNTIF($R$2:$R149,"NIVEL 1") -> 4 | W149: 1 | X149: 5 | Y149: 0 | Z149: =ADDRESS(MATCH(COUNTIF($R$2:$R149,"NIVEL 1"),V:V,0),COLUMN(S149)) -> $S$111 | AA149: =ADDRESS(MATCH(COUNTIF($R$2:$R149,"NIVEL 1"),V:V,0),COLUMN(W149)) -> $W$111 | AB149: =ADDRESS((MATCH(COUNTIF(INDIRECT(Z149):$S149,"NIVEL 2"),INDIRECT(AA149):W149,0)+(MATCH(COUNTIF($R$2:$R149,"NIVEL 1"),V:V,0)-1)),COLUMN(T149)) -> $T$113 | BC149: =PROCURA_PRECO_SERVICO -> 0
A150: =V150&"."&W150&"."&X150 -> 4.1.6 | D150: BANCADA | N150: SUBSUBITEM_INICIO | R150: NIVEL 3 | S150: NIVEL 3 | T150: NIVEL 3 | V150: =COUNTIF($R$2:$R150,"NIVEL 1") -> 4 | W150: 1 | X150: 6 | Y150: 0 | Z150: =ADDRESS(MATCH(COUNTIF($R$2:$R150,"NIVEL 1"),V:V,0),COLUMN(S150)) -> $S$111 | AA150: =ADDRESS(MATCH(COUNTIF($R$2:$R150,"NIVEL 1"),V:V,0),COLUMN(W150)) -> $W$111 | AB150: =ADDRESS((MATCH(COUNTIF(INDIRECT(Z150):$S150,"NIVEL 2"),INDIRECT(AA150):W150,0)+(MATCH(COUNTIF($R$2:$R150,"NIVEL 1"),V:V,0)-1)),COLUMN(T150)) -> $T$113 | BC150: =PROCURA_PRECO_SERVICO -> 0
V151: =COUNTIF($R$2:$R151,"NIVEL 1") -> 4 | W151: 1 | X151: 6 | Y151: 0 | Z151: =ADDRESS(MATCH(COUNTIF($R$2:$R151,"NIVEL 1"),V:V,0),COLUMN(S151)) -> $S$111 | AA151: =ADDRESS(MATCH(COUNTIF($R$2:$R151,"NIVEL 1"),V:V,0),COLUMN(W151)) -> $W$111 | AB151: =ADDRESS((MATCH(COUNTIF(INDIRECT(Z151):$S151,"NIVEL 2"),INDIRECT(AA151):W151,0)+(MATCH(COUNTIF($R$2:$R151,"NIVEL 1"),V:V,0)-1)),COLUMN(T151)) -> $T$113 | BC151: =PROCURA_PRECO_SERVICO -> 0
A152: =V152&"."&W152&"."&X152&"."&Y152 -> 4.1.6.1 | B152: SETOP | C152: ED-48437 | D152: =PROCURA_DESCRICAO_SERVICO -> REMOÇÃO MANUAL DE BANCADA DE PEDRA (MÁRMORE, GRANITO, ARDÓSIA, MARMORITE, ETC.), COM REAPROVEITAMENTO, INCLUSIVE RASGO EM ALVENARIA, REMOÇÃO DE ACESSÓRIOS DE FIXAÇÃO, AFASTAMENTO E EMPILHAMENTO, EXCLUSIVE TRANSPORTE E RETIRADA DO MATERIAL REMOVIDO NÃO REAPROVEITÁVEL | E152: =PROCURA_UNIDADE_SERVICO -> M2 | F152: 4.536 | G152: =PROCURA_PRECO_SERVICO -> 48.55 | H152: =CUSTO_BDI_SERVICO -> 61.28 | I152: =CUSTO_TOTAL_SERVICO -> 277.96 | N152: SERVIÇO | R152: NIVEL 4 | S152: NIVEL 4 | T152: NIVEL 4 | U152: NIVEL 4 | V152: =COUNTIF($R$2:$R152,"NIVEL 1") -> 4 | W152: 1 | X152: 6 | Y152: 1 | Z152: =ADDRESS(MATCH(COUNTIF($R$2:$R152,"NIVEL 1"),V:V,0),COLUMN(S152)) -> $S$111 | AA152: =ADDRESS(MATCH(COUNTIF($R$2:$R152,"NIVEL 1"),V:V,0),COLUMN(W152)) -> $W$111 | AB152: =ADDRESS((MATCH(COUNTIF(INDIRECT(Z152):$S152,"NIVEL 2"),INDIRECT(AA152):W152,0)+(MATCH(COUNTIF($R$2:$R152,"NIVEL 1"),V:V,0)-1)),COLUMN(T152)) -> $T$113 | BC152: =PROCURA_PRECO_SERVICO -> 48.55
V153: =COUNTIF($R$2:$R153,"NIVEL 1") -> 4 | W153: 1 | X153: 6 | Y153: 0 | Z153: =ADDRESS(MATCH(COUNTIF($R$2:$R153,"NIVEL 1"),V:V,0),COLUMN(S153)) -> $S$111 | AA153: =ADDRESS(MATCH(COUNTIF($R$2:$R153,"NIVEL 1"),V:V,0),COLUMN(W153)) -> $W$111 | AB153: =ADDRESS((MATCH(COUNTIF(INDIRECT(Z153):$S153,"NIVEL 2"),INDIRECT(AA153):W153,0)+(MATCH(COUNTIF($R$2:$R153,"NIVEL 1"),V:V,0)-1)),COLUMN(T153)) -> $T$113 | BC153: =PROCURA_PRECO_SERVICO -> 0
D154: ="SUBTOTAL DO ITEM - "&A150 -> SUBTOTAL DO ITEM - 4.1.6 | I154: =SUBTOTAL(9,OFFSET(I150,1,0):OFFSET(I154,-1,0)) -> 277.96 | N154: SUBSUBITEM_FIM | V154: =COUNTIF($R$2:$R154,"NIVEL 1") -> 4 | W154: 1 | X154: 6 | Y154: 0 | Z154: =ADDRESS(MATCH(COUNTIF($R$2:$R154,"NIVEL 1"),V:V,0),COLUMN(S154)) -> $S$111 | AA154: =ADDRESS(MATCH(COUNTIF($R$2:$R154,"NIVEL 1"),V:V,0),COLUMN(W154)) -> $W$111 | AB154: =ADDRESS((MATCH(COUNTIF(INDIRECT(Z154):$S154,"NIVEL 2"),INDIRECT(AA154):W154,0)+(MATCH(COUNTIF($R$2:$R154,"NIVEL 1"),V:V,0)-1)),COLUMN(T154)) -> $T$113 | BC154: =PROCURA_PRECO_SERVICO -> 0
V155: =COUNTIF($R$2:$R155,"NIVEL 1") -> 4 | W155: 1 | X155: 6 | Y155: =IF(U155="NIVEL 4",OFFSET(Y155,-1,0)+1,0) -> 0 | Z155: =ADDRESS(MATCH(COUNTIF($R$2:$R155,"NIVEL 1"),V:V,0),COLUMN(S155)) -> $S$111 | AA155: =ADDRESS(MATCH(COUNTIF($R$2:$R155,"NIVEL 1"),V:V,0),COLUMN(W155)) -> $W$111 | AB155: =ADDRESS((MATCH(COUNTIF(INDIRECT(Z155):$S155,"NIVEL 2"),INDIRECT(AA155):W155,0)+(MATCH(COUNTIF($R$2:$R155,"NIVEL 1"),V:V,0)-1)),COLUMN(T155)) -> $T$113 | BC155: =PROCURA_PRECO_SERVICO -> 0
A156: =V156&"."&W156&"."&X156 -> 4.1.7 | D156: PORTÃO | N156: SUBSUBITEM_INICIO | R156: NIVEL 3 | S156: NIVEL 3 | T156: NIVEL 3 | V156: =COUNTIF($R$2:$R156,"NIVEL 1") -> 4 | W156: 1 | X156: 7 | Y156: 0 | Z156: =ADDRESS(MATCH(COUNTIF($R$2:$R156,"NIVEL 1"),V:V,0),COLUMN(S156)) -> $S$111 | AA156: =ADDRESS(MATCH(COUNTIF($R$2:$R156,"NIVEL 1"),V:V,0),COLUMN(W156)) -> $W$111 | AB156: =ADDRESS((MATCH(COUNTIF(INDIRECT(Z156):$S156,"NIVEL 2"),INDIRECT(AA156):W156,0)+(MATCH(COUNTIF($R$2:$R156,"NIVEL 1"),V:V,0)-1)),COLUMN(T156)) -> $T$113 | BC156: =PROCURA_PRECO_SERVICO -> 0
V157: =COUNTIF($R$2:$R157,"NIVEL 1") -> 4 | W157: 1 | X157: 7 | Y157: 0 | Z157: =ADDRESS(MATCH(COUNTIF($R$2:$R157,"NIVEL 1"),V:V,0),COLUMN(S157)) -> $S$111 | AA157: =ADDRESS(MATCH(COUNTIF($R$2:$R157,"NIVEL 1"),V:V,0),COLUMN(W157)) -> $W$111 | AB157: =ADDRESS((MATCH(COUNTIF(INDIRECT(Z157):$S157,"NIVEL 2"),INDIRECT(AA157):W157,0)+(MATCH(COUNTIF($R$2:$R157,"NIVEL 1"),V:V,0)-1)),COLUMN(T157)) -> $T$113 | BC157: =PROCURA_PRECO_SERVICO -> 0
A158: =V158&"."&W158&"."&X158&"."&Y158 -> 4.1.7.1 | B158: SINAPI | C158: 97644 | D158: =PROCURA_DESCRICAO_SERVICO -> REMOÇÃO DE PORTAS, DE FORMA MANUAL, SEM REAPROVEITAMENTO. AF_12/2017 | E158: =PROCURA_UNIDADE_SERVICO -> M2 | F158: 18.2 | G158: =PROCURA_PRECO_SERVICO -> 8,70 | H158: =CUSTO_BDI_SERVICO -> 10.98 | I158: =CUSTO_TOTAL_SERVICO -> 199.83 | N158: SERVIÇO | R158: NIVEL 4 | S158: NIVEL 4 | T158: NIVEL 4 | U158: NIVEL 4 | V158: =COUNTIF($R$2:$R158,"NIVEL 1") -> 4 | W158: 1 | X158: 7 | Y158: 1 | Z158: =ADDRESS(MATCH(COUNTIF($R$2:$R158,"NIVEL 1"),V:V,0),COLUMN(S158)) -> $S$111 | AA158: =ADDRESS(MATCH(COUNTIF($R$2:$R158,"NIVEL 1"),V:V,0),COLUMN(W158)) -> $W$111 | AB158: =ADDRESS((MATCH(COUNTIF(INDIRECT(Z158):$S158,"NIVEL 2"),INDIRECT(AA158):W158,0)+(MATCH(COUNTIF($R$2:$R158,"NIVEL 1"),V:V,0)-1)),COLUMN(T158)) -> $T$113 | BC158: =PROCURA_PRECO_SERVICO -> 8,70
V159: =COUNTIF($R$2:$R159,"NIVEL 1") -> 4 | W159: 1 | X159: 7 | Y159: 0 | Z159: =ADDRESS(MATCH(COUNTIF($R$2:$R159,"NIVEL 1"),V:V,0),COLUMN(S159)) -> $S$111 | AA159: =ADDRESS(MATCH(COUNTIF($R$2:$R159,"NIVEL 1"),V:V,0),COLUMN(W159)) -> $W$111 | AB159: =ADDRESS((MATCH(COUNTIF(INDIRECT(Z159):$S159,"NIVEL 2"),INDIRECT(AA159):W159,0)+(MATCH(COUNTIF($R$2:$R159,"NIVEL 1"),V:V,0)-1)),COLUMN(T159)) -> $T$113 | BC159: =PROCURA_PRECO_SERVICO -> 0
D160: ="SUBTOTAL DO ITEM - "&A156 -> SUBTOTAL DO ITEM - 4.1.7 | I160: =SUBTOTAL(9,OFFSET(I156,1,0):OFFSET(I160,-1,0)) -> 199.83 | N160: SUBSUBITEM_FIM | V160: =COUNTIF($R$2:$R160,"NIVEL 1") -> 4 | W160: 1 | X160: 7 | Y160: 0 | Z160: =ADDRESS(MATCH(COUNTIF($R$2:$R160,"NIVEL 1"),V:V,0),COLUMN(S160)) -> $S$111 | AA160: =ADDRESS(MATCH(COUNTIF($R$2:$R160,"NIVEL 1"),V:V,0),COLUMN(W160)) -> $W$111 | AB160: =ADDRESS((MATCH(COUNTIF(INDIRECT(Z160):$S160,"NIVEL 2"),INDIRECT(AA160):W160,0)+(MATCH(COUNTIF($R$2:$R160,"NIVEL 1"),V:V,0)-1)),COLUMN(T160)) -> $T$113 | BC160: =PROCURA_PRECO_SERVICO -> 0
V161: =COUNTIF($R$2:$R161,"NIVEL 1") -> 4 | W161: 1 | X161: 7 | Y161: 0 | Z161: =ADDRESS(MATCH(COUNTIF($R$2:$R161,"NIVEL 1"),V:V,0),COLUMN(S161)) -> $S$111 | AA161: =ADDRESS(MATCH(COUNTIF($R$2:$R161,"NIVEL 1"),V:V,0),COLUMN(W161)) -> $W$111 | AB161: =ADDRESS((MATCH(COUNTIF(INDIRECT(Z161):$S161,"NIVEL 2"),INDIRECT(AA161):W161,0)+(MATCH(COUNTIF($R$2:$R161,"NIVEL 1"),V:V,0)-1)),COLUMN(T161)) -> $T$113 | BC161: =PROCURA_PRECO_SERVICO -> 0
A162: =V162&"."&W162&"."&X162 -> 4.1.8 | D162: RAMPA | N162: SUBSUBITEM_INICIO | R162: NIVEL 3 | S162: NIVEL 3 | T162: NIVEL 3 | V162: =COUNTIF($R$2:$R162,"NIVEL 1") -> 4 | W162: 1 | X162: 8 | Y162: 0 | Z162: =ADDRESS(MATCH(COUNTIF($R$2:$R162,"NIVEL 1"),V:V,0),COLUMN(S162)) -> $S$111 | AA162: =ADDRESS(MATCH(COUNTIF($R$2:$R162,"NIVEL 1"),V:V,0),COLUMN(W162)) -> $W$111 | AB162: =ADDRESS((MATCH(COUNTIF(INDIRECT(Z162):$S162,"NIVEL 2"),INDIRECT(AA162):W162,0)+(MATCH(COUNTIF($R$2:$R162,"NIVEL 1"),V:V,0)-1)),COLUMN(T162)) -> $T$113 | BC162: =PROCURA_PRECO_SERVICO -> 0
V163: =COUNTIF($R$2:$R163,"NIVEL 1") -> 4 | W163: 1 | X163: 8 | Y163: 0 | Z163: =ADDRESS(MATCH(COUNTIF($R$2:$R163,"NIVEL 1"),V:V,0),COLUMN(S163)) -> $S$111 | AA163: =ADDRESS(MATCH(COUNTIF($R$2:$R163,"NIVEL 1"),V:V,0),COLUMN(W163)) -> $W$111 | AB163: =ADDRESS((MATCH(COUNTIF(INDIRECT(Z163):$S163,"NIVEL 2"),INDIRECT(AA163):W163,0)+(MATCH(COUNTIF($R$2:$R163,"NIVEL 1"),V:V,0)-1)),COLUMN(T163)) -> $T$113 | BC163: =PROCURA_PRECO_SERVICO -> 0
A164: =V164&"."&W164&"."&X164&"."&Y164 -> 4.1.8.1 | B164: SETOP | C164: ED-48443 | D164: =PROCURA_DESCRICAO_SERVICO -> DEMOLIÇÃO MECANIZADA DE CONCRETO ARMADO, COM EQUIPAMENTO ELÉTRICO, INCLUSIVE AFASTAMENTO E EMPILHAMENTO, EXCLUSIVE TRANSPORTE E RETIRADA DO MATERIAL DEMOLIDO | E164: =PROCURA_UNIDADE_SERVICO -> M3 | F164: 2.736 | G164: =PROCURA_PRECO_SERVICO -> 142.52 | H164: =CUSTO_BDI_SERVICO -> 179.91 | I164: =CUSTO_TOTAL_SERVICO -> 492.23 | N164: SERVIÇO | R164: NIVEL 4 | S164: NIVEL 4 | T164: NIVEL 4 | U164: NIVEL 4 | V164: =COUNTIF($R$2:$R164,"NIVEL 1") -> 4 | W164: 1 | X164: 8 | Y164: 1 | Z164: =ADDRESS(MATCH(COUNTIF($R$2:$R164,"NIVEL 1"),V:V,0),COLUMN(S164)) -> $S$111 | AA164: =ADDRESS(MATCH(COUNTIF($R$2:$R164,"NIVEL 1"),V:V,0),COLUMN(W164)) -> $W$111 | AB164: =ADDRESS((MATCH(COUNTIF(INDIRECT(Z164):$S164,"NIVEL 2"),INDIRECT(AA164):W164,0)+(MATCH(COUNTIF($R$2:$R164,"NIVEL 1"),V:V,0)-1)),COLUMN(T164)) -> $T$113 | BC164: =PROCURA_PRECO_SERVICO -> 142.52
V165: =COUNTIF($R$2:$R165,"NIVEL 1") -> 4 | W165: 1 | X165: 8 | Y165: 0 | Z165: =ADDRESS(MATCH(COUNTIF($R$2:$R165,"NIVEL 1"),V:V,0),COLUMN(S165)) -> $S$111 | AA165: =ADDRESS(MATCH(COUNTIF($R$2:$R165,"NIVEL 1"),V:V,0),COLUMN(W165)) -> $W$111 | AB165: =ADDRESS((MATCH(COUNTIF(INDIRECT(Z165):$S165,"NIVEL 2"),INDIRECT(AA165):W165,0)+(MATCH(COUNTIF($R$2:$R165,"NIVEL 1"),V:V,0)-1)),COLUMN(T165)) -> $T$113 | BC165: =PROCURA_PRECO_SERVICO -> 0
D166: ="SUBTOTAL DO ITEM - "&A162 -> SUBTOTAL DO ITEM - 4.1.8 | I166: =SUBTOTAL(9,OFFSET(I162,1,0):OFFSET(I166,-1,0)) -> 492.23 | N166: SUBSUBITEM_FIM | V166: =COUNTIF($R$2:$R166,"NIVEL 1") -> 4 | W166: 1 | X166: 8 | Y166: 0 | Z166: =ADDRESS(MATCH(COUNTIF($R$2:$R166,"NIVEL 1"),V:V,0),COLUMN(S166)) -> $S$111 | AA166: =ADDRESS(MATCH(COUNTIF($R$2:$R166,"NIVEL 1"),V:V,0),COLUMN(W166)) -> $W$111 | AB166: =ADDRESS((MATCH(COUNTIF(INDIRECT(Z166):$S166,"NIVEL 2"),INDIRECT(AA166):W166,0)+(MATCH(COUNTIF($R$2:$R166,"NIVEL 1"),V:V,0)-1)),COLUMN(T166)) -> $T$113 | BC166: =PROCURA_PRECO_SERVICO -> 0
V167: =COUNTIF($R$2:$R167,"NIVEL 1") -> 4 | W167: 1 | X167: 8 | Y167: 0 | Z167: =ADDRESS(MATCH(COUNTIF($R$2:$R167,"NIVEL 1"),V:V,0),COLUMN(S167)) -> $S$111 | AA167: =ADDRESS(MATCH(COUNTIF($R$2:$R167,"NIVEL 1"),V:V,0),COLUMN(W167)) -> $W$111 | AB167: =ADDRESS((MATCH(COUNTIF(INDIRECT(Z167):$S167,"NIVEL 2"),INDIRECT(AA167):W167,0)+(MATCH(COUNTIF($R$2:$R167,"NIVEL 1"),V:V,0)-1)),COLUMN(T167)) -> $T$113 | BC167: =PROCURA_PRECO_SERVICO -> 0
A168: =V168&"."&W168&"."&X168 -> 4.1.9 | D168: PINTURA | N168: SUBSUBITEM_INICIO | R168: NIVEL 3 | S168: NIVEL 3 | T168: NIVEL 3 | V168: =COUNTIF($R$2:$R168,"NIVEL 1") -> 4 | W168: 1 | X168: 9 | Y168: 0 | Z168: =ADDRESS(MATCH(COUNTIF($R$2:$R168,"NIVEL 1"),V:V,0),COLUMN(S168)) -> $S$111 | AA168: =ADDRESS(MATCH(COUNTIF($R$2:$R168,"NIVEL 1"),V:V,0),COLUMN(W168)) -> $W$111 | AB168: =ADDRESS((MATCH(COUNTIF(INDIRECT(Z168):$S168,"NIVEL 2"),INDIRECT(AA168):W168,0)+(MATCH(COUNTIF($R$2:$R168,"NIVEL 1"),V:V,0)-1)),COLUMN(T168)) -> $T$113 | BC168: =PROCURA_PRECO_SERVICO -> 0
V169: =COUNTIF($R$2:$R169,"NIVEL 1") -> 4 | W169: 1 | X169: 9 | Y169: 0 | Z169: =ADDRESS(MATCH(COUNTIF($R$2:$R169,"NIVEL 1"),V:V,0),COLUMN(S169)) -> $S$111 | AA169: =ADDRESS(MATCH(COUNTIF($R$2:$R169,"NIVEL 1"),V:V,0),COLUMN(W169)) -> $W$111 | AB169: =ADDRESS((MATCH(COUNTIF(INDIRECT(Z169):$S169,"NIVEL 2"),INDIRECT(AA169):W169,0)+(MATCH(COUNTIF($R$2:$R169,"NIVEL 1"),V:V,0)-1)),COLUMN(T169)) -> $T$113 | BC169: =PROCURA_PRECO_SERVICO -> 0
A170: =V170&"."&W170&"."&X170&"."&Y170 -> 4.1.9.1 | B170: SETOP | C170: ED-50505 | D170: =PROCURA_DESCRICAO_SERVICO -> LIXAMENTO MANUAL EM PAREDE PARA REMOÇÃO DE TINTA | E170: =PROCURA_UNIDADE_SERVICO -> M2 | F170: 2131.2997 | G170: =PROCURA_PRECO_SERVICO -> 2.72 | H170: =CUSTO_BDI_SERVICO -> 3.43 | I170: =CUSTO_TOTAL_SERVICO -> 7310.35 | N170: SERVIÇO | R170: NIVEL 4 | S170: NIVEL 4 | T170: NIVEL 4 | U170: NIVEL 4 | V170: =COUNTIF($R$2:$R170,"NIVEL 1") -> 4 | W170: 1 | X170: 9 | Y170: 1 | Z170: =ADDRESS(MATCH(COUNTIF($R$2:$R170,"NIVEL 1"),V:V,0),COLUMN(S170)) -> $S$111 | AA170: =ADDRESS(MATCH(COUNTIF($R$2:$R170,"NIVEL 1"),V:V,0),COLUMN(W170)) -> $W$111 | AB170: =ADDRESS((MATCH(COUNTIF(INDIRECT(Z170):$S170,"NIVEL 2"),INDIRECT(AA170):W170,0)+(MATCH(COUNTIF($R$2:$R170,"NIVEL 1"),V:V,0)-1)),COLUMN(T170)) -> $T$113 | BC170: =PROCURA_PRECO_SERVICO -> 2.72
V171: =COUNTIF($R$2:$R171,"NIVEL 1") -> 4 | W171: 1 | X171: 9 | Y171: 0 | Z171: =ADDRESS(MATCH(COUNTIF($R$2:$R171,"NIVEL 1"),V:V,0),COLUMN(S171)) -> $S$111 | AA171: =ADDRESS(MATCH(COUNTIF($R$2:$R171,"NIVEL 1"),V:V,0),COLUMN(W171)) -> $W$111 | AB171: =ADDRESS((MATCH(COUNTIF(INDIRECT(Z171):$S171,"NIVEL 2"),INDIRECT(AA171):W171,0)+(MATCH(COUNTIF($R$2:$R171,"NIVEL 1"),V:V,0)-1)),COLUMN(T171)) -> $T$113 | BC171: =PROCURA_PRECO_SERVICO -> 0
D172: ="SUBTOTAL DO ITEM - "&A168 -> SUBTOTAL DO ITEM - 4.1.9 | I172: =SUBTOTAL(9,OFFSET(I168,1,0):OFFSET(I172,-1,0)) -> 7310.35 | N172: SUBSUBITEM_FIM | V172: =COUNTIF($R$2:$R172,"NIVEL 1") -> 4 | W172: 1 | X172: 9 | Y172: 0 | Z172: =ADDRESS(MATCH(COUNTIF($R$2:$R172,"NIVEL 1"),V:V,0),COLUMN(S172)) -> $S$111 | AA172: =ADDRESS(MATCH(COUNTIF($R$2:$R172,"NIVEL 1"),V:V,0),COLUMN(W172)) -> $W$111 | AB172: =ADDRESS((MATCH(COUNTIF(INDIRECT(Z172):$S172,"NIVEL 2"),INDIRECT(AA172):W172,0)+(MATCH(COUNTIF($R$2:$R172,"NIVEL 1"),V:V,0)-1)),COLUMN(T172)) -> $T$113 | BC172: =PROCURA_PRECO_SERVICO -> 0
V173: =COUNTIF($R$2:$R173,"NIVEL 1") -> 4 | W173: 1 | X173: 9 | Y173: =IF(U173="NIVEL 4",OFFSET(Y173,-1,0)+1,0) -> 0 | Z173: =ADDRESS(MATCH(COUNTIF($R$2:$R173,"NIVEL 1"),V:V,0),COLUMN(S173)) -> $S$111 | AA173: =ADDRESS(MATCH(COUNTIF($R$2:$R173,"NIVEL 1"),V:V,0),COLUMN(W173)) -> $W$111 | AB173: =ADDRESS((MATCH(COUNTIF(INDIRECT(Z173):$S173,"NIVEL 2"),INDIRECT(AA173):W173,0)+(MATCH(COUNTIF($R$2:$R173,"NIVEL 1"),V:V,0)-1)),COLUMN(T173)) -> $T$113 | BC173: =PROCURA_PRECO_SERVICO -> 0
A174: =V174&"."&W174&"."&X174 -> 4.1.10 | D174: CALÇADA | N174: SUBSUBITEM_INICIO | R174: NIVEL 3 | S174: NIVEL 3 | T174: NIVEL 3 | V174: =COUNTIF($R$2:$R174,"NIVEL 1") -> 4 | W174: 1 | X174: 10 | Y174: 0 | Z174: =ADDRESS(MATCH(COUNTIF($R$2:$R174,"NIVEL 1"),V:V,0),COLUMN(S174)) -> $S$111 | AA174: =ADDRESS(MATCH(COUNTIF($R$2:$R174,"NIVEL 1"),V:V,0),COLUMN(W174)) -> $W$111 | AB174: =ADDRESS((MATCH(COUNTIF(INDIRECT(Z174):$S174,"NIVEL 2"),INDIRECT(AA174):W174,0)+(MATCH(COUNTIF($R$2:$R174,"NIVEL 1"),V:V,0)-1)),COLUMN(T174)) -> $T$113 | BC174: =PROCURA_PRECO_SERVICO -> 0
V175: =COUNTIF($R$2:$R175,"NIVEL 1") -> 4 | W175: 1 | X175: 10 | Y175: 0 | Z175: =ADDRESS(MATCH(COUNTIF($R$2:$R175,"NIVEL 1"),V:V,0),COLUMN(S175)) -> $S$111 | AA175: =ADDRESS(MATCH(COUNTIF($R$2:$R175,"NIVEL 1"),V:V,0),COLUMN(W175)) -> $W$111 | AB175: =ADDRESS((MATCH(COUNTIF(INDIRECT(Z175):$S175,"NIVEL 2"),INDIRECT(AA175):W175,0)+(MATCH(COUNTIF($R$2:$R175,"NIVEL 1"),V:V,0)-1)),COLUMN(T175)) -> $T$113 | BC175: =PROCURA_PRECO_SERVICO -> 0
A176: =V176&"."&W176&"."&X176&"."&Y176 -> 4.1.10.1 | B176: SETOP | C176: ED-48443 | D176: =PROCURA_DESCRICAO_SERVICO -> DEMOLIÇÃO MECANIZADA DE CONCRETO ARMADO, COM EQUIPAMENTO ELÉTRICO, INCLUSIVE AFASTAMENTO E EMPILHAMENTO, EXCLUSIVE TRANSPORTE E RETIRADA DO MATERIAL DEMOLIDO | E176: =PROCURA_UNIDADE_SERVICO -> M3 | F176: 2.22 | G176: =PROCURA_PRECO_SERVICO -> 142.52 | H176: =CUSTO_BDI_SERVICO -> 179.91 | I176: =CUSTO_TOTAL_SERVICO -> 399.4 | N176: SERVIÇO | R176: NIVEL 4 | S176: NIVEL 4 | T176: NIVEL 4 | U176: NIVEL 4 | V176: =COUNTIF($R$2:$R176,"NIVEL 1") -> 4 | W176: 1 | X176: 10 | Y176: 1 | Z176: =ADDRESS(MATCH(COUNTIF($R$2:$R176,"NIVEL 1"),V:V,0),COLUMN(S176)) -> $S$111 | AA176: =ADDRESS(MATCH(COUNTIF($R$2:$R176,"NIVEL 1"),V:V,0),COLUMN(W176)) -> $W$111 | AB176: =ADDRESS((MATCH(COUNTIF(INDIRECT(Z176):$S176,"NIVEL 2"),INDIRECT(AA176):W176,0)+(MATCH(COUNTIF($R$2:$R176,"NIVEL 1"),V:V,0)-1)),COLUMN(T176)) -> $T$113 | BC176: =PROCURA_PRECO_SERVICO -> 142.52
V177: =COUNTIF($R$2:$R177,"NIVEL 1") -> 4 | W177: 1 | X177: 10 | Y177: 0 | Z177: =ADDRESS(MATCH(COUNTIF($R$2:$R177,"NIVEL 1"),V:V,0),COLUMN(S177)) -> $S$111 | AA177: =ADDRESS(MATCH(COUNTIF($R$2:$R177,"NIVEL 1"),V:V,0),COLUMN(W177)) -> $W$111 | AB177: =ADDRESS((MATCH(COUNTIF(INDIRECT(Z177):$S177,"NIVEL 2"),INDIRECT(AA177):W177,0)+(MATCH(COUNTIF($R$2:$R177,"NIVEL 1"),V:V,0)-1)),COLUMN(T177)) -> $T$113 | BC177: =PROCURA_PRECO_SERVICO -> 0
D178: ="SUBTOTAL DO ITEM - "&A174 -> SUBTOTAL DO ITEM - 4.1.10 | I178: =SUBTOTAL(9,OFFSET(I174,1,0):OFFSET(I178,-1,0)) -> 399.4 | N178: SUBSUBITEM_FIM | V178: =COUNTIF($R$2:$R178,"NIVEL 1") -> 4 | W178: 1 | X178: 10 | Y178: 0 | Z178: =ADDRESS(MATCH(COUNTIF($R$2:$R178,"NIVEL 1"),V:V,0),COLUMN(S178)) -> $S$111 | AA178: =ADDRESS(MATCH(COUNTIF($R$2:$R178,"NIVEL 1"),V:V,0),COLUMN(W178)) -> $W$111 | AB178: =ADDRESS((MATCH(COUNTIF(INDIRECT(Z178):$S178,"NIVEL 2"),INDIRECT(AA178):W178,0)+(MATCH(COUNTIF($R$2:$R178,"NIVEL 1"),V:V,0)-1)),COLUMN(T178)) -> $T$113 | BC178: =PROCURA_PRECO_SERVICO -> 0
V179: =COUNTIF($R$2:$R179,"NIVEL 1") -> 4 | W179: 1 | X179: 10 | Y179: 0 | Z179: =ADDRESS(MATCH(COUNTIF($R$2:$R179,"NIVEL 1"),V:V,0),COLUMN(S179)) -> $S$111 | AA179: =ADDRESS(MATCH(COUNTIF($R$2:$R179,"NIVEL 1"),V:V,0),COLUMN(W179)) -> $W$111 | AB179: =ADDRESS((MATCH(COUNTIF(INDIRECT(Z179):$S179,"NIVEL 2"),INDIRECT(AA179):W179,0)+(MATCH(COUNTIF($R$2:$R179,"NIVEL 1"),V:V,0)-1)),COLUMN(T179)) -> $T$113 | BC179: =PROCURA_PRECO_SERVICO -> 0
A180: =V180&"."&W180&"."&X180 -> 4.1.11 | D180: LOUÇAS, METAIS E ACESSÓRIOS | N180: SUBSUBITEM_INICIO | R180: NIVEL 3 | S180: NIVEL 3 | T180: NIVEL 3 | V180: =COUNTIF($R$2:$R180,"NIVEL 1") -> 4 | W180: 1 | X180: 11 | Y180: 0 | Z180: =ADDRESS(MATCH(COUNTIF($R$2:$R180,"NIVEL 1"),V:V,0),COLUMN(S180)) -> $S$111 | AA180: =ADDRESS(MATCH(COUNTIF($R$2:$R180,"NIVEL 1"),V:V,0),COLUMN(W180)) -> $W$111 | AB180: =ADDRESS((MATCH(COUNTIF(INDIRECT(Z180):$S180,"NIVEL 2"),INDIRECT(AA180):W180,0)+(MATCH(COUNTIF($R$2:$R180,"NIVEL 1"),V:V,0)-1)),COLUMN(T180)) -> $T$113 | BC180: =PROCURA_PRECO_SERVICO -> 0
V181: =COUNTIF($R$2:$R181,"NIVEL 1") -> 4 | W181: 1 | X181: 11 | Y181: 0 | Z181: =ADDRESS(MATCH(COUNTIF($R$2:$R181,"NIVEL 1"),V:V,0),COLUMN(S181)) -> $S$111 | AA181: =ADDRESS(MATCH(COUNTIF($R$2:$R181,"NIVEL 1"),V:V,0),COLUMN(W181)) -> $W$111 | AB181: =ADDRESS((MATCH(COUNTIF(INDIRECT(Z181):$S181,"NIVEL 2"),INDIRECT(AA181):W181,0)+(MATCH(COUNTIF($R$2:$R181,"NIVEL 1"),V:V,0)-1)),COLUMN(T181)) -> $T$113 | BC181: =PROCURA_PRECO_SERVICO -> 0
A182: =V182&"."&W182&"."&X182&"."&Y182 -> 4.1.11.1 | B182: SINAPI | C182: 97663 | D182: =PROCURA_DESCRICAO_SERVICO -> REMOÇÃO DE LOUÇAS, DE FORMA MANUAL, SEM REAPROVEITAMENTO. AF_12/2017 | E182: =PROCURA_UNIDADE_SERVICO -> UN | F182: 22 | G182: =PROCURA_PRECO_SERVICO -> 11,49 | H182: =CUSTO_BDI_SERVICO -> 14.5 | I182: =CUSTO_TOTAL_SERVICO -> 319 | N182: SERVIÇO | R182: NIVEL 4 | S182: NIVEL 4 | T182: NIVEL 4 | U182: NIVEL 4 | V182: =COUNTIF($R$2:$R182,"NIVEL 1") -> 4 | W182: 1 | X182: 11 | Y182: 1 | Z182: =ADDRESS(MATCH(COUNTIF($R$2:$R182,"NIVEL 1"),V:V,0),COLUMN(S182)) -> $S$111 | AA182: =ADDRESS(MATCH(COUNTIF($R$2:$R182,"NIVEL 1"),V:V,0),COLUMN(W182)) -> $W$111 | AB182: =ADDRESS((MATCH(COUNTIF(INDIRECT(Z182):$S182,"NIVEL 2"),INDIRECT(AA182):W182,0)+(MATCH(COUNTIF($R$2:$R182,"NIVEL 1"),V:V,0)-1)),COLUMN(T182)) -> $T$113 | BC182: =PROCURA_PRECO_SERVICO -> 11,49
V183: =COUNTIF($R$2:$R183,"NIVEL 1") -> 4 | W183: 1 | X183: 11 | Y183: 0 | Z183: =ADDRESS(MATCH(COUNTIF($R$2:$R183,"NIVEL 1"),V:V,0),COLUMN(S183)) -> $S$111 | AA183: =ADDRESS(MATCH(COUNTIF($R$2:$R183,"NIVEL 1"),V:V,0),COLUMN(W183)) -> $W$111 | AB183: =ADDRESS((MATCH(COUNTIF(INDIRECT(Z183):$S183,"NIVEL 2"),INDIRECT(AA183):W183,0)+(MATCH(COUNTIF($R$2:$R183,"NIVEL 1"),V:V,0)-1)),COLUMN(T183)) -> $T$113 | BC183: =PROCURA_PRECO_SERVICO -> 0
D184: ="SUBTOTAL DO ITEM - "&A180 -> SUBTOTAL DO ITEM - 4.1.11 | I184: =SUBTOTAL(9,OFFSET(I180,1,0):OFFSET(I184,-1,0)) -> 319 | N184: SUBSUBITEM_FIM | V184: =COUNTIF($R$2:$R184,"NIVEL 1") -> 4 | W184: 1 | X184: 11 | Y184: 0 | Z184: =ADDRESS(MATCH(COUNTIF($R$2:$R184,"NIVEL 1"),V:V,0),COLUMN(S184)) -> $S$111 | AA184: =ADDRESS(MATCH(COUNTIF($R$2:$R184,"NIVEL 1"),V:V,0),COLUMN(W184)) -> $W$111 | AB184: =ADDRESS((MATCH(COUNTIF(INDIRECT(Z184):$S184,"NIVEL 2"),INDIRECT(AA184):W184,0)+(MATCH(COUNTIF($R$2:$R184,"NIVEL 1"),V:V,0)-1)),COLUMN(T184)) -> $T$113 | BC184: =PROCURA_PRECO_SERVICO -> 0
V185: =COUNTIF($R$2:$R185,"NIVEL 1") -> 4 | W185: 1 | X185: 11 | Y185: 0 | Z185: =ADDRESS(MATCH(COUNTIF($R$2:$R185,"NIVEL 1"),V:V,0),COLUMN(S185)) -> $S$111 | AA185: =ADDRESS(MATCH(COUNTIF($R$2:$R185,"NIVEL 1"),V:V,0),COLUMN(W185)) -> $W$111 | AB185: =ADDRESS((MATCH(COUNTIF(INDIRECT(Z185):$S185,"NIVEL 2"),INDIRECT(AA185):W185,0)+(MATCH(COUNTIF($R$2:$R185,"NIVEL 1"),V:V,0)-1)),COLUMN(T185)) -> $T$113 | BC185: =PROCURA_PRECO_SERVICO -> 0
A186: =V186&"."&W186&"."&X186 -> 4.1.12 | D186: TELHADO | N186: SUBSUBITEM_INICIO | R186: NIVEL 3 | S186: NIVEL 3 | T186: NIVEL 3 | V186: =COUNTIF($R$2:$R186,"NIVEL 1") -> 4 | W186: 1 | X186: 12 | Y186: 0 | Z186: =ADDRESS(MATCH(COUNTIF($R$2:$R186,"NIVEL 1"),V:V,0),COLUMN(S186)) -> $S$111 | AA186: =ADDRESS(MATCH(COUNTIF($R$2:$R186,"NIVEL 1"),V:V,0),COLUMN(W186)) -> $W$111 | AB186: =ADDRESS((MATCH(COUNTIF(INDIRECT(Z186):$S186,"NIVEL 2"),INDIRECT(AA186):W186,0)+(MATCH(COUNTIF($R$2:$R186,"NIVEL 1"),V:V,0)-1)),COLUMN(T186)) -> $T$113 | BC186: =PROCURA_PRECO_SERVICO -> 0
V187: =COUNTIF($R$2:$R187,"NIVEL 1") -> 4 | W187: 1 | X187: 12 | Y187: 0 | Z187: =ADDRESS(MATCH(COUNTIF($R$2:$R187,"NIVEL 1"),V:V,0),COLUMN(S187)) -> $S$111 | AA187: =ADDRESS(MATCH(COUNTIF($R$2:$R187,"NIVEL 1"),V:V,0),COLUMN(W187)) -> $W$111 | AB187: =ADDRESS((MATCH(COUNTIF(INDIRECT(Z187):$S187,"NIVEL 2"),INDIRECT(AA187):W187,0)+(MATCH(COUNTIF($R$2:$R187,"NIVEL 1"),V:V,0)-1)),COLUMN(T187)) -> $T$113 | BC187: =PROCURA_PRECO_SERVICO -> 0
A188: =V188&"."&W188&"."&X188&"."&Y188 -> 4.1.12.1 | B188: SETOP | C188: ED-48514 | D188: =PROCURA_DESCRICAO_SERVICO -> REMOÇÃO MANUAL DE TELHA CERÂMICA, COM REAPROVEITAMENTO, INCLUSIVE AFASTAMENTO E EMPILHAMENTO, EXCLUSIVE TRANSPORTE E RETIRADA DO MATERIAL REMOVIDO NÃO REAPROVEITÁVEL | E188: =PROCURA_UNIDADE_SERVICO -> M2 | F188: 599.4 | G188: =PROCURA_PRECO_SERVICO -> 21.91 | H188: =CUSTO_BDI_SERVICO -> 27.65 | I188: =CUSTO_TOTAL_SERVICO -> 16573.41 | N188: SERVIÇO | R188: NIVEL 4 | S188: NIVEL 4 | T188: NIVEL 4 | U188: NIVEL 4 | V188: =COUNTIF($R$2:$R188,"NIVEL 1") -> 4 | W188: 1 | X188: 12 | Y188: 1 | Z188: =ADDRESS(MATCH(COUNTIF($R$2:$R188,"NIVEL 1"),V:V,0),COLUMN(S188)) -> $S$111 | AA188: =ADDRESS(MATCH(COUNTIF($R$2:$R188,"NIVEL 1"),V:V,0),COLUMN(W188)) -> $W$111 | AB188: =ADDRESS((MATCH(COUNTIF(INDIRECT(Z188):$S188,"NIVEL 2"),INDIRECT(AA188):W188,0)+(MATCH(COUNTIF($R$2:$R188,"NIVEL 1"),V:V,0)-1)),COLUMN(T188)) -> $T$113 | BC188: =PROCURA_PRECO_SERVICO -> 21.91
V189: =COUNTIF($R$2:$R189,"NIVEL 1") -> 4 | W189: 1 | X189: 12 | Y189: 0 | Z189: =ADDRESS(MATCH(COUNTIF($R$2:$R189,"NIVEL 1"),V:V,0),COLUMN(S189)) -> $S$111 | AA189: =ADDRESS(MATCH(COUNTIF($R$2:$R189,"NIVEL 1"),V:V,0),COLUMN(W189)) -> $W$111 | AB189: =ADDRESS((MATCH(COUNTIF(INDIRECT(Z189):$S189,"NIVEL 2"),INDIRECT(AA189):W189,0)+(MATCH(COUNTIF($R$2:$R189,"NIVEL 1"),V:V,0)-1)),COLUMN(T189)) -> $T$113 | BC189: =PROCURA_PRECO_SERVICO -> 0
D190: ="SUBTOTAL DO ITEM - "&A186 -> SUBTOTAL DO ITEM - 4.1.12 | I190: =SUBTOTAL(9,OFFSET(I186,1,0):OFFSET(I190,-1,0)) -> 16573.41 | N190: SUBSUBITEM_FIM | V190: =COUNTIF($R$2:$R190,"NIVEL 1") -> 4 | W190: 1 | X190: 12 | Y190: 0 | Z190: =ADDRESS(MATCH(COUNTIF($R$2:$R190,"NIVEL 1"),V:V,0),COLUMN(S190)) -> $S$111 | AA190: =ADDRESS(MATCH(COUNTIF($R$2:$R190,"NIVEL 1"),V:V,0),COLUMN(W190)) -> $W$111 | AB190: =ADDRESS((MATCH(COUNTIF(INDIRECT(Z190):$S190,"NIVEL 2"),INDIRECT(AA190):W190,0)+(MATCH(COUNTIF($R$2:$R190,"NIVEL 1"),V:V,0)-1)),COLUMN(T190)) -> $T$113 | BC190: =PROCURA_PRECO_SERVICO -> 0
V191: =COUNTIF($R$2:$R191,"NIVEL 1") -> 4 | W191: 1 | X191: 12 | Y191: 0 | Z191: =ADDRESS(MATCH(COUNTIF($R$2:$R191,"NIVEL 1"),V:V,0),COLUMN(S191)) -> $S$111 | AA191: =ADDRESS(MATCH(COUNTIF($R$2:$R191,"NIVEL 1"),V:V,0),COLUMN(W191)) -> $W$111 | AB191: =ADDRESS((MATCH(COUNTIF(INDIRECT(Z191):$S191,"NIVEL 2"),INDIRECT(AA191):W191,0)+(MATCH(COUNTIF($R$2:$R191,"NIVEL 1"),V:V,0)-1)),COLUMN(T191)) -> $T$113 | BC191: =PROCURA_PRECO_SERVICO -> 0
D192: ="SUBTOTAL DO ITEM - "&A113 -> SUBTOTAL DO ITEM - 4.1 | I192: =SUBTOTAL(9,OFFSET(I113,1,0):OFFSET(I192,-1,0)) -> 82699.22 | N192: SUBITEM_FIM | V192: =COUNTIF($R$2:$R192,"NIVEL 1") -> 4 | W192: 1 | X192: 12 | Y192: 0 | Z192: =ADDRESS(MATCH(COUNTIF($R$2:$R192,"NIVEL 1"),V:V,0),COLUMN(S192)) -> $S$111 | AA192: =ADDRESS(MATCH(COUNTIF($R$2:$R192,"NIVEL 1"),V:V,0),COLUMN(W192)) -> $W$111 | AB192: =ADDRESS((MATCH(COUNTIF(INDIRECT(Z192):$S192,"NIVEL 2"),INDIRECT(AA192):W192,0)+(MATCH(COUNTIF($R$2:$R192,"NIVEL 1"),V:V,0)-1)),COLUMN(T192)) -> $T$113 | BC192: =PROCURA_PRECO_SERVICO -> 0
V193: =COUNTIF($R$2:$R193,"NIVEL 1") -> 4 | W193: 1 | X193: 12 | Y193: 0 | Z193: =ADDRESS(MATCH(COUNTIF($R$2:$R193,"NIVEL 1"),V:V,0),COLUMN(S193)) -> $S$111 | AA193: =ADDRESS(MATCH(COUNTIF($R$2:$R193,"NIVEL 1"),V:V,0),COLUMN(W193)) -> $W$111 | AB193: =ADDRESS((MATCH(COUNTIF(INDIRECT(Z193):$S193,"NIVEL 2"),INDIRECT(AA193):W193,0)+(MATCH(COUNTIF($R$2:$R193,"NIVEL 1"),V:V,0)-1)),COLUMN(T193)) -> $T$113 | BC193: =PROCURA_PRECO_SERVICO -> 0
A194: =V194&"."&W194 -> 4.2 | D194: BOTA FORA | N194: SUBITEM_INICIO | R194: NIVEL 2 | S194: NIVEL 2 | V194: =COUNTIF($R$2:$R194,"NIVEL 1") -> 4 | W194: 2 | X194: 0 | Y194: 0 | Z194: =ADDRESS(MATCH(COUNTIF($R$2:$R194,"NIVEL 1"),V:V,0),COLUMN(S194)) -> $S$111 | AA194: =ADDRESS(MATCH(COUNTIF($R$2:$R194,"NIVEL 1"),V:V,0),COLUMN(W194)) -> $W$111 | AB194: =ADDRESS((MATCH(COUNTIF(INDIRECT(Z194):$S194,"NIVEL 2"),INDIRECT(AA194):W194,0)+(MATCH(COUNTIF($R$2:$R194,"NIVEL 1"),V:V,0)-1)),COLUMN(T194)) -> $T$194 | BC194: =PROCURA_PRECO_SERVICO -> 0
V195: =COUNTIF($R$2:$R195,"NIVEL 1") -> 4 | W195: 2 | X195: 0 | Y195: 0 | Z195: =ADDRESS(MATCH(COUNTIF($R$2:$R195,"NIVEL 1"),V:V,0),COLUMN(S195)) -> $S$111 | AA195: =ADDRESS(MATCH(COUNTIF($R$2:$R195,"NIVEL 1"),V:V,0),COLUMN(W195)) -> $W$111 | AB195: =ADDRESS((MATCH(COUNTIF(INDIRECT(Z195):$S195,"NIVEL 2"),INDIRECT(AA195):W195,0)+(MATCH(COUNTIF($R$2:$R195,"NIVEL 1"),V:V,0)-1)),COLUMN(T195)) -> $T$194 | BC195: =PROCURA_PRECO_SERVICO -> 0
A196: =V196&"."&W196&"."&X196 -> 4.2.1 | D196: BOTA FORA | N196: SUBSUBITEM_INICIO | R196: NIVEL 3 | S196: NIVEL 3 | T196: NIVEL 3 | V196: =COUNTIF($R$2:$R196,"NIVEL 1") -> 4 | W196: 2 | X196: 1 | Y196: 0 | Z196: =ADDRESS(MATCH(COUNTIF($R$2:$R196,"NIVEL 1"),V:V,0),COLUMN(S196)) -> $S$111 | AA196: =ADDRESS(MATCH(COUNTIF($R$2:$R196,"NIVEL 1"),V:V,0),COLUMN(W196)) -> $W$111 | AB196: =ADDRESS((MATCH(COUNTIF(INDIRECT(Z196):$S196,"NIVEL 2"),INDIRECT(AA196):W196,0)+(MATCH(COUNTIF($R$2:$R196,"NIVEL 1"),V:V,0)-1)),COLUMN(T196)) -> $T$194 | BC196: =PROCURA_PRECO_SERVICO -> 0
V197: =COUNTIF($R$2:$R197,"NIVEL 1") -> 4 | W197: 2 | X197: 1 | Y197: 0 | Z197: =ADDRESS(MATCH(COUNTIF($R$2:$R197,"NIVEL 1"),V:V,0),COLUMN(S197)) -> $S$111 | AA197: =ADDRESS(MATCH(COUNTIF($R$2:$R197,"NIVEL 1"),V:V,0),COLUMN(W197)) -> $W$111 | AB197: =ADDRESS((MATCH(COUNTIF(INDIRECT(Z197):$S197,"NIVEL 2"),INDIRECT(AA197):W197,0)+(MATCH(COUNTIF($R$2:$R197,"NIVEL 1"),V:V,0)-1)),COLUMN(T197)) -> $T$194 | BC197: =PROCURA_PRECO_SERVICO -> 0
A198: =V198&"."&W198&"."&X198&"."&Y198 -> 4.2.1.1 | B198: SINAPI | C198: 100982 | D198: =PROCURA_DESCRICAO_SERVICO -> CARGA, MANOBRA E DESCARGA DE ENTULHO EM CAMINHÃO BASCULANTE 10 M³ - CARGA COM ESCAVADEIRA HIDRÁULICA (CAÇAMBA DE 0,80 M³ / 111 HP) E DESCARGA LIVRE (UNIDADE: M3). AF_07/2020 | E198: =PROCURA_UNIDADE_SERVICO -> M3 | F198: 339.0645349 | G198: =PROCURA_PRECO_SERVICO -> 8,57 | H198: =CUSTO_BDI_SERVICO -> 10.81 | I198: =CUSTO_TOTAL_SERVICO -> 3665.28 | N198: SERVIÇO | R198: NIVEL 4 | S198: NIVEL 4 | T198: NIVEL 4 | U198: NIVEL 4 | V198: =COUNTIF($R$2:$R198,"NIVEL 1") -> 4 | W198: 2 | X198: 1 | Y198: =IF(U198="NIVEL 4",OFFSET(Y198,-1,0)+1,0) -> 1 | Z198: =ADDRESS(MATCH(COUNTIF($R$2:$R198,"NIVEL 1"),V:V,0),COLUMN(S198)) -> $S$111 | AA198: =ADDRESS(MATCH(COUNTIF($R$2:$R198,"NIVEL 1"),V:V,0),COLUMN(W198)) -> $W$111 | AB198: =ADDRESS((MATCH(COUNTIF(INDIRECT(Z198):$S198,"NIVEL 2"),INDIRECT(AA198):W198,0)+(MATCH(COUNTIF($R$2:$R198,"NIVEL 1"),V:V,0)-1)),COLUMN(T198)) -> $T$194 | BC198: =PROCURA_PRECO_SERVICO -> 8,57
A199: =V199&"."&W199&"."&X199&"."&Y199 -> 4.2.1.2 | B199: SINAPI | C199: 95875 | D199: =PROCURA_DESCRICAO_SERVICO -> TRANSPORTE COM CAMINHÃO BASCULANTE DE 10 M³, EM VIA URBANA PAVIMENTADA, DMT ATÉ 30 KM (UNIDADE: M3XKM). AF_07/2020 | E199: =PROCURA_UNIDADE_SERVICO -> M3XKM | F199: =339.06*15 -> 5085.9 | G199: =PROCURA_PRECO_SERVICO -> 2,31 | H199: =CUSTO_BDI_SERVICO -> 2.91 | I199: =CUSTO_TOTAL_SERVICO -> 14799.96 | N199: SERVIÇO | R199: NIVEL 4 | S199: NIVEL 4 | T199: NIVEL 4 | U199: NIVEL 4 | V199: =COUNTIF($R$2:$R199,"NIVEL 1") -> 4 | W199: 2 | X199: 1 | Y199: 2 | Z199: =ADDRESS(MATCH(COUNTIF($R$2:$R199,"NIVEL 1"),V:V,0),COLUMN(S199)) -> $S$111 | AA199: =ADDRESS(MATCH(COUNTIF($R$2:$R199,"NIVEL 1"),V:V,0),COLUMN(W199)) -> $W$111 | AB199: =ADDRESS((MATCH(COUNTIF(INDIRECT(Z199):$S199,"NIVEL 2"),INDIRECT(AA199):W199,0)+(MATCH(COUNTIF($R$2:$R199,"NIVEL 1"),V:V,0)-1)),COLUMN(T199)) -> $T$194 | BC199: =PROCURA_PRECO_SERVICO -> 2,31
A200: =V200&"."&W200&"."&X200&"."&Y200 -> 4.2.1.3 | B200: SINAPI | C200: 100574 | D200: =PROCURA_DESCRICAO_SERVICO -> ESPALHAMENTO DE MATERIAL COM TRATOR DE ESTEIRAS. AF_11/2019 | E200: =PROCURA_UNIDADE_SERVICO -> M3 | F200: 339.0645349 | G200: =PROCURA_PRECO_SERVICO -> 1,36 | H200: =CUSTO_BDI_SERVICO -> 1.71 | I200: =CUSTO_TOTAL_SERVICO -> 579.8 | N200: SERVIÇO | R200: NIVEL 4 | S200: NIVEL 4 | T200: NIVEL 4 | U200: NIVEL 4 | V200: =COUNTIF($R$2:$R200,"NIVEL 1") -> 4 | W200: =IFERROR(COUNTIF(INDIRECT(Z200):S200,"NIVEL 2"),0) -> 2 | X200: =COUNTIF(INDIRECT(AB200):T200,"NIVEL 3") -> 1 | Y200: 3 | Z200: =ADDRESS(MATCH(COUNTIF($R$2:$R200,"NIVEL 1"),V:V,0),COLUMN(S200)) -> $S$111 | AA200: =ADDRESS(MATCH(COUNTIF($R$2:$R200,"NIVEL 1"),V:V,0),COLUMN(W200)) -> $W$111 | AB200: =ADDRESS((MATCH(COUNTIF(INDIRECT(Z200):$S200,"NIVEL 2"),INDIRECT(AA200):W200,0)+(MATCH(COUNTIF($R$2:$R200,"NIVEL 1"),V:V,0)-1)),COLUMN(T200)) -> $T$194 | BC200: =PROCURA_PRECO_SERVICO -> 1,36
V201: =COUNTIF($R$2:$R201,"NIVEL 1") -> 4 | W201: 2 | X201: 1 | Y201: 0 | Z201: =ADDRESS(MATCH(COUNTIF($R$2:$R201,"NIVEL 1"),V:V,0),COLUMN(S201)) -> $S$111 | AA201: =ADDRESS(MATCH(COUNTIF($R$2:$R201,"NIVEL 1"),V:V,0),COLUMN(W201)) -> $W$111 | AB201: =ADDRESS((MATCH(COUNTIF(INDIRECT(Z201):$S201,"NIVEL 2"),INDIRECT(AA201):W201,0)+(MATCH(COUNTIF($R$2:$R201,"NIVEL 1"),V:V,0)-1)),COLUMN(T201)) -> $T$194 | BC201: =PROCURA_PRECO_SERVICO -> 0
... 1185 more rows

Sheet Curva ABC
A1: PLANILHA DE CURVA ABC
A2: =Resumo!$A$2 -> CONTRATANTE: | B2: =Resumo!B2 -> PREFEITURA MUNICIPAL DE JOÃO MONLEVADE-MG | I2: =Resumo!$D$2 -> 0.2624
A3: =Resumo!$A$3 -> CONTRATADA: | B3: =Resumo!B3 -> CONSÓRCIO PITÁGORAS | I3: =Resumo!$D$3 -> REV_00
A4: =Resumo!$A$4 -> PROJETO: | B4: =Resumo!B4 -> CRAS III BEM VIVER | I4: =Resumo!$D$4 -> 2023-04-20
A5: BASE | B5: CÓDIGO | C5: RESUMO DOS SERVIÇOS | D5: UNID. | E5: QUANT. | F5: CUSTO UNITÁRIO | G5: CUSTO TOTAL | H5: CUSTO TOTAL | I5: PORCENTAGEM ACUMULADA | J5: CURVA ABC
A7: COMPOSIÇÃO | B7: JMV-CRAS-153 | C7: TELHAMENTO COM TELHA SANDUICHE ISOTERMICA COLONIAL, COM MAIS DE 2 ÁGUAS, INCLUSO TRANSPORTE VERTICAL. AF_07/2019 - BASEADA DA SINAPI (94204) | D7: M² | E7: 765.65 | F7: 327.87 | G7: =TRUNC(F7*E7,2) -> 251033.66 | H7: =G7/$G$404 -> 0.1287409072 | I7: =H7+(OFFSET(I7,-1,0)) -> 0.1287409072 | J7: =IF(I7<=0.7,"A",IF(I7>0.9,"C","B")) -> A
A8: SETOP | B8: ED-50939 | C8: GUARDA-CORPO EM AÇO GALVANIZADO DIN 2440, D = 2", COM SUBDIVISÕES EM TUBO DE AÇO D = 1/2", H = 1,05 M - COM CORRIMÃO DUPLO DE TUBO DE AÇO GALVANIZADO DE D = 1 1/2" | D8: M | E8: 108.72 | F8: 866.13 | G8: 94165.65 | H8: 0.04829221392 | I8: 0.1770331211 | J8: A
A9: SINAPI | B9: 93572 | C9: ENCARREGADO GERAL DE OBRAS COM ENCARGOS COMPLEMENTARES | D9: MES | E9: 6 | F9: 11164.07 | G9: 66984.42 | H9: 0.03435250476 | I9: 0.2113856259 | J9: A
A10: SINAPI | B10: 90777 | C10: ENGENHEIRO CIVIL DE OBRA JUNIOR COM ENCARGOS COMPLEMENTARES | D10: H | E10: 432 | F10: 142.13 | G10: 61400.16 | H10: 0.03148865495 | I10: 0.2428742808 | J10: A
A11: SINAPI | B11: 87263 | C11: REVESTIMENTO CERÂMICO PARA PISO COM PLACAS TIPO PORCELANATO DE DIMENSÕES 60X60 CM APLICADA EM AMBIENTES DE ÁREA MAIOR QUE 10 M². AF_02/2023_PE | D11: M2 | E11: 303.3 | F11: 191.24 | G11: 58003.09 | H11: 0.02974649068 | I11: 0.2726207715 | J11: A
A12: SETOP | B12: ED-9320 | C12: PISO EM CONCRETO, USINADO CONVENCIONAL, FCK 15MPA, COM TELA SOLDADA NERVURADA TIPO Q-138, ACABAMENTO POLÍDO EM NÍVEL ZERO, ESP. 10CM, INCLUSIVE FORNECIMENTO, LANÇAMENTO, ADENSAMENTO, EXCLUSIVE JUNTA DE DILATAÇÃO | D12: M2 | E12: 275.3 | F12: 195.98 | G12: 53953.29 | H12: 0.02766957826 | I12: 0.3002903498 | J12: A
A13: SETOP | B13: ED-20603 | C13: FORNECIMENTO DE ESTRUTURA METÁLICA E ENGRADAMENTO METÁLICO, EM AÇO, PARA TELHADO, EXCLUSIVE TELHA, INCLUSIVE FABRICAÇÃO, TRANSPORTE, MONTAGEM E APLICAÇÃO DE FUNDO PREPARADOR ANTICORROSIVO EM SUPERFÍCIE METÁLICA, UMA (1) DEMÃO | D13: KG | E13: 1590.5 | F13: 28.82 | G13: 45838.21 | H13: 0.02350781461 | I13: 0.3237981644 | J13: A
A14: SETOP | B14: ED-9081 | C14: REVESTIMENTO COM CERÂMICA APLICADO EM PAREDE, ACABAMENTO ESMALTADO, AMBIENTE INTERNO/EXTERNO, PADRÃO EXTRA, DIMENSÃO DA PEÇA ATÉ 2025 CM2, PEI III, ASSENTAMENTO COM ARGAMASSA INDUSTRIALIZADA, INCLUSIVE REJUNTAMENTO | D14: M2 | E14: 471.4483 | F14: 87.1 | G14: 41063.14 | H14: 0.0210589524 | I14: 0.3448571168 | J14: A
A15: SINAPI | B15: 88489 | C15: APLICAÇÃO MANUAL DE PINTURA COM TINTA LÁTEX ACRÍLICA EM PAREDES, DUAS DEMÃOS. AF_06/2014 | D15: M2 | E15: 1881.03 | F15: 18.15 | G15: 34140.69 | H15: 0.01750882094 | I15: 0.3623659377 | J15: A
A16: SETOP | B16: ED-50473 | C16: EMASSAMENTO EM PAREDE COM MASSA ACRÍLICA, UMA (1) DEMÃO, INCLUSIVE LIXAMENTO PARA PINTURA | D16: M2 | E16: 1881.03 | F16: 16.15 | G16: 30378.63 | H16: 0.01557947403 | I16: 0.3779454117 | J16: A
A17: COMPOSIÇÃO | B17: JMV-CRAS-070 | C17: ILUMINACAO-POSTE ACO RETO ENGASTADO H=6,0M - BASEADA EM SBC (172860) | D17: UN | E17: 17 | F17: 1786.68 | G17: 30373.56 | H17: 0.01557687391 | I17: 0.3935222857 | J17: A
A18: COMPOSIÇÃO | B18: JMV-CRAS-050 | C18: PORTA EM ALUMÍNIO LAMBRIL, COR BRANCA OU BRONZE, DE ABRIR OU CORRER, COMPLETA, INCLUSIVE CAIXILHOS, DOBRADIÇAS OU ROLDANAS E FECHADURA - BASEADA DA ORSE (13049) | D18: M² | E18: 38.64 | F18: 762.93 | G18: 29479.61 | H18: 0.01511841773 | I18: 0.4086407034 | J18: A
A19: SETOP | B19: ED-50567 | C19: CONTRAPISO DESEMPENADO COM ARGAMASSA, TRAÇO 1:3 (CIMENTO E AREIA), ESP. 25MM | D19: M2 | E19: 633.71 | F19: 46.41 | G19: 29410.48 | H19: 0.01508296488 | I19: 0.4237236683 | J19: A
A20: SETOP | B20: ED-49638 | C20: FORNECIMENTO DE CONCRETO ESTRUTURAL, USINADO BOMBEADO, COM FCK 25 MPA, INCLUSIVE LANÇAMENTO, ADENSAMENTO E ACABAMENTO | D20: M3 | E20: 33.23 | F20: 878.79 | G20: 29202.19 | H20: 0.01497614476 | I20: 0.438699813 | J20: A
A21: SETOP | B21: ED-50390 | C21: MOBILIZAÇÃO E DESMOBILIZAÇÃO OBRA DISTANTE DE CENTRO URBANO COM ENTRE 1.000.000,01 E 3.000.000,00 | D21: % | E21: 0.015 | F21: 1921097.26 | G21: 28816.45 | H21: 0.01477832063 | I21: 0.4534781337 | J21: A
A22: SETOP | B22: ED-50168 | C22: IMPERMEABILIZAÇÃO COM MANTA ASFÁLTICA PRÉ-FABRICADA, E = 4 MM | D22: M2 | E22: 365.68 | F22: 78.58 | G22: 28735.13 | H22: 0.01473661622 | I22: 0.4682147499 | J22: A
A23: SINAPI | B23: 97633 | C23: DEMOLIÇÃO DE REVESTIMENTO CERÂMICO, DE FORMA MANUAL, SEM REAPROVEITAMENTO. AF_12/2017 | D23: M2 | E23: 1039.2234 | F23: 27.31 | G23: 28381.19 | H23: 0.01455510049 | I23: 0.4827698504 | J23: A
A24: SETOP | B24: ED-49318 | C24: ELETRODUTO DE AÇO GALVANIZADO LEVE, INCLUSIVE CONEXÕES, SUPORTES E FIXAÇÃO DN 25 (1") | D24: M | E24: 713 | F24: 34.43 | G24: 24548.59 | H24: 0.01258957762 | I24: 0.495359428 | J24: A
A25: SINAPI | B25: 101563 | C25: CABO DE COBRE FLEXÍVEL ISOLADO, 35 MM², 0,6/1,0 KV, PARA REDE AÉREA DE DISTRIBUIÇÃO DE ENERGIA ELÉTRICA DE BAIXA TENSÃO - FORNECIMENTO E INSTALAÇÃO. AF_07/2020 | D25: M | E25: 559 | F25: 42.45 | G25: 23729.55 | H25: 0.01216953852 | I25: 0.5075289665 | J25: A
A26: COMPOSIÇÃO | B26: JMV-CRAS-023 | C26: RODAPÉ EM GRANITO BRANCO SIENA, H=7CM, E=2CM, APLICADO COM ARGAMASSA INDUSTRIALIZADA AC-I - BASEADA DA ORSE (7652) | D26: M | E26: 305.42 | F26: 73.91 | G26: 22573.59 | H26: 0.01157671228 | I26: 0.5191056788 | J26: A
A27: SINAPI | B27: 89677 | C27: LUVA SIMPLES, PVC, SERIE R, ÁGUA PLUVIAL, DN 150 MM, JUNTA ELÁSTICA, FORNECIDO E INSTALADO EM CONDUTORES VERTICAIS DE ÁGUAS PLUVIAIS. AF_06/2022 | D27: UN | E27: 216 | F27: 101.9 | G27: 22010.4 | H27: 0.01128788412 | I27: 0.5303935629 | J27: A
A28: SETOP | B28: ED-51099 | C28: COMPACTAÇÃO DE VALAS OU ÁREAS, MANUALMENTE A 95% DO PN, COM PLACA VIBRATÓRIA | D28: M3 | E28: 301.68 | F28: 64.19 | G28: 19364.83 | H28: 0.009931121516 | I28: 0.5403246844 | J28: A
A29: SINAPI | B29: 103326 | C29: ALVENARIA DE VEDAÇÃO DE BLOCOS CERÂMICOS FURADOS NA VERTICAL DE 19X19X39 CM (ESPESSURA 19 CM) E ARGAMASSA DE ASSENTAMENTO COM PREPARO EM BETONEIRA. AF_12/2021 | D29: M2 | E29: 167.48 | F29: 115.43 | G29: 19332.21 | H29: 0.009914392571 | I29: 0.550239077 | J29: A
A30: SETOP | B30: ED-50663 | C30: CALHA EM CHAPA GALVANIZADA, ESP. 0,5MM (GSG-26), COM DESENVOLVIMENTO DE 50CM, INCLUSIVE IÇAMENTO MANUAL VERTICAL | D30: M | E30: 225 | F30: 84.82 | G30: 19084.5 | H30: 0.00978735618 | I30: 0.5600264332 | J30: A
A31: SINAPI | B31: 87251 | C31: REVESTIMENTO CERÂMICO PARA PISO COM PLACAS TIPO ESMALTADA EXTRA DE DIMENSÕES 45X45 CM APLICADA EM AMBIENTES DE ÁREA MAIOR QUE 10 M2. AF_02/2023_PE | D31: M2 | E31: 274.96 | F31: 65.64 | G31: 18048.37 | H31: 0.009255983948 | I31: 0.5692824171 | J31: A
A32: SETOP | B32: ED-50964 | C32: FORNECIMENTO E ASSENTAMENTO DE JANELA DE ALUMÍNIO, LINHA SUPREMA ACABAMENTO ANODIZADO, TIPO MAXIM-AR COM CONTRAMARCO, INCLUSIVE FORNECIMENTO DE VIDRO LISO DE 4MM, FERRAGENS E ACESSÓRIOS | D32: M2 | E32: 18.64 | F32: 950.09 | G32: 17709.67 | H32: 0.009082283954 | I32: 0.5783647011 | J32: A
A33: SINAPI | B33: 91926 | C33: CABO DE COBRE FLEXÍVEL ISOLADO, 2,5 MM², ANTI-CHAMA 450/750 V, PARA CIRCUITOS TERMINAIS - FORNECIMENTO E INSTALAÇÃO. AF_12/2015 | D33: M | E33: 3447 | F33: 5.12 | G33: 17648.64 | H33: 0.009050985133 | I33: 0.5874156862 | J33: A
A34: SINAPI | B34: 95875 | C34: TRANSPORTE COM CAMINHÃO BASCULANTE DE 10 M³, EM VIA URBANA PAVIMENTADA, DMT ATÉ 30 KM (UNIDADE: M3XKM). AF_07/2020 | D34: M3XKM | E34: 6047.457583 | F34: 2.91 | G34: 17598.1 | H34: 0.009025066037 | I34: 0.5964407522 | J34: A
A35: SETOP | B35: ED-48671 | C35: FORNECIMENTO E ASSENTAMENTO DE TUBO PVC RÍGIDO, DRENAGEM/PLUVIAL, PBV - SÉRIE NORMAL, DN 200 MM (8"), INCLUSIVE CONEXÕES | D35: M | E35: 84 | F35: 202.22 | G35: 16986.48 | H35: 0.008711400875 | I35: 0.6051521531 | J35: A
A36: SETOP | B36: ED-48514 | C36: REMOÇÃO MANUAL DE TELHA CERÂMICA, COM REAPROVEITAMENTO, INCLUSIVE AFASTAMENTO E EMPILHAMENTO, EXCLUSIVE TRANSPORTE E RETIRADA DO MATERIAL REMOVIDO NÃO REAPROVEITÁVEL | D36: M2 | E36: 599.4 | F36: 27.65 | G36: 16573.41 | H36: 0.008499560732 | I36: 0.6136517138 | J36: A
A37: SETOP | B37: ED-48298 | C37: CORTE, DOBRA E MONTAGEM DE AÇO CA-50/60 | D37: KG | E37: 913.25 | F37: 16.94 | G37: 15470.45 | H37: 0.007933915188 | I37: 0.621585629 | J37: A
A38: SINAPI | B38: 101657 | C38: LUMINÁRIA DE LED PARA ILUMINAÇÃO PÚBLICA, DE 98 W ATÉ 137 W - FORNECIMENTO E INSTALAÇÃO. AF_08/2020 | D38: UN | E38: 17 | F38: 886.67 | G38: 15073.39 | H38: 0.007730285665 | I38: 0.6293159147 | J38: A
A39: SINAPI | B39: 102362 | C39: ALAMBRADO PARA QUADRA POLIESPORTIVA, ESTRUTURADO POR TUBOS DE ACO GALVANIZADO, (MONTANTES COM DIAMETRO 2", TRAVESSAS E ESCORAS COM DIÂMETRO 1 ¼), COM TELA DE ARAME GALVANIZADO, FIO 14 BWG E MALHA QUADRADA 5X5CM (EXCETO MURETA). AF_03/2021 | D39: M2 | E39: 61.008 | F39: 221.33 | G39: 13502.9 | H39: 0.006924870537 | I39: 0.6362407852 | J39: A
A40: SINAPI | B40: 92988 | C40: CABO DE COBRE FLEXÍVEL ISOLADO, 50 MM², ANTI-CHAMA 0,6/1,0 KV, PARA REDE ENTERRADA DE DISTRIBUIÇÃO DE ENERGIA ELÉTRICA - FORNECIMENTO E INSTALAÇÃO. AF_12/2021 | D40: M | E40: 185 | F40: 66.4 | G40: 12284 | H40: 0.006299765952 | I40: 0.6425405512 | J40: A
A41: SETOP | B41: ED-48533 | C41: DIVISÓRIA EM GRANITO CINZA ANDORINHA E = 3 CM, INCLUSIVE FERRAGENS EM LATÃO CROMADO | D41: M2 | E41: 15.555 | F41: 788.14 | G41: 12259.51 | H41: 0.006287206422 | I41: 0.6488277576 | J41: A
A42: COMPOSIÇÃO | B42: JMV-CRAS-042 | C42: PERFILADO METALICO 38X38MM PERFURADO-VARA 6,0M - BASEADA EM SBC (060504) | D42: UN | E42: 64 | F42: 188.52 | G42: 12065.28 | H42: 0.006187596886 | I42: 0.6550153545 | J42: A
A43: SETOP | B43: ED-48479 | C43: DEMOLIÇÃO MANUAL DE PISO CIMENTADO OU CONTRAPISO DE ARGAMASSA, COM ESPESSURA MÁXIMA DE 10CM, INCLUSIVE AFASTAMENTO E EMPILHAMENTO, EXCLUSIVE TRANSPORTE E RETIRADA DO MATERIAL DEMOLIDO | D43: M2 | E43: 587.9 | F43: 20.21 | G43: 11881.45 | H43: 0.006093320919 | I43: 0.6611086754 | J43: A
A44: SETOP | B44: ED-49805 | C44: FORNECIMENTO DE CONCRETO ESTRUTURAL, USINADO BOMBEADO, COM FCK 25 MPA, INCLUSIVE LANÇAMENTO, ADENSAMENTO E ACABAMENTO (FUNDAÇÃO) | D44: M3 | E44: 12.806 | F44: 862.61 | G44: 11046.58 | H44: 0.005665163511 | I44: 0.6667738389 | J44: A
A45: SETOP | B45: ED-50479 | C45: EMASSAMENTO EM TETO COM MASSA CORRIDA (PVA), UMA (1) DEMÃO, INCLUSIVE LIXAMENTO PARA PINTURA | D45: M2 | E45: 437.95 | F45: 24.6 | G45: 10773.57 | H45: 0.005525152187 | I45: 0.6722989911 | J45: A
A46: SICRO | B46: 4011278 | C46: BASE OU SUB-BASE DE BRITA GRADUADA TRATADA COM CIMENTO | D46: M³ | E46: 30.168 | F46: 349.83 | G46: 10553.67 | H46: 0.005412377966 | I46: 0.6777113691 | J46: A
A47: SINAPI | B47: 91341 | C47: PORTA EM ALUMÍNIO DE ABRIR TIPO VENEZIANA COM GUARNIÇÃO, FIXAÇÃO COM PARAFUSOS - FORNECIMENTO E INSTALAÇÃO. AF_12/2019 | D47: M2 | E47: 13.44 | F47: 773.92 | G47: 10401.48 | H47: 0.005334328359 | I47: 0.6830456974 | J47: A
A48: SETOP | B48: ED-49687 | C48: FORRO EM CHAPA DE GESSO ACARTONADO, ESP. 12,5MM, COM FIXAÇÃO DO TIPO ARAMADO, EXCLUSIVE PERFIL TABICA, SANCA E MOLDURA, INCLUSIVE ACESSÓRIOS E FIXAÇÃO | D48: M2 | E48: 144.16 | F48: 70.41 | G48: 10150.3 | H48: 0.005205512402 | I48: 0.6882512098 | J48: A
A49: COMPOSIÇÃO | B49: JMV-CRAS-090 | C49: ACABAMENTO CAMURÇADO PARA PISO DE CONCRETO ARMADO OU LAJE SOBRE SOLO DE ALTA RESISTÊNCIA. AF_09/2021 - BASEADO EM SINAPI (97097) | D49: M² | E49: 240.2 | F49: 41.92 | G49: 10069.18 | H49: 0.005163910561 | I49: 0.6934151204 | J49: A
A50: SINAPI | B50: 100674 | C50: JANELA FIXA DE ALUMÍNIO PARA VIDRO, COM VIDRO, BATENTE E FERRAGENS. EXCLUSIVE ACABAMENTO, ALIZAR E CONTRAMARCO. FORNECIMENTO E INSTALAÇÃO. AF_12/2019 | D50: M2 | E50: 13.8 | F50: 698.43 | G50: 9638.33 | H50: 0.004942952065 | I50: 0.6983580725 | J50: A
A51: SETOP | B51: ED-50955 | C51: FORNECIMENTO E ASSENTAMENTO DE JANELA DE CORRER EM FERRO | D51: M2 | E51: 14 | F51: 676.3 | G51: 9468.2 | H51: 0.004855702051 | I51: 0.7032137745 | J51: B
A52: SETOP | B52: ED-48402 | C52: COLOCAÇÃO DE CUMEEIRA GALVANIZADA TRAPEZOIDAL E = 0,50 MM, SIMPLES | D52: M | E52: 131.56 | F52: 68.95 | G52: 9071.06 | H52: 0.004652031499 | I52: 0.707865806 | J52: B
A53: SINAPI | B53: 93358 | C53: ESCAVAÇÃO MANUAL DE VALA COM PROFUNDIDADE MENOR OU IGUAL A 1,30 M. AF_02/2021 | D53: M3 | E53: 89.1 | F53: 98.68 | G53: 8792.38 | H53: 0.004509112355 | I53: 0.7123749184 | J53: B
A54: SETOP | B54: ED-50452 | C54: PINTURA ACRÍLICA EM TETO, DUAS (2) DEMÃOS, EXCLUSIVE SELADOR ACRÍLICO E MASSA ACRÍLICA/CORRIDA (PVA) | D54: M2 | E54: 437.95 | F54: 19.74 | G54: 8645.13 | H54: 0.004433596192 | I54: 0.7168085146 | J54: B
A55: SINAPI | B55: 101857 | C55: REASSENTAMENTO DE BLOCOS SEXTAVADO PARA PISO INTERTRAVADO, ESPESSURA DE 6 CM, EM CALÇADA, COM REAPROVEITAMENTO DOS BLOCOS SEXTAVADOS - INCLUSO RETIRADA E COLOCAÇÃO DO MATERIAL. AF_12/2020 | D55: M2 | E55: 234.4 | F55: 36.04 | G55: 8447.77 | H55: 0.004332381457 | I55: 0.721140896 | J55: B
A56: SINAPI | B56: 89669 | C56: LUVA SIMPLES, PVC, SERIE R, ÁGUA PLUVIAL, DN 100 MM, JUNTA ELÁSTICA, FORNECIDO E INSTALADO EM CONDUTORES VERTICAIS DE ÁGUAS PLUVIAIS. AF_06/2022 | D56: UN | E56: 196 | F56: 42.58 | G56: 8345.68 | H56: 0.004280025294 | I56: 0.7254209213 | J56: B
A57: SETOP | B57: ED-17989 | C57: LOCAÇÃO DE OBRA COM GABARITO DE TÁBUAS CORRIDAS PONTALETADAS A CADA 2,00M, REAPROVEITAMENTO (2X), INCLUSIVE ACOMPANHAMENTO DE EQUIPE TOPOGRÁFICA PARA MARCAÇÃO DE PONTO TOPOGRÁFICO | D57: M | E57: 109.32 | F57: 74.29 | G57: 8121.38 | H57: 0.004164994563 | I57: 0.7295859159 | J57: B
A58: COMPOSIÇÃO | B58: JMV-CRAS-068 | C58: LUMINÁRIA DE SOBREPOR, 2 LAMPADAS LED T8 10W - BASEADA EM ORSE (12369) | D58: UN | E58: 42 | F58: 193.08 | G58: 8109.36 | H58: 0.004158830187 | I58: 0.7337447461 | J58: B
A59: COMPOSIÇÃO | B59: JMV-CRAS-065 | C59: ENTRADA DE ENERGIA AÉREA, TIPO C4, PADRÃO CEMIG, CARGA INSTALADA DE 30,6KVA ATÉ 38,1KVA, TRIFÁSICO, COM SAÍDA SUBTERRÂNEA, INCLUSIVE POSTE, CAIXA PARA MEDIDOR, DISJUNTOR, BARRAMENTO, ATERRAMENTO E ACESSÓRIOS - BASEADA EM SETOP (ED-20584) | D59: UN | E59: 1 | F59: 8019.5 | G59: 8019.5 | H59: 0.004112746097 | I59: 0.7378574922 | J59: B
A60: SETOP | B60: ED-49098 | C60: CONDULETE DE ALUMÍNIO, TIPO "X", DIÂMETRO DE SAÍDA 1" (25MM), EXCLUSIVE MÓDULO E PLACA, INCLUSIVE FIXAÇÃO | D60: UN | E60: 163 | F60: 49.18 | G60: 8016.34 | H60: 0.004111125512 | I60: 0.7419686177 | J60: B
A61: COMPOSIÇÃO | B61: JMV-CRAS-152 | C61: VIGA METÁLICA EM AÇO ESTRUTURAL, INCLUSO MÃO DE OBRA, TRANSPORTE E IÇAMENTO UTILIZANDO GUINDASTE - FORNECIMENTO E INSTALAÇÃO. AF_01/2020_PSA - BASEADA DA SINAPI (100763) | D61: KG | E61: 399.6 | F61: 19.16 | G61: 7656.33 | H61: 0.003926496829 | I61: 0.7458951145 | J61: B
A62: SETOP | B62: ED-9075 | C62: FORNECIMENTO DE ANDAIME METÁLICO PARA FACHADA (LOCAÇÃO), INCLUSIVE PISO METÁLICO E SAPATAS, EXCLUSIVE MONTAGEM E DESMONTAGEM | D62: M2XMÊS | E62: 909.54 | F62: 8.4 | G62: 7640.13 | H62: 0.003918188769 | I62: 0.7498133033 | J62: B
A63: SINAPI | B63: 88485 | C63: APLICAÇÃO DE FUNDO SELADOR ACRÍLICO EM PAREDES, UMA DEMÃO. AF_06/2014 | D63: M2 | E63: 1881.03 | F63: 3.96 | G63: 7448.87 | H63: 0.003820102378 | I63: 0.7536334057 | J63: B
A64: SETOP | B64: ED-50505 | C64: LIXAMENTO MANUAL EM PAREDE PARA REMOÇÃO DE TINTA | D64: M2 | E64: 2131.2997 | F64: 3.43 | G64: 7310.35 | H64: 0.003749063337 | I64: 0.757382469 | J64: B
A65: SINAPI | B65: 103334 | C65: ALVENARIA DE VEDAÇÃO DE BLOCOS CERÂMICOS FURADOS NA HORIZONTAL DE 14X9X19 CM (ESPESSURA 14 CM, BLOCO DEITADO) E ARGAMASSA DE ASSENTAMENTO COM PREPARO EM BETONEIRA. AF_12/2021 | D65: M2 | E65: 40.8 | F65: 178.99 | G65: 7302.79 | H65: 0.003745186242 | I65: 0.7611276552 | J65: B
A66: SINAPI | B66: 86888 | C66: VASO SANITÁRIO SIFONADO COM CAIXA ACOPLADA LOUÇA BRANCA - FORNECIMENTO E INSTALAÇÃO. AF_01/2020 | D66: UN | E66: 12 | F66: 608.32 | G66: 7299.84 | H66: 0.003743673355 | I66: 0.7648713286 | J66: B
A67: SINAPI | B67: 89714 | C67: TUBO PVC, SERIE NORMAL, ESGOTO PREDIAL, DN 100 MM, FORNECIDO E INSTALADO EM RAMAL DE DESCARGA OU RAMAL DE ESGOTO SANITÁRIO. AF_08/2022 | D67: M | E67: 142.7 | F67: 50.42 | G67: 7194.93 | H67: 0.003689870974 | I67: 0.7685611996 | J67: B
A68: SINAPI | B68: 93382 | C68: REATERRO MANUAL DE VALAS COM COMPACTAÇÃO MECANIZADA. AF_04/2016 | D68: M3 | E68: 176.051295 | F68: 40.68 | G68: 7161.76 | H68: 0.003672859965 | I68: 0.7722340595 | J68: B
A69: SETOP | B69: ED-48365 | C69: CABO UTP 4 PARES CATEGORIA 6 COM REVESTIMENTO EXTERNO NÃO PROPAGANTE A CHAMA | D69: M | E69: 623 | F69: 10.84 | G69: 6753.32 | H69: 0.003463394285 | I69: 0.7756974538 | J69: B
A70: SETOP | B70: ED-48217 | C70: ALVENARIA DE BLOCO DE CONCRETO CHEIO SEM ARMAÇÃO, EM CONCRETO COM FCK 15MPA , ESP. 19CM, PARA REVESTIMENTO, INCLUSIVE ARGAMASSA PARA ASSENTAMENTO (DETALHE D - CADERNO SEDS) | D70: M2 | E70: 29.41 | F70: 225.83 | G70: 6641.66 | H70: 0.003406130213 | I70: 0.779103584 | J70: B
A71: SETOP | B71: ED-8571 | C71: FORMA E DESFORMA DE COMPENSADO PLASTIFICADO, ESP. 12MM, REAPROVEITAMENTO (3X) (FUNDAÇÃO) | D71: M2 | E71: 71.36 | F71: 92.54 | G71: =TRUNC(F71*E71,2) -> 6603.65 | H71: =G71/$G$404 -> 0.003386637043 | I71: =H71+(OFFSET(I71,-1,0)) -> 0.7824902211 | J71: =IF(I71<=0.7,"A",IF(I71>0.9,"C","B")) -> B
A72: SINAPI | B72: 92986 | C72: CABO DE COBRE FLEXÍVEL ISOLADO, 35 MM², ANTI-CHAMA 0,6/1,0 KV, PARA REDE ENTERRADA DE DISTRIBUIÇÃO DE ENERGIA ELÉTRICA - FORNECIMENTO E INSTALAÇÃO. AF_12/2021 | D72: M | E72: 144 | F72: 45.76 | G72: 6589.44 | H72: 0.003379349541 | I72: 0.7858695706 | J72: B
A73: SINAPI | B73: 89580 | C73: TUBO PVC, SÉRIE R, ÁGUA PLUVIAL, DN 150 MM, FORNECIDO E INSTALADO EM CONDUTORES VERTICAIS DE ÁGUAS PLUVIAIS. AF_06/2022 | D73: M | E73: 66 | F73: 99.57 | G73: 6571.62 | H73: 0.003370210675 | I73: 0.7892397813 | J73: B
A74: COMPOSIÇÃO | B74: JMV-CRAS-066 | C74: RETIRADA ARMARIOS EMBUTIDOS - BASEADA DA SBC (022904) | D74: M² | E74: 63 | F74: 102.29 | G74: 6444.27 | H74: 0.003304900092 | I74: 0.7925446814 | J74: B
A75: SINAPI | B75: 96523 | C75: ESCAVAÇÃO MANUAL PARA BLOCO DE COROAMENTO OU SAPATA (INCLUINDO ESCAVAÇÃO PARA COLOCAÇÃO DE FÔRMAS). AF_06/2017 | D75: M3 | E75: 54.77 | F75: 117.34 | G75: 6426.71 | H75: 0.003295894566 | I75: 0.7958405759 | J75: B
A76: COMPOSIÇÃO | B76: JMV-CRAS-069 | C76: FORNECIMENTO E INSTALAÇÃO DE LUMINÁRIA DE SOBREPOR COM 2 LÂMPADAS LED T8 DE 20W.. REF.: LUMICENTER CAN03-E216 OU EQUIVALENTE. - BASEADA EM SINAPI 97587 | D76: UN | E76: 42 | F76: 152.29 | G76: 6396.18 | H76: 0.003280237462 | I76: 0.7991208134 | J76: B
A77: SETOP | B77: ED-50497 | C77: PINTURA ESMALTE EM ESTRUTURA METÁLICA, DUAS (2) DEMÃOS, INCLUSIVE UMA (1) DEMÃO FUNDO ANTICORROSIVO | D77: M2 | E77: 151.9 | F77: 41.7 | G77: 6334.23 | H77: 0.003248466826 | I77: 0.8023692802 | J77: B
A78: SETOP | B78: ED-50266 | C78: LIMPEZA FINAL PARA ENTREGA DA OBRA | D78: M2 | E78: 759.34 | F78: 8.18 | G78: 6211.4 | H78: 0.003185474295 | I78: 0.8055547545 | J78: B
A79: COMPOSIÇÃO | B79: JMV-CRAS-151 | C79: JANELA EM ALUMÍNIO, COR NATURAL, PRETA OU BRANCA, 2 FOLHAS TIPO VENEZIANA DE ABRIR , COMPLETA INCLUSIVE CAIXILHOS, 2 FOLHAS DE ALUMINIO COM VIDROS INCLUSIVE DOBRADIÇAS OU ROLDANAS E FECHADURA. R_11/2019 - BASEADO EM CAERN (1090050) | D79: M² | E79: 4.8 | F79: 1276.69 | G79: 6128.11 | H79: 0.003142759584 | I79: 0.8086975141 | J79: B
A80: SETOP | B80: ED-50951 | C80: FORNECIMENTO E ASSENTAMENTO DE GRADE FIXA DE FERRO, PARA PROTEÇÃO DE JANELAS | D80: M2 | E80: 14 | F80: 431.04 | G80: 6034.56 | H80: 0.003094783102 | I80: 0.8117922972 | J80: B
A81: SETOP | B81: ED-16354 | C81: LOCAÇÃO DE CONTAINER COM ISOLAMENTO TÉRMICO, TIPO 7, PARA VESTIÁRIO DE OBRA COM QUATRO (4) CHUVEIROS, TRÊS (3) VASOS SANITÁRIOS, UM (1) MICTÓRIO E UM (1) LAVATÓRIO, COM MEDIDAS REFERENCIAIS DE (6) METROS COMPRIMENTO, (2,3) METROS LARGURA E (2,5) METROS ALTURA ÚTIL INTERNA, INCLUSIVE LIGAÇÕES ELÉTRICAS E HIDROSSANITÁRIAS INTERNAS, EXCLUSIVE MOBILIZAÇÃO/DESMOBILIZAÇÃO E LIGAÇÕES PROVISÓRIAS EXTERNAS | D81: MÊS | E81: 6 | F81: 994.65 | G81: 5967.9 | H81: 0.003060596974 | I81: 0.8148528942 | J81: B
A82: SETOP | B82: ED-16348 | C82: LOCAÇÃO DE CONTAINER COM ISOLAMENTO TÉRMICO, TIPO 1, PARA ESCRITÓRIO DE OBRA, COM MEDIDAS REFERENCIAIS DE (6) METROS COMPRIMENTO, (2,3) METROS LARGURA E (2,5) METROS ALTURA ÚTIL INTERNA, INCLUSIVE AR CONDICIONADO E LIGAÇÕES ELÉTRICAS INTERNAS, EXCLUSIVE MOBILIZAÇÃO/DESMOBILIZAÇÃO E LIGAÇÕES PROVISÓRIAS EXTERNAS | D82: MÊS | E82: 6 | F82: 990.47 | G82: 5942.82 | H82: 0.003047734866 | I82: 0.817900629 | J82: B
A83: SINAPI | B83: 92419 | C83: MONTAGEM E DESMONTAGEM DE FÔRMA DE PILARES RETANGULARES E ESTRUTURAS SIMILARES, PÉ-DIREITO SIMPLES, EM CHAPA DE MADEIRA COMPENSADA RESINADA, 4 UTILIZAÇÕES. AF_09/2020 | D83: M2 | E83: 55.97 | F83: 106.16 | G83: 5941.77 | H83: 0.003047196381 | I83: 0.8209478254 | J83: B
A84: SINAPI | B84: 95802 | C84: CONDULETE DE ALUMÍNIO, TIPO X, PARA ELETRODUTO DE AÇO GALVANIZADO DN 25 MM (1''), APARENTE - FORNECIMENTO E INSTALAÇÃO. AF_10/2022 | D84: UN | E84: 95 | F84: 61.83 | G84: 5873.85 | H84: 0.00301236407 | I84: 0.8239601895 | J84: B
A85: COMPOSIÇÃO | B85: JMV-CRAS-054 | C85: PORTAO DE 2 FOLHAS DE TUBO E TELA GALVANIZADOS COM PORTA CADEADO - BASEADA DA FDE (06.80.025) | D85: M² | E85: 6 | F85: 910.69 | G85: 5464.14 | H85: 0.00280224708 | I85: 0.8267624366 | J85: B
A86: COMPOSIÇÃO | B86: JMV-CRAS-056 | C86: FECHAMENTO EM VIDRO TEMPERADO INCOLOR 10MM FIXO - BASEADA DA SBC (090412) | D86: M² | E86: 6.463 | F86: 838.41 | G86: 5418.64 | H86: 0.002778912714 | I86: 0.8295413493 | J86: B
A87: COMPOSIÇÃO | B87: JMV-CRAS-051 | C87: PORTA EM ALUMÍNIO LAMBRIL PNE, COR BRANCA OU BRONZE, DE ABRIR OU CORRER, COMPLETA, INCLUSIVE CAIXILHOS, DOBRADIÇAS OU ROLDANAS E FECHADURA - BASEADA DA ORSE (13049) | D87: M² | E87: 5.67 | F87: 934.44 | G87: 5298.27 | H87: 0.002717181777 | I87: 0.8322585311 | J87: B
A88: SINAPI | B88: 98302 | C88: PATCH PANEL 24 PORTAS, CATEGORIA 6 - FORNECIMENTO E INSTALAÇÃO. AF_11/2019 | D88: UN | E88: 4 | F88: 1312.51 | G88: 5250.04 | H88: 0.002692447349 | I88: 0.8349509784 | J88: B
A89: SETOP | B89: ED-16350 | C89: LOCAÇÃO DE CONTAINER COM ISOLAMENTO TÉRMICO, TIPO 3, PARA DEPÓSITO/FERRAMENTARIA DE OBRA, COM MEDIDAS REFERENCIAIS DE (6) METROS COMPRIMENTO, (2,3) METROS LARGURA E (2,5) METROS ALTURA ÚTIL INTERNA, INCLUSIVE LIGAÇÕES ELÉTRICAS INTERNAS, EXCLUSIVE MOBILIZAÇÃO/DESMOBILIZAÇÃO E LIGAÇÕES PROVISÓRIAS EXTERNAS | D89: MÊS | E89: 6 | F89: 853.87 | G89: 5123.22 | H89: 0.002627408574 | I89: 0.837578387 | J89: B
A90: SETOP | B90: ED-50761 | C90: REBOCO COM ARGAMASSA, TRAÇO 1:2:8 (CIMENTO, CAL E AREIA), ESP. 20MM, APLICAÇÃO MANUAL, PREPARO MECÂNICO | D90: M2 | E90: 125.46 | F90: 40.81 | G90: 5120.02 | H90: 0.002625767476 | I90: 0.8402041545 | J90: B
A91: SINAPI | B91: 97635 | C91: DEMOLIÇÃO DE PAVIMENTO INTERTRAVADO, DE FORMA MANUAL, COM REAPROVEITAMENTO. AF_12/2017 | D91: M2 | E91: 312.9 | F91: 16.13 | G91: 5047.07 | H91: 0.002588355564 | I91: 0.84279251 | J91: B
A92: SINAPI | B92: 91928 | C92: CABO DE COBRE FLEXÍVEL ISOLADO, 4 MM², ANTI-CHAMA 450/750 V, PARA CIRCUITOS TERMINAIS - FORNECIMENTO E INSTALAÇÃO. AF_12/2015 | D92: M | E92: 624 | F92: 7.86 | G92: 4904.64 | H92: 0.002515311306 | I92: 0.8453078213 | J92: B
A93: SETOP | B93: ED-4155 | C93: DUTO CORRUGADO EM PEAD (POLIETILENO DE ALTA DENSIDADE), PARA PROTEÇÃO DE CABOS SUBTERRÂNEOS DN 30 MM (1.1/4") | D93: M | E93: 162 | F93: 30.2 | G93: 4892.4 | H93: 0.002509034105 | I93: 0.8478168554 | J93: B
A94: SINAPI | B94: 89590 | C94: JOELHO 90 GRAUS, PVC, SERIE R, ÁGUA PLUVIAL, DN 150 MM, JUNTA ELÁSTICA, FORNECIDO E INSTALADO EM CONDUTORES VERTICAIS DE ÁGUAS PLUVIAIS. AF_06/2022 | D94: UN | E94: 27 | F94: 179.37 | G94: 4842.99 | H94: 0.002483694522 | I94: 0.85030055 | J94: B
A95: SINAPI | B95: 100758 | C95: PINTURA COM TINTA ALQUÍDICA DE ACABAMENTO (ESMALTE SINTÉTICO ACETINADO) APLICADA A ROLO OU PINCEL SOBRE SUPERFÍCIES METÁLICAS (EXCETO PERFIL) EXECUTADO EM OBRA (02 DEMÃOS). AF_01/2020 | D95: M2 | E95: 76.54 | F95: 62.82 | G95: 4808.24 | H95: 0.002465873221 | I95: 0.8527664232 | J95: B
A96: SINAPI | B96: 97088 | C96: ARMAÇÃO PARA EXECUÇÃO DE RADIER, PISO DE CONCRETO OU LAJE SOBRE SOLO, COM USO DE TELA Q-92. AF_09/2021 | D96: KG | E96: 188.18 | F96: 25.15 | G96: 4732.72 | H96: 0.002427143302 | I96: 0.8551935665 | J96: B
A97: COMPOSIÇÃO | B97: JMV-CRAS-047 | C97: QUADRO DE DISTRIBUICAO DE ENERGIA DE EMBUTIR, BARRAMENTO TRIFASICO DE 225A, CAPACIDADE PARA 56 MODULOS DIN DA CEMAR OU SIMILAR - FORNECIMENTO E INSTALACAO - BASEADA DA AGESUL (1201005018) | D97: UN | E97: 2 | F97: 2328.29 | G97: 4656.58 | H97: 0.00238809542 | I97: 0.8575816619 | J97: B
A98: SETOP | B98: ED-16351 | C98: LOCAÇÃO DE CONTAINER COM ISOLAMENTO TÉRMICO, TIPO 4, PARA REFEITÓRIO DE OBRA, COM MEDIDAS REFERENCIAIS DE (6) METROS COMPRIMENTO, (2,3) METROS LARGURA E (2,5) METROS ALTURA ÚTIL INTERNA, INCLUSIVE LIGAÇÕES ELÉTRICAS INTERNAS, EXCLUSIVE MOBILIZAÇÃO/DESMOBILIZAÇÃO E LIGAÇÕES PROVISÓRIAS EXTERNAS | D98: MÊS | E98: 6 | F98: 759.83 | G98: 4558.98 | H98: 0.002338041923 | I98: 0.8599197038 | J98: B
A99: SINAPI | B99: 104166 | C99: TUBO PVC, SÉRIE R, ÁGUA PLUVIAL, DN 150 MM, FORNECIDO E INSTALADO EM RAMAL DE ENCAMINHAMENTO. AF_06/2022 | D99: M | E99: 42 | F99: 106.82 | G99: 4486.44 | H99: 0.002300840277 | I99: 0.8622205441 | J99: B
A100: SINAPI | B100: 102617 | C100: CAIXA D´ÁGUA EM POLIÉSTER REFORÇADO COM FIBRA DE VIDRO, 5000 LITROS - FORNECIMENTO E INSTALAÇÃO. AF_06/2021 | D100: UN | E100: 1 | F100: 4146.94 | G100: 4146.94 | H100: 0.002126730008 | I100: 0.8643472741 | J100: B
A101: SINAPI | B101: 94231 | C101: RUFO EM CHAPA DE AÇO GALVANIZADO NÚMERO 24, CORTE DE 25 CM, INCLUSO TRANSPORTE VERTICAL. AF_07/2019 | D101: M | E101: 54.6 | F101: 74.82 | G101: 4085.17 | H101: 0.002095051683 | I101: 0.8664423258 | J101: B
A102: COMPOSIÇÃO | B102: JMV-CRAS-091 | C102: TANQUE DUPLO DE AÇO INOX AISI 304, MARCAS DE REFERÊNCIA FISHER (MOD TQI-D) METALPRESS OU MEKAL - BASEADA DA IOPES (170516) | D102: UND | E102: 1 | F102: 3942.7 | G102: 3942.7 | H102: 0.002021986911 | I102: 0.8684643127 | J102: B
A103: SETOP | B103: ED-50174 | C103: PINTURA COM EMULSÃO ASFÁLTICA, DUAS (2) DEMÃOS | D103: M2 | E103: 126.54 | F103: 29.9 | G103: 3783.54 | H103: 0.001940362787 | I103: 0.8704046755 | J103: B
A104: SINAPI | B104: 100982 | C104: CARGA, MANOBRA E DESCARGA DE ENTULHO EM CAMINHÃO BASCULANTE 10 M³ - CARGA COM ESCAVADEIRA HIDRÁULICA (CAÇAMBA DE 0,80 M³ / 111 HP) E DESCARGA LIVRE (UNIDADE: M3). AF_07/2020 | D104: M3 | E104: 339.0645349 | F104: 10.81 | G104: 3665.28 | H104: 0.001879713949 | I104: 0.8722843894 | J104: B
A105: SETOP | B105: ED-51107 | C105: ESCAVAÇÃO MANUAL DE VALA COM PROFUNDIDADE MENOR OU IGUAL A 1,5M | D105: M3 | E105: 47.225 | F105: 77.33 | G105: 3651.9 | H105: 0.001872852107 | I105: 0.8741572416 | J105: B
A106: SUDECAP | B106: 11.92.13 | C106: PROTECAO EXTERNA - CONTRA DESCARGA ATMOSFERICA - PRESILHA LATAO 16 MM2 FURO C/DIAMETRO DE 5MM | D106: UN | E106: 559 | F106: 6.21 | G106: 3471.39 | H106: 0.00178027878 | I106: 0.8759375203 | J106: B
A107: SETOP | B107: ED-50137 | C107: MOBILIZAÇÃO E DESMOBILIZAÇÃO DE CONTAINER, INCLUSIVE CARGA, DESCARGA E TRANSPORTE EM CAMINHÃO CARROCERIA COM GUINDAUTO (MUNCK), EXCLUSIVE LOCAÇÃO DO CONTAINER | D107: UN | E107: 4 | F107: 866.35 | G107: 3465.4 | H107: 0.001777206849 | I107: 0.8777147272 | J107: B
A108: COMPOSIÇÃO | B108: JMV-CRAS-031 | C108: FORNECIMENTO E INSTALAÇÃO DE BUCHA DE NYLON S6, SEM ABA - BASEADA EM ORSE (2490) | D108: UN | E108: 559 | F108: 6.14 | G108: 3432.26 | H108: 0.001760211225 | I108: 0.8794749384 | J108: B
A109: SINAPI | B109: 87250 | C109: REVESTIMENTO CERÂMICO PARA PISO COM PLACAS TIPO ESMALTADA EXTRA DE DIMENSÕES 45X45 CM APLICADA EM AMBIENTES DE ÁREA ENTRE 5 M2 E 10 M2. AF_02/2023_PE | D109: M2 | E109: 43.27 | F109: 76.57 | G109: 3313.18 | H109: 0.001699141856 | I109: 0.8811740803 | J109: B
A110: SETOP | B110: ED-49812 | C110: LASTRO DE CONCRETO MAGRO, INCLUSIVE TRANSPORTE, LANÇAMENTO E ADENSAMENTO | D110: M3 | E110: 5.05 | F110: 638.62 | G110: 3225.03 | H110: 0.001653934727 | I110: 0.882828015 | J110: B
A111: SETOP | B111: ED-50732 | C111: EMBOÇO COM ARGAMASSA, TRAÇO 1:6 (CIMENTO E AREIA), ESP. 20MM, APLICAÇÃO MANUAL, PREPARO MECÂNICO | D111: M2 | E111: 82.82 | F111: 38.6 | G111: 3196.85 | H111: 0.001639482806 | I111: 0.8844674978 | J111: B
A112: COMPOSIÇÃO | B112: JMV-CRAS-038 | C112: CAIXA DE PASSAGEM METALICA 20X20X10CM STAMPLAC - BASEADA EM SBC (068209) | D112: UN | E112: 23 | F112: 137.55 | G112: 3163.65 | H112: 0.001622456411 | I112: 0.8860899542 | J112: B
A113: COMPOSIÇÃO | B113: JMV-CRAS-156 | C113: FIXAÇÃO DE PARAFUSO 1/4" - 14X3.1/4" EM ESTRUTURA METÁLICA - BASEADA DA SICRO (4806395) | D113: UND | E113: 336 | F113: 9.26 | G113: 3111.36 | H113: 0.00159563984 | I113: 0.887685594 | J113: B
A114: SINAPI | B114: 93191 | C114: VERGA MOLDADA IN LOCO COM UTILIZAÇÃO DE BLOCOS CANALETA PARA JANELAS COM MAIS DE 1,5 M DE VÃO. AF_03/2016 | D114: M | E114: 48.42 | F114: 63.39 | G114: 3069.34 | H114: 0.001574090168 | I114: 0.8892596842 | J114: B
A115: SINAPI | B115: 97086 | C115: FABRICAÇÃO, MONTAGEM E DESMONTAGEM DE FORMA PARA RADIER, PISO DE CONCRETO OU LAJE SOBRE SOLO, EM MADEIRA SERRADA, 4 UTILIZAÇÕES. AF_09/2021 | D115: M2 | E115: 16.75 | F115: 182.42 | G115: 3055.53 | H115: 0.001567007804 | I115: 0.890826692 | J115: B
A116: SETOP | B116: ED-48245 | C116: MONTAGEM E DESMONTAGEM DE ANDAIME METÁLICO PARA FACHADA COM PISO METÁLICO, INCLUSIVE RODAPÉ/GUARDA-CORPO EM MADEIRA, EXCLUSIVE FORNECIMENTO DO ANDAIME | D116: M2 | E116: 151.59 | F116: 19.7 | G116: 2986.32 | H116: 0.001531513925 | I116: 0.8923582059 | J116: B
A117: SINAPI | B117: 91854 | C117: ELETRODUTO FLEXÍVEL CORRUGADO, PVC, DN 25 MM (3/4"), PARA CIRCUITOS TERMINAIS, INSTALADO EM PAREDE - FORNECIMENTO E INSTALAÇÃO. AF_12/2015 | D117: M | E117: 230 | F117: 12.66 | G117: 2911.8 | H117: 0.00149329685 | I117: 0.8938515028 | J117: B
A118: SINAPI | B118: 93192 | C118: VERGA MOLDADA IN LOCO COM UTILIZAÇÃO DE BLOCOS CANALETA PARA PORTAS COM ATÉ 1,5 M DE VÃO. AF_03/2016 | D118: M | E118: 42.1 | F118: 68.69 | G118: 2891.84 | H118: 0.001483060499 | I118: 0.8953345633 | J118: B
A119: SINAPI | B119: 89578 | C119: TUBO PVC, SÉRIE R, ÁGUA PLUVIAL, DN 100 MM, FORNECIDO E INSTALADO EM CONDUTORES VERTICAIS DE ÁGUAS PLUVIAIS. AF_06/2022 | D119: M | E119: 60 | F119: 47.97 | G119: 2878.2 | H119: 0.001476065318 | I119: 0.8968106286 | J119: B
A120: SUDECAP | B120: 10.47.08 | C120: BEBEDOURO E FILTRO - BEBEDOURO CONJUGADO INOX H= 1,00M/1,12M ATENDE 40P | D120: UN | E120: 2 | F120: 1423.3 | G120: 2846.6 | H120: 0.001459859472 | I120: 0.8982704881 | J120: B
A121: SETOP | B121: ED-50532 | C121: PINTURA ANTICORROSIVA A BASE DE ÓXIDO DE FERRO (ZARCÃO) EM ESQUADRIA E SUPERFÍCIE METÁLICA, UMA (1) DEMÃO | D121: M2 | E121: 199.98 | F121: 14.15 | G121: 2829.71 | H121: 0.001451197551 | I121: 0.8997216856 | J121: B
A122: SINAPI | B122: 100867 | C122: BARRA DE APOIO RETA, EM ACO INOX POLIDO, COMPRIMENTO 70 CM, FIXADA NA PAREDE - FORNECIMENTO E INSTALAÇÃO. AF_01/2020 | D122: UN | E122: 6 | F122: 467.59 | G122: 2805.54 | H122: 0.00143880213 | I122: 0.9011604878 | J122: C
A123: SINAPI | B123: 91927 | C123: CABO DE COBRE FLEXÍVEL ISOLADO, 2,5 MM², ANTI-CHAMA 0,6/1,0 KV, PARA CIRCUITOS TERMINAIS - FORNECIMENTO E INSTALAÇÃO. AF_12/2015 | D123: M | E123: 486 | F123: 5.73 | G123: 2784.78 | H123: 0.001428155505 | I123: 0.9025886433 | J123: C
A124: COMPOSIÇÃO | B124: JMV-CRAS-063 | C124: DISJUNTOR DE PROTEÇÃO DIFERENCIAL RESIDUAL (DR), UNIPOLAR, TIPO DIN, CORRENTE NOMINAL DE 25A, ALTA SENSIBILIDADE, CORRENTE DIFERENCIAL RESIDUAL NOMINAL COM ATUAÇÃO DE 30MA - BASEADA EM SETOP (ED-15114) | D124: UN | E124: 8 | F124: 344.02 | G124: 2752.16 | H124: 0.00141142656 | I124: 0.9040000698 | J124: C
A125: SETOP | B125: ED-50937 | C125: CORRIMÃO DUPLO EM TUBO GALVANIZADO DIN 2440, D = 1 1/2" - FIXADO EM ALVENARIA | D125: M | E125: 15.25 | F125: 180.44 | G125: 2751.71 | H125: 0.001411195781 | I125: 0.9054112656 | J125: C
A126: SETOP | B126: ED-49747 | C126: PERFURAÇÃO DE ESTACA BROCA A TRADO MANUAL D = 200 MM | D126: M | E126: 80.6 | F126: 34.12 | G126: 2750.07 | H126: 0.001410354718 | I126: 0.9068216203 | J126: C
A127: SETOP | B127: ED-50997 | C127: PEITORIL DE GRANITO CINZA ANDORINHA E = 2 CM | D127: M2 | E127: 9.16 | F127: 296.72 | G127: 2717.95 | H127: 0.001393882194 | I127: 0.9082155025 | J127: C
A128: SUDECAP | B128: 01.12.02 | C128: VISTORIA CAUTELAR - VISTORIA CAUTELAR - 101M2 < ÁREA CONSTRUÍDA <= 200M2 | D128: UN | E128: 5 | F128: 518.36 | G128: 2591.8 | H128: 0.001329187023 | I128: 0.9095446895 | J128: C
A129: SINAPI | B129: 89512 | C129: TUBO PVC, SÉRIE R, ÁGUA PLUVIAL, DN 100 MM, FORNECIDO E INSTALADO EM RAMAL DE ENCAMINHAMENTO. AF_06/2022 | D129: M | E129: 38 | F129: 67.72 | G129: 2573.36 | H129: 0.001319730195 | I129: 0.9108644197 | J129: C
A130: SINAPI | B130: 93199 | C130: CONTRAVERGA MOLDADA IN LOCO COM UTILIZAÇÃO DE BLOCOS CANALETA PARA VÃOS DE MAIS DE 1,5 M DE COMPRIMENTO. AF_03/2016 | D130: M | E130: 48.42 | F130: 50.02 | G130: 2421.96 | H130: 0.001242085733 | I130: 0.9121065055 | J130: C
A131: SINAPI | B131: 89356 | C131: TUBO, PVC, SOLDÁVEL, DN 25MM, INSTALADO EM RAMAL OU SUB-RAMAL DE ÁGUA - FORNECIMENTO E INSTALAÇÃO. AF_06/2022 | D131: M | E131: 78.51 | F131: 30.27 | G131: 2376.49 | H131: 0.001218766753 | I131: 0.9133252722 | J131: C
A132: SUDECAP | B132: 10.27.61 | C132: CHUVEIRO, LIGAÇAO E SIFAO - SIFAO LAVATORIO COPO REGULAVEL 1"X 1 1/2"SIGMA/EQUIVALENTE | D132: UN | E132: 11 | F132: 213.42 | G132: 2347.62 | H132: 0.001203960969 | I132: 0.9145292332 | J132: C
A133: SETOP | B133: ED-21636 | C133: TESTEIRA PARA BANCADA EM GRANITO, COR CINZA ANDORINHA, ESP. 2CM, ALTURA DE 10CM, INCLUSIVE POLIMENTO, CORTE/COLAGEM EM MEIA ESQUADRIA E MASSA PLÁSTICA NA COR DA PEDRA | D133: M | E133: 9.8 | F133: 235.61 | G133: 2308.97 | H133: 0.001184139579 | I133: 0.9157133728 | J133: C
A134: SETOP | B134: ED-49297 | C134: DUTO CORRUGADO EM PEAD (POLIETILENO DE ALTA DENSIDADE), PARA PROTEÇÃO DE CABOS SUBTERRÂNEOS DN 75 MM (3") | D134: M | E134: 44 | F134: 51.45 | G134: 2263.8 | H134: 0.001160974452 | I134: 0.9168743472 | J134: C
A135: SETOP | B135: ED-50727 | C135: CHAPISCO COM ARGAMASSA, TRAÇO 1:3 (CIMENTO E AREIA), ESP. 5MM, APLICADO EM ALVENARIA/ESTRUTURA DE CONCRETO COM COLHER, PREPARO MECÂNICO | D135: M2 | E135: 208.28 | F135: 10.83 | G135: =TRUNC(F135*E135,2) -> 2255.67 | H135: =G135/$G$404 -> 0.001156805036 | I135: =H135+(OFFSET(I135,-1,0)) -> 0.9180311523 | J135: =IF(I135<=0.7,"A",IF(I135>0.9,"C","B")) -> C
A136: SETOP | B136: ED-49319 | C136: ELETRODUTO DE AÇO GALVANIZADO MÉDIO, INCLUSIVE CONEXÕES, SUPORTES E FIXAÇÃO DN 32 (1.1/4") | D136: M | E136: 42 | F136: 51.87 | G136: 2178.54 | H136: 0.00111724944 | I136: 0.9191484017 | J136: C
A137: SINAPI | B137: 97583 | C137: LUMINÁRIA TIPO CALHA, DE SOBREPOR, COM 1 LÂMPADA TUBULAR FLUORESCENTE DE 18 W, COM REATOR DE PARTIDA RÁPIDA - FORNECIMENTO E INSTALAÇÃO. AF_02/2020 | D137: UN | E137: 20 | F137: 108.51 | G137: 2170.2 | H137: 0.001112972327 | I137: 0.920261374 | J137: C
A138: COMPOSIÇÃO | B138: JMV-CRAS-155 | C138: FIXAÇÃO DE PARAFUSO 1/4" 14X7/8" EM ESTRUTURA METÁLICA - BASEADA DA SICRO (4806395) | D138: UND | E138: 300 | F138: 7.23 | G138: 2169 | H138: 0.001112356916 | I138: 0.9213737309 | J138: C
A139: SETOP | B139: ED-50956 | C139: FORNECIMENTO E ASSENTAMENTO DE JANELA EM FERRO, TIPO MAXIM-AR, INCLUSIVE FERRAGENS E ACESSÓRIOS | D139: M2 | E139: 4.48 | F139: 474.97 | G139: 2127.86 | H139: 0.001091258546 | I139: 0.9224649895 | J139: C
A140: COMPOSIÇÃO | B140: JMV-CRAS-053 | C140: PORTA OU JANELA EM ALUMÍNIO, COR N/P/B,TIPO VENEZIANA, DE ABRIR OU CORRER, COMPLETA INCLUSIVE CAIXILHOS, DOBRADIÇAS OU ROLDANAS E FECHADURA - BASEADA DA ORSE (11948) | D140: M² | E140: 5 | F140: 415.07 | G140: 2075.35 | H140: 0.001064329149 | I140: 0.9235293186 | J140: C
A141: SINAPI | B141: 101616 | C141: PREPARO DE FUNDO DE VALA COM LARGURA MENOR QUE 1,5 M (ACERTO DO SOLO NATURAL). AF_08/2020 | D141: M2 | E141: 272.02 | F141: 7.61 | G141: 2070.07 | H141: 0.001061621337 | I141: 0.92459094 | J141: C
A142: COMPOSIÇÃO | B142: JMV-CRAS-024 | C142: RODAPÉ COM REVESTIMENTO EM CERÂMICA ESMALTADA COMERCIAL, ALTURA 7CM, PEI IV, ASSENTAMENTO COM ARGAMASSA INDUSTRIALIZADA, INCLUSIVE REJUNTAMENTO - BASEADA DA SETOP (ED-50771) | D142: M | E142: 151.3 | F142: 13.53 | G142: 2047.08 | H142: 0.001049831072 | I142: 0.925640771 | J142: C
A143: SINAPI | B143: 91933 | C143: CABO DE COBRE FLEXÍVEL ISOLADO, 10 MM², ANTI-CHAMA 0,6/1,0 KV, PARA CIRCUITOS TERMINAIS - FORNECIMENTO E INSTALAÇÃO. AF_12/2015 | D143: M | E143: 108 | F143: 18.78 | G143: 2028.24 | H143: 0.001040169106 | I143: 0.9266809402 | J143: C
A144: SETOP | B144: ED-49342 | C144: HASTE DE AÇO COBREADA PARA ATERRAMENTO DIÂMETRO 3/4"X 3000 MM,CONFORME PADRÕES TELEBRÁS | D144: U | E144: 10 | F144: 202.07 | G144: 2020.7 | H144: 0.001036302268 | I144: 0.9277172424 | J144: C
A145: SINAPI | B145: 97622 | C145: DEMOLIÇÃO DE ALVENARIA DE BLOCO FURADO, DE FORMA MANUAL, SEM REAPROVEITAMENTO. AF_12/2017 | D145: M3 | E145: 30.65842 | F145: 65.77 | G145: 2016.4 | H145: 0.001034097042 | I145: 0.9287513395 | J145: C
A146: SINAPI | B146: 88484 | C146: APLICAÇÃO DE FUNDO SELADOR ACRÍLICO EM TETO, UMA DEMÃO. AF_06/2014 | D146: M2 | E146: 437.95 | F146: 4.53 | G146: 1983.91 | H146: 0.001017434766 | I146: 0.9297687742 | J146: C
A147: SETOP | B147: ED-49320 | C147: ELETRODUTO DE AÇO GALVANIZADO MÉDIO, INCLUSIVE CONEXÕES, SUPORTES E FIXAÇÃO DN 40 (1.1/2") | D147: M | E147: 33 | F147: 58.66 | G147: 1935.78 | H147: 0.0009927516228 | I147: 0.9307615259 | J147: C
A148: SINAPI | B148: 89778 | C148: LUVA SIMPLES, PVC, SERIE NORMAL, ESGOTO PREDIAL, DN 100 MM, JUNTA ELÁSTICA, FORNECIDO E INSTALADO EM RAMAL DE DESCARGA OU RAMAL DE ESGOTO SANITÁRIO. AF_08/2022 | D148: UN | E148: 85 | F148: 22.59 | G148: 1920.15 | H148: 0.0009847358835 | I148: 0.9317462617 | J148: C
A149: SINAPI | B149: 97632 | C149: DEMOLIÇÃO DE RODAPÉ CERÂMICO, DE FORMA MANUAL, SEM REAPROVEITAMENTO. AF_12/2017 | D149: M | E149: 603.23 | F149: 3.13 | G149: 1888.1 | H149: 0.0009682992587 | I149: 0.932714561 | J149: C
A150: SINAPI | B150: 91930 | C150: CABO DE COBRE FLEXÍVEL ISOLADO, 6 MM², ANTI-CHAMA 450/750 V, PARA CIRCUITOS TERMINAIS - FORNECIMENTO E INSTALAÇÃO. AF_12/2015 | D150: M | E150: 169 | F150: 10.93 | G150: 1847.17 | H150: 0.0009473085863 | I150: 0.9336618696 | J150: C
A151: SETOP | B151: ED-48167 | C151: BARRA DE APOIO EM AÇO INOX POLIDO PARA LAVATÓRIO DE CANTO, DN 1.1/4" (31,75MM), PARA ACESSIBILIDADE (PMR/PCR), INSTALADO EM PAREDE, INCLUSIVE FORNECIMENTO, INSTALAÇÃO E ACESSÓRIOS PARA FIXAÇÃO | D151: UN | E151: 6 | F151: 298.81 | G151: 1792.86 | H151: 0.0009194560717 | I151: 0.9345813257 | J151: C
A152: COMPOSIÇÃO | B152: JMV-CRAS-003 | C152: CAIXA DE DRENAGEM DE INSPEÇÃO/PASSAGEM EM ALVENARIA (40X40X40CM), REVESTIMENTO EM ARGAMASSA COM ADITIVO IMPERMEABILIZANTE, INCLUSIVE ESCAVAÇÃO, REATERRO E TRANSPORTE E RETIRADA DO MATERIAL ESCAVADO (EM CAÇAMBA) - BASEADA DA SETOP (ED-49908) | D152: UN | E152: 8 | F152: 213.01 | G152: 1704.08 | H152: 0.0008739258518 | I152: 0.9354552515 | J152: C
A153: SINAPI | B153: 100858 | C153: MICTÓRIO SIFONADO LOUÇA BRANCA  PADRÃO MÉDIO  FORNECIMENTO E INSTALAÇÃO. AF_01/2020 | D153: UN | E153: 2 | F153: 851.36 | G153: 1702.72 | H153: 0.0008732283851 | I153: 0.9363284799 | J153: C
A154: SETOP | B154: ED-50506 | C154: LIXAMENTO MANUAL EM TETO PARA REMOÇÃO DE TINTA | D154: M2 | E154: 437.95 | F154: 3.88 | G154: 1699.24 | H154: 0.0008714436907 | I154: 0.9371999236 | J154: C
A155: COMPOSIÇÃO | B155: JMV-CRA-108 | C155: CAIXA DE TOMADAS ABS DE MESA, PARA 4 BLOCOS: 2 MÓDULOS DE TOMADA + 2 TOMADA RJ-45 FÊMEA - BASEADA DA SBC (062564) | D155: UN | E155: 4 | F155: 424.74 | G155: 1698.96 | H155: 0.0008713000946 | I155: 0.9380712237 | J155: C
A156: SETOP | B156: ED-28427 | C156: FORNECIMENTO E COLOCAÇÃO DE PLACA DE OBRA EM CHAPA GALVANIZADA #26, ESP. 0,45MM, DIMENSÃO (3X1,5)M, PLOTADA COM ADESIVO VINÍLICO, AFIXADA COM REBITES 4,8X40MM, EM ESTRUTURA METÁLICA DE METALON 20X20MM, ESP. 1,25MM, INCLUSIVE SUPORTE EM EUCALIPTO AUTOCLAVADO PINTADO COM TINTA PVA DUAS (2) DEMÃOS | D156: UN | E156: 1 | F156: 1692.19 | G156: 1692.19 | H156: 0.0008678281461 | I156: 0.9389390518 | J156: C
A157: COMPOSIÇÃO | B157: JMV-CRAS-001 | C157: JUNTA SERRADA SECA, SEÇÃO TRANSVERSAL - BASEADA DA ORSE (12800) | D157: M | E157: 110.85 | F157: 15 | G157: 1662.75 | H157: 0.0008527300421 | I157: 0.9397917819 | J157: C
A158: SINAPI | B158: 92004 | C158: TOMADA MÉDIA DE EMBUTIR (2 MÓDULOS), 2P+T 10 A, INCLUINDO SUPORTE E PLACA - FORNECIMENTO E INSTALAÇÃO. AF_12/2015 | D158: UN | E158: 26 | F158: 63.86 | G158: 1660.36 | H158: 0.0008515043468 | I158: 0.9406432862 | J158: C
A159: SETOP | B159: ED-16342 | C159: LIGAÇÃO PROVISÓRIA DE ENERGIA ELÉTRICA PARA CONTAINER | D159: UN | E159: 4 | F159: 413.96 | G159: 1655.84 | H159: 0.0008491862955 | I159: 0.9414924725 | J159: C
A160: SETOP | B160: ED-48936 | C160: CABO TELEFÔNICO CCE-APL-50.2 | D160: M | E160: 60 | F160: 27.58 | G160: 1654.8 | H160: 0.0008486529386 | I160: 0.9423411254 | J160: C
A161: SINAPI | B161: 91935 | C161: CABO DE COBRE FLEXÍVEL ISOLADO, 16 MM², ANTI-CHAMA 0,6/1,0 KV, PARA CIRCUITOS TERMINAIS - FORNECIMENTO E INSTALAÇÃO. AF_12/2015 | D161: M | E161: 56 | F161: 29.4 | G161: 1646.4 | H161: 0.0008443450557 | I161: 0.9431854705 | J161: C
A162: SETOP | B162: ED-48249 | C162: TELA DE PROTEÇÃO, TIPO FACHADEIRA, INSTALADA EM ANDAIME METÁLICO PARA FACHADA, EXCLUSIVE ANDAIME METÁLICO, INCLUSIVE ACESSÓRIOS DE FIXAÇÃO | D162: M2 | E162: 209.5 | F162: 7.77 | G162: 1627.81 | H162: 0.0008348113004 | I162: 0.9440202818 | J162: C
A163: SETOP | B163: ED-49883 | C163: CAIXA DE ESGOTO DE INSPEÇÃO/PASSAGEM EM ALVENARIA (60X60X60CM), REVESTIMENTO EM ARGAMASSA COM ADITIVO IMPERMEABILIZANTE, COM TAMPA DE CONCRETO, INCLUSIVE ESCAVAÇÃO, REATERRO E TRANSPORTE E RETIRADA DO MATERIAL ESCAVADO (EM CAÇAMBA) | D163: UN | E163: 3 | F163: 520.86 | G163: 1562.58 | H163: 0.0008013585381 | I163: 0.9448216403 | J163: C
A164: COMPOSIÇÃO | B164: JMV-CRAS-027 | C164: SELANTE EM POLIURETANO (PU) FLEXÍVEL – BISNAGA 380G. REF.: TERMOTÉCNICA - TEL-5905 OU EQUIVALENTE. | D164: UND | E164: 27.945 | F164: 55.65 | G164: 1555.13 | H164: 0.0007975378562 | I164: 0.9456191782 | J164: C
A165: SETOP | B165: ED-2552 | C165: LAVATÓRIO DE CANTO DE LOUÇA BRANCA SEM COLUNA, TAMANHO PEQUENO, INCLUSIVE ACESSÓRIOS DE FIXAÇÃO COM PARAFUSO CASTELO, VÁLVULA DE ESCOAMENTO DE METAL COM ACABAMENTO CROMADO, SIFÃO DE METAL TIPO COPO COM ACABAMENTO CROMADO, FORNECIMENTO, INSTALAÇÃO E REJUNTAMENTO, EXCLUSIVE TORNEIRA E ENGATE FLEXÍVEL | D165: UN | E165: 3 | F165: 514.23 | G165: 1542.69 | H165: 0.0007911580867 | I165: 0.9464103363 | J165: C
A166: COMPOSIÇÃO | B166: JMV-CRA-103 | C166: FORNECIMENTO E INSTALAÇÃO DE MINI RACK DE PAREDE PADRÃO 19" - 12 U´S X 570MM - BASEADO EM IOPES (160811) | D166: UND | E166: 2 | F166: 752.36 | G166: 1504.72 | H166: 0.0007716854301 | I166: 0.9471820217 | J166: C
A167: SETOP | B167: ED-51150 | C167: ESPELHO CRISTAL, DIMENSÃO (60X90)CM, COM ESP. 4MM, EM ACABAMENTO LAPIDADO, INCLUSIVE FIXAÇÃO COM PARAFUSO TIPO FINESSON, FORNECIMENTO E INSTALAÇÃO | D167: UN | E167: 5 | F167: 299.61 | G167: 1498.05 | H167: 0.0007682647659 | I167: 0.9479502865 | J167: C
A168: SETOP | B168: ED-50491 | C168: PINTURA ESMALTE EM ESQUADRIAS DE FERRO, DUAS (2) DEMÃOS, INCLUSIVE UMA (1) DEMÃO DE FUNDO ANTICORROSIVO | D168: M2 | E168: 36.96 | F168: 40.37 | G168: 1492.07 | H168: 0.0007651979636 | I168: 0.9487154844 | J168: C
A169: SINAPI | B169: 87262 | C169: REVESTIMENTO CERÂMICO PARA PISO COM PLACAS TIPO PORCELANATO DE DIMENSÕES 60X60 CM APLICADA EM AMBIENTES DE ÁREA ENTRE 5 M² E 10 M². AF_02/2023_PE | D169: M2 | E169: 7.2 | F169: 204.96 | G169: 1475.71 | H169: 0.0007568078487 | I169: 0.9494722923 | J169: C
A170: SETOP | B170: ED-29066 | C170: CAIXA DE TELEFONIA, NÚMERO 7, DIMENSÃO (120X120)CM, EM CHAPA DE AÇO GALVANIZADO, TIPO EMBUTIR COM FECHO, INCLUSIVE ACESSÓRIOS E INSTALAÇÃO | D170: UN | E170: 1 | F170: 1472.61 | G170: 1472.61 | H170: 0.0007552180348 | I170: 0.9502275103 | J170: C
A171: SETOP | B171: ED-21657 | C171: BANCADA EM GRANITO, COR CINZA ANDORINHA, ESP. 2CM, ACABAMENTO POLIDO, APOIADA EM ALVENARIA, EXCLUSIVE ALVENARIA, RODABANCA/FRONTÃO, TESTEIRA/FAIXA, FURO EM BANCADA, CUBA METÁLICA, VÁLVULA, SIFÃO, TORNEIRA E ENGATE FLEXÍVEL | D171: M2 | E171: 3.528 | F171: 417.38 | G171: 1472.51 | H171: 0.0007551667504 | I171: 0.9509826771 | J171: C
A172: COMPOSIÇÃO | B172: JMV-CRAS-046 | C172: QUADRO DE DISTRIBUIÇÃO DE ENERGIA EM CHAPA DE AÇO GALVANIZADO, DE SOBREPOR, COM BARRAMENTO TRIFÁSICO, PARA 48 DISJUNTORES DIN 100A - FORNECIMENTO E INSTALAÇÃO. AF_10/2020 - BASEADA EM SINAPI (101878) | D172: UN | E172: 1 | F172: 1464.87 | G172: 1464.87 | H172: 0.0007512486283 | I172: 0.9517339257 | J172: C
A173: SINAPI | B173: 100868 | C173: BARRA DE APOIO RETA, EM ACO INOX POLIDO, COMPRIMENTO 80 CM, FIXADA NA PAREDE - FORNECIMENTO E INSTALAÇÃO. AF_01/2020 | D173: UN | E173: 3 | F173: 483.58 | G173: 1450.74 | H173: 0.0007440021538 | I173: 0.9524779279 | J173: C
A174: SETOP | B174: ED-50151 | C174: LIGAÇÃO PROVISÓRIA COM ENTRADA DE ENERGIA AÉREA, PADRÃO CEMIG, CARGA INSTALADA DE 15,1KVA ATÉ 30KVA, TRIFÁSICO, COM SAÍDA SUBTERRÂNEA, INCLUSIVE POSTE, CAIXA PARA MEDIDOR, DISJUNTOR, BARRAMENTO, ATERRAMENTO E ACESSÓRIOS | D174: UN | E174: 1 | F174: 1449.98 | G174: 1449.98 | H174: 0.000743612393 | I174: 0.9532215402 | J174: C
A175: SINAPI | B175: 87249 | C175: REVESTIMENTO CERÂMICO PARA PISO COM PLACAS TIPO ESMALTADA EXTRA DE DIMENSÕES 45X45 CM APLICADA EM AMBIENTES DE ÁREA MENOR QUE 5 M2. AF_02/2023_PE | D175: M2 | E175: 15.98 | F175: 90.08 | G175: 1439.47 | H175: 0.0007382224109 | I175: 0.9539597627 | J175: C
A176: COMPOSIÇÃO | B176: JMV-CRAS-004 | C176: CAIXA DE DRENAGEM DE INSPEÇÃO/PASSAGEM EM ALVENARIA (40X40X60CM), REVESTIMENTO EM ARGAMASSA COM ADITIVO IMPERMEABILIZANTE, INCLUSIVE ESCAVAÇÃO, REATERRO E TRANSPORTE E RETIRADA DO MATERIAL ESCAVADO (EM CAÇAMBA) - BASEADA DA SETOP (ED-49909) | D176: UN | E176: 5 | F176: 286.91 | G176: 1434.55 | H176: 0.0007356992223 | I176: 0.9546954619 | J176: C
A177: SINAPI | B177: 89584 | C177: JOELHO 90 GRAUS, PVC, SERIE R, ÁGUA PLUVIAL, DN 100 MM, JUNTA ELÁSTICA, FORNECIDO E INSTALADO EM CONDUTORES VERTICAIS DE ÁGUAS PLUVIAIS. AF_06/2022 | D177: UN | E177: 24 | F177: 57.78 | G177: 1386.72 | H177: 0.0007111699317 | I177: 0.9554066318 | J177: C
A178: COMPOSIÇÃO | B178: JMV-CRA-104 | C178: VOICE PANEL 30 PORTAS - RJ11/IDC 110 - 19""/1U - BASEADO EM SBC (059463) | D178: UN | E178: 2 | F178: 690.11 | G178: 1380.22 | H178: 0.0007078364509 | I178: 0.9561144683 | J178: C
A179: COMPOSIÇÃO | B179: JMV-CRAS-045 | C179: CONJUNTO PARA CONDULETE DE 1" (25MM) COM DUAS (2) TOMADA PADRÃO, TRÊS (3) POLOS, CORRENTE 10A, TENSÃO 250V, (2P+T/10A-250V) E PLACA DE DOIS (2) POSTOS, INCLUSIVE FORNECIMENTO, INSTALAÇÃO, SUPORTE, MÓDULO E PLACA, EXCLUSIVE CONDULETE - BASEADA EM SETOP (ED-17982) | D179: UN | E179: 23 | F179: 59.92 | G179: 1378.16 | H179: 0.0007067799939 | I179: 0.9568212483 | J179: C
A180: COMPOSIÇÃO | B180: JMV-CRAS-062 | C180: DISJUNTOR DE PROTEÇÃO DIFERENCIAL RESIDUAL (DR), UNIPOLAR, TIPO DIN, CORRENTE NOMINAL DE 25A, ALTA SENSIBILIDADE, CORRENTE DIFERENCIAL RESIDUAL NOMINAL COM ATUAÇÃO DE 30MA - BASEADA EM SETOP (ED-15114) | D180: UN | E180: 4 | F180: 344.02 | G180: 1376.08 | H180: 0.00070571328 | I180: 0.9575269615 | J180: C
A181: SETOP | B181: ED-49814 | C181: LASTRO DE AREIA | D181: M3 | E181: 7.2585 | F181: 187.12 | G181: 1358.21 | H181: 0.0006965487719 | I181: 0.9582235103 | J181: C
A182: SINAPI | B182: 86915 | C182: TORNEIRA CROMADA DE MESA, 1/2 OU 3/4, PARA LAVATÓRIO, PADRÃO MÉDIO - FORNECIMENTO E INSTALAÇÃO. AF_01/2020 | D182: UN | E182: 9 | F182: 142.25 | G182: 1280.25 | H182: 0.0006565675155 | I182: 0.9588800778 | J182: C
A183: SETOP | B183: ED-51055 | C183: CAIXA DE INSPEÇÃO EM PVC, DIÂMETRO DE 30CM, ALTURA DE 30CM, COM TAMPA EM FERRO FUNDIDO, EXCLUSIVE HASTE DE ATERRAMENTO, INCLUSIVE INSTALAÇÃO | D183: UN | E183: 10 | F183: 125.36 | G183: 1253.6 | H183: 0.000642900244 | I183: 0.9595229781 | J183: C
A184: SETOP | B184: ED-48372 | C184: PATCH CORD RJ45/RJ45 UTP-4P METÁLICO CATEGORIA 6, PINAGEM T568A NA COR AZUL (VOZ), COMPRIMENTO 3 METROS | D184: CJ | E184: 35 | F184: 35.33 | G184: 1236.55 | H184: 0.0006341562674 | I184: 0.9601571343 | J184: C
A185: SINAPI | B185: 91940 | C185: CAIXA RETANGULAR 4" X 2" MÉDIA (1,30 M DO PISO), PVC, INSTALADA EM PAREDE - FORNECIMENTO E INSTALAÇÃO. AF_12/2015 | D185: UN | E185: 61 | F185: 20.04 | G185: 1222.44 | H185: 0.0006269200497 | I185: 0.9607840544 | J185: C
A186: SETOP | B186: ED-49886 | C186: CAIXA DE ESGOTO DE INSPEÇÃO/PASSAGEM EM ALVENARIA (60X60X75CM), REVESTIMENTO EM ARGAMASSA COM ADITIVO IMPERMEABILIZANTE, COM TAMPA DE CONCRETO, INCLUSIVE ESCAVAÇÃO, REATERRO E TRANSPORTE E RETIRADA DO MATERIAL ESCAVADO (EM CAÇAMBA) | D186: UN | E186: 2 | F186: 606.14 | G186: 1212.28 | H186: 0.0006217095627 | I186: 0.961405764 | J186: C
A187: SETOP | B187: ED-49296 | C187: DUTO CORRUGADO EM PEAD (POLIETILENO DE ALTA DENSIDADE), PARA PROTEÇÃO DE CABOS SUBTERRÂNEOS DN 50 MM (2") | D187: M | E187: 36 | F187: 32.73 | G187: 1178.28 | H187: 0.0006042728937 | I187: 0.9620100368 | J187: C
A188: SETOP | B188: ED-48215 | C188: ALVENARIA DE BLOCO DE CONCRETO CHEIO SEM ARMAÇÃO, EM CONCRETO COM FCK 15MPA , ESP. 9CM, PARA REVESTIMENTO, INCLUSIVE ARGAMASSA PARA ASSENTAMENTO (DETALHE D - CADERNO SEDS) | D188: M2 | E188: 10.18 | F188: 115.02 | G188: 1170.9 | H188: 0.0006004881108 | I188: 0.962610525 | J188: C
A189: SETOP | B189: ED-49527 | C189: SUPRESSOR DE SURTO PARA PROTEÇÃO PRIMÁRIA EM QGD, ATÉ 1,5 KV - 5 KA | D189: UN | E189: 3 | F189: 378.85 | G189: 1136.55 | H189: 0.0005828719467 | I189: 0.9631933969 | J189: C
A190: SINAPI | B190: 97096 | C190: CONCRETAGEM DE RADIER, PISO DE CONCRETO OU LAJE SOBRE SOLO, FCK 30 MPA - LANÇAMENTO, ADENSAMENTO E ACABAMENTO. AF_09/2021 | D190: M3 | E190: 1.24 | F190: 900.31 | G190: 1116.38 | H190: 0.0005725278992 | I190: 0.9637659248 | J190: C
A191: SINAPI | B191: 97906 | C191: CAIXA ENTERRADA HIDRÁULICA RETANGULAR, EM ALVENARIA COM BLOCOS DE CONCRETO, DIMENSÕES INTERNAS: 0,6X0,6X0,6 M PARA REDE DE ESGOTO. AF_12/2020 | D191: UN | E191: 2 | F191: 547.55 | G191: 1095.1 | H191: 0.0005616145958 | I191: 0.9643275394 | J191: C
A192: SINAPI | B192: 97087 | C192: CAMADA SEPARADORA PARA EXECUÇÃO DE RADIER, PISO DE CONCRETO OU LAJE SOBRE SOLO, EM LONA PLÁSTICA. AF_09/2021 | D192: M2 | E192: 301.68 | F192: 3.42 | G192: 1031.74 | H192: 0.0005291208502 | I192: 0.9648566602 | J192: C
A193: COMPOSIÇÃO | B193: JMV-CRAS-048 | C193: DISPOSITIVO DE PROTEÇÃO DE SURTO, CLASSE 2 - BASEADA EM ORSE (13174) | D193: UN | E193: 6 | F193: 168.25 | G193: 1009.5 | H193: 0.0005177152173 | I193: 0.9653743755 | J193: C
A194: SINAPI | B194: 89798 | C194: TUBO PVC, SERIE NORMAL, ESGOTO PREDIAL, DN 50 MM, FORNECIDO E INSTALADO EM PRUMADA DE ESGOTO SANITÁRIO OU VENTILAÇÃO. AF_08/2022 | D194: M | E194: 50.07 | F194: 19.45 | G194: 973.86 | H194: 0.0004994374854 | I194: 0.9658738129 | J194: C
A195: SINAPI | B195: 86886 | C195: ENGATE FLEXÍVEL EM INOX, 1/2 X 30CM - FORNECIMENTO E INSTALAÇÃO. AF_01/2020 | D195: UN | E195: 12 | F195: 77.01 | G195: 924.12 | H195: 0.0004739286643 | I195: 0.9663477416 | J195: C
A196: SINAPI | B196: 91943 | C196: CAIXA RETANGULAR 4" X 4" MÉDIA (1,30 M DO PISO), PVC, INSTALADA EM PAREDE - FORNECIMENTO E INSTALAÇÃO. AF_12/2015 | D196: UN | E196: 35 | F196: 26.23 | G196: 918.05 | H196: 0.000470815706 | I196: 0.9668185573 | J196: C
A197: SINAPI | B197: 86901 | C197: CUBA DE EMBUTIR OVAL EM LOUÇA BRANCA, 35 X 50CM OU EQUIVALENTE - FORNECIMENTO E INSTALAÇÃO. AF_01/2020 | D197: UN | E197: 5 | F197: 183.09 | G197: 915.45 | H197: 0.0004694823137 | I197: 0.9672880396 | J197: C
A198: SINAPI | B198: 97596 | C198: SENSOR DE PRESENÇA SEM FOTOCÉLULA, FIXAÇÃO EM PAREDE - FORNECIMENTO E INSTALAÇÃO. AF_02/2020 | D198: UN | E198: 10 | F198: 89.95 | G198: 899.5 | H198: 0.0004613024645 | I198: 0.9677493421 | J198: C
A199: SINAPI | B199: 97645 | C199: REMOÇÃO DE JANELAS, DE FORMA MANUAL, SEM REAPROVEITAMENTO. AF_12/2017 | D199: M2 | E199: 22.08 | F199: 40.64 | G199: =TRUNC(F199*E199,2) -> 897.33 | H199: =G199/$G$404 -> 0.0004601895947 | I199: =H199+(OFFSET(I199,-1,0)) -> 0.9682095317 | J199: =IF(I199<=0.7,"A",IF(I199>0.9,"C","B")) -> C
A200: SETOP | B200: ED-48443 | C200: DEMOLIÇÃO MECANIZADA DE CONCRETO ARMADO, COM EQUIPAMENTO ELÉTRICO, INCLUSIVE AFASTAMENTO E EMPILHAMENTO, EXCLUSIVE TRANSPORTE E RETIRADA DO MATERIAL DEMOLIDO | D200: M3 | E200: 4.956 | F200: 179.91 | G200: 891.63 | H200: 0.0004572663885 | I200: 0.9686667981 | J200: C
A201: SICRO | B201: 4815671 | C201: REATERRO E COMPACTAÇÃO COM SOQUETE VIBRATÓRIO | D201: M³ | E201: 46.88 | F201: 18.44 | G201: 864.46 | H201: 0.0004433324385 | I201: 0.9691101305 | J201: C
... 202 more rows

Sheet Cronograma
A1: CRONOGRAMA FÍSICO-FINANCEIRO
A2: =Resumo!$A$2 -> CONTRATANTE: | B2: =Resumo!$B$2 -> PREFEITURA MUNICIPAL DE JOÃO MONLEVADE-MG | L2: =Resumo!$D$3 -> REV_00
A3: =Resumo!$A$3 -> CONTRATADA: | B3: =Resumo!$B$3 -> CONSÓRCIO PITÁGORAS | L3: =Resumo!$D$4 -> 2023-04-20
A4: =Resumo!$A$4 -> PROJETO: | B4: =Resumo!$B$4 -> CRAS III BEM VIVER
A5: ITEM | B5: DESCRIÇÃO | C5: VALOR | F5: MÊS
F6: =OFFSET(F6,0,-1)+1 -> 1 | G6: =OFFSET(G6,0,-1)+1 -> 2 | H6: 3 | I6: 4 | J6: 5 | K6: 6 | L6: TOTAL
A7: =Resumo!A8 -> 1 | B7: =Resumo!B8 -> MOBILIZAÇÃO E DESMOBILIZAÇÃO | C7: =Resumo!D8 -> 28816.45 | D7: =Resumo!E8 -> 0.01477832063 | E7: % | F7: 0.5 | K7: 0.5 | L7: =SUM(F7:K7) -> 1
E8: G
E9: R$ | F9: =$C7*F7 -> 14408.225 | G9: =$C7*G7 -> 0 | H9: =$C7*H7 -> 0 | I9: 0 | J9: =$C7*J7 -> 0 | K9: 14408.225 | L9: 28816.45
A10: =Resumo!A11 -> 2 | B10: =Resumo!B11 -> ADMINISTRAÇÃO LOCAL | C10: =Resumo!D11 -> 132257 | D10: =Resumo!E11 -> 0.067827104 | E10: % | F10: 0.08047422526 | G10: 0.1287568745 | H10: 0.1968847338 | I10: 0.2720400234 | J10: 0.2162464921 | K10: 0.105597651 | L10: =SUM(F10:K10) -> 1
E11: G
E12: R$ | F12: =$C10*F10 -> 10643.27961 | G12: =$C10*G10 -> 17028.99795 | H12: 26039.38424 | I12: 35979.19737 | J12: 28600.11231 | K12: 13966.02853 | L12: 132257
A13: =Resumo!A14 -> 3 | B13: =Resumo!B14 -> SERVIÇOS PRELIMINARES | C13: =Resumo!D14 -> 52283.19 | D13: =Resumo!E14 -> 0.02681307882 | E13: % | F13: 0.2 | G13: 0.15 | H13: 0.15 | I13: 0.15 | J13: 0.15 | K13: 0.2 | L13: =SUM(F13:K13) -> 1
E14: G
E15: R$ | F15: =$C13*F13 -> 10456.638 | G15: =$C13*G13 -> 7842.4785 | H15: 7842.4785 | I15: 7842.4785 | J15: 7842.4785 | K15: 10456.638 | L15: 52283.19
A16: =Resumo!A17 -> 4 | B16: =Resumo!B17 -> DEMOLIÇÕES E REMOÇÕES | C16: =Resumo!D17 -> 101744.26 | D16: =Resumo!E17 -> 0.05217885257 | E16: % | F16: 0.5 | G16: 0.5 | L16: =SUM(F16:K16) -> 1
E17: G
E18: R$ | F18: =$C16*F16 -> 50872.13 | G18: =$C16*G16 -> 50872.13 | H18: 0 | I18: 0 | J18: 0 | K18: 0 | L18: 101744.26
A19: =Resumo!A20 -> 5 | B19: =Resumo!B20 -> INFRAESTRUTURA (FUNDAÇÕES) | C19: =Resumo!D20 -> 47959.45 | D19: =Resumo!E20 -> 0.02459567813 | E19: % | F19: 1 | L19: =SUM(F19:K19) -> 1
E20: G
E21: R$ | F21: =$C19*F19 -> 47959.45 | G21: =$C19*G19 -> 0 | H21: 0 | I21: 0 | J21: 0 | K21: 0 | L21: 47959.45
A22: =Resumo!A23 -> 6 | B22: =Resumo!B23 -> SUPERESTRUTURAS EM CONCRETO ARMADO (VIGAS / PILARES / LAJES) | C22: =Resumo!D23 -> 90132.45 | D22: =Resumo!E23 -> 0.04622381469 | E22: % | G22: 0.9 | H22: 0.1 | L22: =SUM(F22:K22) -> 1
E23: G
E24: R$ | F24: =$C22*F22 -> 0 | G24: =$C22*G22 -> 81119.205 | H24: 9013.245 | I24: 0 | J24: 0 | K24: 0 | L24: 90132.45
A25: =Resumo!A26 -> 7 | B25: =Resumo!B26 -> ALVENARIAS | C25: =Resumo!D26 -> 36874.68 | D25: =Resumo!E26 -> 0.01891092914 | E25: % | H25: 1 | L25: =SUM(F25:K25) -> 1
E26: G
E27: R$ | F27: =$C25*F25 -> 0 | G27: =$C25*G25 -> 0 | H27: 36874.68 | I27: 0 | J27: 0 | K27: 0 | L27: 36874.68
A28: =Resumo!A29 -> 8 | B28: =Resumo!B29 -> ACABAMENTO GROSSO (CHAPISCO, EMBOÇO, REBOCO E CONTRAPISO) | C28: =Resumo!D29 -> 96945.5 | D28: =Resumo!E29 -> 0.0497178411 | E28: % | H28: 0.5 | I28: 0.5 | L28: =SUM(F28:K28) -> 1
E29: G
E30: R$ | F30: =$C28*F28 -> 0 | G30: =$C28*G28 -> 0 | H30: 48472.75 | I30: 48472.75 | J30: 0 | K30: 0 | L30: 96945.5
A31: =Resumo!A32 -> 9 | B31: =Resumo!B32 -> REVESTIMENTOS E ACABAMENTOS | C31: =Resumo!D32 -> 166793.59 | D31: =Resumo!E32 -> 0.08553895957 | E31: % | I31: 0.7 | J31: 0.3 | L31: =SUM(F31:K31) -> 1
E32: G
E33: R$ | F33: =$C31*F31 -> 0 | G33: =$C31*G31 -> 0 | H33: 0 | I33: 116755.513 | J33: 50038.077 | K33: 0 | L33: 166793.59
A34: =Resumo!A35 -> 10 | B34: =Resumo!B35 -> PINTURA (SELADOR, EMASSAMENTO, TINTA E GESSO) | C34: =Resumo!D35 -> 95070.04 | D34: =Resumo!E35 -> 0.04875602418 | E34: % | I34: 0.7 | J34: 0.3 | L34: =SUM(F34:K34) -> 1
E35: G
E36: R$ | F36: =$C34*F34 -> 0 | G36: =$C34*G34 -> 0 | H36: 0 | I36: 66549.028 | J36: 28521.012 | K36: 0 | L36: 95070.04
A37: =Resumo!A38 -> 11 | B37: =Resumo!B38 -> FORROS | C37: =Resumo!D38 -> 10150.3 | D37: =Resumo!E38 -> 0.005205512402 | E37: % | J37: 1 | L37: =SUM(F37:K37) -> 1
E38: G
E39: R$ | F39: =$C37*F37 -> 0 | G39: =$C37*G37 -> 0 | H39: 0 | I39: 0 | J39: 10150.3 | K39: 0 | L39: 10150.3
A40: =Resumo!A41 -> 12 | B40: =Resumo!B41 -> ESQUADRIAS | C40: =Resumo!D41 -> 120306.98 | D40: =Resumo!E41 -> 0.06169861742 | E40: % | J40: 0.5 | K40: 0.5 | L40: =SUM(F40:K40) -> 1
E41: G
E42: R$ | F42: =$C40*F40 -> 0 | G42: =$C40*G40 -> 0 | H42: 0 | I42: 0 | J42: 60153.49 | K42: 60153.49 | L42: 120306.98
A43: =Resumo!A44 -> 13 | B43: =Resumo!B44 -> INSTALAÇÕES DE CABEAMENTO ESTRUTURADO | C43: =Resumo!D44 -> 35999.13 | D43: =Resumo!E44 -> 0.01846190927 | E43: % | F43: 0.05 | G43: 0.25 | H43: 0.3 | I43: 0.3 | J43: 0.1 | L43: =SUM(F43:K43) -> 1
E44: G
E45: R$ | F45: =$C43*F43 -> 1799.9565 | G45: =$C43*G43 -> 8999.7825 | H45: 10799.739 | I45: 10799.739 | J45: 3599.913 | K45: 0 | L45: 35999.13
A46: =Resumo!A47 -> 14 | B46: =Resumo!B47 -> INSTALAÇÕES ELÉTRICAS | C46: =Resumo!D47 -> 210359.76 | D46: =Resumo!E47 -> 0.1078815739 | E46: % | F46: 0.05 | G46: 0.25 | H46: 0.3 | I46: 0.3 | J46: 0.1 | L46: =SUM(F46:K46) -> 1
E47: G
E48: R$ | F48: =$C46*F46 -> 10517.988 | G48: =$C46*G46 -> 52589.94 | H48: 63107.928 | I48: 63107.928 | J48: 21035.976 | K48: 0 | L48: 210359.76
A49: =Resumo!A50 -> 15 | B49: =Resumo!B50 -> INSTALAÇÕES HIDROSSANITÁRIAS | C49: =Resumo!D50 -> 60434.06 | D49: =Resumo!E50 -> 0.03099319713 | E49: % | F49: 0.05 | G49: 0.25 | H49: 0.3 | I49: 0.3 | J49: 0.1 | L49: =SUM(F49:K49) -> 1
E50: G
E51: R$ | F51: =$C49*F49 -> 3021.703 | G51: =$C49*G49 -> 15108.515 | H51: 18130.218 | I51: 18130.218 | J51: 6043.406 | K51: 0 | L51: 60434.06
A52: =Resumo!A53 -> 16 | B52: =Resumo!B53 -> INSTALAÇÕES DE SPDA (SISTEMA DE PROTEÇÃO CONTRA DESCARGAS ATMOSFÉRICAS) | C52: =Resumo!D53 -> 54327.05 | D52: =Resumo!E53 -> 0.02786125854 | E52: % | F52: 0.05 | G52: 0.25 | H52: 0.3 | I52: 0.3 | J52: 0.1 | L52: =SUM(F52:K52) -> 1
E53: G
E54: R$ | F54: =$C52*F52 -> 2716.3525 | G54: =$C52*G52 -> 13581.7625 | H54: 16298.115 | I54: 16298.115 | J54: 5432.705 | K54: 0 | L54: 54327.05
A55: =Resumo!A56 -> 17 | B55: =Resumo!B56 -> DRENAGEM | C55: =Resumo!D56 -> 95829.84 | D55: =Resumo!E56 -> 0.04914568245 | E55: % | H55: 0.25 | I55: 0.25 | J55: 0.25 | K55: 0.25 | L55: =SUM(F55:K55) -> 1
E56: G
E57: R$ | F57: =$C55*F55 -> 0 | G57: =$C55*G55 -> 0 | H57: 23957.46 | I57: 23957.46 | J57: 23957.46 | K57: 23957.46 | L57: 95829.84
A58: =Resumo!A59 -> 18 | B58: =Resumo!B59 -> ACESSÓRIOS , LOUÇAS, METAIS E VIDROS | C58: =Resumo!D59 -> 18153.34 | D58: =Resumo!E59 -> 0.0093098171 | E58: % | J58: 0.7 | K58: 0.3 | L58: =SUM(F58:K58) -> 1
E59: G
E60: R$ | F60: =$C58*F58 -> 0 | G60: =$C58*G58 -> 0 | H60: 0 | I60: 0 | J60: 12707.338 | K60: 5446.002 | L60: 18153.34
A61: =Resumo!A62 -> 19 | B61: =Resumo!B62 -> PEDRAS ( BANCADAS, PEITORIS, SOLEIRAS E DIVERSOS) | C61: =Resumo!D62 -> 19349.58 | D61: =Resumo!E62 -> 0.009923300657 | E61: % | J61: 0.7 | K61: 0.3 | L61: =SUM(F61:K61) -> 1
E62: G
E63: R$ | F63: =$C61*F61 -> 0 | G63: =$C61*G61 -> 0 | H63: 0 | I63: 0 | J63: 13544.706 | K63: 5804.874 | L63: 19349.58
A64: =Resumo!A65 -> 20 | B64: =Resumo!B65 -> ESTRUTURA METALICA | C64: =Resumo!D65 -> 66056.01 | D64: =Resumo!E65 -> 0.033876376 | E64: % | H64: 0.5 | I64: 0.5 | L64: =SUM(F64:K64) -> 1
E65: G
E66: R$ | F66: =$C64*F64 -> 0 | G66: =$C64*G64 -> 0 | H66: 33028.005 | I66: 33028.005 | J66: 0 | K66: 0 | L66: 66056.01
A67: =Resumo!A68 -> 21 | B67: =Resumo!B68 -> TELHAMENTO E COBERTURA | C67: =Resumo!D68 -> 264189.89 | D67: =Resumo!E68 -> 0.1354879904 | E67: % | H67: 0.35 | I67: 0.35 | J67: 0.3 | L67: =SUM(F67:K67) -> 1
E68: G
E69: R$ | F69: =$C67*F67 -> 0 | G69: =$C67*G67 -> 0 | H69: 92466.4615 | I69: 92466.4615 | J69: 79256.967 | K69: 0 | L69: 264189.89
A70: =Resumo!A71 -> 22 | B70: =Resumo!B71 -> PAISAGISMO , EQUIPAMENTOS, MOBILIÁRIOS E DIVERSOS | C70: =Resumo!D71 -> 110934.63 | D70: =Resumo!E71 -> 0.05689207139 | E70: % | J70: 0.4 | K70: 0.6 | L70: =SUM(F70:K70) -> 1
E71: G
E72: R$ | F72: =$C70*F70 -> 0 | G72: =$C70*G70 -> 0 | H72: 0 | I72: 0 | J72: 44373.852 | K72: 66560.778 | L72: 110934.63
A73: =Resumo!A74 -> 23 | B73: =Resumo!B74 -> IMPERMEABILIZAÇÃO | C73: =Resumo!D74 -> 28735.13 | D73: =Resumo!E74 -> 0.01473661622 | E73: % | J73: 1 | L73: =SUM(F73:K73) -> 1
E74: G
E75: R$ | F75: =$C73*F73 -> 0 | G75: =$C73*G73 -> 0 | H75: 0 | I75: 0 | J75: 28735.13 | K75: 0 | L75: 28735.13
A76: =Resumo!A77 -> 24 | B76: =Resumo!B77 -> LIMPEZA FINAL DE OBRA | C76: =Resumo!D77 -> 6211.4 | D76: =Resumo!E77 -> 0.003185474295 | E76: % | K76: 1 | L76: =SUM(F76:K76) -> 1
E77: G
E78: R$ | F78: =$C76*F76 -> 0 | G78: =$C76*G76 -> 0 | H78: =$C76*H76 -> 0 | I78: 0 | J78: =$C76*J76 -> 0 | K78: 6211.4 | L78: 6211.4
A79: TOTAL | C79: =SUM(OFFSET(C5,1,0):OFFSET(C79,-1,0)) -> 1949913.71 | D79: =SUM(OFFSET(D5,1,0):OFFSET(D79,-1,0)) -> 1 | E79: R$ | F79: =SUMIF(OFFSET($C$5,2,2):OFFSET($E$79,-1,0),OFFSET($C$5,4,2),OFFSET(F6,1,0):OFFSET(F79,-1,0)) -> 152395.7226 | G79: =SUMIF(OFFSET($C$5,2,2):OFFSET($E$79,-1,0),OFFSET($C$5,4,2),OFFSET(G6,1,0):OFFSET(G79,-1,0)) -> 247142.8114 | H79: =SUMIF(OFFSET($C$5,2,2):OFFSET($E$79,-1,0),OFFSET($C$5,4,2),OFFSET(H6,1,0):OFFSET(H79,-1,0)) -> 386030.4642 | I79: =SUMIF(OFFSET($C$5,2,2):OFFSET($E$79,-1,0),OFFSET($C$5,4,2),OFFSET(I6,1,0):OFFSET(I79,-1,0)) -> 533386.8934 | J79: =SUMIF(OFFSET($C$5,2,2):OFFSET($E$79,-1,0),OFFSET($C$5,4,2),OFFSET(J6,1,0):OFFSET(J79,-1,0)) -> 423992.9228 | K79: =SUMIF(OFFSET($C$5,2,2):OFFSET($E$79,-1,0),OFFSET($C$5,4,2),OFFSET(K6,1,0):OFFSET(K79,-1,0)) -> 206964.8955 | L79: =SUMIF(OFFSET($C$5,2,2):OFFSET($E$79,-1,0),OFFSET($C$5,4,2),OFFSET(L6,1,0):OFFSET(L79,-1,0)) -> 1949913.71
A80: TOTAL ACUMULADO | E80: R$ | F80: =SUM($F$79:F79) -> 152395.7226 | G80: =SUM($F$79:G79) -> 399538.5341 | H80: =SUM($F$79:H79) -> 785568.9983 | I80: =SUM($F$79:I79) -> 1318955.892 | J80: =SUM($F$79:J79) -> 1742948.814 | K80: =SUM($F$79:K79) -> 1949913.71
F85: =F79/$L$79 -> 0.07815511108 | G85: 0.126745512 | H85: 0.1979731012 | I85: 0.2735438449 | J85: 0.2174418902 | K85: 0.1061405407 | L85: 1

Sheet BDI
A1: BDI | AB1: 1 | AF1: CONSTRUÇÃO DE EDIFÍCIOS | AG1: 0.04 | AH1: 0.008 | AI1: 0.0127 | AJ1: 0.0123 | AK1: 0.074 | AM1: CONSTRUÇÃO DE EDIFÍCIOS | AN1: 0.03 | AO1: 0.008 | AP1: 0.0097 | AQ1: 0.0059 | AR1: 0.0616 | AT1: CONSTRUÇÃO DE EDIFÍCIOS | AU1: 0.055 | AV1: 0.01 | AW1: 0.0127 | AX1: 0.0139 | AY1: 0.0896
A2: =Resumo!$A$2 -> CONTRATANTE: | B2: =Resumo!$B$2 -> PREFEITURA MUNICIPAL DE JOÃO MONLEVADE-MG | S2: =Resumo!C2 -> PLANILHA MODELO: | Z2: =Resumo!$D$3 -> REV_00 | AF2: CONSTRUÇÃO DE RODOVIAS E FERROVIAS | AG2: 0.0401 | AH2: 0.004 | AI2: 0.0056 | AJ2: 0.0111 | AK2: 0.073 | AM2: CONSTRUÇÃO DE RODOVIAS E FERROVIAS | AN2: 0.038 | AO2: 0.0032 | AP2: 0.005 | AQ2: 0.0102 | AR2: 0.0664 | AT2: CONSTRUÇÃO DE RODOVIAS E FERROVIAS | AU2: 0.0467 | AV2: 0.0074 | AW2: 0.0097 | AX2: 0.0121 | AY2: 0.0869
A3: =Resumo!$A$3 -> CONTRATADA: | B3: =Resumo!$B$3 -> CONSÓRCIO PITÁGORAS | S3: =Resumo!C3 -> NÃO DESONERADA | Z3: =Resumo!$D$4 -> 2023-04-20 | AF3: CONSTRUÇÃO DE REDES DE ABASTECIMENTO DE ÁGUA, COLETA DE ESGOTO E CONSTRUÇÕES CORRELATAS | AG3: 0.0493 | AH3: 0.0049 | AI3: 0.0139 | AJ3: 0.0099 | AK3: 0.0804 | AM3: CONSTRUÇÃO DE REDES DE ABASTECIMENTO DE ÁGUA, COLETA DE ESGOTO E CONSTRUÇÕES CORRELATAS | AN3: 0.0343 | AO3: 0.0028 | AP3: 0.01 | AQ3: 0.0094 | AR3: 0.0674 | AT3: CONSTRUÇÃO DE REDES DE ABASTECIMENTO DE ÁGUA, COLETA DE ESGOTO E CONSTRUÇÕES CORRELATAS | AU3: 0.0671 | AV3: 0.0075 | AW3: 0.0174 | AX3: 0.0117 | AY3: 0.094
A4: =Resumo!$A$4 -> PROJETO: | B4: =Resumo!$B$4 -> CRAS III BEM VIVER | S4: QUARTIL MÉDIO | AF4: CONSTRUÇÃO DE MANUNTEÇÃO DE ESTAÇÕES E REDES DE DISTRIBUIÇÃO DE ENERGIA ELÉTRICA | AG4: 0.0592 | AH4: 0.0051 | AI4: 0.0148 | AJ4: 0.0107 | AK4: 0.0831 | AM4: CONSTRUÇÃO DE MANUNTEÇÃO DE ESTAÇÕES E REDES DE DISTRIBUIÇÃO DE ENERGIA ELÉTRICA | AN4: 0.0529 | AO4: 0.0025 | AP4: 0.01 | AQ4: 0.0101 | AR4: 0.08 | AT4: CONSTRUÇÃO DE MANUNTEÇÃO DE ESTAÇÕES E REDES DE DISTRIBUIÇÃO DE ENERGIA ELÉTRICA | AU4: 0.0793 | AV4: 0.0056 | AW4: 0.0197 | AX4: 0.0111 | AY4: 0.0951
A5: CONSTRUÇÃO DE EDIFÍCIOS | AF5: OBRAS PORTUÁRIAS, MARÍTIMAS E FLUVIAIS | AG5: 0.0552 | AH5: 0.0122 | AI5: 0.0232 | AJ5: 0.0102 | AK5: 0.084 | AM5: OBRAS PORTUÁRIAS, MARÍTIMAS E FLUVIAIS | AN5: 0.04 | AO5: 0.0081 | AP5: 0.0146 | AQ5: 0.0094 | AR5: 0.0714 | AT5: OBRAS PORTUÁRIAS, MARÍTIMAS E FLUVIAIS | AU5: 0.0785 | AV5: 0.0199 | AW5: 0.0316 | AX5: 0.0133 | AY5: 0.1043
AF6: CAEMA | AG6: 0.0493 | AH6: 0.0049 | AI6: 0.0139 | AJ6: 0.0099 | AK6: 0.0804 | AM6: CAEMA | AN6: 0.0493 | AO6: 0.0049 | AP6: 0.0139 | AQ6: 0.0099 | AR6: 0.0804 | AT6: CAEMA | AU6: 0.0493 | AV6: 0.0049 | AW6: 0.0139 | AX6: 0.0099 | AY6: 0.0804
A7: AC = | B7: ADMINISTRAÇÃO CENTRAL = | G7: =IF($S$4="QUARTIL MÉDIO",VLOOKUP($A$5,$AF$1:$AK$6,2,0),IF($S$4="PRIMEIRO QUARTIL",VLOOKUP($A$5,$AM$1:$AR$6,2,0),IF($S$4="TERCEIRO QUARTIL",VLOOKUP($A$5,$AT$1:$AY$6,2,0)))) -> 0.04
A8: S + G = | B8: SEGURO + GARANTIAS = | G8: =IF($S$4="QUARTIL MÉDIO",VLOOKUP($A$5,$AF$1:$AK$6,3,0),IF($S$4="PRIMEIRO QUARTIL",VLOOKUP($A$5,$AM$1:$AR$6,3,0),IF($S$4="TERCEIRO QUARTIL",VLOOKUP($A$5,$AT$1:$AY$6,3,0)))) -> 0.008 | AG8: QUARTIL MÉDIO | AN8: 1 QUARTIL | AU8: 3 QUARTIL
A9: R = | B9: RISCO = | G9: =IF($S$4="QUARTIL MÉDIO",VLOOKUP($A$5,$AF$1:$AK$6,4,0),IF($S$4="PRIMEIRO QUARTIL",VLOOKUP($A$5,$AM$1:$AR$6,4,0),IF($S$4="TERCEIRO QUARTIL",VLOOKUP($A$5,$AT$1:$AY$6,4,0)))) -> 0.0127 | AG9: ADM | AH9: SG | AI9: RI | AJ9: DF | AK9: LU | AN9: ADM | AO9: SG | AP9: RI | AQ9: DF | AR9: LU | AU9: ADM | AV9: SG | AW9: RI | AX9: DF | AY9: LU
A10: DF = | B10: DESPESAS FINANCEIRAS = | G10: =IF($S$4="QUARTIL MÉDIO",VLOOKUP($A$5,$AF$1:$AK$6,5,0),IF($S$4="PRIMEIRO QUARTIL",VLOOKUP($A$5,$AM$1:$AR$6,5,0),IF($S$4="TERCEIRO QUARTIL",VLOOKUP($A$5,$AT$1:$AY$6,5,0)))) -> 0.0123
A11: L = | B11: LUCRO = | G11: =IF($S$4="QUARTIL MÉDIO",VLOOKUP($A$5,$AF$1:$AK$6,6,0),IF($S$4="PRIMEIRO QUARTIL",VLOOKUP($A$5,$AM$1:$AR$6,6,0),IF($S$4="TERCEIRO QUARTIL",VLOOKUP($A$5,$AT$1:$AY$6,6,0)))) -> 0.074
A12: I = | B12: IMPOSTOS = | G12: =SUM(G13:G16) -> 0.0865
E13: COFINS | G13: 0.03
E14: PIS | G14: 0.0065
E15: ISS | G15: =VLOOKUP($B$2,Imagens!$G$17:$I$104,3,0) -> 0.05
E16: CPRB | G16: =IF(Resumo!C3=Resumo!N1,0,0.045) -> 0
B21: BDI = | C21: [ | D21: [( | E21: 1 | F21: + | G21: =G7 -> 0.04 | H21: + | I21: =G8 -> 0.008 | J21: + | K21: =G9 -> 0.0127 | L21: )x | M21: ( | N21: 1 | O21: + | P21: =G10 -> 0.0123 | Q21: )x | R21: ( | S21: 1 | T21: + | U21: =G11 -> 0.074 | V21: )] | W21: ] | X21: -1 | Y21: = | Z21: =ROUND((((E21+G21+I21+K21)*(N21+P21)*(S21+U21))/(N23-P23))-1,4) -> 0.2624
M23: ( | N23: 1 | O23: - | P23: =G12 -> 0.0865 | Q23: )
A25: 1 - FORMULA CONFORME ACORDAO nº 2622/2013 TCU - PLENÁRIO

Sheet Composições
A2: COMPOSIÇÃO DE PREÇOS
A3: =Resumo!$A$2 -> CONTRATANTE: | B3: =Resumo!$B$2 -> PREFEITURA MUNICIPAL DE JOÃO MONLEVADE-MG | H3: =Resumo!$D$2 -> 0.2624
A4: =Resumo!$A$3 -> CONTRATADA: | B4: =Resumo!$B$3 -> CONSÓRCIO PITÁGORAS | H4: =Resumo!$D$3 -> REV_00
A5: =Resumo!$A$4 -> PROJETO: | B5: =Resumo!$B$4 -> CRAS III BEM VIVER | H5: =Resumo!$D$4 -> 2023-04-20
N6: =UPPER(TRIM(B6)) ->  | O6: =UPPER(TRIM(D6)) ->  | P6: =UPPER(TRIM(E6)) ->  | Q6: =G6 -> 0
A7: Base | B7: Código | C7: Tipo | D7: Descrição | E7: Und | F7: Quant. | G7: Valor Unit | H7: Total | N7: =UPPER(TRIM(B7)) -> CÓDIGO | O7: =UPPER(TRIM(D7)) -> DESCRIÇÃO | P7: UND | Q7: =G7 -> Valor Unit
A9: 2.1.1.3 | B9: Código | C9: Banco | D9: Descrição | E9: Und | F9: Quant. | G9: Valor Unit | H9: Total | L9: =B9 -> Código | N9: =UPPER(TRIM(B9)) -> CÓDIGO | O9: =UPPER(TRIM(D9)) -> DESCRIÇÃO | P9: =UPPER(TRIM(E9)) -> UND | Q9: =G9 -> Valor Unit
A10: Composição | B10: ART-OBRA-002 | C10: Próprio | D10: ART DE OBRAS PARA CONTRATOS ACIMA DE R$15.000,00 | E10: UN | F10: 1 | G10: 254.59 | H10: 254.59 | L10: =B10 -> ART-OBRA-002 | N10: ART-OBRA-002 | O10: ART DE OBRAS PARA CONTRATOS ACIMA DE R$15.000,00 | P10: UN | Q10: =G10 -> 254.59 | T10: SERVIÇO
A11: Insumo | B11: ART.OBRA.002 | C11: Próprio | D11: ART PARA CONTRATOS ACIMA DE R$15.000,00 | E11: UND | F11: 1 | G11: 254.59 | H11: 254.59 | L11: =B11 -> ART.OBRA.002 | N11: ART.OBRA.002 | O11: ART PARA CONTRATOS ACIMA DE R$15.000,00 | P11: UND | Q11: =G11 -> 254.59 | T11: SERVIÇO
E12: LS => | F12: 0 | G12: MO com LS => | H12: 0 | L12: =B12 -> 0 | P12: LS => | Q12: MO com LS => | T12: SERVIÇO
F13: Valor sem BDI => | H13: 254.59 | L13: =B13 -> 0 | N13: =UPPER(TRIM(B13)) ->  | O13: =UPPER(TRIM(D13)) ->  | P13: =UPPER(TRIM(E13)) ->  | Q13: 0
L14: =B14 -> 0 | N14: =UPPER(TRIM(B14)) ->  | O14: =UPPER(TRIM(D14)) ->  | P14: =UPPER(TRIM(E14)) ->  | Q14: 0
A15: 2.1.1.4 | B15: Código | C15: Banco | D15: Descrição | E15: Und | F15: Quant. | G15: Valor Unit | H15: Total | L15: Código | N15: CÓDIGO | O15: DESCRIÇÃO | P15: UND | Q15: Valor Unit
A16: Composição | B16: ART-OBRA-003 | C16: Próprio | D16: ART DE OBRAS REFERENTE À AS BUILT | E16: UN | F16: 1 | G16: 254.59 | H16: 254.59 | L16: ART-OBRA-003 | N16: ART-OBRA-003 | O16: ART DE OBRAS REFERENTE À AS BUILT | P16: UN | Q16: 254.59
A17: Insumo | B17: ART.OBRA.002 | C17: Próprio | D17: ART PARA CONTRATOS ACIMA DE R$15.000,00 | E17: UND | F17: 1 | G17: 254.59 | H17: 254.59 | L17: =B17 -> ART.OBRA.002 | N17: ART.OBRA.002 | O17: ART PARA CONTRATOS ACIMA DE R$15.000,00 | P17: UND | Q17: 254.59
E18: LS => | F18: 0 | G18: MO com LS => | H18: 0 | L18: 0 | P18: LS => | Q18: MO com LS =>
F19: Valor sem BDI => | H19: 254.59 | N19: =UPPER(TRIM(B19)) ->  | O19: =UPPER(TRIM(D19)) ->  | P19: =UPPER(TRIM(E19)) ->  | Q19: 0 | AH19: =UPPER(TRIM(V19)) ->  | AI19: =UPPER(TRIM(X19)) ->  | AJ19: =UPPER(TRIM(Y19)) ->  | AK19: =AB19 -> 0
Q20: 0 | AK20: 0
A21: 4.1.5.1 | B21: Código | C21: Banco | D21: Descrição | E21: Und | F21: Quant. | G21: Valor Unit | H21: Total | N21: CÓDIGO | O21: DESCRIÇÃO | P21: UND | Q21: Valor Unit | AK21: 0
A22: Composição | B22: JMV-CRAS-066 | C22: Próprio | D22: RETIRADA ARMARIOS EMBUTIDOS - BASEADA DA SBC (022904) | E22: m² | F22: 1 | G22: 81.03 | H22: 81.03 | N22: JMV-CRAS-066 | O22: RETIRADA ARMARIOS EMBUTIDOS - BASEADA DA SBC (022904) | P22: M² | Q22: 81.03 | AK22: 0
A23: Composição Auxiliar | B23: 88261 | C23: SINAPI | D23: CARPINTEIRO DE ESQUADRIA COM ENCARGOS COMPLEMENTARES | E23: H | F23: 1.329 | G23: 30.59 | H23: 40.65 | N23: 88261 | O23: CARPINTEIRO DE ESQUADRIA COM ENCARGOS COMPLEMENTARES | P23: H | Q23: 30.59 | AK23: 0
A24: Composição Auxiliar | B24: 88316 | C24: SINAPI | D24: SERVENTE COM ENCARGOS COMPLEMENTARES | E24: H | F24: 2.044 | G24: 19.76 | H24: 40.38 | N24: 88316 | O24: SERVENTE COM ENCARGOS COMPLEMENTARES | P24: H | Q24: 19.76 | AK24: 0
E25: LS => | F25: 0 | G25: MO com LS => | H25: 62.63 | P25: LS => | Q25: MO com LS => | AK25: 0
F26: Valor sem BDI => | H26: 81.03 | Q26: 0 | AH26: =UPPER(TRIM(V26)) ->  | AI26: =UPPER(TRIM(X26)) ->  | AJ26: =UPPER(TRIM(Y26)) ->  | AK26: =AB26 -> 0
Q27: 0 | AK27: 0
A28: 6.3.3.6 | B28: Código | C28: Banco | D28: Descrição | E28: Und | F28: Quant. | G28: Valor Unit | H28: Total | N28: CÓDIGO | O28: DESCRIÇÃO | P28: UND | Q28: Valor Unit | AK28: 0
A29: Composição | B29: JMV-CRAS-001 | C29: Próprio | D29: JUNTA SERRADA SECA, SEÇÃO TRANSVERSAL - BASEADA DA ORSE (12800) | E29: m | F29: 1 | G29: 11.89 | H29: 11.89 | N29: JMV-CRAS-001 | O29: JUNTA SERRADA SECA, SEÇÃO TRANSVERSAL - BASEADA DA ORSE (12800) | P29: M | Q29: 11.89 | AK29: 0
A30: Composição Auxiliar | B30: 88309 | C30: SINAPI | D30: PEDREIRO COM ENCARGOS COMPLEMENTARES | E30: H | F30: 0.25 | G30: 27.45 | H30: 6.86 | N30: 88309 | O30: PEDREIRO COM ENCARGOS COMPLEMENTARES | P30: H | Q30: 27.45 | AK30: 0
A31: Composição Auxiliar | B31: 88315 | C31: SINAPI | D31: SERRALHEIRO COM ENCARGOS COMPLEMENTARES | E31: H | F31: 0.125 | G31: 27.23 | H31: 3.4 | N31: 88315 | O31: SERRALHEIRO COM ENCARGOS COMPLEMENTARES | P31: H | Q31: 27.23 | AK31: 0
A32: Insumo | B32: 12749 | C32: ORSE | D32: Aluguel de Máquina de corte em asfalto/concreto utilizando disco diamantado diam. 350 mm (não inclui o disco) d | E32: d | F32: 0.0156 | G32: 80 | H32: 1.24 | N32: 12749 | O32: ALUGUEL DE MÁQUINA DE CORTE EM ASFALTO/CONCRETO UTILIZANDO DISCO DIAMANTADO DIAM. 350 MM (NÃO INCLUI O DISCO) D | P32: D | Q32: 80 | AK32: 0
A33: Insumo | B33: 12750 | C33: ORSE | D33: Disco de corte diamantado para asfalto e concreto diam. 350mm (utilização 1.000,0m) un | E33: un | F33: 0.001 | G33: 390.65 | H33: 0.39 | N33: 12750 | O33: DISCO DE CORTE DIAMANTADO PARA ASFALTO E CONCRETO DIAM. 350MM (UTILIZAÇÃO 1.000,0M) UN | P33: UN | Q33: 390.65 | AK33: 0
E34: LS => | F34: 0 | G34: MO com LS => | H34: 8.15 | P34: LS => | Q34: MO com LS => | AK34: 0
F35: Valor sem BDI => | H35: 11.89 | Q35: 0 | AK35: 0
Q36: 0 | AK36: 0
A37: 9.2.1.8 | B37: Código | C37: Banco | D37: Descrição | E37: Und | F37: Quant. | G37: Valor Unit | H37: Total | N37: CÓDIGO | O37: DESCRIÇÃO | P37: UND | Q37: Valor Unit | AK37: 0
A38: Composição | B38: JMV-CRAS-090 | C38: Próprio | D38: ACABAMENTO CAMURÇADO PARA PISO DE CONCRETO ARMADO OU LAJE SOBRE SOLO DE ALTA RESISTÊNCIA. AF_09/2021 - BASEADO EM SINAPI (97097) | E38: m² | F38: 1 | G38: 33.21 | H38: 33.21 | N38: JMV-CRAS-090 | O38: ACABAMENTO CAMURÇADO PARA PISO DE CONCRETO ARMADO OU LAJE SOBRE SOLO DE ALTA RESISTÊNCIA. AF_09/2021 - BASEADO EM SINAPI (97097) | P38: M² | Q38: 33.21 | AK38: 0
A39: Composição Auxiliar | B39: 88309 | C39: SINAPI | D39: PEDREIRO COM ENCARGOS COMPLEMENTARES | E39: H | F39: 0.0616 | G39: 27.45 | H39: 1.69 | N39: 88309 | O39: PEDREIRO COM ENCARGOS COMPLEMENTARES | P39: H | Q39: 27.45 | AK39: 0
A40: Composição Auxiliar | B40: 95282 | C40: SINAPI | D40: DESEMPENADEIRA DE CONCRETO, PESO DE 78 KG, 4 PÁS, MOTOR A GASOLINA, POTÊNCIA 5,5 HP - CHP DIURNO. AF_09/2016 | E40: CHP | F40: 0.0049 | G40: 8.25 | H40: 0.04 | N40: 95282 | O40: DESEMPENADEIRA DE CONCRETO, PESO DE 78 KG, 4 PÁS, MOTOR A GASOLINA, POTÊNCIA 5,5 HP - CHP DIURNO. AF_09/2016 | P40: CHP | Q40: 8.25 | AK40: 0
A41: Insumo | B41: 00043146 | C41: SINAPI | D41: ENDURECEDOR MINERAL DE BASE CIMENTICIA PARA PISO DE CONCRETO | E41: KG | F41: 4 | G41: 7.87 | H41: 31.48 | N41: 00043146 | O41: ENDURECEDOR MINERAL DE BASE CIMENTICIA PARA PISO DE CONCRETO | P41: KG | Q41: 7.87 | AK41: 0
E42: LS => | F42: 0 | G42: MO com LS => | H42: 1.34 | P42: LS => | Q42: MO com LS => | AK42: 0
F43: Valor sem BDI => | H43: 33.21 | Q43: 0 | AK43: 0
Q44: 0 | AK44: 0
A45: 9.2.2.1 | B45: Código | C45: Banco | D45: Descrição | E45: Und | F45: Quant. | G45: Valor Unit | H45: Total | N45: CÓDIGO | O45: DESCRIÇÃO | P45: UND | Q45: Valor Unit | AK45: 0
A46: Composição | B46: JMV-CRAS-023 | C46: Próprio | D46: RODAPÉ EM GRANITO BRANCO SIENA, H=7CM, E=2CM, APLICADO COM ARGAMASSA INDUSTRIALIZADA AC-I - BASEADA DA ORSE (7652) | E46: m | F46: 1 | G46: 58.55 | H46: 58.55 | N46: JMV-CRAS-023 | O46: RODAPÉ EM GRANITO BRANCO SIENA, H=7CM, E=2CM, APLICADO COM ARGAMASSA INDUSTRIALIZADA AC-I - BASEADA DA ORSE (7652) | P46: M | Q46: 58.55 | AK46: 0
A47: Composição Auxiliar | B47: 3406 | C47: ORSE | D47: Argamassa industrializada AC-I, Votomassa ou similar | E47: kg | F47: 0.45 | G47: 0.74 | H47: 0.33 | N47: 3406 | O47: ARGAMASSA INDUSTRIALIZADA AC-I, VOTOMASSA OU SIMILAR | P47: KG | Q47: 0.74 | AK47: 0
A48: Composição Auxiliar | B48: 88309 | C48: SINAPI | D48: PEDREIRO COM ENCARGOS COMPLEMENTARES | E48: H | F48: 0.4 | G48: 27.45 | H48: 10.98 | N48: 88309 | O48: PEDREIRO COM ENCARGOS COMPLEMENTARES | P48: H | Q48: 27.45 | AK48: 0
A49: Insumo | B49: 7130 | C49: ORSE | D49: Rodapé granito branco Siena polido 7 x 2cm m | E49: m | F49: 1 | G49: 47.24 | H49: 47.24 | N49: 7130 | O49: RODAPÉ GRANITO BRANCO SIENA POLIDO 7 X 2CM M | P49: M | Q49: 47.24 | AK49: 0
E50: LS => | F50: 0 | G50: MO com LS => | H50: 8.76 | P50: LS => | Q50: MO com LS => | AK50: 0
F51: Valor sem BDI => | H51: 58.55 | Q51: 0 | AK51: 0
Q52: 0 | AK52: 0
A53: 9.2.2.2 | B53: Código | C53: Banco | D53: Descrição | E53: Und | F53: Quant. | G53: Valor Unit | H53: Total | N53: CÓDIGO | O53: DESCRIÇÃO | P53: UND | Q53: Valor Unit | AK53: 0
A54: Composição | B54: JMV-CRAS-024 | C54: Próprio | D54: RODAPÉ COM REVESTIMENTO EM CERÂMICA ESMALTADA COMERCIAL, ALTURA 7CM, PEI IV, ASSENTAMENTO COM ARGAMASSA INDUSTRIALIZADA, INCLUSIVE REJUNTAMENTO - BASEADA DA SETOP (ED-50771) | E54: m | F54: 1 | G54: 10.72 | H54: 10.72 | N54: JMV-CRAS-024 | O54: RODAPÉ COM REVESTIMENTO EM CERÂMICA ESMALTADA COMERCIAL, ALTURA 7CM, PEI IV, ASSENTAMENTO COM ARGAMASSA INDUSTRIALIZADA, INCLUSIVE REJUNTAMENTO - BASEADA DA SETOP (ED-50771) | P54: M | Q54: 10.72 | AK54: 0
E55: Custo Horário de Execução => | H55: 0 | P55: CUSTO HORÁRIO DE EXECUÇÃO => | Q55: 0 | AK55: 0
E56: Fator de Influencia da Chuva - FIC => | H56: 0 | P56: FATOR DE INFLUENCIA DA CHUVA - FIC => | Q56: 0 | AK56: 0
E57: Custo do FIC => | H57: 0 | P57: CUSTO DO FIC => | Q57: 0 | AK57: 0
E58: Produção de Equipe => | H58: 0 | P58: PRODUÇÃO DE EQUIPE => | Q58: 0 | AK58: 0
E59: Custo Unitário de Execução => | H59: 0 | P59: CUSTO UNITÁRIO DE EXECUÇÃO => | Q59: 0 | AK59: 0
A60: C | B60: Banco | C60: Código | D60: Material | E60: Preço Unitário | H60: Custo Horário | N60: BANCO | O60: MATERIAL | P60: PREÇO UNITÁRIO | Q60: 0 | AK60: 0
A61: Insumo | B61: SETOP | C61: MATED-12352 | D61: ARGAMASSA COLANTE (TIPO : AC-III|UTILIZAÇÃO: AMBIENTES INTERNOS E EXTERNOS) | E61: 1.95 | H61: 0.9214 | N61: SETOP | O61: ARGAMASSA COLANTE (TIPO : AC-III|UTILIZAÇÃO: AMBIENTES INTERNOS E EXTERNOS) | P61: 1,95 | Q61: 0 | AK61: 0
A62: Insumo | B62: SETOP | C62: MATED-9031 | D62: REVESTIMENTO CERÂMICO ( PADRÃO: EXTRA| ACABAMENTO: ESMALTADO| APLICAÇÃO: PISO|PEI: IV| AMBIENTE: INTERNO| DIMENSÃO: ÁREA ATÉ 2025CM2) | E62: 46.84 | H62: 3.7472 | N62: SETOP | O62: REVESTIMENTO CERÂMICO ( PADRÃO: EXTRA| ACABAMENTO: ESMALTADO| APLICAÇÃO: PISO|PEI: IV| AMBIENTE: INTERNO| DIMENSÃO: ÁREA ATÉ 2025CM2) | P62: 46,84 | Q62: 0 | AK62: 0
E63: Custo Total do Material => | H63: 4.6686 | P63: CUSTO TOTAL DO MATERIAL => | Q63: 0 | AK63: 0
A64: D | B64: Banco | C64: Código | D64: Atividades Auxiliares | E64: Preço Unitário | H64: Custo Horário | N64: BANCO | O64: ATIVIDADES AUXILIARES | P64: PREÇO UNITÁRIO | Q64: 0 | AK64: 0
A65: Atividade Auxiliar | B65: SETOP | C65: ED-50718 | D65: APLICAÇÃO DE REJUNTE CIMENTÍCIO COLORIDO INDUSTRIALIZADO PARA REVESTIMENTOS DE PAREDE/PISO COM JUNTAS DE ATÉ 3MM DE ESPESSURA | E65: 5.22 | H65: 0.5742 | N65: SETOP | O65: APLICAÇÃO DE REJUNTE CIMENTÍCIO COLORIDO INDUSTRIALIZADO PARA REVESTIMENTOS DE PAREDE/PISO COM JUNTAS DE ATÉ 3MM DE ESPESSURA | P65: 5,22 | Q65: 0 | AK65: 0
A66: Atividade Auxiliar | B66: SINAPI | C66: 88309 | D66: PEDREIRO COM ENCARGOS COMPLEMENTARES | E66: 27.45 | H66: 4.026 | N66: SINAPI | O66: PEDREIRO COM ENCARGOS COMPLEMENTARES | P66: 27,45 | Q66: 0 | AK66: 0
A67: Atividade Auxiliar | B67: SINAPI | C67: 88316 | D67: SERVENTE COM ENCARGOS COMPLEMENTARES | E67: 19.76 | H67: 1.4491 | N67: SINAPI | O67: SERVENTE COM ENCARGOS COMPLEMENTARES | P67: 19,76 | Q67: 0 | AK67: 0
E68: Custo Total das Atividades => | H68: 6.0493 | P68: CUSTO TOTAL DAS ATIVIDADES => | Q68: 0 | AK68: 0
E69: LS => | F69: 0 | G69: MO com LS => | H69: 4.605595485 | P69: LS => | Q69: MO com LS => | AK69: 0
F70: Valor sem BDI => | H70: 10.72 | Q70: 0 | AK70: 0
Q71: 0 | AK71: 0
A72: 12.1.1.1 | B72: Código | C72: Banco | D72: Descrição | E72: Und | F72: Quant. | G72: Valor Unit | H72: Total | N72: CÓDIGO | O72: DESCRIÇÃO | P72: UND | Q72: Valor Unit | AK72: 0
A73: Composição | B73: JMV-CRAS-151 | C73: Próprio | D73: JANELA EM ALUMÍNIO, COR NATURAL, PRETA OU BRANCA, 2 FOLHAS TIPO VENEZIANA DE ABRIR , COMPLETA INCLUSIVE CAIXILHOS, 2 FOLHAS DE ALUMINIO COM VIDROS INCLUSIVE DOBRADIÇAS OU ROLDANAS E FECHADURA. R_11/2019 - BASEADO EM CAERN (1090050) | E73: M² | F73: 1 | G73: 1011.32 | H73: 1011.32 | N73: JMV-CRAS-151 | O73: JANELA EM ALUMÍNIO, COR NATURAL, PRETA OU BRANCA, 2 FOLHAS TIPO VENEZIANA DE ABRIR , COMPLETA INCLUSIVE CAIXILHOS, 2 FOLHAS DE ALUMINIO COM VIDROS INCLUSIVE DOBRADIÇAS OU ROLDANAS E FECHADURA. R_11/2019 - BASEADO EM CAERN (1090050) | P73: M² | Q73: =G73 -> 1011.32 | AK73: 0
A74: Composição Auxiliar | B74: 88629 | C74: SINAPI | D74: ARGAMASSA TRAÇO 1:3 (EM VOLUME DE CIMENTO E AREIA MÉDIA ÚMIDA), PREPARO MANUAL. AF_08/2019 | E74: m³ | F74: 0.003 | G74: 653.04 | H74: 1.95 | N74: 88629 | O74: ARGAMASSA TRAÇO 1:3 (EM VOLUME DE CIMENTO E AREIA MÉDIA ÚMIDA), PREPARO MANUAL. AF_08/2019 | P74: M³ | Q74: 653.04 | AK74: 0
A75: Composição Auxiliar | B75: 88309 | C75: SINAPI | D75: PEDREIRO COM ENCARGOS COMPLEMENTARES | E75: H | F75: 1 | G75: 27.45 | H75: 27.45 | N75: 88309 | O75: PEDREIRO COM ENCARGOS COMPLEMENTARES | P75: H | Q75: 27.45 | AK75: 0
A76: Composição Auxiliar | B76: 88316 | C76: SINAPI | D76: SERVENTE COM ENCARGOS COMPLEMENTARES | E76: H | F76: 1 | G76: 19.76 | H76: 19.76 | N76: 88316 | O76: SERVENTE COM ENCARGOS COMPLEMENTARES | P76: H | Q76: 19.76 | AK76: 0
A77: Insumo | B77: 12797 | C77: ORSE | D77: Porta ou janela em alumínio, cor N/P/B,tipo veneziana, de abrir ou correr, completa inclusive caixilhos, dobradiças ou roldanas e fechadura m2 | E77: m² | F77: 1 | G77: 280 | H77: 280 | N77: 12797 | O77: PORTA OU JANELA EM ALUMÍNIO, COR N/P/B,TIPO VENEZIANA, DE ABRIR OU CORRER, COMPLETA INCLUSIVE CAIXILHOS, DOBRADIÇAS OU ROLDANAS E FECHADURA M2 | P77: M² | Q77: 280 | AK77: 0
A78: Insumo | B78: MATED-12723 | C78: SETOP | D78: JANELA DE ALUMINIO SOB ENCOMENDA, ACABAMENTO TIPO NATURAL, DE CORRER COM CONTRAMARCOS, INCLUSIVE FORNECIMENTO VIDRO LISO DE 4MM | E78: m² | F78: 1 | G78: 682.16 | H78: 682.16 | N78: =UPPER(TRIM(B78)) -> MATED-12723 | O78: =UPPER(TRIM(D78)) -> JANELA DE ALUMINIO SOB ENCOMENDA, ACABAMENTO TIPO NATURAL, DE CORRER COM CONTRAMARCOS, INCLUSIVE FORNECIMENTO VIDRO LISO DE 4MM | P78: M² | Q78: 682.16 | AK78: 0
E79: LS => | F79: 0 | G79: MO com LS => | H79: 36.48 | P79: LS => | Q79: MO com LS => | AK79: 0
F80: Valor sem BDI => | H80: 1011.32 | Q80: 0 | AK80: 0
Q81: 0 | AK81: 0
A82: 12.1.1.12 | B82: Código | C82: Banco | D82: Descrição | E82: Und | F82: Quant. | G82: Valor Unit | H82: Total | N82: CÓDIGO | O82: DESCRIÇÃO | P82: UND | Q82: Valor Unit | AK82: 0
A83: Composição | B83: JMV-CRAS-056 | C83: Próprio | D83: FECHAMENTO EM VIDRO TEMPERADO INCOLOR 10MM FIXO - BASEADA DA SBC (090412) | E83: m² | F83: 1 | G83: 664.14 | H83: 664.14 | N83: JMV-CRAS-056 | O83: FECHAMENTO EM VIDRO TEMPERADO INCOLOR 10MM FIXO - BASEADA DA SBC (090412) | P83: =UPPER(TRIM(E83)) -> M² | Q83: 664.14 | AK83: 0
A84: Composição Auxiliar | B84: 88325 | C84: SINAPI | D84: VIDRACEIRO COM ENCARGOS COMPLEMENTARES | E84: H | F84: 0.948 | G84: 21.98 | H84: 20.83 | N84: 88325 | O84: VIDRACEIRO COM ENCARGOS COMPLEMENTARES | P84: H | Q84: 21.98 | AK84: 0
A85: Composição Auxiliar | B85: 88243 | C85: SINAPI | D85: AJUDANTE ESPECIALIZADO COM ENCARGOS COMPLEMENTARES | E85: H | F85: 0.843 | G85: 21.76 | H85: 18.34 | N85: 88243 | O85: AJUDANTE ESPECIALIZADO COM ENCARGOS COMPLEMENTARES | P85: H | Q85: 21.76 | AK85: 0
A86: Insumo | B86: 008428 | C86: SBC | D86: FERRAGEM 1203 BRANCO SUPORTE COM BANDEIRA | E86: UN | F86: 2 | G86: 44.9 | H86: 89.8 | N86: 008428 | O86: FERRAGEM 1203 BRANCO SUPORTE COM BANDEIRA | P86: UN | Q86: 44.9 | AK86: 0
A87: Insumo | B87: 017266 | C87: SBC | D87: VIDRO TEMPERADO INCOLOR 10mm | E87: m² | F87: 1.05 | G87: 509.69 | H87: 535.17 | N87: 017266 | O87: VIDRO TEMPERADO INCOLOR 10MM | P87: M² | Q87: 509.69 | AK87: 0
E88: LS => | F88: 0 | G88: MO com LS => | H88: 29.23 | P88: LS => | Q88: MO com LS => | AK88: 0
F89: Valor sem BDI => | H89: 664.14 | Q89: 0 | AK89: 0
Q90: 0 | AH90: =UPPER(TRIM(V90)) ->  | AI90: =UPPER(TRIM(X90)) ->  | AJ90: =UPPER(TRIM(Y90)) ->  | AK90: =AB90 -> 0
A91: 12.1.1.13 | B91: Código | C91: Banco | D91: Descrição | E91: Und | F91: Quant. | G91: Valor Unit | H91: Total | N91: CÓDIGO | O91: DESCRIÇÃO | P91: UND | Q91: Valor Unit | AK91: 0
A92: Composição | B92: JMV-CRAS-055 | C92: Próprio | D92: JANELA BASCULANTE EM FERRO COM VIDRO 4MM - BASEADA DA SBC (111650) | E92: m² | F92: 1 | G92: 699.51 | H92: 699.51 | N92: JMV-CRAS-055 | O92: JANELA BASCULANTE EM FERRO COM VIDRO 4MM - BASEADA DA SBC (111650) | P92: M² | Q92: 699.51 | AK92: 0
A93: Composição Auxiliar | B93: 88315 | C93: SINAPI | D93: SERRALHEIRO COM ENCARGOS COMPLEMENTARES | E93: H | F93: 1.956 | G93: 27.23 | H93: 53.26 | N93: 88315 | O93: SERRALHEIRO COM ENCARGOS COMPLEMENTARES | P93: H | Q93: 27.23 | AK93: 0
A94: Composição Auxiliar | B94: 88325 | C94: SINAPI | D94: VIDRACEIRO COM ENCARGOS COMPLEMENTARES | E94: H | F94: 0.923 | G94: 21.98 | H94: 20.28 | N94: 88325 | O94: VIDRACEIRO COM ENCARGOS COMPLEMENTARES | P94: H | Q94: 21.98 | AK94: 0
A95: Composição Auxiliar | B95: 88243 | C95: SINAPI | D95: AJUDANTE ESPECIALIZADO COM ENCARGOS COMPLEMENTARES | E95: H | F95: 0.923 | G95: 21.76 | H95: 20.08 | N95: 88243 | O95: AJUDANTE ESPECIALIZADO COM ENCARGOS COMPLEMENTARES | P95: H | Q95: 21.76 | AK95: 0
A96: Composição Auxiliar | B96: 88251 | C96: SINAPI | D96: AUXILIAR DE SERRALHEIRO COM ENCARGOS COMPLEMENTARES | E96: H | F96: 1.956 | G96: 21.91 | H96: 42.85 | N96: 88251 | O96: AUXILIAR DE SERRALHEIRO COM ENCARGOS COMPLEMENTARES | P96: H | Q96: 21.91 | AK96: 0
A97: Insumo | B97: 000050 | C97: SBC | D97: CIMENTO PORTLAND CP III 32RS NBR 11578 (quilo) | E97: KG | F97: 1.2 | G97: 0.78 | H97: 0.93 | N97: 000050 | O97: CIMENTO PORTLAND CP III 32RS NBR 11578 (QUILO) | P97: KG | Q97: 0.78 | AK97: 0
A98: Insumo | B98: 000100 | C98: SBC | D98: AREIA GROSSA LAVADA | E98: m³ | F98: 0.003 | G98: 101.3 | H98: 0.3 | N98: 000100 | O98: AREIA GROSSA LAVADA | P98: M³ | Q98: 101.3 | AK98: 0
A99: Insumo | B99: 001322 | C99: SBC | D99: JANELA BASCULANTE EM FERRO COM BATENTE/REQUADRO | E99: m² | F99: 1.05 | G99: 458 | H99: 480.9 | N99: 001322 | O99: JANELA BASCULANTE EM FERRO COM BATENTE/REQUADRO | P99: M² | Q99: 458 | AK99: 0
A100: Insumo | B100: 008775 | C100: SBC | D100: VIDRO FANTASIA CANELADO 4mm | E100: m² | F100: 1 | G100: 80.91 | H100: 80.91 | N100: 008775 | O100: VIDRO FANTASIA CANELADO 4MM | P100: M² | Q100: 80.91 | AK100: 0
E101: LS => | F101: 0 | G101: MO com LS => | H101: 104.21 | P101: LS => | Q101: MO com LS => | AK101: 0
F102: Valor sem BDI => | H102: 699.51 | Q102: 0 | AK102: 0
Q103: 0 | AK103: 0
A104: 12.2.1.1 | B104: Código | C104: Banco | D104: Descrição | E104: Und | F104: Quant. | G104: Valor Unit | H104: Total | N104: CÓDIGO | O104: DESCRIÇÃO | P104: UND | Q104: Valor Unit | AK104: 0
A105: Composição | B105: JMV-CRAS-050 | C105: Próprio | D105: PORTA EM ALUMÍNIO LAMBRIL, COR BRANCA OU BRONZE, DE ABRIR OU CORRER, COMPLETA, INCLUSIVE CAIXILHOS, DOBRADIÇAS OU ROLDANAS E FECHADURA - BASEADA DA ORSE (13049) | E105: m² | F105: 1 | G105: 604.35 | H105: 604.35 | N105: JMV-CRAS-050 | O105: PORTA EM ALUMÍNIO LAMBRIL, COR BRANCA OU BRONZE, DE ABRIR OU CORRER, COMPLETA, INCLUSIVE CAIXILHOS, DOBRADIÇAS OU ROLDANAS E FECHADURA - BASEADA DA ORSE (13049) | P105: M² | Q105: 604.35 | AK105: 0
A106: Composição Auxiliar | B106: 1903 | C106: ORSE | D106: Argamassa cimento e areia traço t-1 (1:3) - 1 saco cimento 50kg / 3 padiolas areia dim. 0.35 x 0.45 x 0.23 m - Confecção mecânica e transporte | E106: m³ | F106: 0.003 | G106: 531.47 | H106: 1.59 | N106: 1903 | O106: ARGAMASSA CIMENTO E AREIA TRAÇO T-1 (1:3) - 1 SACO CIMENTO 50KG / 3 PADIOLAS AREIA DIM. 0.35 X 0.45 X 0.23 M - CONFECÇÃO MECÂNICA E TRANSPORTE | P106: M³ | Q106: 531.47 | AK106: 0
A107: Composição Auxiliar | B107: 88309 | C107: SINAPI | D107: PEDREIRO COM ENCARGOS COMPLEMENTARES | E107: H | F107: 1 | G107: 27.45 | H107: 27.45 | N107: 88309 | O107: PEDREIRO COM ENCARGOS COMPLEMENTARES | P107: H | Q107: 27.45 | AK107: 0
A108: Composição Auxiliar | B108: 88316 | C108: SINAPI | D108: SERVENTE COM ENCARGOS COMPLEMENTARES | E108: H | F108: 1 | G108: 19.76 | H108: 19.76 | N108: 88316 | O108: SERVENTE COM ENCARGOS COMPLEMENTARES | P108: H | Q108: 19.76 | AK108: 0
A109: Insumo | B109: 13797 | C109: ORSE | D109: Porta em alumínio lambril, cor branca ou bronze, de abrir ou correr, completa, inclusive caixilhos, dobradiças ou roldanas e fechadura m2 | E109: m² | F109: 1 | G109: 555.55 | H109: 555.55 | N109: 13797 | O109: PORTA EM ALUMÍNIO LAMBRIL, COR BRANCA OU BRONZE, DE ABRIR OU CORRER, COMPLETA, INCLUSIVE CAIXILHOS, DOBRADIÇAS OU ROLDANAS E FECHADURA M2 | P109: M² | Q109: 555.55 | AK109: 0
E110: LS => | F110: 0 | G110: MO com LS => | H110: 36.28 | P110: LS => | Q110: MO com LS => | AK110: 0
F111: Valor sem BDI => | H111: 604.35 | Q111: 0 | AK111: 0
Q112: 0 | AK112: 0
A113: 12.2.1.3 | B113: Código | C113: Banco | D113: Descrição | E113: Und | F113: Quant. | G113: Valor Unit | H113: Total | N113: CÓDIGO | O113: DESCRIÇÃO | P113: UND | Q113: Valor Unit | AK113: 0
A114: Composição | B114: JMV-CRAS-051 | C114: Próprio | D114: PORTA EM ALUMÍNIO LAMBRIL PNE, COR BRANCA OU BRONZE, DE ABRIR OU CORRER, COMPLETA, INCLUSIVE CAIXILHOS, DOBRADIÇAS OU ROLDANAS E FECHADURA - BASEADA DA ORSE (13049) | E114: m² | F114: 1 | G114: 740.21 | H114: 740.21 | N114: JMV-CRAS-051 | O114: PORTA EM ALUMÍNIO LAMBRIL PNE, COR BRANCA OU BRONZE, DE ABRIR OU CORRER, COMPLETA, INCLUSIVE CAIXILHOS, DOBRADIÇAS OU ROLDANAS E FECHADURA - BASEADA DA ORSE (13049) | P114: M² | Q114: 740.21 | AK114: 0
E115: Custo Horário de Execução => | H115: 0 | P115: CUSTO HORÁRIO DE EXECUÇÃO => | Q115: 0 | AK115: 0
E116: Fator de Influencia da Chuva - FIC => | H116: 0 | P116: FATOR DE INFLUENCIA DA CHUVA - FIC => | Q116: 0 | AK116: 0
E117: Custo do FIC => | H117: 0 | P117: CUSTO DO FIC => | Q117: 0 | AK117: 0
E118: Produção de Equipe => | H118: 0 | P118: PRODUÇÃO DE EQUIPE => | Q118: 0 | AK118: 0
E119: Custo Unitário de Execução => | H119: 0 | P119: CUSTO UNITÁRIO DE EXECUÇÃO => | Q119: 0 | AK119: 0
A120: C | B120: Banco | C120: Código | D120: Material | E120: Preço Unitário | H120: Custo Horário | N120: BANCO | O120: MATERIAL | P120: PREÇO UNITÁRIO | Q120: 0 | AK120: 0
A121: Insumo | B121: ORSE | C121: 13797 | D121: Porta em alumínio lambril, cor branca ou bronze, de abrir ou correr, completa, inclusive caixilhos, dobradiças ou roldanas e fechadura m2 | E121: 555.55 | H121: 555.55 | N121: ORSE | O121: PORTA EM ALUMÍNIO LAMBRIL, COR BRANCA OU BRONZE, DE ABRIR OU CORRER, COMPLETA, INCLUSIVE CAIXILHOS, DOBRADIÇAS OU ROLDANAS E FECHADURA M2 | P121: 555,55 | Q121: 0 | AK121: 0
A122: Insumo | B122: FDE | C122: 2.66.40 | D122: CHAPA DE ACO INOX P/ PROTECAO E=0.79MM | E122: 277.25 | H122: 52.8106 | N122: FDE | O122: CHAPA DE ACO INOX P/ PROTECAO E=0.79MM | P122: 277,25 | Q122: 0 | AK122: 0
E123: Custo Total do Material => | H123: 608.3606 | P123: CUSTO TOTAL DO MATERIAL => | Q123: 0 | AK123: 0
A124: D | B124: Banco | C124: Código | D124: Atividades Auxiliares | E124: Preço Unitário | H124: Custo Horário | N124: BANCO | O124: ATIVIDADES AUXILIARES | P124: PREÇO UNITÁRIO | Q124: 0 | AK124: 0
A125: Atividade Auxiliar | B125: ORSE | C125: 1903 | D125: Argamassa cimento e areia traço t-1 (1:3) - 1 saco cimento 50kg / 3 padiolas areia dim. 0.35 x 0.45 x 0.23 m - Confecção mecânica e transporte | E125: 531.47 | H125: 1.5944 | N125: ORSE | O125: ARGAMASSA CIMENTO E AREIA TRAÇO T-1 (1:3) - 1 SACO CIMENTO 50KG / 3 PADIOLAS AREIA DIM. 0.35 X 0.45 X 0.23 M - CONFECÇÃO MECÂNICA E TRANSPORTE | P125: 531,47 | Q125: 0 | AK125: 0
A126: Atividade Auxiliar | B126: SINAPI | C126: 88309 | D126: PEDREIRO COM ENCARGOS COMPLEMENTARES | E126: 27.45 | H126: 27.45 | N126: SINAPI | O126: PEDREIRO COM ENCARGOS COMPLEMENTARES | P126: 27,45 | Q126: 0 | AK126: 0
A127: Atividade Auxiliar | B127: SINAPI | C127: 88316 | D127: SERVENTE COM ENCARGOS COMPLEMENTARES | E127: 19.76 | H127: 19.76 | N127: SINAPI | O127: SERVENTE COM ENCARGOS COMPLEMENTARES | P127: 19,76 | Q127: 0 | AK127: 0
A128: Atividade Auxiliar | B128: SETOP | C128: ED-48163 | D128: BARRA DE APOIO EM AÇO INOX POLIDO RETA, DN 1.1/4" (31,75MM), PARA ACESSIBILIDADE (PMR/PCR), COMPRIMENTO 40CM, INSTALADO EM PORTA/PAREDE, INCLUSIVE FORNECIMENTO, INSTALAÇÃO E ACESSÓRIOS PARA FIXAÇÃO | E128: 156.96 | H128: 83.0475 | N128: SETOP | O128: BARRA DE APOIO EM AÇO INOX POLIDO RETA, DN 1.1/4" (31,75MM), PARA ACESSIBILIDADE (PMR/PCR), COMPRIMENTO 40CM, INSTALADO EM PORTA/PAREDE, INCLUSIVE FORNECIMENTO, INSTALAÇÃO E ACESSÓRIOS PARA FIXAÇÃO | P128: 156,96 | Q128: 0 | AK128: 0
E129: Custo Total das Atividades => | H129: 131.8519 | P129: CUSTO TOTAL DAS ATIVIDADES => | Q129: 0 | AK129: 0
E130: LS => | F130: 0 | G130: MO com LS => | H130: 43.51491618 | P130: LS => | Q130: MO com LS => | AK130: 0
F131: Valor sem BDI => | H131: 740.21 | Q131: 0 | AK131: 0
Q132: 0 | AK132: 0
A133: 12.2.1.5 | B133: Código | C133: Banco | D133: Descrição | E133: Und | F133: Quant. | G133: Valor Unit | H133: Total | N133: CÓDIGO | O133: DESCRIÇÃO | P133: UND | Q133: Valor Unit | AK133: 0
A134: Composição | B134: JMV-CRAS-052 | C134: Próprio | D134: PORTA PARA DIVISORIA NAVAL SIMPLES, INCLUSIVE FECHADURA E DOBRADICAS - FORNECIMENTO E INSTALACAO - BASEADA DA AGESUL (2001003002) | E134: m² | F134: 1 | G134: 416.5 | H134: 416.5 | N134: JMV-CRAS-052 | O134: PORTA PARA DIVISORIA NAVAL SIMPLES, INCLUSIVE FECHADURA E DOBRADICAS - FORNECIMENTO E INSTALACAO - BASEADA DA AGESUL (2001003002) | P134: M² | Q134: 416.5 | AK134: 0
A135: Composição Auxiliar | B135: 88261 | C135: SINAPI | D135: CARPINTEIRO DE ESQUADRIA COM ENCARGOS COMPLEMENTARES | E135: H | F135: 2 | G135: 30.59 | H135: 61.18 | N135: 88261 | O135: CARPINTEIRO DE ESQUADRIA COM ENCARGOS COMPLEMENTARES | P135: H | Q135: 30.59 | AK135: 0
A136: Composição Auxiliar | B136: 88239 | C136: SINAPI | D136: AJUDANTE DE CARPINTEIRO COM ENCARGOS COMPLEMENTARES | E136: H | F136: 2 | G136: 21.78 | H136: 43.56 | N136: 88239 | O136: AJUDANTE DE CARPINTEIRO COM ENCARGOS COMPLEMENTARES | P136: H | Q136: 21.78 | AK136: 0
A137: Insumo | B137: 00039427 | C137: SINAPI | D137: PERFIL CANALETA, FORMATO C, EM ACO ZINCADO, PARA ESTRUTURA FORRO DRYWALL, E = 0,5 MM, *46 X 18* (L X H), COMPRIMENTO 3 M | E137: M | F137: 5.25 | G137: 5.72 | H137: 30.03 | N137: 00039427 | O137: PERFIL CANALETA, FORMATO C, EM ACO ZINCADO, PARA ESTRUTURA FORRO DRYWALL, E = 0,5 MM, *46 X 18* (L X H), COMPRIMENTO 3 M | P137: M | Q137: =G137 -> 5.72 | AK137: 0
A138: Insumo | B138: 00034743 | C138: SINAPI | D138: COMPENSADO NAVAL - CHAPA/PAINEL EM MADEIRA COMPENSADA PRENSADA, DE 2200 X 1600 MM, E = 18 MM | E138: m² | F138: 1.76 | G138: 97.58 | H138: 171.74 | N138: 00034743 | O138: COMPENSADO NAVAL - CHAPA/PAINEL EM MADEIRA COMPENSADA PRENSADA, DE 2200 X 1600 MM, E = 18 MM | P138: M² | Q138: 97.58 | AK138: 0
A139: Insumo | B139: 00002420 | C139: SINAPI | D139: DOBRADICA EM ACO/FERRO, 3" X 2 1/2", E= 1,9 A 2 MM, SEM ANEL, CROMADO OU ZINCADO, TAMPA BOLA, COM PARAFUSOS | E139: UN | F139: 3 | G139: 11.5 | H139: 34.5 | N139: 00002420 | O139: DOBRADICA EM ACO/FERRO, 3" X 2 1/2", E= 1,9 A 2 MM, SEM ANEL, CROMADO OU ZINCADO, TAMPA BOLA, COM PARAFUSOS | P139: UN | Q139: 11.5 | AK139: 0
A140: Insumo | B140: 00043610 | C140: SINAPI | D140: FECHADURA ROSETA REDONDA PARA PORTA INTERNA, EM ACO INOX (MAQUINA, TESTA E CONTRA-TESTA) E EM ZAMAC (MACANETA, LINGUETA E TRINCOS) COM ACABAMENTO CROMADO, MAQUINA DE 40 MM, INCLUINDO CHAVE TIPO INTERNA (CONJUNTO DE FECHADURAS) | E140: CJ | F140: 1 | G140: 75.49 | H140: 75.49 | N140: 00043610 | O140: FECHADURA ROSETA REDONDA PARA PORTA INTERNA, EM ACO INOX (MAQUINA, TESTA E CONTRA-TESTA) E EM ZAMAC (MACANETA, LINGUETA E TRINCOS) COM ACABAMENTO CROMADO, MAQUINA DE 40 MM, INCLUINDO CHAVE TIPO INTERNA (CONJUNTO DE FECHADURAS) | P140: CJ | Q140: 75.49 | AK140: 0
E141: LS => | F141: 0 | G141: MO com LS => | H141: 82.94 | P141: LS => | Q141: MO com LS => | AK141: 0
F142: Valor sem BDI => | H142: 416.5 | N142: =UPPER(TRIM(B142)) ->  | O142: =UPPER(TRIM(D142)) ->  | Q142: 0 | AK142: 0
Q143: 0 | AK143: 0
A144: 12.2.1.6 | B144: Código | C144: Banco | D144: Descrição | E144: Und | F144: Quant. | G144: Valor Unit | H144: Total | N144: CÓDIGO | O144: DESCRIÇÃO | P144: UND | Q144: Valor Unit | AK144: 0
A145: Composição | B145: JMV-CRAS-053 | C145: Próprio | D145: PORTA OU JANELA EM ALUMÍNIO, COR N/P/B,TIPO VENEZIANA, DE ABRIR OU CORRER, COMPLETA INCLUSIVE CAIXILHOS, DOBRADIÇAS OU ROLDANAS E FECHADURA - BASEADA DA ORSE (11948) | E145: m² | F145: 1 | G145: 328.8 | H145: 328.8 | N145: JMV-CRAS-053 | O145: PORTA OU JANELA EM ALUMÍNIO, COR N/P/B,TIPO VENEZIANA, DE ABRIR OU CORRER, COMPLETA INCLUSIVE CAIXILHOS, DOBRADIÇAS OU ROLDANAS E FECHADURA - BASEADA DA ORSE (11948) | P145: M² | Q145: 328.8 | AK145: 0
A146: Composição Auxiliar | B146: 1903 | C146: ORSE | D146: Argamassa cimento e areia traço t-1 (1:3) - 1 saco cimento 50kg / 3 padiolas areia dim. 0.35 x 0.45 x 0.23 m - Confecção mecânica e transporte | E146: m³ | F146: 0.003 | G146: 531.47 | H146: 1.59 | N146: 1903 | O146: ARGAMASSA CIMENTO E AREIA TRAÇO T-1 (1:3) - 1 SACO CIMENTO 50KG / 3 PADIOLAS AREIA DIM. 0.35 X 0.45 X 0.23 M - CONFECÇÃO MECÂNICA E TRANSPORTE | P146: M³ | Q146: 531.47 | AK146: 0
A147: Composição Auxiliar | B147: 88309 | C147: SINAPI | D147: PEDREIRO COM ENCARGOS COMPLEMENTARES | E147: H | F147: 1 | G147: 27.45 | H147: 27.45 | N147: 88309 | O147: PEDREIRO COM ENCARGOS COMPLEMENTARES | P147: =UPPER(TRIM(E147)) -> H | Q147: 27.45 | AK147: 0
A148: Composição Auxiliar | B148: 88316 | C148: SINAPI | D148: SERVENTE COM ENCARGOS COMPLEMENTARES | E148: H | F148: 1 | G148: 19.76 | H148: 19.76 | N148: 88316 | O148: SERVENTE COM ENCARGOS COMPLEMENTARES | P148: H | Q148: 19.76 | AK148: 0
A149: Insumo | B149: 12797 | C149: ORSE | D149: Porta ou janela em alumínio, cor N/P/B,tipo veneziana, de abrir ou correr, completa inclusive caixilhos, dobradiças ou roldanas e fechadura m2 | E149: m² | F149: 1 | G149: 280 | H149: 280 | N149: 12797 | O149: PORTA OU JANELA EM ALUMÍNIO, COR N/P/B,TIPO VENEZIANA, DE ABRIR OU CORRER, COMPLETA INCLUSIVE CAIXILHOS, DOBRADIÇAS OU ROLDANAS E FECHADURA M2 | P149: M² | Q149: 280 | AK149: 0
E150: LS => | F150: 0 | G150: MO com LS => | H150: 36.28 | P150: LS => | Q150: MO com LS => | AK150: 0
F151: Valor sem BDI => | H151: 328.8 | Q151: 0 | AK151: 0
Q152: 0 | AK152: 0
A153: 12.2.1.9 | B153: Código | C153: Banco | D153: Descrição | E153: Und | F153: Quant. | G153: Valor Unit | H153: Total | N153: CÓDIGO | O153: DESCRIÇÃO | P153: UND | Q153: Valor Unit | AK153: 0
A154: Composição | B154: JMV-CRAS-054 | C154: Próprio | D154: PORTAO DE 2 FOLHAS DE TUBO E TELA GALVANIZADOS COM PORTA CADEADO - BASEADA DA FDE (06.80.025) | E154: m² | F154: 1 | G154: 721.4 | H154: 721.4 | N154: JMV-CRAS-054 | O154: PORTAO DE 2 FOLHAS DE TUBO E TELA GALVANIZADOS COM PORTA CADEADO - BASEADA DA FDE (06.80.025) | P154: M² | Q154: 721.4 | AH154: =UPPER(TRIM(V154)) ->  | AI154: =UPPER(TRIM(X154)) ->  | AJ154: =UPPER(TRIM(Y154)) ->  | AK154: =AB154 -> 0
A155: Composição Auxiliar | B155: 88309 | C155: SINAPI | D155: PEDREIRO COM ENCARGOS COMPLEMENTARES | E155: H | F155: 0.55 | G155: 27.45 | H155: 15.09 | N155: 88309 | O155: PEDREIRO COM ENCARGOS COMPLEMENTARES | P155: H | Q155: 27.45 | AK155: 0
A156: Composição Auxiliar | B156: 88316 | C156: SINAPI | D156: SERVENTE COM ENCARGOS COMPLEMENTARES | E156: H | F156: 0.55 | G156: 19.76 | H156: 10.86 | N156: 88316 | O156: SERVENTE COM ENCARGOS COMPLEMENTARES | P156: H | Q156: 19.76 | AK156: 0
A157: Insumo | B157: 3.12.33 | C157: FDE | D157: PORTA DE TELA PT-05 | E157: UN | F157: 0.14 | G157: 4967.57 | H157: 695.45 | N157: 3.12.33 | O157: PORTA DE TELA PT-05 | P157: UN | Q157: 4967.57 | AK157: 0
E158: LS => | F158: 0 | G158: MO com LS => | H158: 19.86 | P158: LS => | Q158: MO com LS => | AK158: 0
F159: Valor sem BDI => | H159: 721.4 | Q159: 0 | AK159: 0
Q160: 0 | AK160: 0
A161: 13.1.1.18 | B161: Código | C161: Banco | D161: Descrição | E161: Und | F161: Quant. | G161: Valor Unit | H161: Total | N161: CÓDIGO | O161: DESCRIÇÃO | P161: UND | Q161: Valor Unit | AK161: 0
A162: Composição | B162: JMV-CRA-100 | C162: Próprio | D162: CANALETA EVOLUTIVA APARENTE COM TAMPA EM PVC, DIM.:80X35 MM - BASEADO EM CPOS 38.07.700 | E162: M | F162: 1 | G162: 148.4 | H162: 148.4 | N162: JMV-CRA-100 | O162: CANALETA EVOLUTIVA APARENTE COM TAMPA EM PVC, DIM.:80X35 MM - BASEADO EM CPOS 38.07.700 | P162: M | Q162: 148.4 | AK162: 0
A163: Composição Auxiliar | B163: 88264 | C163: SINAPI | D163: ELETRICISTA COM ENCARGOS COMPLEMENTARES | E163: H | F163: 0.3 | G163: 27.8 | H163: 8.34 | N163: 88264 | O163: ELETRICISTA COM ENCARGOS COMPLEMENTARES | P163: H | Q163: 27.8 | AK163: 0
A164: Composição Auxiliar | B164: 88247 | C164: SINAPI | D164: AUXILIAR DE ELETRICISTA COM ENCARGOS COMPLEMENTARES | E164: H | F164: 0.3 | G164: 22.34 | H164: 6.7 | N164: 88247 | O164: AUXILIAR DE ELETRICISTA COM ENCARGOS COMPLEMENTARES | P164: H | Q164: 22.34 | AK164: 0
A165: Insumo | B165: JMV.CRA.100 | C165: Próprio | D165: CANALETA DLP 80X35x2000MM | E165: PC | F165: 1 | G165: 133.36 | H165: 133.36 | N165: JMV.CRA.100 | O165: CANALETA DLP 80X35X2000MM | P165: PC | Q165: 133.36 | AK165: 0
E166: LS => | F166: 0 | G166: MO com LS => | H166: 11.66 | P166: LS => | Q166: MO com LS => | AK166: 0
F167: Valor sem BDI => | H167: 148.4 | Q167: 0 | AK167: 0
Q168: 0 | AK168: 0
A169: 13.1.2.1 | B169: Código | C169: Banco | D169: Descrição | E169: Und | F169: Quant. | G169: Valor Unit | H169: Total | N169: CÓDIGO | O169: DESCRIÇÃO | P169: UND | Q169: Valor Unit | AK169: 0
A170: Composição | B170: JMV-CRA-101 | C170: Próprio | D170: CONJUNTO DE UMA (1) TOMADA HDMI, COM PLACA 4"X2" - BASEADO EM SETOP (ED-15752) | E170: un | F170: 1 | G170: 167.14 | H170: 167.14 | N170: JMV-CRA-101 | O170: CONJUNTO DE UMA (1) TOMADA HDMI, COM PLACA 4"X2" - BASEADO EM SETOP (ED-15752) | P170: UN | Q170: 167.14 | AK170: 0
A171: Composição Auxiliar | B171: 88264 | C171: SINAPI | D171: ELETRICISTA COM ENCARGOS COMPLEMENTARES | E171: H | F171: 0.3 | G171: 27.8 | H171: 8.34 | N171: 88264 | O171: ELETRICISTA COM ENCARGOS COMPLEMENTARES | P171: H | Q171: 27.8 | AK171: 0
A172: Composição Auxiliar | B172: 88247 | C172: SINAPI | D172: AUXILIAR DE ELETRICISTA COM ENCARGOS COMPLEMENTARES | E172: H | F172: 0.3 | G172: 22.34 | H172: 6.7 | N172: 88247 | O172: AUXILIAR DE ELETRICISTA COM ENCARGOS COMPLEMENTARES | P172: H | Q172: 22.34 | AK172: 0
A173: Insumo | B173: JMV.CRA.101 | C173: Próprio | D173: CONJUNTO TOMADA HDMI + PLACA 4X2 | E173: UN | F173: 1 | G173: 152.1 | H173: 152.1 | N173: JMV.CRA.101 | O173: CONJUNTO TOMADA HDMI + PLACA 4X2 | P173: UN | Q173: 152.1 | AK173: 0
E174: LS => | F174: 0 | G174: MO com LS => | H174: 11.66 | P174: LS => | Q174: MO com LS => | AK174: 0
F175: Valor sem BDI => | H175: 167.14 | Q175: 0 | AK175: 0
Q176: 0 | AK176: 0
A177: 13.1.2.5 | B177: Código | C177: Banco | D177: Descrição | E177: Und | F177: Quant. | G177: Valor Unit | H177: Total | N177: CÓDIGO | O177: DESCRIÇÃO | P177: UND | Q177: Valor Unit | AK177: 0
A178: Composição | B178: JMV-CRA-109 | C178: Próprio | D178: CAIXA DE TOMADAS ABS DE MESA, PARA 3 BLOCOS: 2 MÓDULOS DE TOMADA + 1 TOMADA RJ-45 - BASEADA DA SBC (062564) | E178: UN | F178: 1 | G178: 446.52 | H178: 446.52 | N178: JMV-CRA-109 | O178: CAIXA DE TOMADAS ABS DE MESA, PARA 3 BLOCOS: 2 MÓDULOS DE TOMADA + 1 TOMADA RJ-45 - BASEADA DA SBC (062564) | P178: UN | Q178: 446.52 | AK178: 0
A179: Composição Auxiliar | B179: 88264 | C179: SINAPI | D179: ELETRICISTA COM ENCARGOS COMPLEMENTARES | E179: H | F179: 1.226 | G179: 27.8 | H179: 34.08 | N179: 88264 | O179: ELETRICISTA COM ENCARGOS COMPLEMENTARES | P179: H | Q179: 27.8 | AK179: 0
A180: Composição Auxiliar | B180: 88247 | C180: SINAPI | D180: AUXILIAR DE ELETRICISTA COM ENCARGOS COMPLEMENTARES | E180: H | F180: 1.226 | G180: 22.34 | H180: 27.38 | N180: 88247 | O180: AUXILIAR DE ELETRICISTA COM ENCARGOS COMPLEMENTARES | P180: H | Q180: 22.34 | AK180: 0
A181: Insumo | B181: JMV.CRA.109 | C181: Próprio | D181: CAIXA DE TOMADAS ABS DE MESA, PARA 3 BLOCOS: 2 MÓDULOS DE TOMADA + 1 TOMADA RJ-45 | E181: UND | F181: 1 | G181: 385.06 | H181: 385.06 | N181: JMV.CRA.109 | O181: CAIXA DE TOMADAS ABS DE MESA, PARA 3 BLOCOS: 2 MÓDULOS DE TOMADA + 1 TOMADA RJ-45 | P181: UND | Q181: 385.06 | AK181: 0
E182: LS => | F182: 0 | G182: MO com LS => | H182: 47.68 | P182: LS => | Q182: MO com LS => | AK182: 0
F183: Valor sem BDI => | H183: 446.52 | Q183: 0 | AK183: 0
Q184: 0 | AK184: 0
A185: 13.1.2.6 | B185: Código | C185: Banco | D185: Descrição | E185: Und | F185: Quant. | G185: Valor Unit | H185: Total | N185: CÓDIGO | O185: DESCRIÇÃO | P185: UND | Q185: Valor Unit | AK185: 0
A186: Composição | B186: JMV-CRA-108 | C186: Próprio | D186: CAIXA DE TOMADAS ABS DE MESA, PARA 4 BLOCOS: 2 MÓDULOS DE TOMADA + 2 TOMADA RJ-45 FÊMEA - BASEADA DA SBC (062564) | E186: UN | F186: 1 | G186: 336.46 | H186: 336.46 | N186: JMV-CRA-108 | O186: CAIXA DE TOMADAS ABS DE MESA, PARA 4 BLOCOS: 2 MÓDULOS DE TOMADA + 2 TOMADA RJ-45 FÊMEA - BASEADA DA SBC (062564) | P186: UN | Q186: 336.46 | AK186: 0
A187: Composição Auxiliar | B187: 88264 | C187: SINAPI | D187: ELETRICISTA COM ENCARGOS COMPLEMENTARES | E187: H | F187: 1.226 | G187: 27.8 | H187: 34.08 | N187: 88264 | O187: ELETRICISTA COM ENCARGOS COMPLEMENTARES | P187: H | Q187: 27.8 | AK187: 0
A188: Composição Auxiliar | B188: 88247 | C188: SINAPI | D188: AUXILIAR DE ELETRICISTA COM ENCARGOS COMPLEMENTARES | E188: H | F188: 1.226 | G188: 22.34 | H188: 27.38 | N188: 88247 | O188: AUXILIAR DE ELETRICISTA COM ENCARGOS COMPLEMENTARES | P188: H | Q188: 22.34 | AK188: 0
A189: Insumo | B189: JMV.CRA.108 | C189: Próprio | D189: CAIXA DE TOMADAS ABS DE MESA, PARA 4 BLOCOS: 2 MÓDULOS DE TOMADA + 2 TOMADA RJ-45 FÊMEA | E189: UND | F189: 1 | G189: 275 | H189: 275 | N189: JMV.CRA.108 | O189: CAIXA DE TOMADAS ABS DE MESA, PARA 4 BLOCOS: 2 MÓDULOS DE TOMADA + 2 TOMADA RJ-45 FÊMEA | P189: UND | Q189: 275 | AK189: 0
E190: LS => | F190: 0 | G190: MO com LS => | H190: 47.68 | P190: LS => | Q190: MO com LS => | AK190: 0
F191: Valor sem BDI => | H191: 336.46 | Q191: 0 | AK191: 0
Q192: 0 | AK192: 0
A193: 13.1.3.4 | B193: Código | C193: Banco | D193: Descrição | E193: Und | F193: Quant. | G193: Valor Unit | H193: Total | N193: CÓDIGO | O193: DESCRIÇÃO | P193: UND | Q193: Valor Unit | AK193: 0
A194: Composição | B194: JMV-CRA-102 | C194: Próprio | D194: ETIQUETA ADESIVA INDELÉVEL PARA IDENTIFICAÇÃO DOS CIRCUITOS - BASEADO EM ORSE (8824) | E194: un | F194: 1 | G194: 1.06 | H194: 1.06 | N194: JMV-CRA-102 | O194: ETIQUETA ADESIVA INDELÉVEL PARA IDENTIFICAÇÃO DOS CIRCUITOS - BASEADO EM ORSE (8824) | P194: UN | Q194: 1.06 | AK194: 0
A195: Composição Auxiliar | B195: 88266 | C195: SINAPI | D195: ELETROTÉCNICO COM ENCARGOS COMPLEMENTARES | E195: H | F195: 0.0016 | G195: 40.06 | H195: 0.06 | N195: 88266 | O195: ELETROTÉCNICO COM ENCARGOS COMPLEMENTARES | P195: H | Q195: 40.06 | AK195: 0
A196: Insumo | B196: 9109 | C196: ORSE | D196: Identificador Sollus numérico de (0 a 9) ou similar un | E196: un | F196: 1 | G196: 1 | H196: 1 | N196: 9109 | O196: IDENTIFICADOR SOLLUS NUMÉRICO DE (0 A 9) OU SIMILAR UN | P196: UN | Q196: 1 | AK196: 0
E197: LS => | F197: 0 | G197: MO com LS => | H197: 0.05 | P197: LS => | Q197: MO com LS => | AK197: 0
F198: Valor sem BDI => | H198: 1.06 | Q198: 0 | AK198: 0
Q199: 0 | AK199: 0
A200: 13.1.4.1 | B200: Código | C200: Banco | D200: Descrição | E200: Und | F200: Quant. | G200: Valor Unit | H200: Total | N200: CÓDIGO | O200: DESCRIÇÃO | P200: UND | Q200: Valor Unit | AK200: 0
A201: Composição | B201: JMV-CRA-103 | C201: Próprio | D201: Fornecimento e instalação de Mini Rack de Parede Padrão 19" - 12 U´s x 570mm - BASEADO EM IOPES (160811) | E201: und | F201: 1 | G201: 595.98 | H201: 595.98 | N201: JMV-CRA-103 | O201: FORNECIMENTO E INSTALAÇÃO DE MINI RACK DE PAREDE PADRÃO 19" - 12 U´S X 570MM - BASEADO EM IOPES (160811) | P201: UND | Q201: =G201 -> 595.98 | AK201: 0
A202: Composição Auxiliar | B202: 88264 | C202: SINAPI | D202: ELETRICISTA COM ENCARGOS COMPLEMENTARES | E202: H | F202: 1.03 | G202: 27.8 | H202: 28.63 | N202: 88264 | O202: ELETRICISTA COM ENCARGOS COMPLEMENTARES | P202: H | Q202: 27.8 | AK202: 0
... 4298 more rows

Sheet Cotação
A2: COTAÇÃO DE PREÇOS | K2: MÉDIA
A3: =Resumo!$A$2 -> CONTRATANTE: | B3: =Resumo!$B$2 -> PREFEITURA MUNICIPAL DE JOÃO MONLEVADE-MG | E3: =Resumo!$D$3 -> REV_00 | K3: MEDIANA
A4: =Resumo!$A$3 -> CONTRATADA: | B4: =Resumo!$B$3 -> CONSÓRCIO PITÁGORAS | E4: =Resumo!$D$4 -> 2023-04-20
A5: =Resumo!$A$4 -> PROJETO: | B5: =Resumo!$B$4 -> CRAS III BEM VIVER | D5: MÉDIA OU MEDIANA: | E5: MEDIANA
A7: COTAÇÃO | B7: DESCRIÇÃO / FORNECEDOR | C7: UNIDADE | E7: PREÇO
A9: COT-01 | B9: RALO SIFONADO 100X150X50 | C9: UND | E9: =IFERROR(IF($E$5="MÉDIA",AVERAGE(OFFSET(E9,1,0,):OFFSET(E13,-1,0,)),IF($E$5="MEDIANA",MEDIAN(OFFSET(E9,1,0,):OFFSET(E13,-1,0,)),0)),0) -> 36
A10: =IFERROR(OFFSET(A10,-1,0)+1,1) -> 1 | B10: MAGAZINE LUIZA | C10: UND | D10: VALOR: | E10: 36
A11: =IFERROR(OFFSET(A11,-1,0)+1,1) -> 2 | B11: MADEIRA MADEIRA | C11: UND | D11: VALOR: | E11: 33.32
A12: 3 | B12: VILAÇA | C12: UND | D12: VALOR: | E12: 38.3
A13: FIM
A15: COT-02 | B15: TELHA SANDUICHE ISOTERMICA COLONIAL | C15: UND | E15: =IFERROR(IF($E$5="MÉDIA",AVERAGE(OFFSET(E15,1,0,):OFFSET(E19,-1,0,)),IF($E$5="MEDIANA",MEDIAN(OFFSET(E15,1,0,):OFFSET(E19,-1,0,)),0)),0) -> 194.66
A16: =IFERROR(OFFSET(A16,-1,0)+1,1) -> 1 | B16: KINGSPAN | C16: M2 | D16: VALOR: | E16: 194.66
A17: =IFERROR(OFFSET(A17,-1,0)+1,1) -> 2 | B17: MEU TELHADO | C17: M2 | D17: VALOR: | E17: 176.69
A18: 3 | B18: CASA DA TELHA | C18: M2 | D18: VALOR: | E18: 349
A19: FIM
A21: COT-03 | B21: TUBO QUADRADO 100X100X3,00 - ASTM A53 | C21: UND | E21: =IFERROR(IF($E$5="MÉDIA",AVERAGE(OFFSET(E21,1,0,):OFFSET(E25,-1,0,)),IF($E$5="MEDIANA",MEDIAN(OFFSET(E21,1,0,):OFFSET(E25,-1,0,)),0)),0) -> 10.1
A22: =IFERROR(OFFSET(A22,-1,0)+1,1) -> 1 | B22: CENTURY TUBOS | C22: KG | D22: VALOR: | E22: 11
A23: =IFERROR(OFFSET(A23,-1,0)+1,1) -> 2 | B23: TUBOFACIL | C23: KG | D23: VALOR: | E23: 8.82
A24: 3 | B24: TUBOS OLIVEIRA | C24: KG | D24: VALOR: | E24: 10.1
A25: FIM
A27: COT-04 | B27: PARAFUSO PB 12 1/4" - 14X3.1/4" P04 | C27: UND | E27: =IFERROR(IF($E$5="MÉDIA",AVERAGE(OFFSET(E27,1,0,):OFFSET(E30,-1,0,)),IF($E$5="MEDIANA",MEDIAN(OFFSET(E27,1,0,):OFFSET(E30,-1,0,)),0)),0) -> 2.415
A28: =IFERROR(OFFSET(A28,-1,0)+1,1) -> 1 | B28: HARD | C28: UND | D28: VALOR: | E28: 2.93
A29: =IFERROR(OFFSET(A29,-1,0)+1,1) -> 2 | B29: AÇOSVITAL | C29: UND | D29: VALOR: | E29: 1.9
A30: FIM
A32: COT-05 | B32: PARAFUSO AUTO-BROCANTES PB 1/4" 14X7/8" P01 | C32: UND | E32: =IFERROR(IF($E$5="MÉDIA",AVERAGE(OFFSET(E32,1,0,):OFFSET(E36,-1,0,)),IF($E$5="MEDIANA",MEDIAN(OFFSET(E32,1,0,):OFFSET(E36,-1,0,)),0)),0) -> 0.8
A33: =IFERROR(OFFSET(A33,-1,0)+1,1) -> 1 | B33: AÇOSVITAL | C33: UND | D33: VALOR: | E33: 0.99
A34: =IFERROR(OFFSET(A34,-1,0)+1,1) -> 2 | B34: ROYAL | C34: UND | D34: VALOR: | E34: 0.8
A35: 3 | B35: CCP | C35: UND | D35: VALOR: | E35: 0.54
A36: FIM

Sheet Suporte (hidden)
A1: =V1&"."&W1&"."&X1&"."&Y1 ->  | D1: =PROCURA_DESCRICAO_SERVICO -> 0 | E1: =PROCURA_UNIDADE_SERVICO -> 0 | G1: =PROCURA_PRECO_SERVICO -> 0 | H1: =CUSTO_BDI_SERVICO -> 0 | I1: =CUSTO_TOTAL_SERVICO -> 0 | N1: SERVIÇO | R1: NIVEL 4 | S1: NIVEL 4 | T1: NIVEL 4 | U1: NIVEL 4 | V1: =COUNTIF($R$1:$R1,"NIVEL 1") -> 0 | W1: =IFERROR(COUNTIF(INDIRECT(Z1):S1,"NIVEL 2"),0) -> 0 | X1: =COUNTIF(INDIRECT(AB1):T1,"NIVEL 3") -> 0 | Y1: =IF(U1="NIVEL 4",OFFSET(Y1,-1,0)+1,0) ->  | Z1: =ADDRESS(MATCH(COUNTIF($R$1:$R1,"NIVEL 1"),V:V,0),COLUMN(S1)) -> $S$1 | AA1: =ADDRESS(MATCH(COUNTIF($R$1:$R1,"NIVEL 1"),V:V,0),COLUMN(W1)) -> $W$1 | AB1: =ADDRESS((MATCH(COUNTIF(INDIRECT(Z1):$S1,"NIVEL 2"),INDIRECT(AA1):W1,0)+(MATCH(COUNTIF($R$1:$R1,"NIVEL 1"),V:V,0)-1)),COLUMN(T1)) -> $T$1 | BC1: =PROCURA_PRECO_SERVICO -> 0
D2: =PROCURA_DESCRICAO_MATERIAL ->  | E2: =PROCURA_UNIDADE_MATERIAL ->  | G2: =PROCURA_PRECO_MATERIAL ->  | H2: =CUSTO_BDI_MATERIAL ->  | I2: =CUSTO_TOTAL_MATERIAL ->  | N2: SERVIÇO | R2: NIVEL 4 | S2: NIVEL 4 | T2: NIVEL 4 | U2: NIVEL 4 | V2: =COUNTIF($R$1:$R2,"NIVEL 1") -> 0 | W2: =IFERROR(COUNTIF(INDIRECT(Z2):S2,"NIVEL 2"),0) -> 0 | X2: =COUNTIF(INDIRECT(AB2):T2,"NIVEL 3") -> 0 | Z2: =ADDRESS(MATCH(COUNTIF($R$1:$R2,"NIVEL 1"),V:V,0),COLUMN(S2)) -> $S$1 | AA2: =ADDRESS(MATCH(COUNTIF($R$1:$R2,"NIVEL 1"),V:V,0),COLUMN(W2)) -> $W$1 | AB2: =ADDRESS((MATCH(COUNTIF(INDIRECT(Z2):$S2,"NIVEL 2"),INDIRECT(AA2):W2,0)+(MATCH(COUNTIF($R$1:$R2,"NIVEL 1"),V:V,0)-1)),COLUMN(T2)) -> $T$1
C4: ="TOTAL DO ITEM - "&A4&" :" -> TOTAL DO ITEM - :
D14: =PROCURA_DESCRICAO_COMPOSIÇÃO -> 0 | E14: =PROCURA_UNIDADE_COMPOSICAO -> 0 | G14: =PROCURA_PRECO_COMPOSICAO -> 0 | H14: =TRUNC(G14*F14,2) -> 0 | L14: =B14 -> 0 | N14: =UPPER(TRIM(B14)) ->  | O14: =UPPER(TRIM(D14)) -> 0 | P14: 0 | Q14: =G14 -> 0 | T14: SERVIÇO
A19: COMPOSIÇÃO | C19: SERVIÇO | F19: 1 | G19: =H19 -> 0 | H19: =SUBTOTAL(9,OFFSET(H19,1,0):OFFSET(H22,-1,0)) -> 0 | L19: =B19 -> 0 | N19: =UPPER(TRIM(B19)) ->  | O19: =UPPER(TRIM(D19)) ->  | Q19: =G19 -> 0
D20: =PROCURA_DESCRICAO_COMPOSIÇÃO -> 0 | E20: =PROCURA_UNIDADE_COMPOSICAO -> 0 | G20: =PROCURA_PRECO_COMPOSICAO -> 0 | H20: =TRUNC(G20*F20,2) -> 0 | L20: =B20 -> 0 | O20: 0 | P20: 0 | Q20: =G20 -> 0 | T20: SERVIÇO
D21: =PROCURA_DESCRICAO_COMPOSIÇÃO -> 0 | E21: =PROCURA_UNIDADE_COMPOSICAO -> 0 | G21: =PROCURA_PRECO_COMPOSICAO -> 0 | H21: 0 | L21: 0 | O21: 0 | P21: 0 | Q21: 0 | T21: SERVIÇO
A22: FIM | L22: =B22 -> 0 | Q22: =G22 -> 0
E27: =IFERROR(IF($E$5="MÉDIA",AVERAGE(OFFSET(E27,1,0,):OFFSET(E33,-1,0,)),IF($E$5="MEDIANA",MEDIAN(OFFSET(E27,1,0,):OFFSET(E33,-1,0,)),0)),0) -> 0
A28: =IFERROR(OFFSET(A28,-1,0)+1,1) -> 1 | D28: VALOR:
A29: =IFERROR(OFFSET(A29,-1,0)+1,1) -> 2 | D29: VALOR:
A30: 3 | D30: VALOR:
A31: 4 | D31: VALOR:
A32: 5 | D32: VALOR:
A33: FIM
BC41: =PROCURA_PRECO_SERVICO -> 112,59
A42: =V42 -> 1 | N42: ITEM_INICIO | R42: NIVEL 1 | V42: =COUNTIF($R$2:$R42,"NIVEL 1") -> 1 | W42: =IFERROR(COUNTIF(INDIRECT(Z42):S42,"NIVEL 2"),0) -> 0 | X42: =COUNTIF(INDIRECT(AB42):T42,"NIVEL 3") -> 0 | Y42: =IF(U42="NIVEL 4",OFFSET(Y42,-1,0)+1,0) -> 0 | Z42: =ADDRESS(MATCH(COUNTIF($R$2:$R42,"NIVEL 1"),V:V,0),COLUMN(S42)) -> $S$42 | AA42: =ADDRESS(MATCH(COUNTIF($R$2:$R42,"NIVEL 1"),V:V,0),COLUMN(W42)) -> $W$42 | AB42: =ADDRESS((MATCH(COUNTIF(INDIRECT(Z42):$S42,"NIVEL 2"),INDIRECT(AA42):W42,0)+(MATCH(COUNTIF($R$2:$R42,"NIVEL 1"),V:V,0)-1)),COLUMN(T42)) -> $T$42 | AD42: =A42 -> 1 | AG42: =D42 -> 0 | AH42: =I56 -> 0 | BC42: =PROCURA_PRECO_SERVICO -> 8.843,53
V43: =COUNTIF($R$2:$R43,"NIVEL 1") -> 1 | W43: 0 | X43: 0 | Y43: 0 | Z43: =ADDRESS(MATCH(COUNTIF($R$2:$R43,"NIVEL 1"),V:V,0),COLUMN(S43)) -> $S$42 | AA43: =ADDRESS(MATCH(COUNTIF($R$2:$R43,"NIVEL 1"),V:V,0),COLUMN(W43)) -> $W$42 | AB43: =ADDRESS((MATCH(COUNTIF(INDIRECT(Z43):$S43,"NIVEL 2"),INDIRECT(AA43):W43,0)+(MATCH(COUNTIF($R$2:$R43,"NIVEL 1"),V:V,0)-1)),COLUMN(T43)) -> $T$42 | BC43: =PROCURA_PRECO_SERVICO -> 0
A44: =V44&"."&W44 -> 1.1 | N44: SUBITEM_INICIO | R44: NIVEL 2 | S44: NIVEL 2 | V44: =COUNTIF($R$2:$R44,"NIVEL 1") -> 1 | W44: 1 | X44: 0 | Y44: 0 | Z44: =ADDRESS(MATCH(COUNTIF($R$2:$R44,"NIVEL 1"),V:V,0),COLUMN(S44)) -> $S$42 | AA44: =ADDRESS(MATCH(COUNTIF($R$2:$R44,"NIVEL 1"),V:V,0),COLUMN(W44)) -> $W$42 | AB44: =ADDRESS((MATCH(COUNTIF(INDIRECT(Z44):$S44,"NIVEL 2"),INDIRECT(AA44):W44,0)+(MATCH(COUNTIF($R$2:$R44,"NIVEL 1"),V:V,0)-1)),COLUMN(T44)) -> $T$44 | BC44: =PROCURA_PRECO_SERVICO -> 0
V45: =COUNTIF($R$2:$R45,"NIVEL 1") -> 1 | W45: 1 | X45: 0 | Y45: 0 | Z45: =ADDRESS(MATCH(COUNTIF($R$2:$R45,"NIVEL 1"),V:V,0),COLUMN(S45)) -> $S$42 | AA45: =ADDRESS(MATCH(COUNTIF($R$2:$R45,"NIVEL 1"),V:V,0),COLUMN(W45)) -> $W$42 | AB45: =ADDRESS((MATCH(COUNTIF(INDIRECT(Z45):$S45,"NIVEL 2"),INDIRECT(AA45):W45,0)+(MATCH(COUNTIF($R$2:$R45,"NIVEL 1"),V:V,0)-1)),COLUMN(T45)) -> $T$44 | BC45: =PROCURA_PRECO_SERVICO -> 0
A46: =V46&"."&W46&"."&X46 -> 1.1.1 | N46: SUBSUBITEM_INICIO | R46: NIVEL 3 | S46: NIVEL 3 | T46: NIVEL 3 | V46: =COUNTIF($R$2:$R46,"NIVEL 1") -> 1 | W46: 1 | X46: 1 | Y46: 0 | Z46: =ADDRESS(MATCH(COUNTIF($R$2:$R46,"NIVEL 1"),V:V,0),COLUMN(S46)) -> $S$42 | AA46: =ADDRESS(MATCH(COUNTIF($R$2:$R46,"NIVEL 1"),V:V,0),COLUMN(W46)) -> $W$42 | AB46: =ADDRESS((MATCH(COUNTIF(INDIRECT(Z46):$S46,"NIVEL 2"),INDIRECT(AA46):W46,0)+(MATCH(COUNTIF($R$2:$R46,"NIVEL 1"),V:V,0)-1)),COLUMN(T46)) -> $T$44 | BC46: =PROCURA_PRECO_SERVICO -> 0
V47: =COUNTIF($R$2:$R47,"NIVEL 1") -> 1 | W47: 1 | X47: 1 | Y47: 0 | Z47: =ADDRESS(MATCH(COUNTIF($R$2:$R47,"NIVEL 1"),V:V,0),COLUMN(S47)) -> $S$42 | AA47: =ADDRESS(MATCH(COUNTIF($R$2:$R47,"NIVEL 1"),V:V,0),COLUMN(W47)) -> $W$42 | AB47: =ADDRESS((MATCH(COUNTIF(INDIRECT(Z47):$S47,"NIVEL 2"),INDIRECT(AA47):W47,0)+(MATCH(COUNTIF($R$2:$R47,"NIVEL 1"),V:V,0)-1)),COLUMN(T47)) -> $T$44 | BC47: =PROCURA_PRECO_SERVICO -> 0
A48: =V48&"."&W48&"."&X48&"."&Y48 -> 1.1.1.1 | D48: =PROCURA_DESCRICAO_SERVICO -> 0 | E48: =PROCURA_UNIDADE_SERVICO -> 0 | G48: =PROCURA_PRECO_SERVICO -> 0 | H48: =CUSTO_BDI_SERVICO -> 0 | I48: =CUSTO_TOTAL_SERVICO -> 0 | N48: SERVIÇO | R48: NIVEL 4 | S48: NIVEL 4 | T48: NIVEL 4 | U48: NIVEL 4 | V48: =COUNTIF($R$1:$R48,"NIVEL 1") -> 1 | W48: 1 | X48: 1 | Y48: 1 | Z48: =ADDRESS(MATCH(COUNTIF($R$1:$R48,"NIVEL 1"),V:V,0),COLUMN(S48)) -> $S$42 | AA48: =ADDRESS(MATCH(COUNTIF($R$1:$R48,"NIVEL 1"),V:V,0),COLUMN(W48)) -> $W$42 | AB48: =ADDRESS((MATCH(COUNTIF(INDIRECT(Z48):$S48,"NIVEL 2"),INDIRECT(AA48):W48,0)+(MATCH(COUNTIF($R$1:$R48,"NIVEL 1"),V:V,0)-1)),COLUMN(T48)) -> $T$44 | BC48: =PROCURA_PRECO_SERVICO -> 0
A49: 1.1.1.2 | D49: =PROCURA_DESCRICAO_SERVICO -> 0 | E49: =PROCURA_UNIDADE_SERVICO -> 0 | G49: =PROCURA_PRECO_SERVICO -> 0 | H49: 0 | I49: 0 | N49: SERVIÇO | R49: NIVEL 4 | S49: NIVEL 4 | T49: NIVEL 4 | U49: NIVEL 4 | V49: =COUNTIF($R$1:$R49,"NIVEL 1") -> 1 | W49: 1 | X49: 1 | Y49: 2 | Z49: =ADDRESS(MATCH(COUNTIF($R$1:$R49,"NIVEL 1"),V:V,0),COLUMN(S49)) -> $S$42 | AA49: =ADDRESS(MATCH(COUNTIF($R$1:$R49,"NIVEL 1"),V:V,0),COLUMN(W49)) -> $W$42 | AB49: =ADDRESS((MATCH(COUNTIF(INDIRECT(Z49):$S49,"NIVEL 2"),INDIRECT(AA49):W49,0)+(MATCH(COUNTIF($R$1:$R49,"NIVEL 1"),V:V,0)-1)),COLUMN(T49)) -> $T$44 | BC49: =PROCURA_PRECO_SERVICO -> 0
A50: 1.1.1.3 | D50: =PROCURA_DESCRICAO_SERVICO -> 0 | E50: =PROCURA_UNIDADE_SERVICO -> 0 | G50: =PROCURA_PRECO_SERVICO -> 0 | H50: 0 | I50: 0 | N50: SERVIÇO | R50: NIVEL 4 | S50: NIVEL 4 | T50: NIVEL 4 | U50: NIVEL 4 | V50: =COUNTIF($R$1:$R50,"NIVEL 1") -> 1 | W50: 1 | X50: 1 | Y50: 3 | Z50: =ADDRESS(MATCH(COUNTIF($R$1:$R50,"NIVEL 1"),V:V,0),COLUMN(S50)) -> $S$42 | AA50: =ADDRESS(MATCH(COUNTIF($R$1:$R50,"NIVEL 1"),V:V,0),COLUMN(W50)) -> $W$42 | AB50: =ADDRESS((MATCH(COUNTIF(INDIRECT(Z50):$S50,"NIVEL 2"),INDIRECT(AA50):W50,0)+(MATCH(COUNTIF($R$1:$R50,"NIVEL 1"),V:V,0)-1)),COLUMN(T50)) -> $T$44 | BC50: =PROCURA_PRECO_SERVICO -> 0
V51: =COUNTIF($R$2:$R51,"NIVEL 1") -> 1 | W51: 1 | X51: 1 | Y51: 0 | Z51: =ADDRESS(MATCH(COUNTIF($R$2:$R51,"NIVEL 1"),V:V,0),COLUMN(S51)) -> $S$42 | AA51: =ADDRESS(MATCH(COUNTIF($R$2:$R51,"NIVEL 1"),V:V,0),COLUMN(W51)) -> $W$42 | AB51: =ADDRESS((MATCH(COUNTIF(INDIRECT(Z51):$S51,"NIVEL 2"),INDIRECT(AA51):W51,0)+(MATCH(COUNTIF($R$2:$R51,"NIVEL 1"),V:V,0)-1)),COLUMN(T51)) -> $T$44 | BC51: =PROCURA_PRECO_SERVICO -> 0
D52: ="SUBTOTAL DO ITEM - "&A46 -> SUBTOTAL DO ITEM - 1.1.1 | I52: =SUBTOTAL(9,OFFSET(I46,1,0):OFFSET(I52,-1,0)) -> 0 | N52: SUBSUBITEM_FIM | V52: =COUNTIF($R$2:$R52,"NIVEL 1") -> 1 | W52: 1 | X52: 1 | Y52: 0 | Z52: =ADDRESS(MATCH(COUNTIF($R$2:$R52,"NIVEL 1"),V:V,0),COLUMN(S52)) -> $S$42 | AA52: =ADDRESS(MATCH(COUNTIF($R$2:$R52,"NIVEL 1"),V:V,0),COLUMN(W52)) -> $W$42 | AB52: =ADDRESS((MATCH(COUNTIF(INDIRECT(Z52):$S52,"NIVEL 2"),INDIRECT(AA52):W52,0)+(MATCH(COUNTIF($R$2:$R52,"NIVEL 1"),V:V,0)-1)),COLUMN(T52)) -> $T$44 | BC52: =PROCURA_PRECO_SERVICO -> 0
V53: =COUNTIF($R$2:$R53,"NIVEL 1") -> 1 | W53: 1 | X53: 1 | Y53: 0 | Z53: =ADDRESS(MATCH(COUNTIF($R$2:$R53,"NIVEL 1"),V:V,0),COLUMN(S53)) -> $S$42 | AA53: =ADDRESS(MATCH(COUNTIF($R$2:$R53,"NIVEL 1"),V:V,0),COLUMN(W53)) -> $W$42 | AB53: =ADDRESS((MATCH(COUNTIF(INDIRECT(Z53):$S53,"NIVEL 2"),INDIRECT(AA53):W53,0)+(MATCH(COUNTIF($R$2:$R53,"NIVEL 1"),V:V,0)-1)),COLUMN(T53)) -> $T$44 | BC53: =PROCURA_PRECO_SERVICO -> 0
D54: ="SUBTOTAL DO ITEM - "&A44 -> SUBTOTAL DO ITEM - 1.1 | I54: =SUBTOTAL(9,OFFSET(I44,1,0):OFFSET(I54,-1,0)) -> 0 | N54: SUBITEM_FIM | V54: =COUNTIF($R$2:$R54,"NIVEL 1") -> 1 | W54: 1 | X54: 1 | Y54: 0 | Z54: =ADDRESS(MATCH(COUNTIF($R$2:$R54,"NIVEL 1"),V:V,0),COLUMN(S54)) -> $S$42 | AA54: =ADDRESS(MATCH(COUNTIF($R$2:$R54,"NIVEL 1"),V:V,0),COLUMN(W54)) -> $W$42 | AB54: =ADDRESS((MATCH(COUNTIF(INDIRECT(Z54):$S54,"NIVEL 2"),INDIRECT(AA54):W54,0)+(MATCH(COUNTIF($R$2:$R54,"NIVEL 1"),V:V,0)-1)),COLUMN(T54)) -> $T$44 | BC54: =PROCURA_PRECO_SERVICO -> 0
V55: =COUNTIF($R$2:$R55,"NIVEL 1") -> 1 | W55: 1 | X55: 1 | Y55: 0 | Z55: =ADDRESS(MATCH(COUNTIF($R$2:$R55,"NIVEL 1"),V:V,0),COLUMN(S55)) -> $S$42 | AA55: =ADDRESS(MATCH(COUNTIF($R$2:$R55,"NIVEL 1"),V:V,0),COLUMN(W55)) -> $W$42 | AB55: =ADDRESS((MATCH(COUNTIF(INDIRECT(Z55):$S55,"NIVEL 2"),INDIRECT(AA55):W55,0)+(MATCH(COUNTIF($R$2:$R55,"NIVEL 1"),V:V,0)-1)),COLUMN(T55)) -> $T$44 | BC55: =PROCURA_PRECO_SERVICO -> 0
D56: ="TOTAL DO ITEM - "&A42 -> TOTAL DO ITEM - 1 | I56: =SUBTOTAL(9,OFFSET(I42,1,0):OFFSET(I56,-1,0)) -> 0 | N56: ITEM_FIM | V56: =COUNTIF($R$2:$R56,"NIVEL 1") -> 1 | W56: 1 | X56: 1 | Y56: 0 | Z56: =ADDRESS(MATCH(COUNTIF($R$2:$R56,"NIVEL 1"),V:V,0),COLUMN(S56)) -> $S$42 | AA56: =ADDRESS(MATCH(COUNTIF($R$2:$R56,"NIVEL 1"),V:V,0),COLUMN(W56)) -> $W$42 | AB56: =ADDRESS((MATCH(COUNTIF(INDIRECT(Z56):$S56,"NIVEL 2"),INDIRECT(AA56):W56,0)+(MATCH(COUNTIF($R$2:$R56,"NIVEL 1"),V:V,0)-1)),COLUMN(T56)) -> $T$44 | BC56: =PROCURA_PRECO_SERVICO -> 1340.46
BC58: =PROCURA_PRECO_SERVICO -> 0
A59: =V59 -> 2 | N59: ITEM_INICIO | R59: NIVEL 1 | V59: =COUNTIF($R$2:$R59,"NIVEL 1") -> 2 | W59: =IFERROR(COUNTIF(INDIRECT(Z59):S59,"NIVEL 2"),0) -> 0 | X59: =COUNTIF(INDIRECT(AB59):T59,"NIVEL 3") -> 0 | Y59: =IF(U59="NIVEL 4",OFFSET(Y59,-1,0)+1,0) -> 0 | Z59: =ADDRESS(MATCH(COUNTIF($R$2:$R59,"NIVEL 1"),V:V,0),COLUMN(S59)) -> $S$59 | AA59: =ADDRESS(MATCH(COUNTIF($R$2:$R59,"NIVEL 1"),V:V,0),COLUMN(W59)) -> $W$59 | AB59: =ADDRESS((MATCH(COUNTIF(INDIRECT(Z59):$S59,"NIVEL 2"),INDIRECT(AA59):W59,0)+(MATCH(COUNTIF($R$2:$R59,"NIVEL 1"),V:V,0)-1)),COLUMN(T59)) -> $T$59 | AD59: =A59 -> 2 | AG59: =D59 -> 0 | AH59: =I73 -> 8121.38 | BC59: =PROCURA_PRECO_SERVICO -> 0
V60: =COUNTIF($R$2:$R60,"NIVEL 1") -> 2 | W60: 0 | X60: 0 | Y60: 0 | Z60: =ADDRESS(MATCH(COUNTIF($R$2:$R60,"NIVEL 1"),V:V,0),COLUMN(S60)) -> $S$59 | AA60: =ADDRESS(MATCH(COUNTIF($R$2:$R60,"NIVEL 1"),V:V,0),COLUMN(W60)) -> $W$59 | AB60: =ADDRESS((MATCH(COUNTIF(INDIRECT(Z60):$S60,"NIVEL 2"),INDIRECT(AA60):W60,0)+(MATCH(COUNTIF($R$2:$R60,"NIVEL 1"),V:V,0)-1)),COLUMN(T60)) -> $T$59 | BC60: =PROCURA_PRECO_SERVICO -> 0
A61: =V61&"."&W61 -> 2.1 | N61: SUBITEM_INICIO | R61: NIVEL 2 | S61: NIVEL 2 | V61: =COUNTIF($R$2:$R61,"NIVEL 1") -> 2 | W61: 1 | X61: 0 | Y61: 0 | Z61: =ADDRESS(MATCH(COUNTIF($R$2:$R61,"NIVEL 1"),V:V,0),COLUMN(S61)) -> $S$59 | AA61: =ADDRESS(MATCH(COUNTIF($R$2:$R61,"NIVEL 1"),V:V,0),COLUMN(W61)) -> $W$59 | AB61: =ADDRESS((MATCH(COUNTIF(INDIRECT(Z61):$S61,"NIVEL 2"),INDIRECT(AA61):W61,0)+(MATCH(COUNTIF($R$2:$R61,"NIVEL 1"),V:V,0)-1)),COLUMN(T61)) -> $T$61 | BC61: =PROCURA_PRECO_SERVICO -> 0
V62: =COUNTIF($R$2:$R62,"NIVEL 1") -> 2 | W62: 1 | X62: 0 | Y62: 0 | Z62: =ADDRESS(MATCH(COUNTIF($R$2:$R62,"NIVEL 1"),V:V,0),COLUMN(S62)) -> $S$59 | AA62: =ADDRESS(MATCH(COUNTIF($R$2:$R62,"NIVEL 1"),V:V,0),COLUMN(W62)) -> $W$59 | AB62: =ADDRESS((MATCH(COUNTIF(INDIRECT(Z62):$S62,"NIVEL 2"),INDIRECT(AA62):W62,0)+(MATCH(COUNTIF($R$2:$R62,"NIVEL 1"),V:V,0)-1)),COLUMN(T62)) -> $T$61 | BC62: =PROCURA_PRECO_SERVICO -> 0
A63: =V63&"."&W63&"."&X63 -> 2.1.1 | N63: SUBSUBITEM_INICIO | R63: NIVEL 3 | S63: NIVEL 3 | T63: NIVEL 3 | V63: =COUNTIF($R$2:$R63,"NIVEL 1") -> 2 | W63: 1 | X63: 1 | Y63: 0 | Z63: =ADDRESS(MATCH(COUNTIF($R$2:$R63,"NIVEL 1"),V:V,0),COLUMN(S63)) -> $S$59 | AA63: =ADDRESS(MATCH(COUNTIF($R$2:$R63,"NIVEL 1"),V:V,0),COLUMN(W63)) -> $W$59 | AB63: =ADDRESS((MATCH(COUNTIF(INDIRECT(Z63):$S63,"NIVEL 2"),INDIRECT(AA63):W63,0)+(MATCH(COUNTIF($R$2:$R63,"NIVEL 1"),V:V,0)-1)),COLUMN(T63)) -> $T$61 | BC63: =PROCURA_PRECO_SERVICO -> 0
V64: =COUNTIF($R$2:$R64,"NIVEL 1") -> 2 | W64: 1 | X64: 1 | Y64: 0 | Z64: =ADDRESS(MATCH(COUNTIF($R$2:$R64,"NIVEL 1"),V:V,0),COLUMN(S64)) -> $S$59 | AA64: =ADDRESS(MATCH(COUNTIF($R$2:$R64,"NIVEL 1"),V:V,0),COLUMN(W64)) -> $W$59 | AB64: =ADDRESS((MATCH(COUNTIF(INDIRECT(Z64):$S64,"NIVEL 2"),INDIRECT(AA64):W64,0)+(MATCH(COUNTIF($R$2:$R64,"NIVEL 1"),V:V,0)-1)),COLUMN(T64)) -> $T$61 | BC64: =PROCURA_PRECO_SERVICO -> 0
A65: =V65&"."&W65&"."&X65&"."&Y65 -> 2.1.1.1 | D65: =PROCURA_DESCRICAO_SERVICO -> 0 | E65: =PROCURA_UNIDADE_SERVICO -> 0 | G65: =PROCURA_PRECO_SERVICO -> 0 | H65: =CUSTO_BDI_SERVICO -> 0 | I65: =CUSTO_TOTAL_SERVICO -> 0 | N65: SERVIÇO | R65: NIVEL 4 | S65: NIVEL 4 | T65: NIVEL 4 | U65: NIVEL 4 | V65: =COUNTIF($R$1:$R65,"NIVEL 1") -> 2 | W65: 1 | X65: 1 | Y65: 1 | Z65: =ADDRESS(MATCH(COUNTIF($R$1:$R65,"NIVEL 1"),V:V,0),COLUMN(S65)) -> $S$59 | AA65: =ADDRESS(MATCH(COUNTIF($R$1:$R65,"NIVEL 1"),V:V,0),COLUMN(W65)) -> $W$59 | AB65: =ADDRESS((MATCH(COUNTIF(INDIRECT(Z65):$S65,"NIVEL 2"),INDIRECT(AA65):W65,0)+(MATCH(COUNTIF($R$1:$R65,"NIVEL 1"),V:V,0)-1)),COLUMN(T65)) -> $T$61 | BC65: =PROCURA_PRECO_SERVICO -> 0
A66: 2.1.1.2 | D66: =PROCURA_DESCRICAO_SERVICO -> LOCAÇÃO DE OBRA COM GABARITO DE TÁBUAS CORRIDAS PONTALETADAS A CADA 2,00M, REAPROVEITAMENTO (2X), INCLUSIVE ACOMPANHAMENTO DE EQUIPE TOPOGRÁFICA PARA MARCAÇÃO DE PONTO TOPOGRÁFICO | E66: =PROCURA_UNIDADE_SERVICO -> M | G66: =PROCURA_PRECO_SERVICO -> 58.85 | H66: 74.29 | I66: 8121.38 | N66: SERVIÇO | R66: NIVEL 4 | S66: NIVEL 4 | T66: NIVEL 4 | U66: NIVEL 4 | V66: =COUNTIF($R$1:$R66,"NIVEL 1") -> 2 | W66: 1 | X66: 1 | Y66: 2 | Z66: =ADDRESS(MATCH(COUNTIF($R$1:$R66,"NIVEL 1"),V:V,0),COLUMN(S66)) -> $S$59 | AA66: =ADDRESS(MATCH(COUNTIF($R$1:$R66,"NIVEL 1"),V:V,0),COLUMN(W66)) -> $W$59 | AB66: =ADDRESS((MATCH(COUNTIF(INDIRECT(Z66):$S66,"NIVEL 2"),INDIRECT(AA66):W66,0)+(MATCH(COUNTIF($R$1:$R66,"NIVEL 1"),V:V,0)-1)),COLUMN(T66)) -> $T$61 | BC66: =PROCURA_PRECO_SERVICO -> 58.85
A67: 2.1.1.3 | D67: =PROCURA_DESCRICAO_SERVICO -> 0 | E67: =PROCURA_UNIDADE_SERVICO -> 0 | G67: =PROCURA_PRECO_SERVICO -> 0 | H67: =CUSTO_BDI_SERVICO -> 0 | I67: =CUSTO_TOTAL_SERVICO -> 0 | N67: SERVIÇO | R67: NIVEL 4 | S67: NIVEL 4 | T67: NIVEL 4 | U67: NIVEL 4 | V67: =COUNTIF($R$1:$R67,"NIVEL 1") -> 2 | W67: 1 | X67: 1 | Y67: 3 | Z67: =ADDRESS(MATCH(COUNTIF($R$1:$R67,"NIVEL 1"),V:V,0),COLUMN(S67)) -> $S$59 | AA67: =ADDRESS(MATCH(COUNTIF($R$1:$R67,"NIVEL 1"),V:V,0),COLUMN(W67)) -> $W$59 | AB67: =ADDRESS((MATCH(COUNTIF(INDIRECT(Z67):$S67,"NIVEL 2"),INDIRECT(AA67):W67,0)+(MATCH(COUNTIF($R$1:$R67,"NIVEL 1"),V:V,0)-1)),COLUMN(T67)) -> $T$61 | BC67: =PROCURA_PRECO_SERVICO -> 0
V68: =COUNTIF($R$2:$R68,"NIVEL 1") -> 2 | W68: 1 | X68: 1 | Y68: 0 | Z68: =ADDRESS(MATCH(COUNTIF($R$2:$R68,"NIVEL 1"),V:V,0),COLUMN(S68)) -> $S$59 | AA68: =ADDRESS(MATCH(COUNTIF($R$2:$R68,"NIVEL 1"),V:V,0),COLUMN(W68)) -> $W$59 | AB68: =ADDRESS((MATCH(COUNTIF(INDIRECT(Z68):$S68,"NIVEL 2"),INDIRECT(AA68):W68,0)+(MATCH(COUNTIF($R$2:$R68,"NIVEL 1"),V:V,0)-1)),COLUMN(T68)) -> $T$61 | BC68: =PROCURA_PRECO_SERVICO -> 0
D69: ="SUBTOTAL DO ITEM - "&A63 -> SUBTOTAL DO ITEM - 2.1.1 | I69: =SUBTOTAL(9,OFFSET(I63,1,0):OFFSET(I69,-1,0)) -> 8121.38 | N69: SUBSUBITEM_FIM | V69: =COUNTIF($R$2:$R69,"NIVEL 1") -> 2 | W69: 1 | X69: 1 | Y69: 0 | Z69: =ADDRESS(MATCH(COUNTIF($R$2:$R69,"NIVEL 1"),V:V,0),COLUMN(S69)) -> $S$59 | AA69: =ADDRESS(MATCH(COUNTIF($R$2:$R69,"NIVEL 1"),V:V,0),COLUMN(W69)) -> $W$59 | AB69: =ADDRESS((MATCH(COUNTIF(INDIRECT(Z69):$S69,"NIVEL 2"),INDIRECT(AA69):W69,0)+(MATCH(COUNTIF($R$2:$R69,"NIVEL 1"),V:V,0)-1)),COLUMN(T69)) -> $T$61 | BC69: =PROCURA_PRECO_SERVICO -> 0
V70: =COUNTIF($R$2:$R70,"NIVEL 1") -> 2 | W70: 1 | X70: 1 | Y70: 0 | Z70: =ADDRESS(MATCH(COUNTIF($R$2:$R70,"NIVEL 1"),V:V,0),COLUMN(S70)) -> $S$59 | AA70: =ADDRESS(MATCH(COUNTIF($R$2:$R70,"NIVEL 1"),V:V,0),COLUMN(W70)) -> $W$59 | AB70: =ADDRESS((MATCH(COUNTIF(INDIRECT(Z70):$S70,"NIVEL 2"),INDIRECT(AA70):W70,0)+(MATCH(COUNTIF($R$2:$R70,"NIVEL 1"),V:V,0)-1)),COLUMN(T70)) -> $T$61 | BC70: =PROCURA_PRECO_SERVICO -> 0
D71: ="SUBTOTAL DO ITEM - "&A61 -> SUBTOTAL DO ITEM - 2.1 | I71: =SUBTOTAL(9,OFFSET(I61,1,0):OFFSET(I71,-1,0)) -> 8121.38 | N71: SUBITEM_FIM | V71: =COUNTIF($R$2:$R71,"NIVEL 1") -> 2 | W71: 1 | X71: 1 | Y71: 0 | Z71: =ADDRESS(MATCH(COUNTIF($R$2:$R71,"NIVEL 1"),V:V,0),COLUMN(S71)) -> $S$59 | AA71: =ADDRESS(MATCH(COUNTIF($R$2:$R71,"NIVEL 1"),V:V,0),COLUMN(W71)) -> $W$59 | AB71: =ADDRESS((MATCH(COUNTIF(INDIRECT(Z71):$S71,"NIVEL 2"),INDIRECT(AA71):W71,0)+(MATCH(COUNTIF($R$2:$R71,"NIVEL 1"),V:V,0)-1)),COLUMN(T71)) -> $T$61 | BC71: =PROCURA_PRECO_SERVICO -> 0
V72: =COUNTIF($R$2:$R72,"NIVEL 1") -> 2 | W72: 1 | X72: 1 | Y72: 0 | Z72: =ADDRESS(MATCH(COUNTIF($R$2:$R72,"NIVEL 1"),V:V,0),COLUMN(S72)) -> $S$59 | AA72: =ADDRESS(MATCH(COUNTIF($R$2:$R72,"NIVEL 1"),V:V,0),COLUMN(W72)) -> $W$59 | AB72: =ADDRESS((MATCH(COUNTIF(INDIRECT(Z72):$S72,"NIVEL 2"),INDIRECT(AA72):W72,0)+(MATCH(COUNTIF($R$2:$R72,"NIVEL 1"),V:V,0)-1)),COLUMN(T72)) -> $T$61 | BC72: =PROCURA_PRECO_SERVICO -> 0
D73: ="TOTAL DO ITEM - "&A59 -> TOTAL DO ITEM - 2 | I73: =SUBTOTAL(9,OFFSET(I59,1,0):OFFSET(I73,-1,0)) -> 8121.38 | N73: ITEM_FIM | V73: =COUNTIF($R$2:$R73,"NIVEL 1") -> 2 | W73: 1 | X73: 1 | Y73: 0 | Z73: =ADDRESS(MATCH(COUNTIF($R$2:$R73,"NIVEL 1"),V:V,0),COLUMN(S73)) -> $S$59 | AA73: =ADDRESS(MATCH(COUNTIF($R$2:$R73,"NIVEL 1"),V:V,0),COLUMN(W73)) -> $W$59 | AB73: =ADDRESS((MATCH(COUNTIF(INDIRECT(Z73):$S73,"NIVEL 2"),INDIRECT(AA73):W73,0)+(MATCH(COUNTIF($R$2:$R73,"NIVEL 1"),V:V,0)-1)),COLUMN(T73)) -> $T$61 | BC73: =PROCURA_PRECO_SERVICO -> 0
V74: =COUNTIF($R$2:$R74,"NIVEL 1") -> 2 | W74: 1 | X74: 1 | Y74: 0 | Z74: =ADDRESS(MATCH(COUNTIF($R$2:$R74,"NIVEL 1"),V:V,0),COLUMN(S74)) -> $S$59 | AA74: =ADDRESS(MATCH(COUNTIF($R$2:$R74,"NIVEL 1"),V:V,0),COLUMN(W74)) -> $W$59 | AB74: =ADDRESS((MATCH(COUNTIF(INDIRECT(Z74):$S74,"NIVEL 2"),INDIRECT(AA74):W74,0)+(MATCH(COUNTIF($R$2:$R74,"NIVEL 1"),V:V,0)-1)),COLUMN(T74)) -> $T$61 | BC74: =PROCURA_PRECO_SERVICO -> 0
D78: DANILO VITOR SILVA | E78: CREA MG: 201.381/D
D79: JULIANA GONÇALVES OLIVEIRA | E79: CREA MG: 239.787/D
D80: LEANDRO FERREIRA ARÃES | E80: CREA MG: 249.818/D
D81: SÉRGIO HENRIQUE NOGUEIRA | E81: CREA MG: 99.873/D

Sheet Imagens (hidden)
A1: PROJETA CONSULTORIA E SERVIÇOS LTDA.
A2: OBJETIVA PROJETOS E SERVIÇOS LTDA.
A3: PLATOR PROJETOS E SERVIÇOS AMBIENTAIS LTDA.
A4: CONSÓRCIO PAS
A5: CONSÓRCIO PITÁGORAS
A6: CONSÓRCIO OPUS PROJETOS
A7: CONSÓRCIO MINAS PROJETOS
D9: PROJETA CONSULTORIA E SERVIÇOS LTDA.
D10: OBJETIVA PROJETOS E SERVIÇOS LTDA.
D11: PLATOR PROJETOS E SERVIÇOS AMBIENTAIS LTDA.
D12: CONSÓRCIO PAS
D13: CONSÓRCIO PITÁGORAS
D14: CONSÓRCIO OPUS PROJETOS
D15: CONSÓRCIO MINAS PROJETOS
G17: PREFEITURA MUNICIPAL DE ALFENAS - MG | I17: 0.05 | J17: http://www.alfenas.mg.gov.br
G18: PREFEITURA MUNICIPAL DE ALMENARA -MG | I18: 0.05 | J18: https://www.almenara.mg.gov.br
G19: PREFEITURA MUNICIPAL DE ALVORADA DE MINAS - MG | I19: 0.05 | J19: https://www.alvoradademinas.mg.gov.br
G20: PREFEITURA MUNICPAL DE ANAPOLIS - MG | I20: 0.05 | J20: https://www.anapolis.go.gov.br
G21: PREFEITURA MUNICIPAL DE ARAGUARI - MG | I21: 0.05 | J21: https://www.araguari.mg.gov.br
G22: PREFEITURA MUNICIPAL DE ARAXÁ- MG | I22: 0.02 | J22: https://www.araxa.mg.leg.br
G23: PREFEITURA MUNICIPAL DE BARÃO DE COCAIS - MG | I23: 0.05
G24: PREFEITURA MUNICIPAL DE BELA VISTA DE MINAS-MG | I24: 0.05 | J24: https://www.belavistademinas.mg.gov.br
G25: PREFEITURA MUNICIPAL DE BELO VALE - MG | I25: 0.05 | J25: http://www.belovale.mg.gov.br
G26: PREFEITURA MUNICIPAL DE BOA ESPERANÇA- MG | I26: 0.045 | J26: https://www.boaesperanca.mg.gov.br
G27: PREFEITURA MUNICIPAL DE BOM DESPACHO - MG | I27: 0.05 | J27: https://www.bomdespacho.mg.gov.br
G28: PREFEITURA MUNICIPAL DE BONFIM - MG | I28: 0.05 | J28: https://www.prefeiturabonfim.mg.gov.br
G29: CAMARA MUNICIPAL DE BRUMADINHO - MG | I29: 0.05
G30: PREFEITURA MUNICIPAL DE CAMPANHA-MG | I30: 0.03 | J30: https://www.campanha.mg.gov.br
G31: PREFEITURA MUNICPAL DE CAMPOS ALTOS -MG | I31: 0.03 | J31: http://www.camposaltos.mg.gov.br
G32: CAEMA - MA | I32: 0.05
G33: CEASA - MG | I33: 0.05
G34: CAMARA MUNICIPAL DE BRUMADINHO - MG | I34: 0.05
G35: CODEMGE | I35: 0.05
G36: PREFEITURA MUNICIPAL DE CARMÓPOLIS DE MINAS - MG | I36: 0.05 | J36: https://carmopolisdeminas.mg.gov.br
G37: PREFEITURA MUNICIPAL DE CARVOLHOPOLIS- MG | I37: 0.05 | J37: https://carvalhopolis.mg.gov.br
G38: PREFEITURA MUNICIPAL DE CONCEIÇÃO DO MATO DENTRO - MG | I38: 0.05 | J38: https://www.cmd.mg.gov.br
G39: PREFEITURA MUNICPAL DE CACHOEIRA DA PRATA- MG | J39: https://sites.google.com/a/cachoeiradaprata.mg.gov.br
G40: PREFEITURA MUNICPAL DE CONCEIÇÃO DO PARÁ-MG | J40: https://www.prefeituras.org/prefeitura-municipal-de-conceicao-do-para-mg
G41: PREFEITURA MUNICIPAL DE CONSELHEIRO LAFAIETE-MG | I41: 0.03 | J41: https://conselheirolafaiete.mg.gov.br/v2/
G42: PREFEITURA MUNICIPAL DE CONGONHAS - MG | I42: 0.05 | J42: https://www.congonhas.mg.gov.br
G43: DEPARTAMENTO DE EDIFICAÇÕES E DE RODOVIAS DO ESPIRITO SANTO DER/ES | J43: https://der.es.gov.br
G44: DEER - MG | I44: 0.05 | J44: http://www.der.mg.gov.br
G45: PREFEITURA MUNICIPAL DE DOM JOAQUIM - MG | I45: 0.05 | J45: https://www.prefeituras.org/prefeitura-municipal-de-dom-joaquim-mg
G46: PREFEITURA MUNICIPAL DE ENTRE RIOS DE MINAS - MG | I46: 0.05
G47: PREFEITURA MUNICIPAL DE ELÓI MENDES-MG | I47: 0.05 | J47: https://eloimendes.mg.gov.br
G48: PREFEITURA MUNICIPAL DE FERROS - MG | I48: 0.04 | J48: https://ferros.mg.gov.br
G49: INSTITUTO FEDERAL DE MINAS GERAIS - SUDESTE | I49: 0.05
G50: INSTITUTO FEDERAL DE MINAS GERAIS | I50: 0.05
G51: PREFEITURA MUNICIPAL DE GOIANIA | J51: https://www.goiania.go.gov.br/
G52: PREFEITURA MUNICIPAL DE GUANHÃES-MG | J52: https://guanhaes.mg.gov.br
G53: PREFEITURA MUNICIPAL DE GUIMARÂNIA-MG | J53: https://www.guimarania.mg.gov.br
G54: PREFEITURA MUNICIPAL DE ITAPEMIRIM-MG | J54: https://www.itapemirim.es.gov.br
G55: PREFEITURA MUNICIPAL DE ITAGUARA-MG | I55: 0.05 | J55: https://www.itaguara.mg.gov.br
G56: PREFEITURA MUNICIPAL DE ILICÍNIA-MG | I56: 0.03 | J56: https://www.ilicinea.mg.gov.br
G57: PREFEITURA MUNICIPAL DE ITUMIRIM-MG | I57: 0.03 | J57: http://itumirim.mg.gov.br
G58: PREFEITURA MUNICIPAL DE IGARAPÉ - MG | I58: 0.05 | J58: https://www.igarape.mg.gov.br
G59: PREFEITURA MUNICIPAL DE ILHÉUS - BA | I59: 0.05
G60: PREFEITURA MUNICIPAL DE ITATIAIUÇU - MG | I60: 0.05
G61: PREFEITURA MUNICIPAL DE JABOTICATUBAS - MG | I61: 0.05 | J61: https://www.jaboticatubas.mg.gov.br
G62: PREFEITURA MUNICIPAL DE JOÃO MONLEVADE-MG | I62: 0.05 | J62: https://pmjm.mg.gov.br
G63: PREFEITURA MUNICIPAL DE LAGOA GRANDE | I63: 0.05
G64: PREFEITURA MUNICIPAL DE LAGOA SANTA - MG | I64: 0.05 | J64: https://www.cmlagoasanta.mg.gov.br
G65: PREFEITURA MUNICIPAL DE MARIANA - MG | I65: 0.05
G66: PREFEITURA MUNICIPAL DE MACHADO-MG | I66: 0.03 | J66: http://www.machado.mg.gov.br
G67: PREFEITURA MUNICIPAL DE MÁRIO CAMPOS - MG | I67: 0.05 | J67: https://www.mariocampos.mg.gov.br
G68: PREFEITURA MUNICIPAL DE MARTINHO CAMPOS-MG | I68: 0.05 | J68: https://www.martinhocampos.mg.gov.br
G69: PREFEITURA MUNICIPAL DE MATEUS LEME - MG | I69: 0.03 | J69: https://mateusleme.mg.gov.br
G70: PREFEITURA MUNICIPAL DE MOEMA-MG | I70: 0.05 | J70: https://moema.mg.gov.br
G71: PREFEITURA MUNICIPAL DE MONSENHOR PAULO - MG | I71: 0.05 | J71: https://monsenhorpaulo.mg.gov.br
G72: PREFEITURA MUNICIPAL DE OURO BRANCO - MG | I72: 0.05 | J72: https://www.ourobranco.mg.gov.br
G73: PREFEITURA MUNICIPAL DE OURO PRETO - MG | I73: 0.05 | J73: https://ouropreto.mg.gov.br
G74: PREFEITURA MUNICIPAL DE PARAGUAÇU-MG | I74: 0.03 | J74: https://paraguacu.mg.gov.br
G75: PREFEITURA MUNICIPAL DE PIEDADE DOS GERAIS - MG | I75: 0.05
G76: PREFEITURA MUNICIPAL DE PARACATU - MG | I76: 0.05 | J76: https://www.paracatu.mg.gov.br
G77: PREFEITURA MUNICIPAL DE PATOS DE MINAS - MG | I77: 0.02 | J77: http://patosdeminas.mg.gov.br
G78: PREFEITURA MUNICIPAL DE PERDÕES-MG | I78: 0.03 | J78: https://perdoes.mg.gov.br
G79: PREFEITURA MUNICIPAL DE POÇO FUNDO -MG | J79: https://www.pocofundo.mg.gov.br
G80: POLÍCIA MILITAR DE MINAS GERAIS | I80: 0.05
G81: PREFEITURA MUNICIPAL DE RIO VERMELHO-MG | J81: https://riovermelho.mg.gov.br
G82: PREFEITURA MUNICIPAL DE RIBEIRÃO DAS NEVES-MG | I82: 0.05 | J82: https://www.ribeiraodasneves.mg.gov.br
G83: PREFEITURA MUNICIPAL DE RIO BANANAL - ES | I83: 0.05
G84: PREFEITURA MUNICIPAL DE SANTA BÁRBARA - MG | I84: 0.05 | J84: https://www.santabarbara.mg.gov.br
G85: PREFEITURA MUNICIPAL DE SÃO JOAQUIM DE BICAS - MG | I85: 0.05 | J85: https://www.saojoaquimdebicas.mg.gov.br
G86: PREFEITURA MUNICIPAL DE SÃO GONÇALO DO RIO ABAIXO-MG | I86: 0.05 | J86: https://www.saogoncalo.mg.gov.br
G87: PREFEITURA MUNICIPAL DE SÃO SEBASTIÃO DO OESTE-MG | J87: https://saosebastiaodooeste.mg.gov.br
G88: PREFEITURA MUNICIPAL DE SÃO JOSÉ DA LAPA - MG | I88: 0.03 | J88: https://www.saojosedalapa.mg.gov.br
G89: PREFEITURA MUNICIPAL DE SÃO LUÍS - MA | I89: 0.05
G90: PREFEITURA MUNICIPAL DE SARZEDO - MG | I90: 0.04 | J90: https://www.sarzedo.mg.gov.br
G91: PREFEITURA MUNICIPAL DE SERRA - ES | I91: 0.05 | J91: http://www.serra.es.gov.br
G92: PREFEITURA MUNICIPAL DE SERRANIA - MG | I92: 0.05 | J92: https://www.serrania.mg.gov.br
G93: PREFEITURA MUNICIPAL DE SERRO - MG | I93: 0.05
G94: PREFEITURA MUNICIPAL DE SETE LAGOAS - MG | I94: 0.05
G95: SECRETARIA DE SEGURANÇA PÚBLICA DO ESPÍRITO SANTO | I95: 0.05
G96: SEST SENAT | I96: 0.05
G97: PREFEITURA MUNICIPAL DE TRÊS PONTAS-MG | I97: 0.025 | J97: https://www.trespontas.mg.gov.br
G98: TRIBUNAL DE JUSTIÇA MILITAR DE MINAS GERAIS | I98: 0.05
G99: TRIBUNAL DE JUSTIÇA DE MINAS GERAIS | I99: 0.05 | J99: http://tjmmg.jus.br
G100: PREFEITURA MUNICIPAL DE UBERABA-MG | I100: 0.02 | J100: https://portal.uberaba.mg.gov.br
G101: PREFEITURA MUNICIPAL DE VESPASIANO - MG | I101: 0.05 | J101: https://www.vespasiano.mg.gov.br
G102: PREFEITURA MUNICIPAL DE VITÓRIA - ES | I102: 0.05
G103: PREFEITURA MUNICIPAL DE RIO ACIMA - MG | I103: 0.02 | J103: http://www.prefeiturarioacima.mg.gov.br

Sheet Banco_Servico (hidden)
A1: BASE | B1: CÓDIGO | C1: DESCRIÇÃO | D1: UNIDADE | F1: PREÇO DESONERADO | G1: PREÇO NÃO DESONERADO
B2: SINAPI 02/2023 - MG
A3: SINAPI | B3: 97141 | C3: ASSENTAMENTO DE TUBO DE FERRO FUNDIDO PARA REDE DE ÁGUA, DN 80 MM, JUNTA ELÁSTICA, INSTALADO EM LOCAL COM NÍVEL ALTO DE INTERFERÊNCIAS (NÃO INCLUI FORNECIMENTO). AF_11/2017 | D3: M | F3: 8.24 | G3: 8,95
A4: SINAPI | B4: 97142 | C4: ASSENTAMENTO DE TUBO DE FERRO FUNDIDO PARA REDE DE ÁGUA, DN 100 MM, JUNTA ELÁSTICA, INSTALADO EM LOCAL COM NÍVEL ALTO DE INTERFERÊNCIAS (NÃO INCLUI FORNECIMENTO). AF_11/2017 | D4: M | F4: 9.16 | G4: 9,94
A5: SINAPI | B5: 97143 | C5: ASSENTAMENTO DE TUBO DE FERRO FUNDIDO PARA REDE DE ÁGUA, DN 150 MM, JUNTA ELÁSTICA, INSTALADO EM LOCAL COM NÍVEL ALTO DE INTERFERÊNCIAS (NÃO INCLUI FORNECIMENTO). AF_11/2017 | D5: M | F5: 11.46 | G5: 12,47
A6: SINAPI | B6: 97144 | C6: ASSENTAMENTO DE TUBO DE FERRO FUNDIDO PARA REDE DE ÁGUA, DN 200 MM, JUNTA ELÁSTICA, INSTALADO EM LOCAL COM NÍVEL ALTO DE INTERFERÊNCIAS (NÃO INCLUI FORNECIMENTO). AF_11/2017 | D6: M | F6: 13.73 | G6: 14,97
A7: SINAPI | B7: 97145 | C7: ASSENTAMENTO DE TUBO DE FERRO FUNDIDO PARA REDE DE ÁGUA, DN 250 MM, JUNTA ELÁSTICA, INSTALADO EM LOCAL COM NÍVEL ALTO DE INTERFERÊNCIAS (NÃO INCLUI FORNECIMENTO). AF_11/2017 | D7: M | F7: 16.04 | G7: 17,51
A8: SINAPI | B8: 97146 | C8: ASSENTAMENTO DE TUBO DE FERRO FUNDIDO PARA REDE DE ÁGUA, DN 300 MM, JUNTA ELÁSTICA, INSTALADO EM LOCAL COM NÍVEL ALTO DE INTERFERÊNCIAS (NÃO INCLUI FORNECIMENTO). AF_11/2017 | D8: M | F8: 18.36 | G8: 20,03
A9: SINAPI | B9: 97147 | C9: ASSENTAMENTO DE TUBO DE FERRO FUNDIDO PARA REDE DE ÁGUA, DN 350 MM, JUNTA ELÁSTICA, INSTALADO EM LOCAL COM NÍVEL ALTO DE INTERFERÊNCIAS (NÃO INCLUI FORNECIMENTO). AF_11/2017 | D9: M | F9: 20.67 | G9: 22,58
A10: SINAPI | B10: 97148 | C10: ASSENTAMENTO DE TUBO DE FERRO FUNDIDO PARA REDE DE ÁGUA, DN 400 MM, JUNTA ELÁSTICA, INSTALADO EM LOCAL COM NÍVEL ALTO DE INTERFERÊNCIAS (NÃO INCLUI FORNECIMENTO). AF_11/2017 | D10: M | F10: 22.96 | G10: 25,09
A11: SINAPI | B11: 97149 | C11: ASSENTAMENTO DE TUBO DE FERRO FUNDIDO PARA REDE DE ÁGUA, DN 450 MM, JUNTA ELÁSTICA, INSTALADO EM LOCAL COM NÍVEL ALTO DE INTERFERÊNCIAS (NÃO INCLUI FORNECIMENTO). AF_11/2017 | D11: M | F11: 25.3 | G11: 27,66
A12: SINAPI | B12: 97150 | C12: ASSENTAMENTO DE TUBO DE FERRO FUNDIDO PARA REDE DE ÁGUA, DN 500 MM, JUNTA ELÁSTICA, INSTALADO EM LOCAL COM NÍVEL ALTO DE INTERFERÊNCIAS (NÃO INCLUI FORNECIMENTO). AF_11/2017 | D12: M | F12: 32.15 | G12: 34,73
A13: SINAPI | B13: 97151 | C13: ASSENTAMENTO DE TUBO DE FERRO FUNDIDO PARA REDE DE ÁGUA, DN 600 MM, JUNTA ELÁSTICA, INSTALADO EM LOCAL COM NÍVEL ALTO DE INTERFERÊNCIAS (NÃO INCLUI FORNECIMENTO). AF_11/2017 | D13: M | F13: 37.46 | G13: 40,48
A14: SINAPI | B14: 97152 | C14: ASSENTAMENTO DE TUBO DE FERRO FUNDIDO PARA REDE DE ÁGUA, DN 700 MM, JUNTA ELÁSTICA, INSTALADO EM LOCAL COM NÍVEL ALTO DE INTERFERÊNCIAS (NÃO INCLUI FORNECIMENTO). AF_11/2017 | D14: M | F14: 42.53 | G14: 46,00
A15: SINAPI | B15: 97153 | C15: ASSENTAMENTO DE TUBO DE FERRO FUNDIDO PARA REDE DE ÁGUA, DN 800 MM, JUNTA ELÁSTICA, INSTALADO EM LOCAL COM NÍVEL ALTO DE INTERFERÊNCIAS (NÃO INCLUI FORNECIMENTO). AF_11/2017 | D15: M | F15: 47.74 | G15: 51,66
A16: SINAPI | B16: 97154 | C16: ASSENTAMENTO DE TUBO DE FERRO FUNDIDO PARA REDE DE ÁGUA, DN 900 MM, JUNTA ELÁSTICA, INSTALADO EM LOCAL COM NÍVEL ALTO DE INTERFERÊNCIAS (NÃO INCLUI FORNECIMENTO). AF_11/2017 | D16: M | F16: 52.97 | G16: 57,34
A17: SINAPI | B17: 97155 | C17: ASSENTAMENTO DE TUBO DE FERRO FUNDIDO PARA REDE DE ÁGUA, DN 1000 MM, JUNTA ELÁSTICA, INSTALADO EM LOCAL COM NÍVEL ALTO DE INTERFERÊNCIAS (NÃO INCLUI FORNECIMENTO). AF_11/2017 | D17: M | F17: 58.23 | G17: 63,04
A18: SINAPI | B18: 97156 | C18: ASSENTAMENTO DE TUBO DE FERRO FUNDIDO PARA REDE DE ÁGUA, DN 1200 MM, JUNTA ELÁSTICA, INSTALADO EM LOCAL COM NÍVEL ALTO DE INTERFERÊNCIAS (NÃO INCLUI FORNECIMENTO). AF_11/2017 | D18: M | F18: 69.08 | G18: 74,79
A19: SINAPI | B19: 97157 | C19: ASSENTAMENTO DE TUBO DE FERRO FUNDIDO PARA REDE DE ÁGUA, DN 80 MM, JUNTA ELÁSTICA, INSTALADO EM LOCAL COM NÍVEL BAIXO DE INTERFERÊNCIAS (NÃO INCLUI FORNECIMENTO). AF_11/2017 | D19: M | F19: 4.99 | G19: 5,40
A20: SINAPI | B20: 97158 | C20: ASSENTAMENTO DE TUBO DE FERRO FUNDIDO PARA REDE DE ÁGUA, DN 100 MM, JUNTA ELÁSTICA, INSTALADO EM LOCAL COM NÍVEL BAIXO DE INTERFERÊNCIAS (NÃO INCLUI FORNECIMENTO). AF_11/2017 | D20: M | F20: 5.56 | G20: 6,01
A21: SINAPI | B21: 97159 | C21: ASSENTAMENTO DE TUBO DE FERRO FUNDIDO PARA REDE DE ÁGUA, DN 150 MM, JUNTA ELÁSTICA, INSTALADO EM LOCAL COM NÍVEL BAIXO DE INTERFERÊNCIAS (NÃO INCLUI FORNECIMENTO). AF_11/2017 | D21: M | F21: 6.96 | G21: 7,53
A22: SINAPI | B22: 97160 | C22: ASSENTAMENTO DE TUBO DE FERRO FUNDIDO PARA REDE DE ÁGUA, DN 200 MM, JUNTA ELÁSTICA, INSTALADO EM LOCAL COM NÍVEL BAIXO DE INTERFERÊNCIAS (NÃO INCLUI FORNECIMENTO). AF_11/2017 | D22: M | F22: 8.33 | G22: 9,05
A23: SINAPI | B23: 97161 | C23: ASSENTAMENTO DE TUBO DE FERRO FUNDIDO PARA REDE DE ÁGUA, DN 250 MM, JUNTA ELÁSTICA, INSTALADO EM LOCAL COM NÍVEL BAIXO DE INTERFERÊNCIAS (NÃO INCLUI FORNECIMENTO). AF_11/2017 | D23: M | F23: 9.76 | G23: 10,61
A24: SINAPI | B24: 97162 | C24: ASSENTAMENTO DE TUBO DE FERRO FUNDIDO PARA REDE DE ÁGUA, DN 300 MM, JUNTA ELÁSTICA, INSTALADO EM LOCAL COM NÍVEL BAIXO DE INTERFERÊNCIAS (NÃO INCLUI FORNECIMENTO). AF_11/2017 | D24: M | F24: 11.17 | G24: 12,14
A25: SINAPI | B25: 97163 | C25: ASSENTAMENTO DE TUBO DE FERRO FUNDIDO PARA REDE DE ÁGUA, DN 350 MM, JUNTA ELÁSTICA, INSTALADO EM LOCAL COM NÍVEL BAIXO DE INTERFERÊNCIAS (NÃO INCLUI FORNECIMENTO). AF_11/2017 | D25: M | F25: 12.59 | G25: 13,69
A26: SINAPI | B26: 97164 | C26: ASSENTAMENTO DE TUBO DE FERRO FUNDIDO PARA REDE DE ÁGUA, DN 400 MM, JUNTA ELÁSTICA, INSTALADO EM LOCAL COM NÍVEL BAIXO DE INTERFERÊNCIAS (NÃO INCLUI FORNECIMENTO). AF_11/2017 | D26: M | F26: 13.99 | G26: 15,24
A27: SINAPI | B27: 97165 | C27: ASSENTAMENTO DE TUBO DE FERRO FUNDIDO PARA REDE DE ÁGUA, DN 450 MM, JUNTA ELÁSTICA, INSTALADO EM LOCAL COM NÍVEL BAIXO DE INTERFERÊNCIAS (NÃO INCLUI FORNECIMENTO). AF_11/2017 | D27: M | F27: 15.43 | G27: 16,81
A28: SINAPI | B28: 97166 | C28: ASSENTAMENTO DE TUBO DE FERRO FUNDIDO PARA REDE DE ÁGUA, DN 500 MM, JUNTA ELÁSTICA, INSTALADO EM LOCAL COM NÍVEL BAIXO DE INTERFERÊNCIAS (NÃO INCLUI FORNECIMENTO). AF_11/2017 | D28: M | F28: 19.63 | G28: 21,12
A29: SINAPI | B29: 97167 | C29: ASSENTAMENTO DE TUBO DE FERRO FUNDIDO PARA REDE DE ÁGUA, DN 600 MM, JUNTA ELÁSTICA, INSTALADO EM LOCAL COM NÍVEL BAIXO DE INTERFERÊNCIAS (NÃO INCLUI FORNECIMENTO). AF_11/2017 | D29: M | F29: 22.88 | G29: 24,65
A30: SINAPI | B30: 97168 | C30: ASSENTAMENTO DE TUBO DE FERRO FUNDIDO PARA REDE DE ÁGUA, DN 700 MM, JUNTA ELÁSTICA, INSTALADO EM LOCAL COM NÍVEL BAIXO DE INTERFERÊNCIAS (NÃO INCLUI FORNECIMENTO). AF_11/2017 | D30: M | F30: 25.92 | G30: 27,95
A31: SINAPI | B31: 97169 | C31: ASSENTAMENTO DE TUBO DE FERRO FUNDIDO PARA REDE DE ÁGUA, DN 800 MM, JUNTA ELÁSTICA, INSTALADO EM LOCAL COM NÍVEL BAIXO DE INTERFERÊNCIAS (NÃO INCLUI FORNECIMENTO). AF_11/2017 | D31: M | F31: 29.09 | G31: 31,39
A32: SINAPI | B32: 97170 | C32: ASSENTAMENTO DE TUBO DE FERRO FUNDIDO PARA REDE DE ÁGUA, DN 900 MM, JUNTA ELÁSTICA, INSTALADO EM LOCAL COM NÍVEL BAIXO DE INTERFERÊNCIAS (NÃO INCLUI FORNECIMENTO). AF_11/2017 | D32: M | F32: 32.29 | G32: 34,84
A33: SINAPI | B33: 97171 | C33: ASSENTAMENTO DE TUBO DE FERRO FUNDIDO PARA REDE DE ÁGUA, DN 1000 MM, JUNTA ELÁSTICA, INSTALADO EM LOCAL COM NÍVEL BAIXO DE INTERFERÊNCIAS (NÃO INCLUI FORNECIMENTO). AF_11/2017 | D33: M | F33: 35.52 | G33: 38,33
A34: SINAPI | B34: 97172 | C34: ASSENTAMENTO DE TUBO DE FERRO FUNDIDO PARA REDE DE ÁGUA, DN 1200 MM, JUNTA ELÁSTICA, INSTALADO EM LOCAL COM NÍVEL BAIXO DE INTERFERÊNCIAS (NÃO INCLUI FORNECIMENTO). AF_11/2017 | D34: M | F34: 42.3 | G34: 45,64
A35: SINAPI | B35: 97173 | C35: ASSENTAMENTO DE TUBO DE AÇO CARBONO PARA REDE DE ÁGUA, DN 600 MM (24), JUNTA SOLDADA, INSTALADO EM LOCAL COM NÍVEL ALTO DE INTERFERÊNCIAS (NÃO INCLUI FORNECIMENTO). AF_11/2017 | D35: M | F35: 40.02 | G35: 42,51
A36: SINAPI | B36: 97174 | C36: ASSENTAMENTO DE TUBO DE AÇO CARBONO PARA REDE DE ÁGUA, DN 700 MM (28), JUNTA SOLDADA, INSTALADO EM LOCAL COM NÍVEL ALTO DE INTERFERÊNCIAS (NÃO INCLUI FORNECIMENTO). AF_11/2017 | D36: M | F36: 46.37 | G36: 49,21
A37: SINAPI | B37: 97175 | C37: ASSENTAMENTO DE TUBO DE AÇO CARBONO PARA REDE DE ÁGUA, DN 800 MM (32), JUNTA SOLDADA, INSTALADO EM LOCAL COM NÍVEL ALTO DE INTERFERÊNCIAS (NÃO INCLUI FORNECIMENTO). AF_11/2017 | D37: M | F37: 52.72 | G37: 55,94
A38: SINAPI | B38: 97176 | C38: ASSENTAMENTO DE TUBO DE AÇO CARBONO PARA REDE DE ÁGUA, DN 900 MM (36), JUNTA SOLDADA, INSTALADO EM LOCAL COM NÍVEL ALTO DE INTERFERÊNCIAS (NÃO INCLUI FORNECIMENTO). AF_11/2017 | D38: M | F38: 59.04 | G38: 62,65
A39: SINAPI | B39: 97177 | C39: ASSENTAMENTO DE TUBO DE AÇO CARBONO PARA REDE DE ÁGUA, DN 1000 MM (40) OU DN 1100 MM (44), JUNTA SOLDADA, INSTALADO EM LOCAL COM NÍVEL ALTO DE INTERFERÊNCIAS (NÃO INCLUI FORNECIMENTO). AF_11/2017 | D39: M | F39: 71.76 | G39: 76,11
A40: SINAPI | B40: 97178 | C40: ASSENTAMENTO DE TUBO DE AÇO CARBONO PARA REDE DE ÁGUA, DN 1200 MM (48) OU DN 1300 MM (52), JUNTA SOLDADA, INSTALADO EM LOCAL COM NÍVEL ALTO DE INTERFERÊNCIAS (NÃO INCLUI FORNECIMENTO). AF_11/2017 | D40: M | F40: 84.45 | G40: 89,56
A41: SINAPI | B41: 97179 | C41: ASSENTAMENTO DE TUBO DE AÇO CARBONO PARA REDE DE ÁGUA, DN 1400 MM (56'') OU DN 1500 MM (60), JUNTA SOLDADA, INSTALADO EM LOCAL COM NÍVEL ALTO DE INTERFERÊNCIAS (NÃO INCLUI FORNECIMENTO). AF_11/2017 | D41: M | F41: 97.16 | G41: 103,01
A42: SINAPI | B42: 97180 | C42: ASSENTAMENTO DE TUBO DE AÇO CARBONO PARA REDE DE ÁGUA, DN 1600 MM (64) OU DN 1700 MM (68), JUNTA SOLDADA, INSTALADO EM LOCAL COM NÍVEL ALTO DE INTERFERÊNCIAS (NÃO INCLUI FORNECIMENTO). AF_11/2017 | D42: M | F42: 109.85 | G42: 116,45
A43: SINAPI | B43: 97181 | C43: ASSENTAMENTO DE TUBO DE AÇO CARBONO PARA REDE DE ÁGUA, DN 1800 MM (72) OU DN 1900 MM (76), JUNTA SOLDADA, INSTALADO EM LOCAL COM NÍVEL ALTO DE INTERFERÊNCIAS (NÃO INCLUI FORNECIMENTO). AF_11/2017 | D43: M | F43: 127.09 | G43: 134,43
A44: SINAPI | B44: 97182 | C44: ASSENTAMENTO DE TUBO DE AÇO CARBONO PARA REDE DE ÁGUA, DN 2000 MM (80) OU DN 2100 MM (84), JUNTA SOLDADA, INSTALADO EM LOCAL COM NÍVEL ALTO DE INTERFERÊNCIAS (NÃO INCLUI FORNECIMENTO). AF_11/2017 | D44: M | F44: 140.26 | G44: 148,36
A45: SINAPI | B45: 97183 | C45: ASSENTAMENTO DE TUBO DE AÇO CARBONO PARA REDE DE ÁGUA, DN 600 MM (24), JUNTA SOLDADA, INSTALADO EM LOCAL COM NÍVEL BAIXO DE INTERFERÊNCIAS (NÃO INCLUI FORNECIMENTO). AF_11/2017 | D45: M | F45: 32.99 | G45: 35,01
A46: SINAPI | B46: 97184 | C46: ASSENTAMENTO DE TUBO DE AÇO CARBONO PARA REDE DE ÁGUA, DN 700 MM (28), JUNTA SOLDADA, INSTALADO EM LOCAL COM NÍVEL BAIXO DE INTERFERÊNCIAS (NÃO INCLUI FORNECIMENTO). AF_11/2017 | D46: M | F46: 38.29 | G46: 40,62
A47: SINAPI | B47: 97185 | C47: ASSENTAMENTO DE TUBO DE AÇO CARBONO PARA REDE DE ÁGUA, DN 800 MM (32), JUNTA SOLDADA, INSTALADO EM LOCAL COM NÍVEL BAIXO DE INTERFERÊNCIAS (NÃO INCLUI FORNECIMENTO). AF_11/2017 | D47: M | F47: 43.61 | G47: 46,23
A48: SINAPI | B48: 97186 | C48: ASSENTAMENTO DE TUBO DE AÇO CARBONO PARA REDE DE ÁGUA, DN 900 MM (36), JUNTA SOLDADA, INSTALADO EM LOCAL COM NÍVEL BAIXO DE INTERFERÊNCIAS (NÃO INCLUI FORNECIMENTO). AF_11/2017 | D48: M | F48: 48.89 | G48: 51,85
A49: SINAPI | B49: 97187 | C49: ASSENTAMENTO DE TUBO DE AÇO CARBONO PARA REDE DE ÁGUA, DN 1000 MM (40 ) OU DN 1100 MM (44 ), JUNTA SOLDADA, INSTALADO EM LOCAL COM NÍVEL BAIXO DE INTERFERÊNCIAS (NÃO INCLUI FORNECIMENTO). AF_11/2017 | D49: M | F49: 59.52 | G49: 63,09
A50: SINAPI | B50: 97188 | C50: ASSENTAMENTO DE TUBO DE AÇO CARBONO PARA REDE DE ÁGUA, DN 1200 MM (48) OU DN 1300 MM (52), JUNTA SOLDADA, INSTALADO EM LOCAL COM NÍVEL BAIXO DE INTERFERÊNCIAS (NÃO INCLUI FORNECIMENTO). AF_11/2017 | D50: M | F50: 70.12 | G50: 74,33
A51: SINAPI | B51: 97189 | C51: ASSENTAMENTO DE TUBO DE AÇO CARBONO PARA REDE DE ÁGUA, DN 1400 MM (56'') OU DN 1500 MM (60), JUNTA SOLDADA, INSTALADO EM LOCAL COM NÍVEL BAIXO DE INTERFERÊNCIAS (NÃO INCLUI FORNECIMENTO). AF_11/2017 | D51: M | F51: 80.74 | G51: 85,56
A52: SINAPI | B52: 97190 | C52: ASSENTAMENTO DE TUBO DE AÇO CARBONO PARA REDE DE ÁGUA, DN 1600 MM (64) OU DN 1700 MM (68), JUNTA SOLDADA, INSTALADO EM LOCAL COM NÍVEL BAIXO DE INTERFERÊNCIAS (NÃO INCLUI FORNECIMENTO). AF_11/2017 | D52: M | F52: 91.34 | G52: 96,79
A53: SINAPI | B53: 97191 | C53: ASSENTAMENTO DE TUBO DE AÇO CARBONO PARA REDE DE ÁGUA, DN 1800 MM (72) OU DN 1900 MM (76), JUNTA SOLDADA, INSTALADO EM LOCAL COM NÍVEL BAIXO DE INTERFERÊNCIAS (NÃO INCLUI FORNECIMENTO). AF_11/2017 | D53: M | F53: 105.27 | G53: 111,35
A54: SINAPI | B54: 97192 | C54: ASSENTAMENTO DE TUBO DE AÇO CARBONO PARA REDE DE ÁGUA, DN 2000 MM (80) OU DN 2100 MM (84), JUNTA SOLDADA, INSTALADO EM LOCAL COM NÍVEL BAIXO DE INTERFERÊNCIAS (NÃO INCLUI FORNECIMENTO). AF_11/2017 | D54: M | F54: 116.24 | G54: 122,93
A55: SINAPI | B55: 90694 | C55: TUBO DE PVC PARA REDE COLETORA DE ESGOTO DE PAREDE MACIÇA, DN 100 MM, JUNTA ELÁSTICA - FORNECIMENTO E ASSENTAMENTO. AF_01/2021 | D55: M | F55: 53.14 | G55: 53,53
A56: SINAPI | B56: 90695 | C56: TUBO DE PVC PARA REDE COLETORA DE ESGOTO DE PAREDE MACIÇA, DN 150 MM, JUNTA ELÁSTICA - FORNECIMENTO E ASSENTAMENTO. AF_01/2021 | D56: M | F56: 101.65 | G56: 102,12
A57: SINAPI | B57: 90696 | C57: TUBO DE PVC PARA REDE COLETORA DE ESGOTO DE PAREDE MACIÇA, DN 200 MM, JUNTA ELÁSTICA - FORNECIMENTO E ASSENTAMENTO. AF_01/2021 | D57: M | F57: 170.4 | G57: 170,93
A58: SINAPI | B58: 90697 | C58: TUBO DE PVC PARA REDE COLETORA DE ESGOTO DE PAREDE MACIÇA, DN 250 MM, JUNTA ELÁSTICA - FORNECIMENTO E ASSENTAMENTO. AF_01/2021 | D58: M | F58: 264.9 | G58: 265,51
A59: SINAPI | B59: 90698 | C59: TUBO DE PVC PARA REDE COLETORA DE ESGOTO DE PAREDE MACIÇA, DN 300 MM, JUNTA ELÁSTICA, FORNECIMENTO E ASSENTAMENTO. AF_01/2021 | D59: M | F59: 405.5 | G59: 406,18
A60: SINAPI | B60: 90699 | C60: TUBO DE PVC PARA REDE COLETORA DE ESGOTO DE PAREDE MACIÇA, DN 350 MM, JUNTA ELÁSTICA - FORNECIMENTO E ASSENTAMENTO. AF_01/2021 | D60: M | F60: 571.23 | G60: 571,98
A61: SINAPI | B61: 90700 | C61: TUBO DE PVC PARA REDE COLETORA DE ESGOTO DE PAREDE MACIÇA, DN 400 MM, JUNTA ELÁSTICA FORNECIMENTO E ASSENTAMENTO. AF_01/2021 | D61: M | F61: 666.96 | G61: 667,61
A62: SINAPI | B62: 90701 | C62: TUBO DE PVC CORRUGADO DE DUPLA PAREDE PARA REDE COLETORA DE ESGOTO, DN 150 MM, JUNTA ELÁSTICA - FORNECIMENTO E ASSENTAMENTO. AF_01/2021 | D62: M | F62: 79.24 | G62: 79,76
A63: SINAPI | B63: 90702 | C63: TUBO DE PVC CORRUGADO DE DUPLA PAREDE PARA REDE COLETORA DE ESGOTO, DN 200 MM, JUNTA ELÁSTICA - FORNECIMENTO E ASSENTAMENTO. AF_01/2021 | D63: M | F63: 131.86 | G63: 132,45
A64: SINAPI | B64: 90703 | C64: TUBO DE PVC CORRUGADO DE DUPLA PAREDE PARA REDE COLETORA DE ESGOTO, DN 250 MM, JUNTA ELÁSTICA - FORNECIMENTO E ASSENTAMENTO. AF_01/2021 | D64: M | F64: 206.8 | G64: 207,47
A65: SINAPI | B65: 90704 | C65: TUBO DE PVC CORRUGADO DE DUPLA PAREDE PARA REDE COLETORA DE ESGOTO, DN 300 MM, JUNTA ELÁSTICA - FORNECIMENTO E ASSENTAMENTO. AF_01/2021 | D65: M | F65: 307.23 | G65: 307,97
A66: SINAPI | B66: 90705 | C66: TUBO DE PVC CORRUGADO DE DUPLA PAREDE PARA REDE COLETORA DE ESGOTO, DN 350 MM, JUNTA ELÁSTICA - FORNECIMENTO E ASSENTAMENTO. AF_01/2021 | D66: M | F66: 403.15 | G66: 403,96
A67: SINAPI | B67: 90706 | C67: TUBO DE PVC CORRUGADO DE DUPLA PAREDE PARA REDE COLETORA DE ESGOTO, DN 400 MM, JUNTA ELÁSTICA - FORNECIMENTO E ASSENTAMENTO. AF_01/2021 | D67: M | F67: 534.32 | G67: 535,04
A68: SINAPI | B68: 90708 | C68: TUBO DE PEAD CORRUGADO DE DUPLA PAREDE PARA REDE COLETORA DE ESGOTO, DN 600 MM, JUNTA ELÁSTICA INTEGRADA - FORNECIMENTO E ASSENTAMENTO. AF_01/2021 | D68: M | F68: 796.74 | G68: 797,70
A69: SINAPI | B69: 90724 | C69: JUNTA ARGAMASSADA ENTRE TUBO DN 100 MM E O POÇO DE VISITA/ CAIXA DE CONCRETO OU ALVENARIA EM REDES DE ESGOTO. AF_01/2021 | D69: UN | F69: 22.63 | G69: 25,31
A70: SINAPI | B70: 90725 | C70: JUNTA ARGAMASSADA ENTRE TUBO DN 150 MM E O POÇO DE VISITA/ CAIXA DE CONCRETO OU ALVENARIA EM REDES DE ESGOTO. AF_01/2021 | D70: UN | F70: 27.85 | G70: 31,15
A71: SINAPI | B71: 90726 | C71: JUNTA ARGAMASSADA ENTRE TUBO DN 200 MM E O POÇO/ CAIXA DE CONCRETO OU ALVENARIA EM REDES DE ESGOTO. AF_01/2021 | D71: UN | F71: 33.14 | G71: 37,04
A72: SINAPI | B72: 90727 | C72: JUNTA ARGAMASSADA ENTRE TUBO DN 250 MM E O POÇO DE VISITA/ CAIXA DE CONCRETO OU ALVENARIA EM REDES DE ESGOTO. AF_01/2021 | D72: UN | F72: 38.38 | G72: 42,88
A73: SINAPI | B73: 90728 | C73: JUNTA ARGAMASSADA ENTRE TUBO DN 300 MM E O POÇO DE VISITA/ CAIXA DE CONCRETO OU ALVENARIA EM REDES DE ESGOTO. AF_01/2021 | D73: UN | F73: 43.6 | G73: 48,69
A74: SINAPI | B74: 90729 | C74: JUNTA ARGAMASSADA ENTRE TUBO DN 350 MM E O POÇO DE VISITA/ CAIXA DE CONCRETO OU ALVENARIA EM REDES DE ESGOTO. AF_01/2021 | D74: UN | F74: 48.83 | G74: 54,53
A75: SINAPI | B75: 90730 | C75: JUNTA ARGAMASSADA ENTRE TUBO DN 400 MM E O POÇO DE VISITA/ CAIXA DE CONCRETO OU ALVENARIA EM REDES DE ESGOTO. AF_01/2021 | D75: UN | F75: 54.05 | G75: 60,36
A76: SINAPI | B76: 90731 | C76: JUNTA ARGAMASSADA ENTRE TUBO DN 450 MM E O POÇO DE VISITA/ CAIXA DE CONCRETO OU ALVENARIA EM REDES DE ESGOTO. AF_01/2021 | D76: UN | F76: 59.29 | G76: 66,20
A77: SINAPI | B77: 90732 | C77: JUNTA ARGAMASSADA ENTRE TUBO DN 600 MM E O POÇO DE VISITA/ CAIXA DE CONCRETO OU ALVENARIA EM REDES DE ESGOTO. AF_01/2021 | D77: UN | F77: 74.97 | G77: 83,68
A78: SINAPI | B78: 90733 | C78: ASSENTAMENTO DE TUBO DE PVC PARA REDE COLETORA DE ESGOTO DE PAREDE MACIÇA, DN 100 MM, JUNTA ELÁSTICA (NÃO INCLUI FORNECIMENTO). AF_01/2021 | D78: M | F78: 3.17 | G78: 3,56
A79: SINAPI | B79: 90734 | C79: ASSENTAMENTO DE TUBO DE PVC PARA REDE COLETORA DE ESGOTO DE PAREDE MACIÇA, DN 150 MM, JUNTA ELÁSTICA, (NÃO INCLUI FORNECIMENTO). AF_01/2021 | D79: M | F79: 3.76 | G79: 4,23
A80: SINAPI | B80: 90735 | C80: ASSENTAMENTO DE TUBO DE PVC PARA REDE COLETORA DE ESGOTO DE PAREDE MACIÇA, DN 200 MM, JUNTA ELÁSTICA (NÃO INCLUI FORNECIMENTO). AF_01/2021 | D80: M | F80: 4.35 | G80: 4,88
A81: SINAPI | B81: 90736 | C81: ASSENTAMENTO DE TUBO DE PVC PARA REDE COLETORA DE ESGOTO DE PAREDE MACIÇA, DN 250 MM, JUNTA ELÁSTICA (NÃO INCLUI FORNECIMENTO). AF_01/2021 | D81: M | F81: 4.93 | G81: 5,54
A82: SINAPI | B82: 90737 | C82: ASSENTAMENTO DE TUBO DE PVC PARA REDE COLETORA DE ESGOTO DE PAREDE MACIÇA, DN 300 MM, JUNTA ELÁSTICA (NÃO INCLUI FORNECIMENTO). AF_01/2021 | D82: M | F82: 5.52 | G82: 6,20
A83: SINAPI | B83: 90738 | C83: ASSENTAMENTO DE TUBO DE PVC PARA REDE COLETORA DE ESGOTO DE PAREDE MACIÇA, DN 350 MM, JUNTA ELÁSTICA (NÃO INCLUI FORNECIMENTO). AF_01/2021 | D83: M | F83: 6.11 | G83: 6,86
A84: SINAPI | B84: 90739 | C84: ASSENTAMENTO DE TUBO DE PVC PARA REDE COLETORA DE ESGOTO DE PAREDE MACIÇA, DN 400 MM, JUNTA ELÁSTICA (NÃO INCLUI FORNECIMENTO). AF_01/2021 | D84: M | F84: 8.83 | G84: 9,48
A85: SINAPI | B85: 90740 | C85: ASSENTAMENTO DE TUBO DE PVC CORRUGADO DE DUPLA PAREDE PARA REDE COLETORA DE ESGOTO, DN 150 MM, JUNTA ELÁSTICA (NÃO INCLUI FORNECIMENTO). AF_01/2021 | D85: M | F85: 4.19 | G85: 4,71
A86: SINAPI | B86: 90741 | C86: ASSENTAMENTO DE TUBO DE PVC CORRUGADO DE DUPLA PAREDE PARA REDE COLETORA DE ESGOTO, DN 200 MM, JUNTA ELÁSTICA (NÃO INCLUI FORNECIMENTO). AF_01/2021 | D86: M | F86: 4.78 | G86: 5,37
A87: SINAPI | B87: 90742 | C87: ASSENTAMENTO DE TUBO DE PVC CORRUGADO DE DUPLA PAREDE PARA REDE COLETORA DE ESGOTO, DN 250 MM, JUNTA ELÁSTICA (NÃO INCLUI FORNECIMENTO). AF_01/2021 | D87: M | F87: 5.36 | G87: 6,03
A88: SINAPI | B88: 90743 | C88: ASSENTAMENTO DE TUBO DE PVC CORRUGADO DE DUPLA PAREDE PARA REDE COLETORA DE ESGOTO, DN 300 MM, JUNTA ELÁSTICA (NÃO INCLUI FORNECIMENTO). AF_01/2021 | D88: M | F88: 5.95 | G88: 6,69
A89: SINAPI | B89: 90744 | C89: ASSENTAMENTO DE TUBO DE PVC CORRUGADO DE DUPLA PAREDE PARA REDE COLETORA DE ESGOTO, DN 350 MM, JUNTA ELÁSTICA (NÃO INCLUI FORNECIMENTO). AF_01/2021 | D89: M | F89: 6.54 | G89: 7,35
A90: SINAPI | B90: 90745 | C90: ASSENTAMENTO DE TUBO DE PVC CORRUGADO DE DUPLA PAREDE PARA REDE COLETORA DE ESGOTO, DN 400 MM, JUNTA ELÁSTICA (NÃO INCLUI FORNECIMENTO). AF_01/2021 | D90: M | F90: 9.86 | G90: 10,58
A91: SINAPI | B91: 90746 | C91: ASSENTAMENTO DE TUBO DE PEAD CORRUGADO DE DUPLA PAREDE PARA REDE COLETORA DE ESGOTO, DN 450 MM, JUNTA ELÁSTICA INTEGRADA (NÃO INCLUI FORNECIMENTO). AF_01/2021 | D91: M | F91: 3.43 | G91: 3,85
A92: SINAPI | B92: 90747 | C92: ASSENTAMENTO DE TUBO DE PEAD CORRUGADO DE DUPLA PAREDE PARA REDE COLETORA DE ESGOTO, DN 600 MM, JUNTA ELÁSTICA INTEGRADA (NÃO INCLUI FORNECIMENTO). AF_01/2021 | D92: M | F92: 16.58 | G92: 17,54
A93: SINAPI | B93: 94869 | C93: TUBO DE PEAD CORRUGADO DE DUPLA PAREDE PARA REDE COLETORA DE ESGOTO, DN 250 MM, JUNTA ELÁSTICA INTEGRADA - FORNECIMENTO E ASSENTAMENTO. AF_01/2021 | D93: M | F93: 140.44 | G93: 140,54
A94: SINAPI | B94: 94870 | C94: ASSENTAMENTO DE TUBO DE PEAD CORRUGADO DE DUPLA PAREDE PARA REDE COLETORA DE ESGOTO, DN 250 MM, JUNTA ELÁSTICA INTEGRADA (NÃO INCLUI FORNECIMENTO). AF_01/2021 | D94: M | F94: 1.73 | G94: 1,83
A95: SINAPI | B95: 94871 | C95: TUBO DE PEAD CORRUGADO DE DUPLA PAREDE PARA REDE COLETORA DE ESGOTO, DN 300 MM, JUNTA ELÁSTICA INTEGRADA - FORNECIMENTO E ASSENTAMENTO. AF_01/2021 | D95: M | F95: 219.77 | G95: 219,94
A96: SINAPI | B96: 94872 | C96: ASSENTAMENTO DE TUBO DE PEAD CORRUGADO DE DUPLA PAREDE PARA REDE COLETORA DE ESGOTO, DN 300 MM, JUNTA ELÁSTICA INTEGRADA (NÃO INCLUI FORNECIMENTO). AF_01/2021 | D96: M | F96: 2.45 | G96: 2,62
A97: SINAPI | B97: 94875 | C97: TUBO DE PEAD CORRUGADO DE DUPLA PAREDE PARA REDE COLETORA DE ESGOTO, DN 800 MM, JUNTA ELÁSTICA INTEGRADA - FORNECIMENTO E ASSENTAMENTO. AF_01/2021 | D97: M | F97: 1293.84 | G97: 1.295,28
A98: SINAPI | B98: 94876 | C98: ASSENTAMENTO DE TUBO DE PEAD CORRUGADO DE DUPLA PAREDE PARA REDE COLETORA DE ESGOTO, DN 800 MM, JUNTA ELÁSTICA INTEGRADA (NÃO INCLUI FORNECIMENTO). AF_01/2021 | D98: M | F98: 27.56 | G98: 29,00
A99: SINAPI | B99: 94878 | C99: ASSENTAMENTO DE TUBO DE PEAD CORRUGADO DE DUPLA PAREDE PARA REDE COLETORA DE ESGOTO, DN 900 MM, JUNTA ELÁSTICA INTEGRADA (NÃO INCLUI FORNECIMENTO). AF_01/2021 | D99: M | F99: 31.93 | G99: 33,61
A100: SINAPI | B100: 94879 | C100: TUBO DE PEAD CORRUGADO DE DUPLA PAREDE PARA REDE COLETORA DE ESGOTO, DN 1000 MM, JUNTA ELÁSTICA INTEGRADA - FORNECIMENTO E ASSENTAMENTO. AF_01/2021 | D100: M | F100: 1991.69 | G100: 1.993,78
A101: SINAPI | B101: 94880 | C101: ASSENTAMENTO DE TUBO DE PEAD CORRUGADO DE DUPLA PAREDE PARA REDE COLETORA DE ESGOTO, DN 1000 MM, JUNTA ELÁSTICA INTEGRADA (NÃO INCLUI FORNECIMENTO). AF_01/2021 | D101: M | F101: 40.99 | G101: 43,08
A102: SINAPI | B102: 94881 | C102: TUBO DE PEAD CORRUGADO DE DUPLA PAREDE PARA REDE COLETORA DE ESGOTO, DN 1200 MM, JUNTA ELÁSTICA INTEGRADA - FORNECIMENTO E ASSENTAMENTO. AF_01/2021 | D102: M | F102: 2743.71 | G102: 2.746,15
A103: SINAPI | B103: 94882 | C103: ASSENTAMENTO DE TUBO DE PEAD CORRUGADO DE DUPLA PAREDE PARA REDE COLETORA DE ESGOTO, DN 1200 MM, JUNTA ELÁSTICA INTEGRADA (NÃO INCLUI FORNECIMENTO). AF_01/2021 | D103: M | F103: 47.72 | G103: 50,16
A104: SINAPI | B104: 94884 | C104: ASSENTAMENTO DE TUBO DE PEAD CORRUGADO DE DUPLA PAREDE PARA REDE COLETORA DE ESGOTO, DN 1500 MM, JUNTA ELÁSTICA INTEGRADA (NÃO INCLUI FORNECIMENTO). AF_01/2021 | D104: M | F104: 61.34 | G104: 64,58
A105: SINAPI | B105: 97121 | C105: ASSENTAMENTO DE TUBO DE PVC PBA PARA REDE DE ÁGUA, DN 50 MM, JUNTA ELÁSTICA INTEGRADA, INSTALADO EM LOCAL COM NÍVEL ALTO DE INTERFERÊNCIAS (NÃO INCLUI FORNECIMENTO). AF_11/2017 | D105: M | F105: 1.89 | G105: 2,12
A106: SINAPI | B106: 97122 | C106: ASSENTAMENTO DE TUBO DE PVC PBA PARA REDE DE ÁGUA, DN 75 MM, JUNTA ELÁSTICA INTEGRADA, INSTALADO EM LOCAL COM NÍVEL ALTO DE INTERFERÊNCIAS (NÃO INCLUI FORNECIMENTO). AF_11/2017 | D106: M | F106: 2.62 | G106: 2,93
A107: SINAPI | B107: 97123 | C107: ASSENTAMENTO DE TUBO DE PVC PBA PARA REDE DE ÁGUA, DN 100 MM, JUNTA ELÁSTICA INTEGRADA, INSTALADO EM LOCAL COM NÍVEL ALTO DE INTERFERÊNCIAS (NÃO INCLUI FORNECIMENTO). AF_11/2017 | D107: M | F107: 3.32 | G107: 3,71
A108: SINAPI | B108: 97124 | C108: ASSENTAMENTO DE TUBO DE PVC PBA PARA REDE DE ÁGUA, DN 50 MM, JUNTA ELÁSTICA INTEGRADA, INSTALADO EM LOCAL COM NÍVEL BAIXO DE INTERFERÊNCIAS (NÃO INCLUI FORNECIMENTO). AF_11/2017 | D108: M | F108: 0.84 | G108: 0,92
A109: SINAPI | B109: 97125 | C109: ASSENTAMENTO DE TUBO DE PVC PBA PARA REDE DE ÁGUA, DN 75 MM, JUNTA ELÁSTICA INTEGRADA, INSTALADO EM LOCAL COM NÍVEL BAIXO DE INTERFERÊNCIAS (NÃO INCLUI FORNECIMENTO). AF_11/2017 | D109: M | F109: 1.18 | G109: 1,30
A110: SINAPI | B110: 97126 | C110: ASSENTAMENTO DE TUBO DE PVC PBA PARA REDE DE ÁGUA, DN 100 MM, JUNTA ELÁSTICA INTEGRADA, INSTALADO EM LOCAL COM NÍVEL BAIXO DE INTERFERÊNCIAS (NÃO INCLUI FORNECIMENTO). AF_11/2017 | D110: M | F110: 1.5 | G110: 1,66
A111: SINAPI | B111: 102264 | C111: TUBO DE PVC BRANCO PARA REDE COLETORA DE ESGOTO CONDOMINIAL DE PAREDE MACIÇA, DN 100 MM, JUNTA ELÁSTICA - FORNECIMENTO E ASSENTAMENTO. AF_01/2021 | D111: M | F111: 22.42 | G111: 22,81
A112: SINAPI | B112: 102265 | C112: JUNTA ARGAMASSADA ENTRE TUBO DN 800 MM E O POÇO DE VISITA/ CAIXA DE CONCRETO OU ALVENARIA EM REDES DE ESGOTO. AF_01/2021 | D112: UN | F112: 95.88 | G112: 107,00
A113: SINAPI | B113: 102266 | C113: JUNTA ARGAMASSADA ENTRE TUBO DN 900 MM E O POÇO DE VISITA/ CAIXA DE CONCRETO OU ALVENARIA EM REDES DE ESGOTO. AF_01/2021 | D113: UN | F113: 106.33 | G113: 118,65
A114: SINAPI | B114: 102267 | C114: JUNTA ARGAMASSADA ENTRE TUBO DN 1000 MM E O POÇO DE VISITA/ CAIXA DE CONCRETO OU ALVENARIA EM REDES DE ESGOTO. AF_01/2021 | D114: UN | F114: 122.08 | G114: 136,21
A115: SINAPI | B115: 102268 | C115: JUNTA ARGAMASSADA ENTRE TUBO DN 1200 MM E O POÇO DE VISITA/ CAIXA DE CONCRETO OU ALVENARIA EM REDES DE ESGOTO. AF_01/2021 | D115: UN | F115: 137.76 | G115: 153,70
A116: SINAPI | B116: 102269 | C116: JUNTA ARGAMASSADA ENTRE TUBO DN 1500 MM E O POÇO DE VISITA/ CAIXA DE CONCRETO OU ALVENARIA EM REDES DE ESGOTO. AF_01/2021 | D116: UN | F116: 169.12 | G116: 188,67
A117: SINAPI | B117: 92833 | C117: TUBO DE CONCRETO PARA REDES COLETORAS DE ESGOTO SANITÁRIO, DIÂMETRO DE 300 MM, JUNTA ELÁSTICA, INSTALADO EM LOCAL COM BAIXO NÍVEL DE INTERFERÊNCIAS - FORNECIMENTO E ASSENTAMENTO. AF_12/2015 | D117: M | F117: 230.79 | G117: 231,40
A118: SINAPI | B118: 92834 | C118: ASSENTAMENTO DE TUBO DE CONCRETO PARA REDES COLETORAS DE ESGOTO SANITÁRIO, DIÂMETRO DE 300 MM, JUNTA ELÁSTICA, INSTALADO EM LOCAL COM BAIXO NÍVEL DE INTERFERÊNCIAS (NÃO INCLUI FORNECIMENTO). AF_12/2015 | D118: M | F118: 8.79 | G118: 9,40
A119: SINAPI | B119: 92835 | C119: TUBO DE CONCRETO PARA REDES COLETORAS DE ESGOTO SANITÁRIO, DIÂMETRO DE 400 MM, JUNTA ELÁSTICA, INSTALADO EM LOCAL COM BAIXO NÍVEL DE INTERFERÊNCIAS - FORNECIMENTO E ASSENTAMENTO. AF_12/2015 | D119: M | F119: 240.79 | G119: 241,56
A120: SINAPI | B120: 92836 | C120: ASSENTAMENTO DE TUBO DE CONCRETO PARA REDES COLETORAS DE ESGOTO SANITÁRIO, DIÂMETRO DE 400 MM, JUNTA ELÁSTICA, INSTALADO EM LOCAL COM BAIXO NÍVEL DE INTERFERÊNCIAS (NÃO INCLUI FORNECIMENTO). AF_12/2015 | D120: M | F120: 11.24 | G120: 12,01
A121: SINAPI | B121: 92837 | C121: TUBO DE CONCRETO PARA REDES COLETORAS DE ESGOTO SANITÁRIO, DIÂMETRO DE 500 MM, JUNTA ELÁSTICA, INSTALADO EM LOCAL COM BAIXO NÍVEL DE INTERFERÊNCIAS - FORNECIMENTO E ASSENTAMENTO. AF_12/2015 | D121: M | F121: 429.46 | G121: 430,40
A122: SINAPI | B122: 92838 | C122: ASSENTAMENTO DE TUBO DE CONCRETO PARA REDES COLETORAS DE ESGOTO SANITÁRIO, DIÂMETRO DE 500 MM, JUNTA ELÁSTICA, INSTALADO EM LOCAL COM BAIXO NÍVEL DE INTERFERÊNCIAS (NÃO INCLUI FORNECIMENTO). AF_12/2015 | D122: M | F122: 13.46 | G122: 14,40
A123: SINAPI | B123: 92839 | C123: TUBO DE CONCRETO PARA REDES COLETORAS DE ESGOTO SANITÁRIO, DIÂMETRO DE 600 MM, JUNTA ELÁSTICA, INSTALADO EM LOCAL COM BAIXO NÍVEL DE INTERFERÊNCIAS - FORNECIMENTO E ASSENTAMENTO. AF_12/2015 | D123: M | F123: 525.8 | G123: 526,89
A124: SINAPI | B124: 92840 | C124: ASSENTAMENTO DE TUBO DE CONCRETO PARA REDES COLETORAS DE ESGOTO SANITÁRIO, DIÂMETRO DE 600 MM, JUNTA ELÁSTICA, INSTALADO EM LOCAL COM BAIXO NÍVEL DE INTERFERÊNCIAS (NÃO INCLUI FORNECIMENTO). AF_12/2015 | D124: M | F124: 15.98 | G124: 17,07
A125: SINAPI | B125: 92841 | C125: TUBO DE CONCRETO PARA REDES COLETORAS DE ESGOTO SANITÁRIO, DIÂMETRO DE 700 MM, JUNTA ELÁSTICA, INSTALADO EM LOCAL COM BAIXO NÍVEL DE INTERFERÊNCIAS - FORNECIMENTO E ASSENTAMENTO. AF_12/2015 | D125: M | F125: 685.18 | G125: 686,45
A126: SINAPI | B126: 92842 | C126: ASSENTAMENTO DE TUBO DE CONCRETO PARA REDES COLETORAS DE ESGOTO SANITÁRIO, DIÂMETRO DE 700 MM, JUNTA ELÁSTICA, INSTALADO EM LOCAL COM BAIXO NÍVEL DE INTERFERÊNCIAS (NÃO INCLUI FORNECIMENTO). AF_12/2015 | D126: M | F126: 18.22 | G126: 19,49
A127: SINAPI | B127: 92843 | C127: TUBO DE CONCRETO PARA REDES COLETORAS DE ESGOTO SANITÁRIO, DIÂMETRO DE 800 MM, JUNTA ELÁSTICA, INSTALADO EM LOCAL COM BAIXO NÍVEL DE INTERFERÊNCIAS - FORNECIMENTO E ASSENTAMENTO. AF_12/2015 | D127: M | F127: 707.76 | G127: 709,19
A128: SINAPI | B128: 92844 | C128: ASSENTAMENTO DE TUBO DE CONCRETO PARA REDES COLETORAS DE ESGOTO SANITÁRIO, DIÂMETRO DE 800 MM, JUNTA ELÁSTICA, INSTALADO EM LOCAL COM BAIXO NÍVEL DE INTERFERÊNCIAS (NÃO INCLUI FORNECIMENTO). AF_12/2015 | D128: M | F128: 20.73 | G128: 22,16
A129: SINAPI | B129: 92845 | C129: TUBO DE CONCRETO PARA REDES COLETORAS DE ESGOTO SANITÁRIO, DIÂMETRO DE 900 MM, JUNTA ELÁSTICA, INSTALADO EM LOCAL COM BAIXO NÍVEL DE INTERFERÊNCIAS - FORNECIMENTO E ASSENTAMENTO. AF_12/2015 | D129: M | F129: 1053.55 | G129: 1.055,12
